Workbook

Sheet Sample Report (hidden)
A2: Date
A3: Hen
A4: Program
A5: Start at 999999
A6: Sequence component 1 | B6: Time 1 | C6: Seqeunce Component 2 | D6: Time 2 | E6: Seqeunce Component 3 | F6: Time 3 | G6: Correct 0 = No 1=Yes | J6: Seqeunce | K6: Time
A7: 12 | B7: 7 | C7: 12 | D7: 42 | E7: 13 | F7: 18 | G7: if 77 new line, if 31 or 41 = yes new line on 77, | J7: =string of Seqeunce compponent 1, 2 & 3 | K7: =time 3
A8: This continues until ther is a 1 on its own to indicate start of summary data
J9: 10-19 =1
A10: Summary Data | J10: 20-29 =2
A11: Correct | B11: Incorrect | C11: Rft | D11: total | E11: Av Correct | F11: Av Incorrect | G11: Percent correct | H11: Time | J11: in this example the seqeunce would be 111
A12: 40 | B12: 33 | C12: 40 | D12: 73 | E12: 23.95 | F12: 15 | G12: 54 | H12: 806

Sheet Summary
A2: Day | B2: Date | C2: Average Response Rate | D2: Target % | E2: RF for non correct sequence | F2: U Value | K2: Block 1 | L2: Block 2 | M2: Block 3 | N2: Block 4 | O2: Block 5 | P2: Block 6
A3: 1 | B3: ='!M614940.102'!B2:C2 -> <date> | C3: =('!M614940.102'!F69/60)/'!M614940.102'!Q3 -> 6.179365079 | D3: ='!M614940.102'!N20/'!M614940.102'!Q3 -> 0.07936507937 | E3: =SUM('!M614940.102'!L20:Q20)/'!M614940.102'!Q3 -> 3.936507937 | F3: ='!M614940.102'!Q16 -> 0.2668589941 | J3: Average Response Rate | K3: =AVERAGE(C3:C7) -> 4.126270284 | L3: =AVERAGE(C8:C12) -> 2.454239771 | M3: =AVERAGE(C13:C17) -> 2.453648021 | N3: =AVERAGE(C18:C22) -> 2.443599834 | O3: =AVERAGE(C23:C27) -> 2.217639816 | P3: =AVERAGE(C28:C32) -> 2.177673386
A4: 2 | B4: ='!M615740.102'!B2:C2 -> <date> | C4: =('!M615740.102'!F70/60)/'!M615740.102'!Q3 -> 6.2390625 | D4: ='!M615740.102'!N20/'!M615740.102'!Q3 -> 0.125 | E4: =SUM('!M615740.102'!L20:Q20)/'!M615740.102'!Q3 -> 3.921875 | F4: ='!M615740.102'!Q16 -> 0.3140838243 | J4: Target % | K4: =AVERAGE(D3:D7) -> 0.2797992078 | L4: =AVERAGE(D8:D12) -> 0.5989403483 | M4: =AVERAGE(D13:D17) -> 0.6300126502 | N4: =AVERAGE(D18:D22) -> 0.6442702542 | O4: =AVERAGE(D23:D27) -> 0.6145062504 | P4: =AVERAGE(D28:D32) -> 0.8019678997
A5: 3 | B5: ='!M616730.102'!B2:C2 -> <date> | C5: =('!M616730.102'!F133/60)/'!M616730.102'!Q3 -> 2.902493438 | D5: ='!M616730.102'!N20/'!M616730.102'!Q3 -> 0.3149606299 | E5: =SUM('!M616730.102'!L20:Q20)/'!M616730.102'!Q3 -> 1.527559055 | F5: ='!M616730.102'!Q16 -> 0.2141299215 | J5: CCRF | K5: =AVERAGE(E3:E7) -> 2.880485102 | L5: =AVERAGE(E8:E12) -> 3.045656645 | M5: =AVERAGE(E13:E17) -> 3.13384883 | N5: =AVERAGE(E18:E22) -> 3.479508451 | O5: =AVERAGE(E23:E27) -> 3.584331041 | P5: =AVERAGE(E28:E32) -> 3.957161142
A6: 4 | B6: ='!M617A50.102'!B2:C2 -> <date> | C6: =('!M617A50.102'!F146/60)/'!M617A50.102'!Q3 -> 2.849404762 | D6: ='!M617A50.102'!N20/'!M617A50.102'!Q3 -> 0.2642857143 | E6: =SUM('!M617A50.102'!L20:Q20)/'!M617A50.102'!Q3 -> 2.185714286 | F6: ='!M617A50.102'!Q16 -> 0.1679230418 | J6: U Value | K6: =AVERAGE(F3:F7) -> 0.2414008835 | L6: =AVERAGE(F8:F12) -> 0.2331066009 | M6: =AVERAGE(F13:F17) -> 0.2333176236 | N6: =AVERAGE(F18:F22) -> 0.2002816986 | O6: =AVERAGE(F23:F27) -> 0.1826477372 | P6: =AVERAGE(F28:F32) -> 0.1475619737
A7: 5 | B7: ='!M618A40.102'!B2:C2 -> <date> | C7: =('!M618A40.102'!F71/60)/'!M618A40.102'!Q3 -> 2.461025641 | D7: ='!M618A40.102'!N20/'!M618A40.102'!Q3 -> 0.6153846154 | E7: =SUM('!M618A40.102'!L20:Q20)/'!M618A40.102'!Q3 -> 2.830769231 | F7: ='!M618A40.102'!Q16 -> 0.2440086358
A8: 6 | B8: ='!M619B20.102'!B2:C2 -> <date> | C8: =('!M619B20.102'!F77/60)/'!M619B20.102'!Q3 -> 2.55 | D8: ='!M619B20.102'!N20/'!M619B20.102'!Q3 -> 0.5633802817 | E8: =SUM('!M619B20.102'!L20:Q20)/'!M619B20.102'!Q3 -> 2.61971831 | F8: ='!M619B20.102'!Q16 -> 0.2292689743
A9: 7 | B9: ='!M620B10.102'!B2:C2 -> <date> | C9: =('!M620B10.102'!F59/60)/'!M620B10.102'!Q3 -> 2.13836478 | D9: ='!M620B10.102'!N20/'!M620B10.102'!Q3 -> 0.7547169811 | E9: =SUM('!M620B10.102'!L20:Q20)/'!M620B10.102'!Q3 -> 3.396226415 | F9: ='!M620B10.102'!Q16 -> 0.209444924 | G9: =K3 -> 4.126270284 | H9: 2.454239771 | I9: 2.453648021 | J9: 2.443599834 | K9: 2.217639816 | L9: 2.177673386 | M9: =K4 -> 0.2797992078 | N9: 0.5989403483 | O9: 0.6300126502 | P9: 0.6442702542 | Q9: 0.6145062504 | R9: 0.8019678997 | S9: =K6 -> 0.2414008835 | T9: 0.2331066009 | U9: 0.2333176236 | V9: 0.2002816986 | W9: 0.1826477372 | X9: 0.1475619737
A10: 8 | B10: ='!M621A40.102'!B2:C2 -> <date> | C10: =('!M621A40.102'!F67/60)/'!M621A40.102'!Q3 -> 2.344535519 | D10: ='!M621A40.102'!N20/'!M621A40.102'!Q3 -> 0.6557377049 | E10: =SUM('!M621A40.102'!L20:Q20)/'!M621A40.102'!Q3 -> 2.983606557 | F10: ='!M621A40.102'!Q16 -> 0.2333705057
A11: 9 | B11: ='!M622B40.102'!B2:C2 -> <date> | C11: =('!M622B40.102'!F95/60)/'!M622B40.102'!Q3 -> 2.699250936 | D11: ='!M622B40.102'!N20/'!M622B40.102'!Q3 -> 0.4494382022 | E11: =SUM('!M622B40.102'!L20:Q20)/'!M622B40.102'!Q3 -> 2.157303371 | F11: ='!M622B40.102'!Q16 -> 0.2211819133
A12: 10 | B12: ='!M623C20.102'!B2:C2 -> <date> | C12: =('!M623C20.102'!F76/60)/'!M623C20.102'!Q3 -> 2.539047619 | D12: ='!M623C20.102'!N20/'!M623C20.102'!Q3 -> 0.5714285714 | E12: =SUM('!M623C20.102'!L20:Q20)/'!M623C20.102'!Q3 -> 4.071428571 | F12: ='!M623C20.102'!Q16 -> 0.2722666871
A13: 11 | B13: ='!M624B50.102'!B2:C2 -> <date> | C13: =('!M624B50.102'!F74/60)/'!M624B50.102'!Q3 -> 2.51004902 | D13: ='!M624B50.102'!N20/'!M624B50.102'!Q3 -> 0.5882352941 | E13: =SUM('!M624B50.102'!L20:Q20)/'!M624B50.102'!Q3 -> 2.720588235 | F13: ='!M624B50.102'!Q16 -> 0.2384559602
A14: 12 | B14: ='!M625A20.102'!B2:C2 -> <date> | C14: =('!M625A20.102'!F66/60)/'!M625A20.102'!Q3 -> 2.383611111 | D14: ='!M625A20.102'!N20/'!M625A20.102'!Q3 -> 0.6666666667 | E14: =SUM('!M625A20.102'!L20:Q20)/'!M625A20.102'!Q3 -> 3.033333333 | F14: ='!M625A20.102'!Q16 -> 0.2161986393
A15: 13 | B15: ='!M626C00.102'!B2:C2 -> <date> | C15: =('!M626C00.102'!F70/60)/'!M626C00.102'!Q3 -> 2.404166667 | D15: ='!M626C00.102'!N20/'!M626C00.102'!Q3 -> 0.625 | E15: =SUM('!M626C00.102'!L20:Q20)/'!M626C00.102'!Q3 -> 4.421875 | F15: ='!M626C00.102'!Q16 -> 0.2101154018
A16: 14 | B16: ='!M627B20.102'!B2:C2 -> <date> | C16: =('!M627B20.102'!F68/60)/'!M627B20.102'!Q3 -> 2.51155914 | D16: ='!M627B20.102'!N20/'!M627B20.102'!Q3 -> 0.6451612903 | E16: =SUM('!M627B20.102'!L20:Q20)/'!M627B20.102'!Q3 -> 2.790322581 | F16: ='!M627B20.102'!Q16 -> 0.2388391825
A17: 15 | B17: ='!M628930.102'!B2:C2 -> <date> | C17: =('!M628930.102'!F70/60)/'!M628930.102'!Q3 -> 2.458854167 | D17: ='!M628930.102'!N20/'!M628930.102'!Q3 -> 0.625 | E17: =SUM('!M628930.102'!L20:Q20)/'!M628930.102'!Q3 -> 2.703125 | F17: ='!M628930.102'!Q16 -> 0.2629789342
A18: 16 | B18: ='!M629920.102'!B2:C2 -> <date> | C18: =('!M629920.102'!F70/60)/'!M629920.102'!Q3 -> 2.650260417 | D18: ='!M629920.102'!N20/'!M629920.102'!Q3 -> 0.625 | E18: =SUM('!M629920.102'!L20:Q20)/'!M629920.102'!Q3 -> 4.421875 | F18: ='!M629920.102'!Q16 -> 0.2254022166
A19: 17 | B19: ='!M630840.102'!B2:C2 -> <date> | C19: =('!M630840.102'!F67/60)/'!M630840.102'!Q3 -> 2.371857923 | D19: ='!M630840.102'!N20/'!M630840.102'!Q3 -> 0.6557377049 | E19: =SUM('!M630840.102'!L20:Q20)/'!M630840.102'!Q3 -> 2.983606557 | F19: ='!M630840.102'!Q16 -> 0.1909593547
A20: 18 | B20: ='!M701950.102'!B2:C2 -> <date> | C20: =('!M701950.102'!F94/60)/'!M701950.102'!Q3 -> 2.675189394 | D20: ='!M701950.102'!N20/'!M701950.102'!Q3 -> 0.4545454545 | E20: =SUM('!M701950.102'!L20:Q20)/'!M701950.102'!Q3 -> 3.306818182 | F20: ='!M701950.102'!Q16 -> 0.2066497019
A21: 19 | B21: ='!M702850.102'!B2:C2 -> <date> | C21: =('!M702850.102'!F57/60)/'!M702850.102'!Q3 -> 2.316013072 | D21: ='!M702850.102'!N20/'!M702850.102'!Q3 -> 0.7843137255 | E21: =SUM('!M702850.102'!L20:Q20)/'!M702850.102'!Q3 -> 3.509803922 | F21: ='!M702850.102'!Q16 -> 0.179783376
A22: 20 | B22: ='!M703730.102'!B2:C2 -> <date> | C22: =('!M703730.102'!F63/60)/'!M703730.102'!Q3 -> 2.204678363 | D22: ='!M703730.102'!N20/'!M703730.102'!Q3 -> 0.701754386 | E22: =SUM('!M703730.102'!L20:Q20)/'!M703730.102'!Q3 -> 3.175438596 | F22: ='!M703730.102'!Q16 -> 0.1986138437
A23: 21 | B23: ='!M704950.102'!B2:C2 -> <date> | C23: =('!M704950.102'!F95/60)/'!M704950.102'!Q3 -> 2.340074906 | D23: ='!M704950.102'!N20/'!M704950.102'!Q3 -> 0.4494382022 | E23: =SUM('!M704950.102'!L20:Q20)/'!M704950.102'!Q3 -> 3.280898876 | F23: ='!M704950.102'!Q16 -> 0.1655011034
A24: 22 | B24: ='!M705800.102'!B2:C2 -> <date> | C24: =('!M705800.102'!F78/60)/'!M705800.102'!Q3 -> 2.205555556 | D24: ='!M705800.102'!N20/'!M705800.102'!Q3 -> 0.5555555556 | E24: =SUM('!M705800.102'!L20:Q20)/'!M705800.102'!Q3 -> 3.972222222 | F24: ='!M705800.102'!Q16 -> 0.2107811247
A25: 23 | B25: ='!M706920.102'!B2:C2 -> <date> | C25: =('!M706920.102'!F84/60)/'!M706920.102'!Q3 -> 2.25491453 | D25: ='!M706920.102'!N20/'!M706920.102'!Q3 -> 0.5128205128 | E25: =SUM('!M706920.102'!L20:Q20)/'!M706920.102'!Q3 -> 3.692307692 | F25: ='!M706920.102'!Q16 -> 0.2077962488
A26: 24 | B26: ='!M707950.102'!B2:C2 -> <date> | C26: =('!M707950.102'!F56/60)/'!M707950.102'!Q3 -> 2.159666667 | D26: ='!M707950.102'!N20/'!M707950.102'!Q3 -> 0.8 | E26: =SUM('!M707950.102'!L20:Q20)/'!M707950.102'!Q3 -> 3.58 | F26: ='!M707950.102'!Q16 -> 0.1623213248
A27: 25 | B27: ='!M708740.102'!B2:C2 -> <date> | C27: =('!M708740.102'!F59/60)/'!M708740.102'!Q3 -> 2.127987421 | D27: ='!M708740.102'!N20/'!M708740.102'!Q3 -> 0.7547169811 | E27: =SUM('!M708740.102'!L20:Q20)/'!M708740.102'!Q3 -> 3.396226415 | F27: ='!M708740.102'!Q16 -> 0.1668388844
A28: 26 | B28: ='!M709A10.102'!B2:C2 -> <date> | C28: =('!M709A10.102'!F55/60)/'!M709A10.102'!Q3 -> 2.234693878 | D28: ='!M709A10.102'!N20/'!M709A10.102'!Q3 -> 0.8163265306 | E28: =SUM('!M709A10.102'!L20:Q20)/'!M709A10.102'!Q3 -> 3.632653061 | F28: ='!M709A10.102'!Q16 -> 0.1390067964
A29: 27 | B29: ='!M710920.102'!B2:C2 -> <date> | C29: =('!M710920.102'!F58/60)/'!M710920.102'!Q3 -> 2.242628205 | D29: ='!M710920.102'!N20/'!M710920.102'!Q3 -> 0.7692307692 | E29: =SUM('!M710920.102'!L20:Q20)/'!M710920.102'!Q3 -> 3.442307692 | F29: ='!M710920.102'!Q16 -> 0.1967677511
A30: 28 | B30: ='!M711850.102'!B2:C2 -> <date> | C30: =('!M711850.102'!F56/60)/'!M711850.102'!Q3 -> 2.229666667 | D30: ='!M711850.102'!N20/'!M711850.102'!Q3 -> 0.8 | E30: =SUM('!M711850.102'!L20:Q20)/'!M711850.102'!Q3 -> 3.58 | F30: ='!M711850.102'!Q16 -> 0.1605841261
A31: 29 | B31: ='!M712A10.102'!B2:C2 -> <date> | C31: =('!M712A10.102'!F59/60)/'!M712A10.102'!Q3 -> 2.150943396 | D31: ='!M712A10.102'!N20/'!M712A10.102'!Q3 -> 0.7547169811 | E31: =SUM('!M712A10.102'!L20:Q20)/'!M712A10.102'!Q3 -> 5.283018868 | F31: ='!M712A10.102'!Q16 -> 0.1403154828
A32: 30 | B32: ='!M713920.102'!B2:C2 -> <date> | C32: =('!M713920.102'!F52/60)/'!M713920.102'!Q3 -> 2.030434783 | D32: ='!M713920.102'!N20/'!M713920.102'!Q3 -> 0.8695652174 | E32: =SUM('!M713920.102'!L20:Q20)/'!M713920.102'!Q3 -> 3.847826087 | F32: ='!M713920.102'!Q16 -> 0.1011357124
B33: ='!M714800.102'!B2:C2 -> <date> | C33: =('!M714800.102'!F51/60)/'!M714800.102'!Q3 -> 2.002222222 | D33: ='!M714800.102'!N20/'!M714800.102'!Q3 -> 0.8888888889 | E33: =SUM('!M714800.102'!L20:Q20)/'!M714800.102'!Q3 -> 3.933333333 | F33: ='!M714800.102'!Q16 -> 0.1062432948

Sheet Start
F1: Use Folder 51 | H1: Auto Clean Up | J1: Correct sequence
F2: FALSE | H2: TRUE | J2: 122
A4: Working with Folder | G4: Process All/Or Pick A number: ALL or an integer
A5: E:\Hen Data\Raw Data\102_182\phase 1 con\ | G5: ALL
A6: Filenames:
A7: !M623C20.102 | G7: Paint Cells
A8: !M624B50.102 | G8: FALSE
A9: !M625A20.102
A10: !M626C00.102
A11: !M627B20.102
A12: !M628930.102
A13: !M629920.102
A14: !M614940.102
A15: !M615740.102
A16: !M616730.102
A17: !M617A50.102
A18: !M618A40.102
A19: !M619B20.102
A20: !M620B10.102
A21: !M621A40.102
A22: !M622B40.102
A23: !M707950.102
A24: !M708740.102
A25: !M709A10.102
A26: !M710920.102
A27: !M711850.102
A28: !M712A10.102
A29: !M713920.102
A30: !M714800.102
A31: !M630840.102
A32: !M701950.102
A33: !M702850.102
A34: !M703730.102
A35: !M704950.102
A36: !M705800.102
A37: !M706920.102

Sheet !M614940.102
A1: Report for:!M614940.102
A2: Date: | B2: <date>
A3: Hen: | B3: <hen> | F3: Correct Sequence | G3: =Start!J2 -> 122 | P3: Total Sequences in Data | Q3: =4994-COUNTBLANK(L7:L5000) -> 63 | V3: Total Sequences in Block Data | W3: =COUNTA(L7:L17) -> 11 | AA3: Total Sequences in Block Data | AB3: =COUNTA(L18:L27) -> 10 | AF3: Total Sequences in Block Data | AG3: =COUNTA(L28:L38) -> 11 | AK3: Total Sequences in Block Data | AL3: =COUNTA(L39:L48) -> 10 | AP3: Total Sequences in Block Data | AQ3: =COUNTA(L49:L59) -> 11 | AU3: Total Sequences in Block Data | AV3: =COUNTA(L60:L69) -> 10
P4: Total Sequences in Summary | Q4: =SUM(O7:O14) -> 63 | V4: Total Sequences in Block Summary | W4: =SUM(U7:U14) -> 11 | AA4: Total Sequences in Block Summary | AB4: =SUM(Z7:Z14) -> 10 | AF4: Total Sequences in Block Summary | AG4: =SUM(AE7:AE14) -> 11 | AK4: Total Sequences in Block Summary | AL4: =SUM(AJ7:AJ14) -> 10 | AP4: Total Sequences in Block Summary | AQ4: =SUM(AO7:AO14) -> 11 | AU4: Total Sequences in Block Summary | AV4: =SUM(AT7:AT14) -> 10
T5: Block 1 | Y5: Block 2 | AD5: Block 3 | AI5: Block 4 | AN5: Block 5 | AS5: Block 6
A6: Sequence Component 1 | B6: Time 1 | C6: Sequence Component 2 | D6: Time 2 | E6: Sequence Component 3 | F6: Time 3 | G6: Sequence Component 4 | H6: Time 4 | I6: Sequence Component 5 | J6: Time 5 | K6: Correct? 0=No 1=Yes | L6: Sequence | N6: Frequency | P6: Relative Frequency | Q6: Variability | T6: Frequency | V6: Relative Frequency | W6: Variability | Y6: Frequency | AA6: Relative Frequency | AB6: Variability | AD6: Frequency | AF6: Relative Frequency | AG6: Variability | AI6: Frequency | AK6: Relative Frequency | AL6: Variability | AN6: Frequency | AP6: Relative Frequency | AQ6: Variability | AS6: Frequency | AU6: Relative Frequency | AV6: Variability
A7: 11 | B7: 11 | C7: 12 | D7: 36 | E7: 23 | F7: 70 | K7: 0 | L7: 112 | N7: 111 | O7: =COUNTIF($L$7:$L$500,N7) -> 11 | P7: =O7/$Q$4 -> 0.1746031746 | Q7: =IF(P7=0,0,(P7*((LOG(P7))/LOG(2)))) -> -0.4396243072 | T7: =N7 -> 111 | U7: =COUNTIF(L7:L17,T7) -> 1 | V7: =U7/(W4-U10) -> 0.1111111111 | W7: =IF(V7=0,0,(V7*((LOG(V7))/LOG(2)))) -> -0.352213889 | Y7: =N7 -> 111 | Z7: =COUNTIF(L18:L27,Y7) -> 1 | AA7: =Z7/(AB4-Z10) -> 0.1111111111 | AB7: =IF(AA7=0,0,(AA7*((LOG(AA7))/LOG(2)))) -> -0.352213889 | AD7: =N7 -> 111 | AE7: =COUNTIF(L28:L38,AD7) -> 1 | AF7: =AE7/(AG4-AE10) -> 0.09090909091 | AG7: =IF(AF7=0,0,(AF7*((LOG(AF7))/LOG(2)))) -> -0.3144937835 | AI7: =N7 -> 111 | AJ7: =COUNTIF(L39:L48,AI7) -> 1 | AK7: =AJ7/(AL4-AJ10) -> 0.125 | AL7: =IF(AK7=0,0,(AK7*((LOG(AK7))/LOG(2)))) -> -0.375 | AN7: =N7 -> 111 | AO7: =COUNTIF(L49:L59,AN7) -> 5 | AP7: =AO7/(AQ4-AO10) -> 0.4545454545 | AQ7: =IF(AP7=0,0,(AP7*((LOG(AP7))/LOG(2)))) -> -0.5170470562 | AS7: =N7 -> 111 | AT7: =COUNTIF(L60:L69,AS7) -> 2 | AU7: =AT7/(AV4-AT10) -> 0.2 | AV7: =IF(AU7=0,0,(AU7*((LOG(AU7))/LOG(2)))) -> -0.464385619
A8: 22 | B8: 226 | C8: 23 | D8: 242 | E8: 23 | F8: 249 | K8: 0 | L8: 222 | N8: 112 | O8: =COUNTIF($L$7:$L$500,N8) -> 3 | P8: =O8/$Q$4 -> 0.04761904762 | Q8: =IF(P8=0,0,(P8*((LOG(P8))/LOG(2)))) -> -0.2091579725 | T8: =N8 -> 112 | U8: =COUNTIF(L7:L17,T8) -> 1 | V8: =U8/(W4-U10) -> 0.1111111111 | W8: =IF(V8=0,0,(V8*((LOG(V8))/LOG(2)))) -> -0.352213889 | Y8: =N8 -> 112 | Z8: =COUNTIF(L18:L27,Y8) -> 1 | AA8: =Z8/(AB4-Z10) -> 0.1111111111 | AB8: =IF(AA8=0,0,(AA8*((LOG(AA8))/LOG(2)))) -> -0.352213889 | AD8: =N8 -> 112 | AE8: =COUNTIF(L28:L38,AD8) -> 0 | AF8: =AE8/(AG4-AE10) -> 0 | AG8: =IF(AF8=0,0,(AF8*((LOG(AF8))/LOG(2)))) -> 0 | AI8: =N8 -> 112 | AJ8: =COUNTIF(L39:L48,AI8) -> 0 | AK8: =AJ8/(AL4-AJ10) -> 0 | AL8: =IF(AK8=0,0,(AK8*((LOG(AK8))/LOG(2)))) -> 0 | AN8: =N8 -> 112 | AO8: =COUNTIF(L49:L59,AN8) -> 1 | AP8: =AO8/(AQ4-AO10) -> 0.09090909091 | AQ8: =IF(AP8=0,0,(AP8*((LOG(AP8))/LOG(2)))) -> -0.3144937835 | AS8: =N8 -> 112 | AT8: =COUNTIF(L60:L69,AS8) -> 0 | AU8: =AT8/(AV4-AT10) -> 0 | AV8: =IF(AU8=0,0,(AU8*((LOG(AU8))/LOG(2)))) -> 0
A9: 22 | B9: 347 | C9: 23 | D9: 363 | E9: 23 | F9: 373 | K9: 0 | L9: 222 | N9: 121 | O9: =COUNTIF($L$7:$L$500,N9) -> 0 | P9: =O9/$Q$4 -> 0 | Q9: =IF(P9=0,0,(P9*((LOG(P9))/LOG(2)))) -> 0 | T9: =N9 -> 121 | U9: =COUNTIF(L7:L17,T9) -> 0 | V9: =U9/(W4-U10) -> 0 | W9: =IF(V9=0,0,(V9*((LOG(V9))/LOG(2)))) -> 0 | Y9: =N9 -> 121 | Z9: =COUNTIF(L18:L27,Y9) -> 0 | AA9: =Z9/(AB4-Z10) -> 0 | AB9: =IF(AA9=0,0,(AA9*((LOG(AA9))/LOG(2)))) -> 0 | AD9: =N9 -> 121 | AE9: =COUNTIF(L28:L38,AD9) -> 0 | AF9: =AE9/(AG4-AE10) -> 0 | AG9: =IF(AF9=0,0,(AF9*((LOG(AF9))/LOG(2)))) -> 0 | AI9: =N9 -> 121 | AJ9: =COUNTIF(L39:L48,AI9) -> 0 | AK9: =AJ9/(AL4-AJ10) -> 0 | AL9: =IF(AK9=0,0,(AK9*((LOG(AK9))/LOG(2)))) -> 0 | AN9: =N9 -> 121 | AO9: =COUNTIF(L49:L59,AN9) -> 0 | AP9: =AO9/(AQ4-AO10) -> 0 | AQ9: =IF(AP9=0,0,(AP9*((LOG(AP9))/LOG(2)))) -> 0 | AS9: =N9 -> 121 | AT9: =COUNTIF(L60:L69,AS9) -> 0 | AU9: =AT9/(AV4-AT10) -> 0 | AV9: =IF(AU9=0,0,(AU9*((LOG(AU9))/LOG(2)))) -> 0
A10: 11 | B10: 476 | C10: 21 | D10: 497 | E10: 21 | F10: 506 | K10: 0 | L10: 122 | N10: 122 | O10: =COUNTIF($L$7:$L$500,N10) -> 5 | P10: =O10/$Q$4 -> 0.07936507937 | Q10: =IF(P10=0,0,(P10*((LOG(P10))/LOG(2)))) -> -0.290107288 | T10: =N10 -> 122 | U10: =COUNTIF(L7:L17,T10) -> 2 | Y10: =N10 -> 122 | Z10: =COUNTIF(L18:L27,Y10) -> 1 | AD10: =N10 -> 122 | AE10: =COUNTIF(L28:L38,AD10) -> 0 | AI10: =N10 -> 122 | AJ10: =COUNTIF(L39:L48,AI10) -> 2 | AN10: =N10 -> 122 | AO10: =COUNTIF(L49:L59,AN10) -> 0 | AS10: =N10 -> 122 | AT10: =COUNTIF(L60:L69,AS10) -> 0
A11: 22 | B11: 612 | C11: 23 | D11: 629 | E11: 23 | F11: 638 | K11: 0 | L11: 222 | N11: 211 | O11: =COUNTIF($L$7:$L$500,N11) -> 2 | P11: =O11/$Q$4 -> 0.03174603175 | Q11: =IF(P11=0,0,(P11*((LOG(P11))/LOG(2)))) -> -0.1580088865 | T11: =N11 -> 211 | U11: =COUNTIF(L7:L17,T11) -> 0 | V11: =U11/(W4-U10) -> 0 | W11: =IF(V11=0,0,(V11*((LOG(V11))/LOG(2)))) -> 0 | Y11: =N11 -> 211 | Z11: =COUNTIF(L18:L27,Y11) -> 0 | AA11: =Z11/(AB4-Z10) -> 0 | AB11: =IF(AA11=0,0,(AA11*((LOG(AA11))/LOG(2)))) -> 0 | AD11: =N11 -> 211 | AE11: =COUNTIF(L28:L38,AD11) -> 1 | AF11: =AE11/(AG4-AE10) -> 0.09090909091 | AG11: =IF(AF11=0,0,(AF11*((LOG(AF11))/LOG(2)))) -> -0.3144937835 | AI11: =N11 -> 211 | AJ11: =COUNTIF(L39:L48,AI11) -> 0 | AK11: =AJ11/(AL4-AJ10) -> 0 | AL11: =IF(AK11=0,0,(AK11*((LOG(AK11))/LOG(2)))) -> 0 | AN11: =N11 -> 211 | AO11: =COUNTIF(L49:L59,AN11) -> 0 | AP11: =AO11/(AQ4-AO10) -> 0 | AQ11: =IF(AP11=0,0,(AP11*((LOG(AP11))/LOG(2)))) -> 0 | AS11: =N11 -> 211 | AT11: =COUNTIF(L60:L69,AS11) -> 1 | AU11: =AT11/(AV4-AT10) -> 0.1 | AV11: =IF(AU11=0,0,(AU11*((LOG(AU11))/LOG(2)))) -> -0.3321928095
A12: 11 | B12: 749 | C12: 21 | D12: 781 | E12: 21 | F12: 789 | K12: 0 | L12: 122 | N12: 212 | O12: =COUNTIF($L$7:$L$500,N12) -> 0 | P12: =O12/$Q$4 -> 0 | Q12: =IF(P12=0,0,(P12*((LOG(P12))/LOG(2)))) -> 0 | T12: =N12 -> 212 | U12: =COUNTIF(L7:L17,T12) -> 0 | V12: =U12/(W4-U10) -> 0 | W12: =IF(V12=0,0,(V12*((LOG(V12))/LOG(2)))) -> 0 | Y12: =N12 -> 212 | Z12: =COUNTIF(L18:L27,Y12) -> 0 | AA12: =Z12/(AB4-Z10) -> 0 | AB12: =IF(AA12=0,0,(AA12*((LOG(AA12))/LOG(2)))) -> 0 | AD12: =N12 -> 212 | AE12: =COUNTIF(L28:L38,AD12) -> 0 | AF12: =AE12/(AG4-AE10) -> 0 | AG12: =IF(AF12=0,0,(AF12*((LOG(AF12))/LOG(2)))) -> 0 | AI12: =N12 -> 212 | AJ12: =COUNTIF(L39:L48,AI12) -> 0 | AK12: =AJ12/(AL4-AJ10) -> 0 | AL12: =IF(AK12=0,0,(AK12*((LOG(AK12))/LOG(2)))) -> 0 | AN12: =N12 -> 212 | AO12: =COUNTIF(L49:L59,AN12) -> 0 | AP12: =AO12/(AQ4-AO10) -> 0 | AQ12: =IF(AP12=0,0,(AP12*((LOG(AP12))/LOG(2)))) -> 0 | AS12: =N12 -> 212 | AT12: =COUNTIF(L60:L69,AS12) -> 0 | AU12: =AT12/(AV4-AT10) -> 0 | AV12: =IF(AU12=0,0,(AU12*((LOG(AU12))/LOG(2)))) -> 0
A13: 22 | B13: 888 | C13: 23 | D13: 897 | E13: 23 | F13: 903 | K13: 0 | L13: 222 | N13: 221 | O13: =COUNTIF($L$7:$L$500,N13) -> 1 | P13: =O13/$Q$4 -> 0.01587301587 | Q13: =IF(P13=0,0,(P13*((LOG(P13))/LOG(2)))) -> -0.0948774591 | T13: =N13 -> 221 | U13: =COUNTIF(L7:L17,T13) -> 0 | V13: =U13/(W4-U10) -> 0 | W13: =IF(V13=0,0,(V13*((LOG(V13))/LOG(2)))) -> 0 | Y13: =N13 -> 221 | Z13: =COUNTIF(L18:L27,Y13) -> 0 | AA13: =Z13/(AB4-Z10) -> 0 | AB13: =IF(AA13=0,0,(AA13*((LOG(AA13))/LOG(2)))) -> 0 | AD13: =N13 -> 221 | AE13: =COUNTIF(L28:L38,AD13) -> 0 | AF13: =AE13/(AG4-AE10) -> 0 | AG13: =IF(AF13=0,0,(AF13*((LOG(AF13))/LOG(2)))) -> 0 | AI13: =N13 -> 221 | AJ13: =COUNTIF(L39:L48,AI13) -> 0 | AK13: =AJ13/(AL4-AJ10) -> 0 | AL13: =IF(AK13=0,0,(AK13*((LOG(AK13))/LOG(2)))) -> 0 | AN13: =N13 -> 221 | AO13: =COUNTIF(L49:L59,AN13) -> 0 | AP13: =AO13/(AQ4-AO10) -> 0 | AQ13: =IF(AP13=0,0,(AP13*((LOG(AP13))/LOG(2)))) -> 0 | AS13: =N13 -> 221 | AT13: =COUNTIF(L60:L69,AS13) -> 1 | AU13: =AT13/(AV4-AT10) -> 0.1 | AV13: =IF(AU13=0,0,(AU13*((LOG(AU13))/LOG(2)))) -> -0.3321928095
A14: 11 | B14: 1009 | C14: 12 | D14: 1019 | E14: 14 | F14: 1031 | K14: 0 | L14: 111 | N14: 222 | O14: =COUNTIF($L$7:$L$500,N14) -> 41 | P14: =O14/$Q$4 -> 0.6507936508 | Q14: =IF(P14=0,0,(P14*((LOG(P14))/LOG(2)))) -> -0.4033149948 | T14: =N14 -> 222 | U14: =COUNTIF(L7:L17,T14) -> 7 | V14: =U14/(W4-U10) -> 0.7777777778 | W14: =IF(V14=0,0,(V14*((LOG(V14))/LOG(2)))) -> -0.2819989506 | Y14: =N14 -> 222 | Z14: =COUNTIF(L18:L27,Y14) -> 7 | AA14: =Z14/(AB4-Z10) -> 0.7777777778 | AB14: =IF(AA14=0,0,(AA14*((LOG(AA14))/LOG(2)))) -> -0.2819989506 | AD14: =N14 -> 222 | AE14: =COUNTIF(L28:L38,AD14) -> 9 | AF14: =AE14/(AG4-AE10) -> 0.8181818182 | AG14: =IF(AF14=0,0,(AF14*((LOG(AF14))/LOG(2)))) -> -0.2368690504 | AI14: =N14 -> 222 | AJ14: =COUNTIF(L39:L48,AI14) -> 7 | AK14: =AJ14/(AL4-AJ10) -> 0.875 | AL14: =IF(AK14=0,0,(AK14*((LOG(AK14))/LOG(2)))) -> -0.1685644432 | AN14: =N14 -> 222 | AO14: =COUNTIF(L49:L59,AN14) -> 5 | AP14: =AO14/(AQ4-AO10) -> 0.4545454545 | AQ14: =IF(AP14=0,0,(AP14*((LOG(AP14))/LOG(2)))) -> -0.5170470562 | AS14: =N14 -> 222 | AT14: =COUNTIF(L60:L69,AS14) -> 6 | AU14: =AT14/(AV4-AT10) -> 0.6 | AV14: =IF(AU14=0,0,(AU14*((LOG(AU14))/LOG(2)))) -> -0.4421793565
A15: 22 | B15: 1155 | C15: 23 | D15: 1161 | E15: 23 | F15: 1183 | K15: 0 | L15: 222 | P15: =SUM(P7:P14) -> 1 | Q15: =-SUM(Q7:Q14) -> 1.595090908 | V15: =SUM(V7:V14) -> 1 | W15: =-SUM(W7:W14) -> 0.9864267287 | AA15: =SUM(AA7:AA14) -> 1 | AB15: =-SUM(AB7:AB14) -> 0.9864267287 | AF15: =SUM(AF7:AF14) -> 1 | AG15: =-SUM(AG7:AG14) -> 0.8658566175 | AK15: =SUM(AK7:AK14) -> 1 | AL15: =-SUM(AL7:AL14) -> 0.5435644432 | AP15: =SUM(AP7:AP14) -> 1 | AQ15: =-SUM(AQ7:AQ14) -> 1.348587896 | AU15: =SUM(AU7:AU14) -> 1 | AV15: =-SUM(AV7:AV14) -> 1.570950594
A16: 22 | B16: 1288 | C16: 23 | D16: 1292 | E16: 23 | F16: 1300 | K16: 0 | L16: 222 | P16: U= | Q16: =Q15/(LOG(Q4)/LOG(2)) -> 0.2668589941 | V16: U1= | W16: =W15/(LOG(W4)/LOG(2)) -> 0.285141271 | AA16: U2= | AB16: =AB15/(LOG(AB4)/LOG(2)) -> 0.2969440339 | AF16: U3= | AG16: =AG15/(LOG(AG4)/LOG(2)) -> 0.2502886927 | AK16: U4= | AL16: =AL15/(LOG(AL4)/LOG(2)) -> 0.163629202 | AP16: U5= | AQ16: =AQ15/(LOG(AQ4)/LOG(2)) -> 0.3898293259 | AU16: U6= | AV16: =AV15/(LOG(AV4)/LOG(2)) -> 0.4729032506
A17: 22 | B17: 1417 | C17: 23 | D17: 1423 | E17: 23 | F17: 1448 | K17: 0 | L17: 222
A18: 22 | B18: 1589 | C18: 23 | D18: 1597 | E18: 23 | F18: 1620 | K18: 0 | L18: 222
A19: 22 | B19: 1746 | C19: 23 | D19: 1756 | E19: 23 | F19: 1767 | K19: 0 | L19: 222 | N19: Total Target Seq
A20: 22 | B20: 1867 | C20: 23 | D20: 1883 | E20: 23 | F20: 1897 | K20: 0 | L20: 222 | N20: =COUNTIF(L7:L69,G3) -> 5 | P20: 11 | Q20: 10 | R20: 11 | S20: 10 | T20: 11 | U20: 10
A21: 11 | B21: 2028 | C21: 12 | D21: 2029 | E21: 23 | F21: 2123 | K21: 0 | L21: 112 | P21: % of reinforcement given in 6 equal intervals based on number of trials
A22: 22 | B22: 2315 | C22: 23 | D22: 2324 | E22: 23 | F22: 2355 | K22: 0 | L22: 222 | P22: %_1 | Q22: %_2 | R22: %_3 | S22: %_4 | T22: %_5 | U22: %_6
A23: 22 | B23: 2510 | C23: 23 | D23: 2531 | E23: 23 | F23: 2540 | K23: 0 | L23: 222 | O23: target sequence | P23: =$G$3 -> 122 | Q23: =$G$3 -> 122 | R23: =$G$3 -> 122 | S23: =$G$3 -> 122 | T23: =$G$3 -> 122 | U23: =$G$3 -> 122
A24: 11 | B24: 2657 | C24: 21 | D24: 2673 | E24: 21 | F24: 2682 | K24: 0 | L24: 122 | O24: total reinforcement | P24: =U10 -> 2 | Q24: =Z10 -> 1 | R24: =AE10 -> 0 | S24: =AJ10 -> 2 | T24: =AO10 -> 0 | U24: =AT10 -> 0
A25: 22 | B25: 2780 | C25: 23 | D25: 2805 | E25: 23 | F25: 2815 | K25: 0 | L25: 222 | O25: % target
A26: 11 | B26: 2929 | C26: 12 | D26: 2959 | E26: 14 | F26: 2970 | K26: 0 | L26: 111 | O26: CCRF
A27: 22 | B27: 3181 | C27: 23 | D27: 3199 | E27: 23 | F27: 3210 | K27: 0 | L27: 222 | O27: % CCRf
A28: 22 | B28: 3349 | C28: 23 | D28: 3366 | E28: 23 | F28: 3375 | K28: 0 | L28: 222 | O28: average response rate | P28: =F17/P20 -> 131.6363636 | Q28: =(F27-F17)/Q20 -> 176.2 | R28: =(F38-F27)/R20 -> 375.4545455 | S28: =(F48-F38)/S20 -> 482.2 | T28: =(F59-F48)/T20 -> 199.2727273 | U28: =(F69-F59)/U20 -> 900.4
A29: 22 | B29: 3517 | C29: 23 | D29: 3525 | E29: 23 | F29: 3535 | K29: 0 | L29: 222
A30: 11 | B30: 3652 | C30: 12 | D30: 3662 | E30: 14 | F30: 3672 | K30: 0 | L30: 111
A31: 22 | B31: 3846 | C31: 23 | D31: 3852 | E31: 23 | F31: 3920 | K31: 0 | L31: 222
A32: 22 | B32: 5410 | C32: 23 | D32: 5420 | E32: 23 | F32: 5442 | K32: 0 | L32: 222
A33: 22 | B33: 5582 | C33: 23 | D33: 5589 | E33: 23 | F33: 5591 | K33: 0 | L33: 222
A34: 22 | B34: 5728 | C34: 23 | D34: 5752 | E34: 23 | F34: 5759 | K34: 0 | L34: 222
A35: 22 | B35: 6194 | C35: 23 | D35: 6200 | E35: 23 | F35: 6207 | K35: 0 | L35: 222
A36: 22 | B36: 6341 | C36: 23 | D36: 6352 | E36: 23 | F36: 6374 | K36: 0 | L36: 222
A37: 22 | B37: 6629 | C37: 14 | D37: 7146 | E37: 14 | F37: 7162 | K37: 0 | L37: 211
A38: 22 | B38: 7311 | C38: 23 | D38: 7325 | E38: 23 | F38: 7340 | K38: 0 | L38: 222
A39: 22 | B39: 7466 | C39: 23 | D39: 7479 | E39: 23 | F39: 7491 | K39: 0 | L39: 222
A40: 22 | B40: 7610 | C40: 23 | D40: 7651 | E40: 23 | F40: 7746 | K40: 0 | L40: 222
A41: 22 | B41: 7918 | C41: 23 | D41: 7947 | E41: 23 | F41: 7956 | K41: 0 | L41: 222
A42: 22 | B42: 11072 | C42: 23 | D42: 11081 | E42: 23 | F42: 11090 | K42: 0 | L42: 222
A43: 22 | B43: 11263 | C43: 23 | D43: 11271 | E43: 23 | F43: 11281 | K43: 0 | L43: 222
A44: 11 | B44: 11445 | C44: 12 | D44: 11447 | E44: 14 | F44: 11450 | K44: 0 | L44: 111
A45: 11 | B45: 11606 | C45: 21 | D45: 11630 | E45: 21 | F45: 11676 | K45: 0 | L45: 122
A46: 11 | B46: 11774 | C46: 21 | D46: 11808 | E46: 21 | F46: 11849 | K46: 0 | L46: 122
A47: 22 | B47: 11966 | C47: 23 | D47: 11979 | E47: 23 | F47: 11988 | K47: 0 | L47: 222
A48: 22 | B48: 12135 | C48: 23 | D48: 12155 | E48: 23 | F48: 12162 | K48: 0 | L48: 222
A49: 22 | B49: 12288 | C49: 23 | D49: 12301 | E49: 23 | F49: 12309 | K49: 0 | L49: 222
A50: 11 | B50: 12409 | C50: 12 | D50: 12439 | E50: 14 | F50: 12453 | K50: 0 | L50: 111
A51: 11 | B51: 12723 | C51: 12 | D51: 12740 | E51: 14 | F51: 12749 | K51: 0 | L51: 111
A52: 22 | B52: 12862 | C52: 23 | D52: 12898 | E52: 23 | F52: 12912 | K52: 0 | L52: 222
A53: 22 | B53: 13198 | C53: 23 | D53: 13214 | E53: 23 | F53: 13222 | K53: 0 | L53: 222
A54: 11 | B54: 13326 | C54: 12 | D54: 13345 | E54: 23 | F54: 13420 | K54: 0 | L54: 112
A55: 22 | B55: 13533 | C55: 23 | D55: 13542 | E55: 23 | F55: 13562 | K55: 0 | L55: 222
A56: 11 | B56: 13682 | C56: 12 | D56: 13721 | E56: 14 | F56: 13756 | K56: 0 | L56: 111
A57: 11 | B57: 13899 | C57: 12 | D57: 13907 | E57: 14 | F57: 13912 | K57: 0 | L57: 111
A58: 11 | B58: 14186 | C58: 12 | D58: 14196 | E58: 14 | F58: 14206 | K58: 0 | L58: 111
A59: 22 | B59: 14320 | C59: 23 | D59: 14345 | E59: 23 | F59: 14354 | K59: 0 | L59: 222
A60: 22 | B60: 14971 | C60: 23 | D60: 14981 | E60: 23 | F60: 14990 | K60: 0 | L60: 222
A61: 22 | B61: 15627 | C61: 23 | D61: 15636 | E61: 14 | F61: 16553 | K61: 0 | L61: 221
A62: 11 | B62: 17025 | C62: 12 | D62: 17033 | E62: 14 | F62: 17041 | K62: 0 | L62: 111
A63: 22 | B63: 20428 | C63: 23 | D63: 20441 | E63: 23 | F63: 20451 | K63: 0 | L63: 222
A64: 11 | B64: 21922 | C64: 12 | D64: 21936 | E64: 14 | F64: 21950 | K64: 0 | L64: 111
A65: 22 | B65: 22087 | C65: 23 | D65: 22100 | E65: 23 | F65: 22118 | K65: 0 | L65: 222
A66: 22 | B66: 22292 | C66: 23 | D66: 22316 | E66: 23 | F66: 22339 | K66: 0 | L66: 222
A67: 22 | B67: 22512 | C67: 23 | D67: 22525 | E67: 23 | F67: 22546 | K67: 0 | L67: 222
A68: 22 | B68: 22647 | C68: 14 | D68: 22729 | E68: 14 | F68: 22750 | K68: 0 | L68: 211
A69: 22 | B69: 23192 | C69: 23 | D69: 23214 | E69: 23 | F69: 23358 | K69: 0 | L69: 222

Sheet !M615740.102
A1: Report for:!M615740.102
A2: Date: | B2: <date>
A3: Hen: | B3: <hen> | F3: Correct Sequence | G3: =Start!J2 -> 122 | P3: Total Sequences in Data | Q3: =4994-COUNTBLANK(L7:L5000) -> 64 | V3: Total Sequences in Block Data | W3: =COUNTA(L7:L17) -> 11 | AA3: Total Sequences in Block Data | AB3: =COUNTA(L18:L27) -> 10 | AF3: Total Sequences in Block Data | AG3: =COUNTA(L28:L38) -> 11 | AK3: Total Sequences in Block Data | AL3: =COUNTA(L39:L49) -> 11 | AP3: Total Sequences in Block Data | AQ3: =COUNTA(L50:L59) -> 10 | AU3: Total Sequences in Block Data | AV3: =COUNTA(L60:L70) -> 11
P4: Total Sequences in Summary | Q4: =SUM(O7:O14) -> 64 | V4: Total Sequences in Block Summary | W4: =SUM(U7:U14) -> 11 | AA4: Total Sequences in Block Summary | AB4: =SUM(Z7:Z14) -> 10 | AF4: Total Sequences in Block Summary | AG4: =SUM(AE7:AE14) -> 11 | AK4: Total Sequences in Block Summary | AL4: =SUM(AJ7:AJ14) -> 11 | AP4: Total Sequences in Block Summary | AQ4: =SUM(AO7:AO14) -> 10 | AU4: Total Sequences in Block Summary | AV4: =SUM(AT7:AT14) -> 11
T5: Block 1 | Y5: Block 2 | AD5: Block 3 | AI5: Block 4 | AN5: Block 5 | AS5: Block 6
A6: Sequence Component 1 | B6: Time 1 | C6: Sequence Component 2 | D6: Time 2 | E6: Sequence Component 3 | F6: Time 3 | G6: Sequence Component 4 | H6: Time 4 | I6: Sequence Component 5 | J6: Time 5 | K6: Correct? 0=No 1=Yes | L6: Sequence | N6: Frequency | P6: Relative Frequency | Q6: Variability | T6: Frequency | V6: Relative Frequency | W6: Variability | Y6: Frequency | AA6: Relative Frequency | AB6: Variability | AD6: Frequency | AF6: Relative Frequency | AG6: Variability | AI6: Frequency | AK6: Relative Frequency | AL6: Variability | AN6: Frequency | AP6: Relative Frequency | AQ6: Variability | AS6: Frequency | AU6: Relative Frequency | AV6: Variability
A7: 22 | B7: 53 | C7: 23 | D7: 96 | E7: 23 | F7: 110 | K7: 0 | L7: 222 | N7: 111 | O7: =COUNTIF($L$7:$L$500,N7) -> 7 | P7: =O7/$Q$4 -> 0.109375 | Q7: =IF(P7=0,0,(P7*((LOG(P7))/LOG(2)))) -> -0.3491955554 | T7: =N7 -> 111 | U7: =COUNTIF(L7:L17,T7) -> 1 | V7: =U7/(W4-U10) -> 0.09090909091 | W7: =IF(V7=0,0,(V7*((LOG(V7))/LOG(2)))) -> -0.3144937835 | Y7: =N7 -> 111 | Z7: =COUNTIF(L18:L27,Y7) -> 4 | AA7: =Z7/(AB4-Z10) -> 0.4444444444 | AB7: =IF(AA7=0,0,(AA7*((LOG(AA7))/LOG(2)))) -> -0.5199666673 | AD7: =N7 -> 111 | AE7: =COUNTIF(L28:L38,AD7) -> 0 | AF7: =AE7/(AG4-AE10) -> 0 | AG7: =IF(AF7=0,0,(AF7*((LOG(AF7))/LOG(2)))) -> 0 | AI7: =N7 -> 111 | AJ7: =COUNTIF(L39:L49,AI7) -> 0 | AK7: =AJ7/(AL4-AJ10) -> 0 | AL7: =IF(AK7=0,0,(AK7*((LOG(AK7))/LOG(2)))) -> 0 | AN7: =N7 -> 111 | AO7: =COUNTIF(L50:L59,AN7) -> 0 | AP7: =AO7/(AQ4-AO10) -> 0 | AQ7: =IF(AP7=0,0,(AP7*((LOG(AP7))/LOG(2)))) -> 0 | AS7: =N7 -> 111 | AT7: =COUNTIF(L60:L70,AS7) -> 2 | AU7: =AT7/(AV4-AT10) -> 0.2 | AV7: =IF(AU7=0,0,(AU7*((LOG(AU7))/LOG(2)))) -> -0.464385619
A8: 22 | B8: 220 | C8: 23 | D8: 327 | E8: 23 | F8: 339 | K8: 0 | L8: 222 | N8: 112 | O8: =COUNTIF($L$7:$L$500,N8) -> 5 | P8: =O8/$Q$4 -> 0.078125 | Q8: =IF(P8=0,0,(P8*((LOG(P8))/LOG(2)))) -> -0.2873493676 | T8: =N8 -> 112 | U8: =COUNTIF(L7:L17,T8) -> 1 | V8: =U8/(W4-U10) -> 0.09090909091 | W8: =IF(V8=0,0,(V8*((LOG(V8))/LOG(2)))) -> -0.3144937835 | Y8: =N8 -> 112 | Z8: =COUNTIF(L18:L27,Y8) -> 0 | AA8: =Z8/(AB4-Z10) -> 0 | AB8: =IF(AA8=0,0,(AA8*((LOG(AA8))/LOG(2)))) -> 0 | AD8: =N8 -> 112 | AE8: =COUNTIF(L28:L38,AD8) -> 1 | AF8: =AE8/(AG4-AE10) -> 0.125 | AG8: =IF(AF8=0,0,(AF8*((LOG(AF8))/LOG(2)))) -> -0.375 | AI8: =N8 -> 112 | AJ8: =COUNTIF(L39:L49,AI8) -> 3 | AK8: =AJ8/(AL4-AJ10) -> 0.3 | AL8: =IF(AK8=0,0,(AK8*((LOG(AK8))/LOG(2)))) -> -0.5210896782 | AN8: =N8 -> 112 | AO8: =COUNTIF(L50:L59,AN8) -> 0 | AP8: =AO8/(AQ4-AO10) -> 0 | AQ8: =IF(AP8=0,0,(AP8*((LOG(AP8))/LOG(2)))) -> 0 | AS8: =N8 -> 112 | AT8: =COUNTIF(L60:L70,AS8) -> 0 | AU8: =AT8/(AV4-AT10) -> 0 | AV8: =IF(AU8=0,0,(AU8*((LOG(AU8))/LOG(2)))) -> 0
A9: 22 | B9: 673 | C9: 23 | D9: 751 | E9: 23 | F9: 760 | K9: 0 | L9: 222 | N9: 121 | O9: =COUNTIF($L$7:$L$500,N9) -> 1 | P9: =O9/$Q$4 -> 0.015625 | Q9: =IF(P9=0,0,(P9*((LOG(P9))/LOG(2)))) -> -0.09375 | T9: =N9 -> 121 | U9: =COUNTIF(L7:L17,T9) -> 0 | V9: =U9/(W4-U10) -> 0 | W9: =IF(V9=0,0,(V9*((LOG(V9))/LOG(2)))) -> 0 | Y9: =N9 -> 121 | Z9: =COUNTIF(L18:L27,Y9) -> 0 | AA9: =Z9/(AB4-Z10) -> 0 | AB9: =IF(AA9=0,0,(AA9*((LOG(AA9))/LOG(2)))) -> 0 | AD9: =N9 -> 121 | AE9: =COUNTIF(L28:L38,AD9) -> 0 | AF9: =AE9/(AG4-AE10) -> 0 | AG9: =IF(AF9=0,0,(AF9*((LOG(AF9))/LOG(2)))) -> 0 | AI9: =N9 -> 121 | AJ9: =COUNTIF(L39:L49,AI9) -> 0 | AK9: =AJ9/(AL4-AJ10) -> 0 | AL9: =IF(AK9=0,0,(AK9*((LOG(AK9))/LOG(2)))) -> 0 | AN9: =N9 -> 121 | AO9: =COUNTIF(L50:L59,AN9) -> 1 | AP9: =AO9/(AQ4-AO10) -> 0.125 | AQ9: =IF(AP9=0,0,(AP9*((LOG(AP9))/LOG(2)))) -> -0.375 | AS9: =N9 -> 121 | AT9: =COUNTIF(L60:L70,AS9) -> 0 | AU9: =AT9/(AV4-AT10) -> 0 | AV9: =IF(AU9=0,0,(AU9*((LOG(AU9))/LOG(2)))) -> 0
A10: 22 | B10: 874 | C10: 23 | D10: 918 | E10: 23 | F10: 934 | K10: 0 | L10: 222 | N10: 122 | O10: =COUNTIF($L$7:$L$500,N10) -> 8 | P10: =O10/$Q$4 -> 0.125 | Q10: =IF(P10=0,0,(P10*((LOG(P10))/LOG(2)))) -> -0.375 | T10: =N10 -> 122 | U10: =COUNTIF(L7:L17,T10) -> 0 | Y10: =N10 -> 122 | Z10: =COUNTIF(L18:L27,Y10) -> 1 | AD10: =N10 -> 122 | AE10: =COUNTIF(L28:L38,AD10) -> 3 | AI10: =N10 -> 122 | AJ10: =COUNTIF(L39:L49,AI10) -> 1 | AN10: =N10 -> 122 | AO10: =COUNTIF(L50:L59,AN10) -> 2 | AS10: =N10 -> 122 | AT10: =COUNTIF(L60:L70,AS10) -> 1
A11: 11 | B11: 1203 | C11: 12 | D11: 1211 | E11: 23 | F11: 1327 | K11: 0 | L11: 112 | N11: 211 | O11: =COUNTIF($L$7:$L$500,N11) -> 1 | P11: =O11/$Q$4 -> 0.015625 | Q11: =IF(P11=0,0,(P11*((LOG(P11))/LOG(2)))) -> -0.09375 | T11: =N11 -> 211 | U11: =COUNTIF(L7:L17,T11) -> 0 | V11: =U11/(W4-U10) -> 0 | W11: =IF(V11=0,0,(V11*((LOG(V11))/LOG(2)))) -> 0 | Y11: =N11 -> 211 | Z11: =COUNTIF(L18:L27,Y11) -> 1 | AA11: =Z11/(AB4-Z10) -> 0.1111111111 | AB11: =IF(AA11=0,0,(AA11*((LOG(AA11))/LOG(2)))) -> -0.352213889 | AD11: =N11 -> 211 | AE11: =COUNTIF(L28:L38,AD11) -> 0 | AF11: =AE11/(AG4-AE10) -> 0 | AG11: =IF(AF11=0,0,(AF11*((LOG(AF11))/LOG(2)))) -> 0 | AI11: =N11 -> 211 | AJ11: =COUNTIF(L39:L49,AI11) -> 0 | AK11: =AJ11/(AL4-AJ10) -> 0 | AL11: =IF(AK11=0,0,(AK11*((LOG(AK11))/LOG(2)))) -> 0 | AN11: =N11 -> 211 | AO11: =COUNTIF(L50:L59,AN11) -> 0 | AP11: =AO11/(AQ4-AO10) -> 0 | AQ11: =IF(AP11=0,0,(AP11*((LOG(AP11))/LOG(2)))) -> 0 | AS11: =N11 -> 211 | AT11: =COUNTIF(L60:L70,AS11) -> 0 | AU11: =AT11/(AV4-AT10) -> 0 | AV11: =IF(AU11=0,0,(AU11*((LOG(AU11))/LOG(2)))) -> 0
A12: 22 | B12: 1448 | C12: 23 | D12: 1457 | E12: 23 | F12: 1465 | K12: 0 | L12: 222 | N12: 212 | O12: =COUNTIF($L$7:$L$500,N12) -> 2 | P12: =O12/$Q$4 -> 0.03125 | Q12: =IF(P12=0,0,(P12*((LOG(P12))/LOG(2)))) -> -0.15625 | T12: =N12 -> 212 | U12: =COUNTIF(L7:L17,T12) -> 0 | V12: =U12/(W4-U10) -> 0 | W12: =IF(V12=0,0,(V12*((LOG(V12))/LOG(2)))) -> 0 | Y12: =N12 -> 212 | Z12: =COUNTIF(L18:L27,Y12) -> 0 | AA12: =Z12/(AB4-Z10) -> 0 | AB12: =IF(AA12=0,0,(AA12*((LOG(AA12))/LOG(2)))) -> 0 | AD12: =N12 -> 212 | AE12: =COUNTIF(L28:L38,AD12) -> 0 | AF12: =AE12/(AG4-AE10) -> 0 | AG12: =IF(AF12=0,0,(AF12*((LOG(AF12))/LOG(2)))) -> 0 | AI12: =N12 -> 212 | AJ12: =COUNTIF(L39:L49,AI12) -> 1 | AK12: =AJ12/(AL4-AJ10) -> 0.1 | AL12: =IF(AK12=0,0,(AK12*((LOG(AK12))/LOG(2)))) -> -0.3321928095 | AN12: =N12 -> 212 | AO12: =COUNTIF(L50:L59,AN12) -> 0 | AP12: =AO12/(AQ4-AO10) -> 0 | AQ12: =IF(AP12=0,0,(AP12*((LOG(AP12))/LOG(2)))) -> 0 | AS12: =N12 -> 212 | AT12: =COUNTIF(L60:L70,AS12) -> 1 | AU12: =AT12/(AV4-AT10) -> 0.1 | AV12: =IF(AU12=0,0,(AU12*((LOG(AU12))/LOG(2)))) -> -0.3321928095
A13: 22 | B13: 1581 | C13: 23 | D13: 1590 | E13: 23 | F13: 1621 | K13: 0 | L13: 222 | N13: 221 | O13: =COUNTIF($L$7:$L$500,N13) -> 1 | P13: =O13/$Q$4 -> 0.015625 | Q13: =IF(P13=0,0,(P13*((LOG(P13))/LOG(2)))) -> -0.09375 | T13: =N13 -> 221 | U13: =COUNTIF(L7:L17,T13) -> 0 | V13: =U13/(W4-U10) -> 0 | W13: =IF(V13=0,0,(V13*((LOG(V13))/LOG(2)))) -> 0 | Y13: =N13 -> 221 | Z13: =COUNTIF(L18:L27,Y13) -> 0 | AA13: =Z13/(AB4-Z10) -> 0 | AB13: =IF(AA13=0,0,(AA13*((LOG(AA13))/LOG(2)))) -> 0 | AD13: =N13 -> 221 | AE13: =COUNTIF(L28:L38,AD13) -> 0 | AF13: =AE13/(AG4-AE10) -> 0 | AG13: =IF(AF13=0,0,(AF13*((LOG(AF13))/LOG(2)))) -> 0 | AI13: =N13 -> 221 | AJ13: =COUNTIF(L39:L49,AI13) -> 0 | AK13: =AJ13/(AL4-AJ10) -> 0 | AL13: =IF(AK13=0,0,(AK13*((LOG(AK13))/LOG(2)))) -> 0 | AN13: =N13 -> 221 | AO13: =COUNTIF(L50:L59,AN13) -> 0 | AP13: =AO13/(AQ4-AO10) -> 0 | AQ13: =IF(AP13=0,0,(AP13*((LOG(AP13))/LOG(2)))) -> 0 | AS13: =N13 -> 221 | AT13: =COUNTIF(L60:L70,AS13) -> 1 | AU13: =AT13/(AV4-AT10) -> 0.1 | AV13: =IF(AU13=0,0,(AU13*((LOG(AU13))/LOG(2)))) -> -0.3321928095
A14: 22 | B14: 1780 | C14: 23 | D14: 1813 | E14: 23 | F14: 1821 | K14: 0 | L14: 222 | N14: 222 | O14: =COUNTIF($L$7:$L$500,N14) -> 39 | P14: =O14/$Q$4 -> 0.609375 | Q14: =IF(P14=0,0,(P14*((LOG(P14))/LOG(2)))) -> -0.4354580229 | T14: =N14 -> 222 | U14: =COUNTIF(L7:L17,T14) -> 9 | V14: =U14/(W4-U10) -> 0.8181818182 | W14: =IF(V14=0,0,(V14*((LOG(V14))/LOG(2)))) -> -0.2368690504 | Y14: =N14 -> 222 | Z14: =COUNTIF(L18:L27,Y14) -> 4 | AA14: =Z14/(AB4-Z10) -> 0.4444444444 | AB14: =IF(AA14=0,0,(AA14*((LOG(AA14))/LOG(2)))) -> -0.5199666673 | AD14: =N14 -> 222 | AE14: =COUNTIF(L28:L38,AD14) -> 7 | AF14: =AE14/(AG4-AE10) -> 0.875 | AG14: =IF(AF14=0,0,(AF14*((LOG(AF14))/LOG(2)))) -> -0.1685644432 | AI14: =N14 -> 222 | AJ14: =COUNTIF(L39:L49,AI14) -> 6 | AK14: =AJ14/(AL4-AJ10) -> 0.6 | AL14: =IF(AK14=0,0,(AK14*((LOG(AK14))/LOG(2)))) -> -0.4421793565 | AN14: =N14 -> 222 | AO14: =COUNTIF(L50:L59,AN14) -> 7 | AP14: =AO14/(AQ4-AO10) -> 0.875 | AQ14: =IF(AP14=0,0,(AP14*((LOG(AP14))/LOG(2)))) -> -0.1685644432 | AS14: =N14 -> 222 | AT14: =COUNTIF(L60:L70,AS14) -> 6 | AU14: =AT14/(AV4-AT10) -> 0.6 | AV14: =IF(AU14=0,0,(AU14*((LOG(AU14))/LOG(2)))) -> -0.4421793565
A15: 11 | B15: 1935 | C15: 12 | D15: 1938 | E15: 14 | F15: 1956 | K15: 0 | L15: 111 | P15: =SUM(P7:P14) -> 1 | Q15: =-SUM(Q7:Q14) -> 1.884502946 | V15: =SUM(V7:V14) -> 1 | W15: =-SUM(W7:W14) -> 0.8658566175 | AA15: =SUM(AA7:AA14) -> 1 | AB15: =-SUM(AB7:AB14) -> 1.392147224 | AF15: =SUM(AF7:AF14) -> 1 | AG15: =-SUM(AG7:AG14) -> 0.5435644432 | AK15: =SUM(AK7:AK14) -> 1 | AL15: =-SUM(AL7:AL14) -> 1.295461844 | AP15: =SUM(AP7:AP14) -> 1 | AQ15: =-SUM(AQ7:AQ14) -> 0.5435644432 | AU15: =SUM(AU7:AU14) -> 1 | AV15: =-SUM(AV7:AV14) -> 1.570950594
A16: 22 | B16: 2471 | C16: 23 | D16: 2480 | E16: 23 | F16: 2498 | K16: 0 | L16: 222 | P16: U= | Q16: =Q15/(LOG(Q4)/LOG(2)) -> 0.3140838243 | V16: U1= | W16: =W15/(LOG(W4)/LOG(2)) -> 0.2502886927 | AA16: U2= | AB16: =AB15/(LOG(AB4)/LOG(2)) -> 0.4190780727 | AF16: U3= | AG16: =AG15/(LOG(AG4)/LOG(2)) -> 0.1571253614 | AK16: U4= | AL16: =AL15/(LOG(AL4)/LOG(2)) -> 0.374472453 | AP16: U5= | AQ16: =AQ15/(LOG(AQ4)/LOG(2)) -> 0.163629202 | AU16: U6= | AV16: =AV15/(LOG(AV4)/LOG(2)) -> 0.4541065607
A17: 22 | B17: 2612 | C17: 23 | D17: 2621 | E17: 23 | F17: 2638 | K17: 0 | L17: 222
A18: 22 | B18: 2818 | C18: 23 | D18: 2848 | E18: 23 | F18: 2900 | K18: 0 | L18: 222
A19: 22 | B19: 3016 | C19: 14 | D19: 3104 | E19: 14 | F19: 3125 | K19: 0 | L19: 211 | N19: Total Target Seq
A20: 22 | B20: 3295 | C20: 23 | D20: 3320 | E20: 23 | F20: 3350 | K20: 0 | L20: 222 | N20: =COUNTIF(L7:L70,G3) -> 8 | P20: 11 | Q20: 10 | R20: 11 | S20: 11 | T20: 10 | U20: 11
A21: 11 | B21: 3481 | C21: 12 | D21: 3492 | E21: 14 | F21: 3510 | K21: 0 | L21: 111 | P21: % of reinforcement given in 6 equal intervals based on number of trials
A22: 11 | B22: 3721 | C22: 12 | D22: 3731 | E22: 14 | F22: 3739 | K22: 0 | L22: 111 | P22: %_1 | Q22: %_2 | R22: %_3 | S22: %_4 | T22: %_5 | U22: %_6
A23: 11 | B23: 3952 | C23: 12 | D23: 3962 | E23: 14 | F23: 3971 | K23: 0 | L23: 111 | O23: target sequence | P23: =$G$3 -> 122 | Q23: =$G$3 -> 122 | R23: =$G$3 -> 122 | S23: =$G$3 -> 122 | T23: =$G$3 -> 122 | U23: =$G$3 -> 122
A24: 11 | B24: 8414 | C24: 21 | D24: 8432 | E24: 21 | F24: 8496 | K24: 0 | L24: 122 | O24: total reinforcement | P24: =U10 -> 0 | Q24: =Z10 -> 1 | R24: =AE10 -> 3 | S24: =AJ10 -> 1 | T24: =AO10 -> 2 | U24: =AT10 -> 1
A25: 22 | B25: 8595 | C25: 23 | D25: 8609 | E25: 23 | F25: 8646 | K25: 0 | L25: 222 | O25: % target
A26: 11 | B26: 8754 | C26: 12 | D26: 8766 | E26: 14 | F26: 8775 | K26: 0 | L26: 111 | O26: CCRF
A27: 22 | B27: 8991 | C27: 23 | D27: 9091 | E27: 23 | F27: 9129 | K27: 0 | L27: 222 | O27: % CCRf
A28: 22 | B28: 9336 | C28: 23 | D28: 9365 | E28: 23 | F28: 9375 | K28: 0 | L28: 222 | O28: average response rate | P28: =F17/P20 -> 239.8181818 | Q28: =(F27-F17)/Q20 -> 649.1 | R28: =(F38-F27)/R20 -> 199 | S28: =(F49-F38)/S20 -> 203.0909091 | T28: =(F59-F49)/T20 -> 213.9 | U28: =(F70-F59)/U20 -> 751.5454545
A29: 22 | B29: 9535 | C29: 23 | D29: 9542 | E29: 23 | F29: 9611 | K29: 0 | L29: 222
A30: 22 | B30: 9885 | C30: 23 | D30: 9904 | E30: 23 | F30: 10016 | K30: 0 | L30: 222
A31: 11 | B31: 10132 | C31: 21 | D31: 10160 | E31: 21 | F31: 10240 | K31: 0 | L31: 122
A32: 22 | B32: 10339 | C32: 23 | D32: 10413 | E32: 23 | F32: 10451 | K32: 0 | L32: 222
A33: 22 | B33: 10556 | C33: 23 | D33: 10597 | E33: 23 | F33: 10605 | K33: 0 | L33: 222
A34: 22 | B34: 10730 | C34: 23 | D34: 10739 | E34: 23 | F34: 10763 | K34: 0 | L34: 222
A35: 11 | B35: 10893 | C35: 21 | D35: 10904 | E35: 21 | F35: 10912 | K35: 0 | L35: 122
A36: 22 | B36: 11011 | C36: 23 | D36: 11031 | E36: 23 | F36: 11045 | K36: 0 | L36: 222
A37: 11 | B37: 11156 | C37: 12 | D37: 11157 | E37: 23 | F37: 11171 | K37: 0 | L37: 112
A38: 11 | B38: 11271 | C38: 21 | D38: 11304 | E38: 21 | F38: 11318 | K38: 0 | L38: 122
A39: 22 | B39: 11424 | C39: 23 | D39: 11454 | E39: 23 | F39: 11463 | K39: 0 | L39: 222
A40: 11 | B40: 11585 | C40: 21 | D40: 11618 | E40: 21 | F40: 11638 | K40: 0 | L40: 122
A41: 22 | B41: 11751 | C41: 23 | D41: 11760 | E41: 23 | F41: 11769 | K41: 0 | L41: 222
A42: 11 | B42: 11880 | C42: 12 | D42: 11888 | E42: 23 | F42: 11908 | K42: 0 | L42: 112
A43: 11 | B43: 12030 | C43: 12 | D43: 12033 | E43: 23 | F43: 12092 | K43: 0 | L43: 112
A44: 22 | B44: 12205 | C44: 23 | D44: 12213 | E44: 23 | F44: 12297 | K44: 0 | L44: 222
A45: 22 | B45: 12415 | C45: 23 | D45: 12430 | E45: 23 | F45: 12502 | K45: 0 | L45: 222
A46: 22 | B46: 12609 | C46: 23 | D46: 12827 | E46: 23 | F46: 12854 | K46: 0 | L46: 222
A47: 22 | B47: 13006 | C47: 23 | D47: 13026 | E47: 23 | F47: 13162 | K47: 0 | L47: 222
A48: 22 | B48: 13305 | C48: 14 | D48: 13367 | E48: 23 | F48: 13425 | K48: 0 | L48: 212
A49: 11 | B49: 13537 | C49: 12 | D49: 13538 | E49: 23 | F49: 13552 | K49: 0 | L49: 112
A50: 11 | B50: 13724 | C50: 21 | D50: 13820 | E50: 21 | F50: 13828 | K50: 0 | L50: 122
A51: 22 | B51: 13950 | C51: 23 | D51: 14020 | E51: 23 | F51: 14030 | K51: 0 | L51: 222
A52: 22 | B52: 14198 | C52: 23 | D52: 14207 | E52: 23 | F52: 14222 | K52: 0 | L52: 222
A53: 22 | B53: 14342 | C53: 23 | D53: 14390 | E53: 23 | F53: 14400 | K53: 0 | L53: 222
A54: 11 | B54: 14532 | C54: 21 | D54: 14573 | E54: 12 | F54: 14731 | K54: 0 | L54: 121
A55: 11 | B55: 14850 | C55: 21 | D55: 14878 | E55: 21 | F55: 14932 | K55: 0 | L55: 122
A56: 22 | B56: 15076 | C56: 23 | D56: 15087 | E56: 23 | F56: 15125 | K56: 0 | L56: 222
A57: 22 | B57: 15314 | C57: 23 | D57: 15322 | E57: 23 | F57: 15349 | K57: 0 | L57: 222
A58: 22 | B58: 15536 | C58: 23 | D58: 15545 | E58: 23 | F58: 15557 | K58: 0 | L58: 222
A59: 22 | B59: 15660 | C59: 23 | D59: 15679 | E59: 23 | F59: 15691 | K59: 0 | L59: 222
A60: 11 | B60: 15823 | C60: 21 | D60: 15853 | E60: 21 | F60: 15917 | K60: 0 | L60: 122
A61: 22 | B61: 16059 | C61: 23 | D61: 16097 | E61: 23 | F61: 16106 | K61: 0 | L61: 222
A62: 22 | B62: 16205 | C62: 23 | D62: 16210 | E62: 23 | F62: 16219 | K62: 0 | L62: 222
A63: 11 | B63: 16325 | C63: 12 | D63: 16336 | E63: 14 | F63: 16338 | K63: 0 | L63: 111
A64: 22 | B64: 16452 | C64: 23 | D64: 16459 | E64: 23 | F64: 16468 | K64: 0 | L64: 222
A65: 22 | B65: 16714 | C65: 23 | D65: 16736 | E65: 23 | F65: 16745 | K65: 0 | L65: 222
A66: 22 | B66: 16879 | C66: 23 | D66: 16911 | E66: 23 | F66: 17138 | K66: 0 | L66: 222
A67: 22 | B67: 17329 | C67: 14 | D67: 17453 | E67: 23 | F67: 17468 | K67: 0 | L67: 212
A68: 22 | B68: 17584 | C68: 23 | D68: 17663 | E68: 23 | F68: 17687 | K68: 0 | L68: 222
A69: 22 | B69: 17845 | C69: 23 | D69: 17884 | E69: 14 | F69: 18221 | K69: 0 | L69: 221
A70: 11 | B70: 23770 | C70: 12 | D70: 23943 | E70: 14 | F70: 23958 | L70: 111

Sheet !M616730.102
A1: Report for:!M616730.102
A2: Date: | B2: <date>
A3: Hen: | B3: <hen> | F3: Correct Sequence | G3: =Start!J2 -> 122 | P3: Total Sequences in Data | Q3: =4994-COUNTBLANK(L7:L5000) -> 127 | V3: Total Sequences in Block Data | W3: =COUNTA(L7:L27) -> 21 | AA3: Total Sequences in Block Data | AB3: =COUNTA(L28:L48) -> 21 | AF3: Total Sequences in Block Data | AG3: =COUNTA(L49:L70) -> 22 | AK3: Total Sequences in Block Data | AL3: =COUNTA(L71:L91) -> 21 | AP3: Total Sequences in Block Data | AQ3: =COUNTA(L92:L112) -> 21 | AU3: Total Sequences in Block Data | AV3: =COUNTA(L113:L133) -> 21
P4: Total Sequences in Summary | Q4: =SUM(O7:O14) -> 127 | V4: Total Sequences in Block Summary | W4: =SUM(U7:U14) -> 21 | AA4: Total Sequences in Block Summary | AB4: =SUM(Z7:Z14) -> 21 | AF4: Total Sequences in Block Summary | AG4: =SUM(AE7:AE14) -> 22 | AK4: Total Sequences in Block Summary | AL4: =SUM(AJ7:AJ14) -> 21 | AP4: Total Sequences in Block Summary | AQ4: =SUM(AO7:AO14) -> 21 | AU4: Total Sequences in Block Summary | AV4: =SUM(AT7:AT14) -> 21
T5: Block 1 | Y5: Block 2 | AD5: Block 3 | AI5: Block 4 | AN5: Block 5 | AS5: Block 6
A6: Sequence Component 1 | B6: Time 1 | C6: Sequence Component 2 | D6: Time 2 | E6: Sequence Component 3 | F6: Time 3 | G6: Sequence Component 4 | H6: Time 4 | I6: Sequence Component 5 | J6: Time 5 | K6: Correct? 0=No 1=Yes | L6: Sequence | N6: Frequency | P6: Relative Frequency | Q6: Variability | T6: Frequency | V6: Relative Frequency | W6: Variability | Y6: Frequency | AA6: Relative Frequency | AB6: Variability | AD6: Frequency | AF6: Relative Frequency | AG6: Variability | AI6: Frequency | AK6: Relative Frequency | AL6: Variability | AN6: Frequency | AP6: Relative Frequency | AQ6: Variability | AS6: Frequency | AU6: Relative Frequency | AV6: Variability
A7: 11 | B7: 29 | C7: 21 | D7: 81 | E7: 21 | F7: 95 | K7: 0 | L7: 122 | N7: 111 | O7: =COUNTIF($L$7:$L$500,N7) -> 8 | P7: =O7/$Q$4 -> 0.06299212598 | Q7: =IF(P7=0,0,(P7*((LOG(P7))/LOG(2)))) -> -0.2512557283 | T7: =N7 -> 111 | U7: =COUNTIF(L7:L27,T7) -> 7 | V7: =U7/(W4-U10) -> 0.4117647059 | W7: =IF(V7=0,0,(V7*((LOG(V7))/LOG(2)))) -> -0.5271032608 | Y7: =N7 -> 111 | Z7: =COUNTIF(L28:L48,Y7) -> 0 | AA7: =Z7/(AB4-Z10) -> 0 | AB7: =IF(AA7=0,0,(AA7*((LOG(AA7))/LOG(2)))) -> 0 | AD7: =N7 -> 111 | AE7: =COUNTIF(L49:L70,AD7) -> 0 | AF7: =AE7/(AG4-AE10) -> 0 | AG7: =IF(AF7=0,0,(AF7*((LOG(AF7))/LOG(2)))) -> 0 | AI7: =N7 -> 111 | AJ7: =COUNTIF(L71:L91,AI7) -> 0 | AK7: =AJ7/(AL4-AJ10) -> 0 | AL7: =IF(AK7=0,0,(AK7*((LOG(AK7))/LOG(2)))) -> 0 | AN7: =N7 -> 111 | AO7: =COUNTIF(L92:L112,AN7) -> 1 | AP7: =AO7/(AQ4-AO10) -> 0.07692307692 | AQ7: =IF(AP7=0,0,(AP7*((LOG(AP7))/LOG(2)))) -> -0.2846492091 | AS7: =N7 -> 111 | AT7: =COUNTIF(L113:L133,AS7) -> 0 | AU7: =AT7/(AV4-AT10) -> 0 | AV7: =IF(AU7=0,0,(AU7*((LOG(AU7))/LOG(2)))) -> 0
A8: 22 | B8: 248 | C8: 23 | D8: 263 | E8: 23 | F8: 269 | K8: 0 | L8: 222 | N8: 112 | O8: =COUNTIF($L$7:$L$500,N8) -> 8 | P8: =O8/$Q$4 -> 0.06299212598 | Q8: =IF(P8=0,0,(P8*((LOG(P8))/LOG(2)))) -> -0.2512557283 | T8: =N8 -> 112 | U8: =COUNTIF(L7:L27,T8) -> 2 | V8: =U8/(W4-U10) -> 0.1176470588 | W8: =IF(V8=0,0,(V8*((LOG(V8))/LOG(2)))) -> -0.3632309225 | Y8: =N8 -> 112 | Z8: =COUNTIF(L28:L48,Y8) -> 0 | AA8: =Z8/(AB4-Z10) -> 0 | AB8: =IF(AA8=0,0,(AA8*((LOG(AA8))/LOG(2)))) -> 0 | AD8: =N8 -> 112 | AE8: =COUNTIF(L49:L70,AD8) -> 1 | AF8: =AE8/(AG4-AE10) -> 0.06666666667 | AG8: =IF(AF8=0,0,(AF8*((LOG(AF8))/LOG(2)))) -> -0.260459373 | AI8: =N8 -> 112 | AJ8: =COUNTIF(L71:L91,AI8) -> 3 | AK8: =AJ8/(AL4-AJ10) -> 0.2307692308 | AL8: =IF(AK8=0,0,(AK8*((LOG(AK8))/LOG(2)))) -> -0.4881870502 | AN8: =N8 -> 112 | AO8: =COUNTIF(L92:L112,AN8) -> 0 | AP8: =AO8/(AQ4-AO10) -> 0 | AQ8: =IF(AP8=0,0,(AP8*((LOG(AP8))/LOG(2)))) -> 0 | AS8: =N8 -> 112 | AT8: =COUNTIF(L113:L133,AS8) -> 2 | AU8: =AT8/(AV4-AT10) -> 0.1538461538 | AV8: =IF(AU8=0,0,(AU8*((LOG(AU8))/LOG(2)))) -> -0.4154522643
A9: 11 | B9: 381 | C9: 21 | D9: 471 | E9: 21 | F9: 495 | K9: 0 | L9: 122 | N9: 121 | O9: =COUNTIF($L$7:$L$500,N9) -> 0 | P9: =O9/$Q$4 -> 0 | Q9: =IF(P9=0,0,(P9*((LOG(P9))/LOG(2)))) -> 0 | T9: =N9 -> 121 | U9: =COUNTIF(L7:L27,T9) -> 0 | V9: =U9/(W4-U10) -> 0 | W9: =IF(V9=0,0,(V9*((LOG(V9))/LOG(2)))) -> 0 | Y9: =N9 -> 121 | Z9: =COUNTIF(L28:L48,Y9) -> 0 | AA9: =Z9/(AB4-Z10) -> 0 | AB9: =IF(AA9=0,0,(AA9*((LOG(AA9))/LOG(2)))) -> 0 | AD9: =N9 -> 121 | AE9: =COUNTIF(L49:L70,AD9) -> 0 | AF9: =AE9/(AG4-AE10) -> 0 | AG9: =IF(AF9=0,0,(AF9*((LOG(AF9))/LOG(2)))) -> 0 | AI9: =N9 -> 121 | AJ9: =COUNTIF(L71:L91,AI9) -> 0 | AK9: =AJ9/(AL4-AJ10) -> 0 | AL9: =IF(AK9=0,0,(AK9*((LOG(AK9))/LOG(2)))) -> 0 | AN9: =N9 -> 121 | AO9: =COUNTIF(L92:L112,AN9) -> 0 | AP9: =AO9/(AQ4-AO10) -> 0 | AQ9: =IF(AP9=0,0,(AP9*((LOG(AP9))/LOG(2)))) -> 0 | AS9: =N9 -> 121 | AT9: =COUNTIF(L113:L133,AS9) -> 0 | AU9: =AT9/(AV4-AT10) -> 0 | AV9: =IF(AU9=0,0,(AU9*((LOG(AU9))/LOG(2)))) -> 0
A10: 11 | B10: 607 | C10: 12 | D10: 616 | E10: 23 | F10: 680 | K10: 0 | L10: 112 | N10: 122 | O10: =COUNTIF($L$7:$L$500,N10) -> 40 | P10: =O10/$Q$4 -> 0.3149606299 | Q10: =IF(P10=0,0,(P10*((LOG(P10))/LOG(2)))) -> -0.5249627061 | T10: =N10 -> 122 | U10: =COUNTIF(L7:L27,T10) -> 4 | Y10: =N10 -> 122 | Z10: =COUNTIF(L28:L48,Y10) -> 5 | AD10: =N10 -> 122 | AE10: =COUNTIF(L49:L70,AD10) -> 7 | AI10: =N10 -> 122 | AJ10: =COUNTIF(L71:L91,AI10) -> 8 | AN10: =N10 -> 122 | AO10: =COUNTIF(L92:L112,AN10) -> 8 | AS10: =N10 -> 122 | AT10: =COUNTIF(L113:L133,AS10) -> 8
A11: 22 | B11: 818 | C11: 23 | D11: 828 | E11: 23 | F11: 836 | K11: 0 | L11: 222 | N11: 211 | O11: =COUNTIF($L$7:$L$500,N11) -> 0 | P11: =O11/$Q$4 -> 0 | Q11: =IF(P11=0,0,(P11*((LOG(P11))/LOG(2)))) -> 0 | T11: =N11 -> 211 | U11: =COUNTIF(L7:L27,T11) -> 0 | V11: =U11/(W4-U10) -> 0 | W11: =IF(V11=0,0,(V11*((LOG(V11))/LOG(2)))) -> 0 | Y11: =N11 -> 211 | Z11: =COUNTIF(L28:L48,Y11) -> 0 | AA11: =Z11/(AB4-Z10) -> 0 | AB11: =IF(AA11=0,0,(AA11*((LOG(AA11))/LOG(2)))) -> 0 | AD11: =N11 -> 211 | AE11: =COUNTIF(L49:L70,AD11) -> 0 | AF11: =AE11/(AG4-AE10) -> 0 | AG11: =IF(AF11=0,0,(AF11*((LOG(AF11))/LOG(2)))) -> 0 | AI11: =N11 -> 211 | AJ11: =COUNTIF(L71:L91,AI11) -> 0 | AK11: =AJ11/(AL4-AJ10) -> 0 | AL11: =IF(AK11=0,0,(AK11*((LOG(AK11))/LOG(2)))) -> 0 | AN11: =N11 -> 211 | AO11: =COUNTIF(L92:L112,AN11) -> 0 | AP11: =AO11/(AQ4-AO10) -> 0 | AQ11: =IF(AP11=0,0,(AP11*((LOG(AP11))/LOG(2)))) -> 0 | AS11: =N11 -> 211 | AT11: =COUNTIF(L113:L133,AS11) -> 0 | AU11: =AT11/(AV4-AT10) -> 0 | AV11: =IF(AU11=0,0,(AU11*((LOG(AU11))/LOG(2)))) -> 0
A12: 22 | B12: 1053 | C12: 23 | D12: 1098 | E12: 23 | F12: 1121 | K12: 0 | L12: 222 | N12: 212 | O12: =COUNTIF($L$7:$L$500,N12) -> 0 | P12: =O12/$Q$4 -> 0 | Q12: =IF(P12=0,0,(P12*((LOG(P12))/LOG(2)))) -> 0 | T12: =N12 -> 212 | U12: =COUNTIF(L7:L27,T12) -> 0 | V12: =U12/(W4-U10) -> 0 | W12: =IF(V12=0,0,(V12*((LOG(V12))/LOG(2)))) -> 0 | Y12: =N12 -> 212 | Z12: =COUNTIF(L28:L48,Y12) -> 0 | AA12: =Z12/(AB4-Z10) -> 0 | AB12: =IF(AA12=0,0,(AA12*((LOG(AA12))/LOG(2)))) -> 0 | AD12: =N12 -> 212 | AE12: =COUNTIF(L49:L70,AD12) -> 0 | AF12: =AE12/(AG4-AE10) -> 0 | AG12: =IF(AF12=0,0,(AF12*((LOG(AF12))/LOG(2)))) -> 0 | AI12: =N12 -> 212 | AJ12: =COUNTIF(L71:L91,AI12) -> 0 | AK12: =AJ12/(AL4-AJ10) -> 0 | AL12: =IF(AK12=0,0,(AK12*((LOG(AK12))/LOG(2)))) -> 0 | AN12: =N12 -> 212 | AO12: =COUNTIF(L92:L112,AN12) -> 0 | AP12: =AO12/(AQ4-AO10) -> 0 | AQ12: =IF(AP12=0,0,(AP12*((LOG(AP12))/LOG(2)))) -> 0 | AS12: =N12 -> 212 | AT12: =COUNTIF(L113:L133,AS12) -> 0 | AU12: =AT12/(AV4-AT10) -> 0 | AV12: =IF(AU12=0,0,(AU12*((LOG(AU12))/LOG(2)))) -> 0
A13: 22 | B13: 1223 | C13: 23 | D13: 1259 | E13: 23 | F13: 1351 | K13: 0 | L13: 222 | N13: 221 | O13: =COUNTIF($L$7:$L$500,N13) -> 0 | P13: =O13/$Q$4 -> 0 | Q13: =IF(P13=0,0,(P13*((LOG(P13))/LOG(2)))) -> 0 | T13: =N13 -> 221 | U13: =COUNTIF(L7:L27,T13) -> 0 | V13: =U13/(W4-U10) -> 0 | W13: =IF(V13=0,0,(V13*((LOG(V13))/LOG(2)))) -> 0 | Y13: =N13 -> 221 | Z13: =COUNTIF(L28:L48,Y13) -> 0 | AA13: =Z13/(AB4-Z10) -> 0 | AB13: =IF(AA13=0,0,(AA13*((LOG(AA13))/LOG(2)))) -> 0 | AD13: =N13 -> 221 | AE13: =COUNTIF(L49:L70,AD13) -> 0 | AF13: =AE13/(AG4-AE10) -> 0 | AG13: =IF(AF13=0,0,(AF13*((LOG(AF13))/LOG(2)))) -> 0 | AI13: =N13 -> 221 | AJ13: =COUNTIF(L71:L91,AI13) -> 0 | AK13: =AJ13/(AL4-AJ10) -> 0 | AL13: =IF(AK13=0,0,(AK13*((LOG(AK13))/LOG(2)))) -> 0 | AN13: =N13 -> 221 | AO13: =COUNTIF(L92:L112,AN13) -> 0 | AP13: =AO13/(AQ4-AO10) -> 0 | AQ13: =IF(AP13=0,0,(AP13*((LOG(AP13))/LOG(2)))) -> 0 | AS13: =N13 -> 221 | AT13: =COUNTIF(L113:L133,AS13) -> 0 | AU13: =AT13/(AV4-AT10) -> 0 | AV13: =IF(AU13=0,0,(AU13*((LOG(AU13))/LOG(2)))) -> 0
A14: 11 | B14: 1450 | C14: 21 | D14: 1480 | E14: 21 | F14: 1516 | K14: 0 | L14: 122 | N14: 222 | O14: =COUNTIF($L$7:$L$500,N14) -> 71 | P14: =O14/$Q$4 -> 0.5590551181 | Q14: =IF(P14=0,0,(P14*((LOG(P14))/LOG(2)))) -> -0.4690123408 | T14: =N14 -> 222 | U14: =COUNTIF(L7:L27,T14) -> 8 | V14: =U14/(W4-U10) -> 0.4705882353 | W14: =IF(V14=0,0,(V14*((LOG(V14))/LOG(2)))) -> -0.5117472194 | Y14: =N14 -> 222 | Z14: =COUNTIF(L28:L48,Y14) -> 16 | AA14: =Z14/(AB4-Z10) -> 1 | AB14: =IF(AA14=0,0,(AA14*((LOG(AA14))/LOG(2)))) -> 0 | AD14: =N14 -> 222 | AE14: =COUNTIF(L49:L70,AD14) -> 14 | AF14: =AE14/(AG4-AE10) -> 0.9333333333 | AG14: =IF(AF14=0,0,(AF14*((LOG(AF14))/LOG(2)))) -> -0.09289996198 | AI14: =N14 -> 222 | AJ14: =COUNTIF(L71:L91,AI14) -> 10 | AK14: =AJ14/(AL4-AJ10) -> 0.7692307692 | AL14: =IF(AK14=0,0,(AK14*((LOG(AK14))/LOG(2)))) -> -0.2911627871 | AN14: =N14 -> 222 | AO14: =COUNTIF(L92:L112,AN14) -> 12 | AP14: =AO14/(AQ4-AO10) -> 0.9230769231 | AQ14: =IF(AP14=0,0,(AP14*((LOG(AP14))/LOG(2)))) -> -0.1065943545 | AS14: =N14 -> 222 | AT14: =COUNTIF(L113:L133,AS14) -> 11 | AU14: =AT14/(AV4-AT10) -> 0.8461538462 | AV14: =IF(AU14=0,0,(AU14*((LOG(AU14))/LOG(2)))) -> -0.2039299303
A15: 11 | B15: 1609 | C15: 21 | D15: 1646 | E15: 21 | F15: 1696 | K15: 0 | L15: 122 | P15: =SUM(P7:P14) -> 1 | Q15: =-SUM(Q7:Q14) -> 1.496486503 | V15: =SUM(V7:V14) -> 1 | W15: =-SUM(W7:W14) -> 1.402081403 | AA15: =SUM(AA7:AA14) -> 1 | AB15: =-SUM(AB7:AB14) -> 0 | AF15: =SUM(AF7:AF14) -> 1 | AG15: =-SUM(AG7:AG14) -> 0.353359335 | AK15: =SUM(AK7:AK14) -> 1 | AL15: =-SUM(AL7:AL14) -> 0.7793498373 | AP15: =SUM(AP7:AP14) -> 1 | AQ15: =-SUM(AQ7:AQ14) -> 0.3912435636 | AU15: =SUM(AU7:AU14) -> 1 | AV15: =-SUM(AV7:AV14) -> 0.6193821947
A16: 22 | B16: 1824 | C16: 23 | D16: 1842 | E16: 23 | F16: 1851 | K16: 0 | L16: 222 | P16: U= | Q16: =Q15/(LOG(Q4)/LOG(2)) -> 0.2141299215 | V16: U1= | W16: =W15/(LOG(W4)/LOG(2)) -> 0.3192122217 | AA16: U2= | AB16: =AB15/(LOG(AB4)/LOG(2)) -> 0 | AF16: U3= | AG16: =AG15/(LOG(AG4)/LOG(2)) -> 0.07923864861 | AK16: U4= | AL16: =AL15/(LOG(AL4)/LOG(2)) -> 0.1774347713 | AP16: U5= | AQ16: =AQ15/(LOG(AQ4)/LOG(2)) -> 0.08907451943 | AU16: U6= | AV16: =AV15/(LOG(AV4)/LOG(2)) -> 0.1410148983
A17: 22 | B17: 1962 | C17: 23 | D17: 1970 | E17: 23 | F17: 1976 | K17: 0 | L17: 222
A18: 11 | B18: 2075 | C18: 12 | D18: 2089 | E18: 14 | F18: 2098 | K18: 0 | L18: 111
A19: 11 | B19: 2205 | C19: 12 | D19: 2212 | E19: 14 | F19: 2218 | K19: 0 | L19: 111 | N19: Total Target Seq
A20: 11 | B20: 2580 | C20: 12 | D20: 2590 | E20: 23 | F20: 2611 | K20: 0 | L20: 112 | N20: =COUNTIF(L7:L133,G3) -> 40 | P20: 21 | Q20: 21 | R20: 22 | S20: 21 | T20: 21 | U20: 21
A21: 22 | B21: 2735 | C21: 23 | D21: 2744 | E21: 23 | F21: 2764 | K21: 0 | L21: 222 | P21: % of reinforcement given in 6 equal intervals based on number of trials
A22: 11 | B22: 2893 | C22: 12 | D22: 2908 | E22: 14 | F22: 2922 | K22: 0 | L22: 111 | P22: %_1 | Q22: %_2 | R22: %_3 | S22: %_4 | T22: %_5 | U22: %_6
A23: 11 | B23: 3039 | C23: 12 | D23: 3050 | E23: 14 | F23: 3058 | K23: 0 | L23: 111 | O23: target sequence | P23: =$G$3 -> 122 | Q23: =$G$3 -> 122 | R23: =$G$3 -> 122 | S23: =$G$3 -> 122 | T23: =$G$3 -> 122 | U23: =$G$3 -> 122
A24: 11 | B24: 3234 | C24: 12 | D24: 3244 | E24: 14 | F24: 3252 | K24: 0 | L24: 111 | O24: total reinforcement | P24: =U10 -> 4 | Q24: =Z10 -> 5 | R24: =AE10 -> 7 | S24: =AJ10 -> 8 | T24: =AO10 -> 8 | U24: =AT10 -> 8
A25: 11 | B25: 3384 | C25: 12 | D25: 3386 | E25: 14 | F25: 3399 | K25: 0 | L25: 111 | O25: % target
A26: 22 | B26: 3589 | C26: 23 | D26: 3657 | E26: 23 | F26: 3680 | K26: 0 | L26: 222 | O26: CCRF
A27: 11 | B27: 4042 | C27: 12 | D27: 4053 | E27: 14 | F27: 4075 | K27: 0 | L27: 111 | O27: % CCRf
A28: 11 | B28: 5151 | C28: 21 | D28: 5169 | E28: 21 | F28: 5392 | K28: 0 | L28: 122 | O28: average response rate | P28: =F27/P20 -> 194.047619 | Q28: =(F48-F27)/Q20 -> 261.5238095 | R28: =(F70-F48)/R20 -> 159.3636364 | S28: =(F91-F70)/S20 -> 151.952381 | T28: =(F112-F91)/T20 -> 145.0952381 | U28: =(F133-F112)/U20 -> 133.6190476
A29: 22 | B29: 5524 | C29: 23 | D29: 5542 | E29: 23 | F29: 5551 | K29: 0 | L29: 222
A30: 22 | B30: 5659 | C30: 23 | D30: 5675 | E30: 23 | F30: 5707 | K30: 0 | L30: 222
A31: 22 | B31: 5824 | C31: 23 | D31: 5894 | E31: 23 | F31: 5902 | K31: 0 | L31: 222
A32: 11 | B32: 6047 | C32: 21 | D32: 6072 | E32: 21 | F32: 6081 | K32: 0 | L32: 122
A33: 22 | B33: 6207 | C33: 23 | D33: 6222 | E33: 23 | F33: 6229 | K33: 0 | L33: 222
A34: 22 | B34: 6354 | C34: 23 | D34: 6415 | E34: 23 | F34: 6423 | K34: 0 | L34: 222
A35: 22 | B35: 6558 | C35: 23 | D35: 6566 | E35: 23 | F35: 6607 | K35: 0 | L35: 222
A36: 22 | B36: 6797 | C36: 23 | D36: 6811 | E36: 23 | F36: 6828 | K36: 0 | L36: 222
A37: 22 | B37: 7120 | C37: 23 | D37: 7170 | E37: 23 | F37: 7214 | K37: 0 | L37: 222
A38: 22 | B38: 7819 | C38: 23 | D38: 7840 | E38: 23 | F38: 7851 | K38: 0 | L38: 222
A39: 11 | B39: 7965 | C39: 21 | D39: 8040 | E39: 21 | F39: 8049 | K39: 0 | L39: 122
A40: 22 | B40: 8171 | C40: 23 | D40: 8189 | E40: 23 | F40: 8198 | K40: 0 | L40: 222
A41: 11 | B41: 8333 | C41: 21 | D41: 8365 | E41: 21 | F41: 8386 | K41: 0 | L41: 122
A42: 22 | B42: 8485 | C42: 23 | D42: 8494 | E42: 23 | F42: 8504 | K42: 0 | L42: 222
A43: 22 | B43: 8614 | C43: 23 | D43: 8658 | E43: 23 | F43: 8665 | K43: 0 | L43: 222
A44: 22 | B44: 8794 | C44: 23 | D44: 8832 | E44: 23 | F44: 8841 | K44: 0 | L44: 222
A45: 22 | B45: 8986 | C45: 23 | D45: 8994 | E45: 23 | F45: 9008 | K45: 0 | L45: 222
A46: 11 | B46: 9184 | C46: 21 | D46: 9207 | E46: 21 | F46: 9215 | K46: 0 | L46: 122
A47: 22 | B47: 9324 | C47: 23 | D47: 9332 | E47: 23 | F47: 9414 | K47: 0 | L47: 222
A48: 22 | B48: 9528 | C48: 23 | D48: 9558 | E48: 23 | F48: 9567 | K48: 0 | L48: 222
A49: 22 | B49: 9701 | C49: 23 | D49: 9709 | E49: 23 | F49: 9718 | K49: 0 | L49: 222
A50: 22 | B50: 9849 | C50: 23 | D50: 9854 | E50: 23 | F50: 9864 | K50: 0 | L50: 222
A51: 11 | B51: 10029 | C51: 21 | D51: 10082 | E51: 21 | F51: 10090 | K51: 0 | L51: 122
A52: 22 | B52: 10186 | C52: 23 | D52: 10194 | E52: 23 | F52: 10224 | K52: 0 | L52: 222
A53: 11 | B53: 10337 | C53: 21 | D53: 10354 | E53: 21 | F53: 10366 | K53: 0 | L53: 122
A54: 22 | B54: 10480 | C54: 23 | D54: 10532 | E54: 23 | F54: 10540 | K54: 0 | L54: 222
A55: 11 | B55: 10658 | C55: 12 | D55: 10667 | E55: 23 | F55: 10706 | K55: 0 | L55: 112
A56: 22 | B56: 10844 | C56: 23 | D56: 10853 | E56: 23 | F56: 10865 | K56: 0 | L56: 222
A57: 22 | B57: 10982 | C57: 23 | D57: 11074 | E57: 23 | F57: 11081 | K57: 0 | L57: 222
A58: 22 | B58: 11210 | C58: 23 | D58: 11225 | E58: 23 | F58: 11233 | K58: 0 | L58: 222
A59: 22 | B59: 11364 | C59: 23 | D59: 11395 | E59: 23 | F59: 11405 | K59: 0 | L59: 222
A60: 11 | B60: 11513 | C60: 21 | D60: 11526 | E60: 21 | F60: 11538 | K60: 0 | L60: 122
A61: 22 | B61: 11641 | C61: 23 | D61: 11699 | E61: 23 | F61: 11707 | K61: 0 | L61: 222
A62: 11 | B62: 11847 | C62: 21 | D62: 11867 | E62: 21 | F62: 11875 | K62: 0 | L62: 122
A63: 22 | B63: 11984 | C63: 23 | D63: 12002 | E63: 23 | F63: 12010 | K63: 0 | L63: 222
A64: 22 | B64: 12167 | C64: 23 | D64: 12175 | E64: 23 | F64: 12200 | K64: 0 | L64: 222
A65: 11 | B65: 12309 | C65: 21 | D65: 12329 | E65: 21 | F65: 12338 | K65: 0 | L65: 122
A66: 22 | B66: 12436 | C66: 23 | D66: 12446 | E66: 23 | F66: 12498 | K66: 0 | L66: 222
A67: 11 | B67: 12592 | C67: 21 | D67: 12632 | E67: 21 | F67: 12651 | K67: 0 | L67: 122
A68: 22 | B68: 12774 | C68: 23 | D68: 12782 | E68: 23 | F68: 12792 | K68: 0 | L68: 222
A69: 11 | B69: 12896 | C69: 21 | D69: 12916 | E69: 21 | F69: 12924 | K69: 0 | L69: 122
A70: 22 | B70: 13056 | C70: 23 | D70: 13065 | E70: 23 | F70: 13073 | K70: 0 | L70: 222
A71: 11 | B71: 13173 | C71: 21 | D71: 13184 | E71: 21 | F71: 13199 | K71: 0 | L71: 122
A72: 22 | B72: 13298 | C72: 23 | D72: 13313 | E72: 23 | F72: 13323 | K72: 0 | L72: 222
A73: 11 | B73: 13427 | C73: 21 | D73: 13445 | E73: 21 | F73: 13451 | K73: 0 | L73: 122
A74: 11 | B74: 13554 | C74: 21 | D74: 13577 | E74: 21 | F74: 13583 | K74: 0 | L74: 122
A75: 22 | B75: 13768 | C75: 23 | D75: 13776 | E75: 23 | F75: 13784 | K75: 0 | L75: 222
A76: 11 | B76: 13920 | C76: 12 | D76: 13923 | E76: 23 | F76: 13962 | K76: 0 | L76: 112
A77: 11 | B77: 14062 | C77: 21 | D77: 14075 | E77: 21 | F77: 14083 | K77: 0 | L77: 122
A78: 22 | B78: 14209 | C78: 23 | D78: 14234 | E78: 23 | F78: 14311 | K78: 0 | L78: 222
A79: 22 | B79: 14434 | C79: 23 | D79: 14443 | E79: 23 | F79: 14452 | K79: 0 | L79: 222
A80: 11 | B80: 14547 | C80: 12 | D80: 14549 | E80: 23 | F80: 14578 | K80: 0 | L80: 112
A81: 22 | B81: 14688 | C81: 23 | D81: 14695 | E81: 23 | F81: 14702 | K81: 0 | L81: 222
A82: 22 | B82: 14817 | C82: 23 | D82: 14825 | E82: 23 | F82: 14835 | K82: 0 | L82: 222
A83: 11 | B83: 14943 | C83: 12 | D83: 14953 | E83: 23 | F83: 14971 | K83: 0 | L83: 112
A84: 22 | B84: 15072 | C84: 23 | D84: 15082 | E84: 23 | F84: 15088 | K84: 0 | L84: 222
A85: 11 | B85: 15215 | C85: 21 | D85: 15234 | E85: 21 | F85: 15245 | K85: 0 | L85: 122
A86: 22 | B86: 15357 | C86: 23 | D86: 15400 | E86: 23 | F86: 15413 | K86: 0 | L86: 222
A87: 11 | B87: 15519 | C87: 21 | D87: 15570 | E87: 21 | F87: 15579 | K87: 0 | L87: 122
A88: 11 | B88: 15673 | C88: 21 | D88: 15690 | E88: 21 | F88: 15713 | K88: 0 | L88: 122
A89: 11 | B89: 15808 | C89: 21 | D89: 15869 | E89: 21 | F89: 15888 | K89: 0 | L89: 122
A90: 22 | B90: 16017 | C90: 23 | D90: 16055 | E90: 23 | F90: 16108 | K90: 0 | L90: 222
A91: 22 | B91: 16229 | C91: 23 | D91: 16239 | E91: 23 | F91: 16264 | K91: 0 | L91: 222
A92: 22 | B92: 16371 | C92: 23 | D92: 16396 | E92: 23 | F92: 16430 | K92: 0 | L92: 222
A93: 11 | B93: 16526 | C93: 21 | D93: 16543 | E93: 21 | F93: 16551 | K93: 0 | L93: 122
A94: 22 | B94: 16668 | C94: 23 | D94: 16674 | E94: 23 | F94: 16680 | K94: 0 | L94: 222
A95: 22 | B95: 16800 | C95: 23 | D95: 16807 | E95: 23 | F95: 16812 | K95: 0 | L95: 222
A96: 11 | B96: 16914 | C96: 21 | D96: 16938 | E96: 21 | F96: 16943 | K96: 0 | L96: 122
A97: 22 | B97: 17056 | C97: 23 | D97: 17064 | E97: 23 | F97: 17071 | K97: 0 | L97: 222
A98: 22 | B98: 17188 | C98: 23 | D98: 17195 | E98: 23 | F98: 17201 | K98: 0 | L98: 222
A99: 22 | B99: 17315 | C99: 23 | D99: 17324 | E99: 23 | F99: 17367 | K99: 0 | L99: 222
A100: 22 | B100: 17476 | C100: 23 | D100: 17481 | E100: 23 | F100: 17495 | K100: 0 | L100: 222
A101: 11 | B101: 17591 | C101: 21 | D101: 17615 | E101: 21 | F101: 17761 | K101: 0 | L101: 122
A102: 22 | B102: 17869 | C102: 23 | D102: 17922 | E102: 23 | F102: 17937 | K102: 0 | L102: 222
A103: 11 | B103: 18039 | C103: 21 | D103: 18060 | E103: 21 | F103: 18109 | K103: 0 | L103: 122
A104: 11 | B104: 18198 | C104: 21 | D104: 18216 | E104: 21 | F104: 18245 | K104: 0 | L104: 122
A105: 11 | B105: 18334 | C105: 21 | D105: 18346 | E105: 21 | F105: 18356 | K105: 0 | L105: 122
A106: 11 | B106: 18453 | C106: 21 | D106: 18471 | E106: 21 | F106: 18478 | K106: 0 | L106: 122
A107: 22 | B107: 18580 | C107: 23 | D107: 18597 | E107: 23 | F107: 18605 | K107: 0 | L107: 222
A108: 11 | B108: 18702 | C108: 12 | D108: 18711 | E108: 14 | F108: 18719 | K108: 0 | L108: 111
A109: 22 | B109: 18881 | C109: 23 | D109: 18889 | E109: 23 | F109: 18898 | K109: 0 | L109: 222
A110: 11 | B110: 18997 | C110: 21 | D110: 19028 | E110: 21 | F110: 19034 | K110: 0 | L110: 122
A111: 22 | B111: 19155 | C111: 23 | D111: 19165 | E111: 23 | F111: 19191 | K111: 0 | L111: 222
A112: 22 | B112: 19298 | C112: 23 | D112: 19302 | E112: 23 | F112: 19311 | K112: 0 | L112: 222
A113: 22 | B113: 19420 | C113: 23 | D113: 19432 | E113: 23 | F113: 19467 | K113: 0 | L113: 222
A114: 22 | B114: 19570 | C114: 23 | D114: 19577 | E114: 23 | F114: 19586 | K114: 0 | L114: 222
A115: 11 | B115: 19689 | C115: 21 | D115: 19709 | E115: 21 | F115: 19714 | K115: 0 | L115: 122
A116: 22 | B116: 19849 | C116: 23 | D116: 19861 | E116: 23 | F116: 19869 | K116: 0 | L116: 222
A117: 22 | B117: 19977 | C117: 23 | D117: 19982 | E117: 23 | F117: 19990 | K117: 0 | L117: 222
A118: 22 | B118: 20099 | C118: 23 | D118: 20105 | E118: 23 | F118: 20111 | K118: 0 | L118: 222
A119: 22 | B119: 20230 | C119: 23 | D119: 20245 | E119: 23 | F119: 20251 | K119: 0 | L119: 222
A120: 11 | B120: 20366 | C120: 21 | D120: 20407 | E120: 21 | F120: 20416 | K120: 0 | L120: 122
A121: 11 | B121: 20514 | C121: 21 | D121: 20534 | E121: 21 | F121: 20579 | K121: 0 | L121: 122
A122: 11 | B122: 20673 | C122: 21 | D122: 20690 | E122: 21 | F122: 20696 | K122: 0 | L122: 122
A123: 22 | B123: 20803 | C123: 23 | D123: 20809 | E123: 23 | F123: 20817 | K123: 0 | L123: 222
A124: 11 | B124: 20912 | C124: 21 | D124: 20924 | E124: 21 | F124: 20929 | K124: 0 | L124: 122
A125: 22 | B125: 21026 | C125: 23 | D125: 21034 | E125: 23 | F125: 21063 | K125: 0 | L125: 222
A126: 11 | B126: 21159 | C126: 21 | D126: 21177 | E126: 21 | F126: 21215 | K126: 0 | L126: 122
A127: 11 | B127: 21318 | C127: 21 | D127: 21335 | E127: 21 | F127: 21343 | K127: 0 | L127: 122
A128: 22 | B128: 21445 | C128: 23 | D128: 21451 | E128: 23 | F128: 21461 | K128: 0 | L128: 222
A129: 22 | B129: 21568 | C129: 23 | D129: 21573 | E129: 23 | F129: 21587 | K129: 0 | L129: 222
A130: 11 | B130: 21683 | C130: 12 | D130: 21692 | E130: 23 | F130: 21710 | K130: 0 | L130: 112
A131: 22 | B131: 21831 | C131: 23 | D131: 21840 | E131: 23 | F131: 21849 | K131: 0 | L131: 222
A132: 11 | B132: 21947 | C132: 12 | D132: 21955 | E132: 23 | F132: 21971 | K132: 0 | L132: 112
A133: 11 | B133: 22070 | C133: 21 | D133: 22092 | E133: 21 | F133: 22117 | K133: 1 | L133: 122

Sheet !M617A50.102
A1: Report for:!M617A50.102
A2: Date: | B2: <date>
A3: Hen: | B3: <hen> | F3: Correct Sequence | G3: =Start!J2 -> 122 | P3: Total Sequences in Data | Q3: =4994-COUNTBLANK(L7:L5000) -> 140 | V3: Total Sequences in Block Data | W3: =COUNTA(L7:L29) -> 23 | AA3: Total Sequences in Block Data | AB3: =COUNTA(L30:L53) -> 24 | AF3: Total Sequences in Block Data | AG3: =COUNTA(L54:L76) -> 23 | AK3: Total Sequences in Block Data | AL3: =COUNTA(L77:L99) -> 23 | AP3: Total Sequences in Block Data | AQ3: =COUNTA(L100:L123) -> 24 | AU3: Total Sequences in Block Data | AV3: =COUNTA(L124:L146) -> 23
P4: Total Sequences in Summary | Q4: =SUM(O7:O14) -> 140 | V4: Total Sequences in Block Summary | W4: =SUM(U7:U14) -> 23 | AA4: Total Sequences in Block Summary | AB4: =SUM(Z7:Z14) -> 24 | AF4: Total Sequences in Block Summary | AG4: =SUM(AE7:AE14) -> 23 | AK4: Total Sequences in Block Summary | AL4: =SUM(AJ7:AJ14) -> 23 | AP4: Total Sequences in Block Summary | AQ4: =SUM(AO7:AO14) -> 24 | AU4: Total Sequences in Block Summary | AV4: =SUM(AT7:AT14) -> 23
T5: Block 1 | Y5: Block 2 | AD5: Block 3 | AI5: Block 4 | AN5: Block 5 | AS5: Block 6
A6: Sequence Component 1 | B6: Time 1 | C6: Sequence Component 2 | D6: Time 2 | E6: Sequence Component 3 | F6: Time 3 | G6: Sequence Component 4 | H6: Time 4 | I6: Sequence Component 5 | J6: Time 5 | K6: Correct? 0=No 1=Yes | L6: Sequence | N6: Frequency | P6: Relative Frequency | Q6: Variability | T6: Frequency | V6: Relative Frequency | W6: Variability | Y6: Frequency | AA6: Relative Frequency | AB6: Variability | AD6: Frequency | AF6: Relative Frequency | AG6: Variability | AI6: Frequency | AK6: Relative Frequency | AL6: Variability | AN6: Frequency | AP6: Relative Frequency | AQ6: Variability | AS6: Frequency | AU6: Relative Frequency | AV6: Variability
A7: 22 | B7: 43 | C7: 23 | D7: 53 | E7: 23 | F7: 143 | K7: 0 | L7: 222 | N7: 111 | O7: =COUNTIF($L$7:$L$500,N7) -> 0 | P7: =O7/$Q$4 -> 0 | Q7: =IF(P7=0,0,(P7*((LOG(P7))/LOG(2)))) -> 0 | T7: =N7 -> 111 | U7: =COUNTIF(L7:L29,T7) -> 0 | V7: =U7/(W4-U10) -> 0 | W7: =IF(V7=0,0,(V7*((LOG(V7))/LOG(2)))) -> 0 | Y7: =N7 -> 111 | Z7: =COUNTIF(L30:L53,Y7) -> 0 | AA7: =Z7/(AB4-Z10) -> 0 | AB7: =IF(AA7=0,0,(AA7*((LOG(AA7))/LOG(2)))) -> 0 | AD7: =N7 -> 111 | AE7: =COUNTIF(L54:L76,AD7) -> 0 | AF7: =AE7/(AG4-AE10) -> 0 | AG7: =IF(AF7=0,0,(AF7*((LOG(AF7))/LOG(2)))) -> 0 | AI7: =N7 -> 111 | AJ7: =COUNTIF(L77:L99,AI7) -> 0 | AK7: =AJ7/(AL4-AJ10) -> 0 | AL7: =IF(AK7=0,0,(AK7*((LOG(AK7))/LOG(2)))) -> 0 | AN7: =N7 -> 111 | AO7: =COUNTIF(L100:L123,AN7) -> 0 | AP7: =AO7/(AQ4-AO10) -> 0 | AQ7: =IF(AP7=0,0,(AP7*((LOG(AP7))/LOG(2)))) -> 0 | AS7: =N7 -> 111 | AT7: =COUNTIF(L124:L146,AS7) -> 0 | AU7: =AT7/(AV4-AT10) -> 0 | AV7: =IF(AU7=0,0,(AU7*((LOG(AU7))/LOG(2)))) -> 0
A8: 22 | B8: 276 | C8: 23 | D8: 288 | E8: 23 | F8: 309 | K8: 0 | L8: 222 | N8: 112 | O8: =COUNTIF($L$7:$L$500,N8) -> 1 | P8: =O8/$Q$4 -> 0.007142857143 | Q8: =IF(P8=0,0,(P8*((LOG(P8))/LOG(2)))) -> -0.05092345012 | T8: =N8 -> 112 | U8: =COUNTIF(L7:L29,T8) -> 0 | V8: =U8/(W4-U10) -> 0 | W8: =IF(V8=0,0,(V8*((LOG(V8))/LOG(2)))) -> 0 | Y8: =N8 -> 112 | Z8: =COUNTIF(L30:L53,Y8) -> 1 | AA8: =Z8/(AB4-Z10) -> 0.05263157895 | AB8: =IF(AA8=0,0,(AA8*((LOG(AA8))/LOG(2)))) -> -0.2235751323 | AD8: =N8 -> 112 | AE8: =COUNTIF(L54:L76,AD8) -> 0 | AF8: =AE8/(AG4-AE10) -> 0 | AG8: =IF(AF8=0,0,(AF8*((LOG(AF8))/LOG(2)))) -> 0 | AI8: =N8 -> 112 | AJ8: =COUNTIF(L77:L99,AI8) -> 0 | AK8: =AJ8/(AL4-AJ10) -> 0 | AL8: =IF(AK8=0,0,(AK8*((LOG(AK8))/LOG(2)))) -> 0 | AN8: =N8 -> 112 | AO8: =COUNTIF(L100:L123,AN8) -> 0 | AP8: =AO8/(AQ4-AO10) -> 0 | AQ8: =IF(AP8=0,0,(AP8*((LOG(AP8))/LOG(2)))) -> 0 | AS8: =N8 -> 112 | AT8: =COUNTIF(L124:L146,AS8) -> 0 | AU8: =AT8/(AV4-AT10) -> 0 | AV8: =IF(AU8=0,0,(AU8*((LOG(AU8))/LOG(2)))) -> 0
A9: 22 | B9: 439 | C9: 23 | D9: 450 | E9: 23 | F9: 506 | K9: 0 | L9: 222 | N9: 121 | O9: =COUNTIF($L$7:$L$500,N9) -> 0 | P9: =O9/$Q$4 -> 0 | Q9: =IF(P9=0,0,(P9*((LOG(P9))/LOG(2)))) -> 0 | T9: =N9 -> 121 | U9: =COUNTIF(L7:L29,T9) -> 0 | V9: =U9/(W4-U10) -> 0 | W9: =IF(V9=0,0,(V9*((LOG(V9))/LOG(2)))) -> 0 | Y9: =N9 -> 121 | Z9: =COUNTIF(L30:L53,Y9) -> 0 | AA9: =Z9/(AB4-Z10) -> 0 | AB9: =IF(AA9=0,0,(AA9*((LOG(AA9))/LOG(2)))) -> 0 | AD9: =N9 -> 121 | AE9: =COUNTIF(L54:L76,AD9) -> 0 | AF9: =AE9/(AG4-AE10) -> 0 | AG9: =IF(AF9=0,0,(AF9*((LOG(AF9))/LOG(2)))) -> 0 | AI9: =N9 -> 121 | AJ9: =COUNTIF(L77:L99,AI9) -> 0 | AK9: =AJ9/(AL4-AJ10) -> 0 | AL9: =IF(AK9=0,0,(AK9*((LOG(AK9))/LOG(2)))) -> 0 | AN9: =N9 -> 121 | AO9: =COUNTIF(L100:L123,AN9) -> 0 | AP9: =AO9/(AQ4-AO10) -> 0 | AQ9: =IF(AP9=0,0,(AP9*((LOG(AP9))/LOG(2)))) -> 0 | AS9: =N9 -> 121 | AT9: =COUNTIF(L124:L146,AS9) -> 0 | AU9: =AT9/(AV4-AT10) -> 0 | AV9: =IF(AU9=0,0,(AU9*((LOG(AU9))/LOG(2)))) -> 0
A10: 22 | B10: 632 | C10: 23 | D10: 646 | E10: 23 | F10: 653 | K10: 0 | L10: 222 | N10: 122 | O10: =COUNTIF($L$7:$L$500,N10) -> 37 | P10: =O10/$Q$4 -> 0.2642857143 | Q10: =IF(P10=0,0,(P10*((LOG(P10))/LOG(2)))) -> -0.5073835507 | T10: =N10 -> 122 | U10: =COUNTIF(L7:L29,T10) -> 2 | Y10: =N10 -> 122 | Z10: =COUNTIF(L30:L53,Y10) -> 5 | AD10: =N10 -> 122 | AE10: =COUNTIF(L54:L76,AD10) -> 9 | AI10: =N10 -> 122 | AJ10: =COUNTIF(L77:L99,AI10) -> 5 | AN10: =N10 -> 122 | AO10: =COUNTIF(L100:L123,AN10) -> 5 | AS10: =N10 -> 122 | AT10: =COUNTIF(L124:L146,AS10) -> 11
A11: 22 | B11: 758 | C11: 23 | D11: 780 | E11: 23 | F11: 789 | K11: 0 | L11: 222 | N11: 211 | O11: =COUNTIF($L$7:$L$500,N11) -> 0 | P11: =O11/$Q$4 -> 0 | Q11: =IF(P11=0,0,(P11*((LOG(P11))/LOG(2)))) -> 0 | T11: =N11 -> 211 | U11: =COUNTIF(L7:L29,T11) -> 0 | V11: =U11/(W4-U10) -> 0 | W11: =IF(V11=0,0,(V11*((LOG(V11))/LOG(2)))) -> 0 | Y11: =N11 -> 211 | Z11: =COUNTIF(L30:L53,Y11) -> 0 | AA11: =Z11/(AB4-Z10) -> 0 | AB11: =IF(AA11=0,0,(AA11*((LOG(AA11))/LOG(2)))) -> 0 | AD11: =N11 -> 211 | AE11: =COUNTIF(L54:L76,AD11) -> 0 | AF11: =AE11/(AG4-AE10) -> 0 | AG11: =IF(AF11=0,0,(AF11*((LOG(AF11))/LOG(2)))) -> 0 | AI11: =N11 -> 211 | AJ11: =COUNTIF(L77:L99,AI11) -> 0 | AK11: =AJ11/(AL4-AJ10) -> 0 | AL11: =IF(AK11=0,0,(AK11*((LOG(AK11))/LOG(2)))) -> 0 | AN11: =N11 -> 211 | AO11: =COUNTIF(L100:L123,AN11) -> 0 | AP11: =AO11/(AQ4-AO10) -> 0 | AQ11: =IF(AP11=0,0,(AP11*((LOG(AP11))/LOG(2)))) -> 0 | AS11: =N11 -> 211 | AT11: =COUNTIF(L124:L146,AS11) -> 0 | AU11: =AT11/(AV4-AT10) -> 0 | AV11: =IF(AU11=0,0,(AU11*((LOG(AU11))/LOG(2)))) -> 0
A12: 22 | B12: 923 | C12: 23 | D12: 932 | E12: 23 | F12: 954 | K12: 0 | L12: 222 | N12: 212 | O12: =COUNTIF($L$7:$L$500,N12) -> 2 | P12: =O12/$Q$4 -> 0.01428571429 | Q12: =IF(P12=0,0,(P12*((LOG(P12))/LOG(2)))) -> -0.08756118596 | T12: =N12 -> 212 | U12: =COUNTIF(L7:L29,T12) -> 0 | V12: =U12/(W4-U10) -> 0 | W12: =IF(V12=0,0,(V12*((LOG(V12))/LOG(2)))) -> 0 | Y12: =N12 -> 212 | Z12: =COUNTIF(L30:L53,Y12) -> 0 | AA12: =Z12/(AB4-Z10) -> 0 | AB12: =IF(AA12=0,0,(AA12*((LOG(AA12))/LOG(2)))) -> 0 | AD12: =N12 -> 212 | AE12: =COUNTIF(L54:L76,AD12) -> 0 | AF12: =AE12/(AG4-AE10) -> 0 | AG12: =IF(AF12=0,0,(AF12*((LOG(AF12))/LOG(2)))) -> 0 | AI12: =N12 -> 212 | AJ12: =COUNTIF(L77:L99,AI12) -> 2 | AK12: =AJ12/(AL4-AJ10) -> 0.1111111111 | AL12: =IF(AK12=0,0,(AK12*((LOG(AK12))/LOG(2)))) -> -0.352213889 | AN12: =N12 -> 212 | AO12: =COUNTIF(L100:L123,AN12) -> 0 | AP12: =AO12/(AQ4-AO10) -> 0 | AQ12: =IF(AP12=0,0,(AP12*((LOG(AP12))/LOG(2)))) -> 0 | AS12: =N12 -> 212 | AT12: =COUNTIF(L124:L146,AS12) -> 0 | AU12: =AT12/(AV4-AT10) -> 0 | AV12: =IF(AU12=0,0,(AU12*((LOG(AU12))/LOG(2)))) -> 0
A13: 11 | B13: 1062 | C13: 21 | D13: 1096 | E13: 21 | F13: 1105 | K13: 0 | L13: 122 | N13: 221 | O13: =COUNTIF($L$7:$L$500,N13) -> 5 | P13: =O13/$Q$4 -> 0.03571428571 | Q13: =IF(P13=0,0,(P13*((LOG(P13))/LOG(2)))) -> -0.1716912472 | T13: =N13 -> 221 | U13: =COUNTIF(L7:L29,T13) -> 0 | V13: =U13/(W4-U10) -> 0 | W13: =IF(V13=0,0,(V13*((LOG(V13))/LOG(2)))) -> 0 | Y13: =N13 -> 221 | Z13: =COUNTIF(L30:L53,Y13) -> 1 | AA13: =Z13/(AB4-Z10) -> 0.05263157895 | AB13: =IF(AA13=0,0,(AA13*((LOG(AA13))/LOG(2)))) -> -0.2235751323 | AD13: =N13 -> 221 | AE13: =COUNTIF(L54:L76,AD13) -> 1 | AF13: =AE13/(AG4-AE10) -> 0.07142857143 | AG13: =IF(AF13=0,0,(AF13*((LOG(AF13))/LOG(2)))) -> -0.271953923 | AI13: =N13 -> 221 | AJ13: =COUNTIF(L77:L99,AI13) -> 1 | AK13: =AJ13/(AL4-AJ10) -> 0.05555555556 | AL13: =IF(AK13=0,0,(AK13*((LOG(AK13))/LOG(2)))) -> -0.2316625001 | AN13: =N13 -> 221 | AO13: =COUNTIF(L100:L123,AN13) -> 1 | AP13: =AO13/(AQ4-AO10) -> 0.05263157895 | AQ13: =IF(AP13=0,0,(AP13*((LOG(AP13))/LOG(2)))) -> -0.2235751323 | AS13: =N13 -> 221 | AT13: =COUNTIF(L124:L146,AS13) -> 1 | AU13: =AT13/(AV4-AT10) -> 0.08333333333 | AV13: =IF(AU13=0,0,(AU13*((LOG(AU13))/LOG(2)))) -> -0.2987468751
A14: 22 | B14: 1201 | C14: 23 | D14: 1235 | E14: 23 | F14: 1245 | K14: 0 | L14: 222 | N14: 222 | O14: =COUNTIF($L$7:$L$500,N14) -> 95 | P14: =O14/$Q$4 -> 0.6785714286 | Q14: =IF(P14=0,0,(P14*((LOG(P14))/LOG(2)))) -> -0.3796114558 | T14: =N14 -> 222 | U14: =COUNTIF(L7:L29,T14) -> 21 | V14: =U14/(W4-U10) -> 1 | W14: =IF(V14=0,0,(V14*((LOG(V14))/LOG(2)))) -> 0 | Y14: =N14 -> 222 | Z14: =COUNTIF(L30:L53,Y14) -> 17 | AA14: =Z14/(AB4-Z10) -> 0.8947368421 | AB14: =IF(AA14=0,0,(AA14*((LOG(AA14))/LOG(2)))) -> -0.1435736541 | AD14: =N14 -> 222 | AE14: =COUNTIF(L54:L76,AD14) -> 13 | AF14: =AE14/(AG4-AE10) -> 0.9285714286 | AG14: =IF(AF14=0,0,(AF14*((LOG(AF14))/LOG(2)))) -> -0.09927840364 | AI14: =N14 -> 222 | AJ14: =COUNTIF(L77:L99,AI14) -> 15 | AK14: =AJ14/(AL4-AJ10) -> 0.8333333333 | AL14: =IF(AK14=0,0,(AK14*((LOG(AK14))/LOG(2)))) -> -0.2191953382 | AN14: =N14 -> 222 | AO14: =COUNTIF(L100:L123,AN14) -> 18 | AP14: =AO14/(AQ4-AO10) -> 0.9473684211 | AQ14: =IF(AP14=0,0,(AP14*((LOG(AP14))/LOG(2)))) -> -0.07389711663 | AS14: =N14 -> 222 | AT14: =COUNTIF(L124:L146,AS14) -> 11 | AU14: =AT14/(AV4-AT10) -> 0.9166666667 | AV14: =IF(AU14=0,0,(AU14*((LOG(AU14))/LOG(2)))) -> -0.1150699752
A15: 11 | B15: 1342 | C15: 21 | D15: 1396 | E15: 21 | F15: 1412 | K15: 0 | L15: 122 | P15: =SUM(P7:P14) -> 1 | Q15: =-SUM(Q7:Q14) -> 1.19717089 | V15: =SUM(V7:V14) -> 1 | W15: =-SUM(W7:W14) -> 0 | AA15: =SUM(AA7:AA14) -> 1 | AB15: =-SUM(AB7:AB14) -> 0.5907239186 | AF15: =SUM(AF7:AF14) -> 1 | AG15: =-SUM(AG7:AG14) -> 0.3712323266 | AK15: =SUM(AK7:AK14) -> 1 | AL15: =-SUM(AL7:AL14) -> 0.8030717273 | AP15: =SUM(AP7:AP14) -> 1 | AQ15: =-SUM(AQ7:AQ14) -> 0.2974722489 | AU15: =SUM(AU7:AU14) -> 1 | AV15: =-SUM(AV7:AV14) -> 0.4138168503
A16: 22 | B16: 1522 | C16: 23 | D16: 1546 | E16: 23 | F16: 1560 | K16: 0 | L16: 222 | P16: U= | Q16: =Q15/(LOG(Q4)/LOG(2)) -> 0.1679230418 | V16: U1= | W16: =W15/(LOG(W4)/LOG(2)) -> 0 | AA16: U2= | AB16: =AB15/(LOG(AB4)/LOG(2)) -> 0.128839422 | AF16: U3= | AG16: =AG15/(LOG(AG4)/LOG(2)) -> 0.08206637385 | AK16: U4= | AL16: =AL15/(LOG(AL4)/LOG(2)) -> 0.1775308341 | AP16: U5= | AQ16: =AQ15/(LOG(AQ4)/LOG(2)) -> 0.06487997424 | AU16: U6= | AV16: =AV15/(LOG(AV4)/LOG(2)) -> 0.09148031006
A17: 22 | B17: 1674 | C17: 23 | D17: 1707 | E17: 23 | F17: 1717 | K17: 0 | L17: 222
A18: 22 | B18: 1847 | C18: 23 | D18: 1861 | E18: 23 | F18: 1869 | K18: 0 | L18: 222
A19: 22 | B19: 2001 | C19: 23 | D19: 2010 | E19: 23 | F19: 2026 | K19: 0 | L19: 222 | N19: Total Target Seq
A20: 22 | B20: 2150 | C20: 23 | D20: 2209 | E20: 23 | F20: 2218 | K20: 0 | L20: 222 | N20: =COUNTIF(L7:L146,G3) -> 37 | P20: 23 | Q20: 24 | R20: 23 | S20: 23 | T20: 24 | U20: 23
A21: 22 | B21: 2333 | C21: 23 | D21: 2378 | E21: 23 | F21: 2395 | K21: 0 | L21: 222 | P21: % of reinforcement given in 6 equal intervals based on number of trials
A22: 22 | B22: 2499 | C22: 23 | D22: 2504 | E22: 23 | F22: 2516 | K22: 0 | L22: 222 | P22: %_1 | Q22: %_2 | R22: %_3 | S22: %_4 | T22: %_5 | U22: %_6
A23: 22 | B23: 2690 | C23: 23 | D23: 2730 | E23: 23 | F23: 2739 | K23: 0 | L23: 222 | O23: target sequence | P23: =$G$3 -> 122 | Q23: =$G$3 -> 122 | R23: =$G$3 -> 122 | S23: =$G$3 -> 122 | T23: =$G$3 -> 122 | U23: =$G$3 -> 122
A24: 22 | B24: 2894 | C24: 23 | D24: 2913 | E24: 23 | F24: 2946 | K24: 0 | L24: 222 | O24: total reinforcement | P24: =U10 -> 2 | Q24: =Z10 -> 5 | R24: =AE10 -> 9 | S24: =AJ10 -> 5 | T24: =AO10 -> 5 | U24: =AT10 -> 11
A25: 22 | B25: 3056 | C25: 23 | D25: 3106 | E25: 23 | F25: 3115 | K25: 0 | L25: 222 | O25: % target
A26: 22 | B26: 3257 | C26: 23 | D26: 3279 | E26: 23 | F26: 3295 | K26: 0 | L26: 222 | O26: CCRF
A27: 22 | B27: 3416 | C27: 23 | D27: 3423 | E27: 23 | F27: 3436 | K27: 0 | L27: 222 | O27: % CCRf
A28: 22 | B28: 3629 | C28: 23 | D28: 3653 | E28: 23 | F28: 3699 | K28: 0 | L28: 222 | O28: average response rate | P28: =F29/P20 -> 175.826087 | Q28: =(F53-F29)/Q20 -> 184.375 | R28: =(F76-F53)/R20 -> 182.6956522 | S28: =(F99-F76)/S20 -> 174.5652174 | T28: =(F123-F99)/T20 -> 165.1666667 | U28: =(F146-F123)/U20 -> 142.826087
A29: 22 | B29: 3925 | C29: 23 | D29: 3990 | E29: 23 | F29: 4044 | K29: 0 | L29: 222
A30: 11 | B30: 4155 | C30: 21 | D30: 4188 | E30: 21 | F30: 4275 | K30: 0 | L30: 122
A31: 22 | B31: 4425 | C31: 23 | D31: 4440 | E31: 23 | F31: 4462 | K31: 0 | L31: 222
A32: 22 | B32: 4584 | C32: 23 | D32: 4609 | E32: 23 | F32: 4625 | K32: 0 | L32: 222
A33: 11 | B33: 4718 | C33: 21 | D33: 4793 | E33: 21 | F33: 4843 | K33: 0 | L33: 122
A34: 22 | B34: 4953 | C34: 23 | D34: 4962 | E34: 23 | F34: 4983 | K34: 0 | L34: 222
A35: 22 | B35: 5128 | C35: 23 | D35: 5143 | E35: 23 | F35: 5151 | K35: 0 | L35: 222
A36: 22 | B36: 5312 | C36: 23 | D36: 5411 | E36: 23 | F36: 5420 | K36: 0 | L36: 222
A37: 22 | B37: 5542 | C37: 23 | D37: 5553 | E37: 23 | F37: 5569 | K37: 0 | L37: 222
A38: 22 | B38: 5823 | C38: 23 | D38: 5840 | E38: 23 | F38: 5849 | K38: 0 | L38: 222
A39: 22 | B39: 5958 | C39: 23 | D39: 5991 | E39: 23 | F39: 6007 | K39: 0 | L39: 222
A40: 22 | B40: 6120 | C40: 23 | D40: 6133 | E40: 23 | F40: 6194 | K40: 0 | L40: 222
A41: 11 | B41: 6330 | C41: 21 | D41: 6349 | E41: 21 | F41: 6358 | K41: 0 | L41: 122
A42: 22 | B42: 6525 | C42: 23 | D42: 6539 | E42: 23 | F42: 6550 | K42: 0 | L42: 222
A43: 22 | B43: 6677 | C43: 23 | D43: 6706 | E43: 23 | F43: 6715 | K43: 0 | L43: 222
A44: 22 | B44: 6849 | C44: 23 | D44: 6858 | E44: 23 | F44: 6867 | K44: 0 | L44: 222
A45: 11 | B45: 6975 | C45: 12 | D45: 6992 | E45: 23 | F45: 7022 | K45: 0 | L45: 112
A46: 22 | B46: 7159 | C46: 23 | D46: 7175 | E46: 23 | F46: 7259 | K46: 0 | L46: 222
A47: 11 | B47: 7358 | C47: 21 | D47: 7374 | E47: 21 | F47: 7385 | K47: 0 | L47: 122
A48: 22 | B48: 7528 | C48: 23 | D48: 7565 | E48: 23 | F48: 7574 | K48: 0 | L48: 222
A49: 11 | B49: 7678 | C49: 21 | D49: 7710 | E49: 21 | F49: 7774 | K49: 0 | L49: 122
A50: 22 | B50: 7907 | C50: 23 | D50: 7933 | E50: 23 | F50: 7943 | K50: 0 | L50: 222
A51: 22 | B51: 8068 | C51: 23 | D51: 8077 | E51: 23 | F51: 8086 | K51: 0 | L51: 222
A52: 22 | B52: 8201 | C52: 23 | D52: 8230 | E52: 14 | F52: 8307 | K52: 0 | L52: 221
A53: 22 | B53: 8432 | C53: 23 | D53: 8441 | E53: 23 | F53: 8469 | K53: 0 | L53: 222
A54: 22 | B54: 8609 | C54: 23 | D54: 8626 | E54: 23 | F54: 8645 | K54: 0 | L54: 222
A55: 22 | B55: 8774 | C55: 23 | D55: 8782 | E55: 23 | F55: 8816 | K55: 0 | L55: 222
A56: 22 | B56: 9087 | C56: 23 | D56: 9112 | E56: 23 | F56: 9156 | K56: 0 | L56: 222
A57: 22 | B57: 9300 | C57: 23 | D57: 9367 | E57: 14 | F57: 9412 | K57: 0 | L57: 221
A58: 11 | B58: 9517 | C58: 21 | D58: 9538 | E58: 21 | F58: 9567 | K58: 0 | L58: 122
A59: 22 | B59: 9711 | C59: 23 | D59: 9721 | E59: 23 | F59: 9731 | K59: 0 | L59: 222
A60: 22 | B60: 9901 | C60: 23 | D60: 10000 | E60: 23 | F60: 10078 | K60: 0 | L60: 222
A61: 11 | B61: 10178 | C61: 21 | D61: 10207 | E61: 21 | F61: 10227 | K61: 0 | L61: 122
A62: 22 | B62: 10344 | C62: 23 | D62: 10361 | E62: 23 | F62: 10385 | K62: 0 | L62: 222
A63: 11 | B63: 10488 | C63: 21 | D63: 10513 | E63: 21 | F63: 10530 | K63: 0 | L63: 122
A64: 11 | B64: 10622 | C64: 21 | D64: 10644 | E64: 21 | F64: 10652 | K64: 0 | L64: 122
A65: 22 | B65: 10795 | C65: 23 | D65: 10807 | E65: 23 | F65: 10825 | K65: 0 | L65: 222
A66: 11 | B66: 10949 | C66: 21 | D66: 10967 | E66: 21 | F66: 10994 | K66: 0 | L66: 122
A67: 22 | B67: 11108 | C67: 23 | D67: 11119 | E67: 23 | F67: 11146 | K67: 0 | L67: 222
A68: 22 | B68: 11289 | C68: 23 | D68: 11313 | E68: 23 | F68: 11322 | K68: 0 | L68: 222
A69: 11 | B69: 11425 | C69: 21 | D69: 11476 | E69: 21 | F69: 11489 | K69: 0 | L69: 122
A70: 22 | B70: 11609 | C70: 23 | D70: 11692 | E70: 23 | F70: 11721 | K70: 0 | L70: 222
A71: 11 | B71: 11820 | C71: 21 | D71: 11851 | E71: 21 | F71: 11881 | K71: 0 | L71: 122
A72: 22 | B72: 11991 | C72: 23 | D72: 12023 | E72: 23 | F72: 12068 | K72: 0 | L72: 222
A73: 22 | B73: 12207 | C73: 23 | D73: 12237 | E73: 23 | F73: 12246 | K73: 0 | L73: 222
A74: 22 | B74: 12353 | C74: 23 | D74: 12380 | E74: 23 | F74: 12390 | K74: 0 | L74: 222
A75: 11 | B75: 12493 | C75: 21 | D75: 12507 | E75: 21 | F75: 12515 | K75: 0 | L75: 122
A76: 11 | B76: 12652 | C76: 21 | D76: 12664 | E76: 21 | F76: 12671 | K76: 0 | L76: 122
A77: 11 | B77: 12782 | C77: 21 | D77: 12802 | E77: 21 | F77: 12812 | K77: 0 | L77: 122
A78: 22 | B78: 13032 | C78: 23 | D78: 13056 | E78: 23 | F78: 13074 | K78: 0 | L78: 222
A79: 22 | B79: 13255 | C79: 23 | D79: 13278 | E79: 23 | F79: 13295 | K79: 0 | L79: 222
A80: 22 | B80: 13406 | C80: 23 | D80: 13415 | E80: 23 | F80: 13423 | K80: 0 | L80: 222
A81: 22 | B81: 13551 | C81: 23 | D81: 13578 | E81: 23 | F81: 13587 | K81: 0 | L81: 222
A82: 22 | B82: 13713 | C82: 23 | D82: 13739 | E82: 23 | F82: 13757 | K82: 0 | L82: 222
A83: 22 | B83: 13895 | C83: 23 | D83: 13940 | E83: 23 | F83: 13949 | K83: 0 | L83: 222
A84: 22 | B84: 14069 | C84: 23 | D84: 14084 | E84: 23 | F84: 14105 | K84: 0 | L84: 222
A85: 11 | B85: 14203 | C85: 21 | D85: 14223 | E85: 21 | F85: 14238 | K85: 0 | L85: 122
A86: 22 | B86: 14408 | C86: 23 | D86: 14418 | E86: 23 | F86: 14438 | K86: 0 | L86: 222
A87: 22 | B87: 14564 | C87: 14 | D87: 14611 | E87: 23 | F87: 14650 | K87: 0 | L87: 212
A88: 22 | B88: 14801 | C88: 23 | D88: 14839 | E88: 23 | F88: 14870 | K88: 0 | L88: 222
A89: 22 | B89: 14982 | C89: 14 | D89: 15011 | E89: 23 | F89: 15065 | K89: 0 | L89: 212
A90: 22 | B90: 15217 | C90: 23 | D90: 15225 | E90: 23 | F90: 15233 | K90: 0 | L90: 222
A91: 22 | B91: 15361 | C91: 23 | D91: 15371 | E91: 23 | F91: 15382 | K91: 0 | L91: 222
A92: 11 | B92: 15518 | C92: 21 | D92: 15532 | E92: 21 | F92: 15541 | K92: 0 | L92: 122
A93: 22 | B93: 15665 | C93: 23 | D93: 15704 | E93: 23 | F93: 15713 | K93: 0 | L93: 222
A94: 22 | B94: 15844 | C94: 23 | D94: 15907 | E94: 23 | F94: 15928 | K94: 0 | L94: 222
A95: 22 | B95: 16046 | C95: 23 | D95: 16055 | E95: 23 | F95: 16065 | K95: 0 | L95: 222
A96: 22 | B96: 16182 | C96: 23 | D96: 16198 | E96: 23 | F96: 16207 | K96: 0 | L96: 222
A97: 11 | B97: 16306 | C97: 21 | D97: 16353 | E97: 21 | F97: 16377 | K97: 0 | L97: 122
A98: 11 | B98: 16473 | C98: 21 | D98: 16488 | E98: 21 | F98: 16506 | K98: 0 | L98: 122
A99: 22 | B99: 16621 | C99: 23 | D99: 16629 | E99: 14 | F99: 16686 | K99: 0 | L99: 221
A100: 22 | B100: 16809 | C100: 23 | D100: 16816 | E100: 23 | F100: 16831 | K100: 0 | L100: 222
A101: 22 | B101: 16956 | C101: 23 | D101: 16970 | E101: 23 | F101: 16980 | K101: 0 | L101: 222
A102: 22 | B102: 17089 | C102: 23 | D102: 17095 | E102: 23 | F102: 17108 | K102: 0 | L102: 222
A103: 22 | B103: 17231 | C103: 23 | D103: 17249 | E103: 23 | F103: 17267 | K103: 0 | L103: 222
A104: 22 | B104: 17381 | C104: 23 | D104: 17389 | E104: 23 | F104: 17530 | K104: 0 | L104: 222
A105: 22 | B105: 17665 | C105: 23 | D105: 17684 | E105: 23 | F105: 17709 | K105: 0 | L105: 222
A106: 22 | B106: 17840 | C106: 23 | D106: 17850 | E106: 23 | F106: 17865 | K106: 0 | L106: 222
A107: 11 | B107: 17969 | C107: 21 | D107: 17993 | E107: 21 | F107: 18002 | K107: 0 | L107: 122
A108: 22 | B108: 18147 | C108: 23 | D108: 18156 | E108: 23 | F108: 18166 | K108: 0 | L108: 222
A109: 11 | B109: 18271 | C109: 21 | D109: 18289 | E109: 21 | F109: 18297 | K109: 0 | L109: 122
A110: 22 | B110: 18407 | C110: 23 | D110: 18416 | E110: 23 | F110: 18425 | K110: 0 | L110: 222
A111: 22 | B111: 18565 | C111: 23 | D111: 18587 | E111: 23 | F111: 18605 | K111: 0 | L111: 222
A112: 11 | B112: 18708 | C112: 21 | D112: 18720 | E112: 21 | F112: 18727 | K112: 0 | L112: 122
A113: 22 | B113: 18844 | C113: 23 | D113: 18892 | E113: 23 | F113: 18901 | K113: 0 | L113: 222
A114: 11 | B114: 19004 | C114: 21 | D114: 19019 | E114: 21 | F114: 19040 | K114: 0 | L114: 122
A115: 22 | B115: 19220 | C115: 23 | D115: 19228 | E115: 14 | F115: 19267 | K115: 0 | L115: 221
A116: 22 | B116: 19385 | C116: 23 | D116: 19418 | E116: 23 | F116: 19459 | K116: 0 | L116: 222
A117: 11 | B117: 19573 | C117: 21 | D117: 19591 | E117: 21 | F117: 19600 | K117: 0 | L117: 122
A118: 22 | B118: 19710 | C118: 23 | D118: 19754 | E118: 23 | F118: 19762 | K118: 0 | L118: 222
A119: 22 | B119: 19886 | C119: 23 | D119: 19895 | E119: 23 | F119: 19917 | K119: 0 | L119: 222
A120: 22 | B120: 20042 | C120: 23 | D120: 20058 | E120: 23 | F120: 20069 | K120: 0 | L120: 222
A121: 22 | B121: 20180 | C121: 23 | D121: 20219 | E121: 23 | F121: 20236 | K121: 0 | L121: 222
A122: 22 | B122: 20357 | C122: 23 | D122: 20385 | E122: 23 | F122: 20505 | K122: 0 | L122: 222
A123: 22 | B123: 20627 | C123: 23 | D123: 20642 | E123: 23 | F123: 20650 | K123: 0 | L123: 222
A124: 22 | B124: 20773 | C124: 23 | D124: 20782 | E124: 23 | F124: 20794 | K124: 0 | L124: 222
A125: 22 | B125: 20902 | C125: 23 | D125: 20913 | E125: 23 | F125: 20936 | K125: 0 | L125: 222
A126: 22 | B126: 21051 | C126: 23 | D126: 21076 | E126: 23 | F126: 21095 | K126: 0 | L126: 222
A127: 22 | B127: 21232 | C127: 23 | D127: 21247 | E127: 23 | F127: 21272 | K127: 0 | L127: 222
A128: 22 | B128: 21383 | C128: 23 | D128: 21392 | E128: 23 | F128: 21400 | K128: 0 | L128: 222
A129: 11 | B129: 21505 | C129: 21 | D129: 21528 | E129: 21 | F129: 21547 | K129: 0 | L129: 122
A130: 11 | B130: 21653 | C130: 21 | D130: 21680 | E130: 21 | F130: 21705 | K130: 0 | L130: 122
A131: 22 | B131: 21834 | C131: 23 | D131: 21843 | E131: 14 | F131: 21891 | K131: 0 | L131: 221
A132: 11 | B132: 21998 | C132: 21 | D132: 22019 | E132: 21 | F132: 22027 | K132: 0 | L132: 122
A133: 11 | B133: 22128 | C133: 21 | D133: 22158 | E133: 21 | F133: 22166 | K133: 0 | L133: 122
A134: 22 | B134: 22268 | C134: 23 | D134: 22276 | E134: 23 | F134: 22286 | K134: 0 | L134: 222
A135: 22 | B135: 22407 | C135: 23 | D135: 22416 | E135: 23 | F135: 22424 | K135: 0 | L135: 222
A136: 11 | B136: 22528 | C136: 21 | D136: 22547 | E136: 21 | F136: 22556 | K136: 0 | L136: 122
A137: 11 | B137: 22640 | C137: 21 | D137: 22670 | E137: 21 | F137: 22718 | K137: 0 | L137: 122
A138: 11 | B138: 22810 | C138: 21 | D138: 22833 | E138: 21 | F138: 22858 | K138: 0 | L138: 122
A139: 22 | B139: 22969 | C139: 23 | D139: 22999 | E139: 23 | F139: 23010 | K139: 0 | L139: 222
A140: 11 | B140: 23109 | C140: 21 | D140: 23130 | E140: 21 | F140: 23138 | K140: 0 | L140: 122
A141: 11 | B141: 23228 | C141: 21 | D141: 23245 | E141: 21 | F141: 23261 | K141: 0 | L141: 122
A142: 11 | B142: 23344 | C142: 21 | D142: 23362 | E142: 21 | F142: 23371 | K142: 0 | L142: 122
A143: 22 | B143: 23492 | C143: 23 | D143: 23501 | E143: 23 | F143: 23516 | K143: 0 | L143: 222
A144: 11 | B144: 23623 | C144: 21 | D144: 23651 | E144: 21 | F144: 23660 | K144: 0 | L144: 122
A145: 22 | B145: 23774 | C145: 23 | D145: 23782 | E145: 23 | F145: 23790 | K145: 0 | L145: 222
A146: 22 | B146: 23910 | C146: 23 | D146: 23920 | E146: 23 | F146: 23935 | L146: 222

Sheet !M618A40.102
A1: Report for:!M618A40.102
A2: Date: | B2: <date>
A3: Hen: | B3: <hen> | F3: Correct Sequence | G3: =Start!J2 -> 122 | P3: Total Sequences in Data | Q3: =4994-COUNTBLANK(L7:L5000) -> 65 | V3: Total Sequences in Block Data | W3: =COUNTA(L7:L17) -> 11 | AA3: Total Sequences in Block Data | AB3: =COUNTA(L18:L28) -> 11 | AF3: Total Sequences in Block Data | AG3: =COUNTA(L29:L38) -> 10 | AK3: Total Sequences in Block Data | AL3: =COUNTA(L39:L49) -> 11 | AP3: Total Sequences in Block Data | AQ3: =COUNTA(L50:L60) -> 11 | AU3: Total Sequences in Block Data | AV3: =COUNTA(L61:L71) -> 11
P4: Total Sequences in Summary | Q4: =SUM(O7:O14) -> 65 | V4: Total Sequences in Block Summary | W4: =SUM(U7:U14) -> 11 | AA4: Total Sequences in Block Summary | AB4: =SUM(Z7:Z14) -> 11 | AF4: Total Sequences in Block Summary | AG4: =SUM(AE7:AE14) -> 10 | AK4: Total Sequences in Block Summary | AL4: =SUM(AJ7:AJ14) -> 11 | AP4: Total Sequences in Block Summary | AQ4: =SUM(AO7:AO14) -> 11 | AU4: Total Sequences in Block Summary | AV4: =SUM(AT7:AT14) -> 11
T5: Block 1 | Y5: Block 2 | AD5: Block 3 | AI5: Block 4 | AN5: Block 5 | AS5: Block 6
A6: Sequence Component 1 | B6: Time 1 | C6: Sequence Component 2 | D6: Time 2 | E6: Sequence Component 3 | F6: Time 3 | G6: Sequence Component 4 | H6: Time 4 | I6: Sequence Component 5 | J6: Time 5 | K6: Correct? 0=No 1=Yes | L6: Sequence | N6: Frequency | P6: Relative Frequency | Q6: Variability | T6: Frequency | V6: Relative Frequency | W6: Variability | Y6: Frequency | AA6: Relative Frequency | AB6: Variability | AD6: Frequency | AF6: Relative Frequency | AG6: Variability | AI6: Frequency | AK6: Relative Frequency | AL6: Variability | AN6: Frequency | AP6: Relative Frequency | AQ6: Variability | AS6: Frequency | AU6: Relative Frequency | AV6: Variability
A7: 11 | B7: 36 | C7: 12 | D7: 46 | E7: 23 | F7: 61 | K7: 0 | L7: 112 | N7: 111 | O7: =COUNTIF($L$7:$L$500,N7) -> 1 | P7: =O7/$Q$4 -> 0.01538461538 | Q7: =IF(P7=0,0,(P7*((LOG(P7))/LOG(2)))) -> -0.09265181251 | T7: =N7 -> 111 | U7: =COUNTIF(L7:L17,T7) -> 1 | V7: =U7/(W4-U10) -> 0.2 | W7: =IF(V7=0,0,(V7*((LOG(V7))/LOG(2)))) -> -0.464385619 | Y7: =N7 -> 111 | Z7: =COUNTIF(L18:L28,Y7) -> 0 | AA7: =Z7/(AB4-Z10) -> 0 | AB7: =IF(AA7=0,0,(AA7*((LOG(AA7))/LOG(2)))) -> 0 | AD7: =N7 -> 111 | AE7: =COUNTIF(L29:L38,AD7) -> 0 | AF7: =AE7/(AG4-AE10) -> 0 | AG7: =IF(AF7=0,0,(AF7*((LOG(AF7))/LOG(2)))) -> 0 | AI7: =N7 -> 111 | AJ7: =COUNTIF(L39:L49,AI7) -> 0 | AK7: =AJ7/(AL4-AJ10) -> 0 | AL7: =IF(AK7=0,0,(AK7*((LOG(AK7))/LOG(2)))) -> 0 | AN7: =N7 -> 111 | AO7: =COUNTIF(L50:L60,AN7) -> 0 | AP7: =AO7/(AQ4-AO10) -> 0 | AQ7: =IF(AP7=0,0,(AP7*((LOG(AP7))/LOG(2)))) -> 0 | AS7: =N7 -> 111 | AT7: =COUNTIF(L61:L71,AS7) -> 0 | AU7: =AT7/(AV4-AT10) -> 0 | AV7: =IF(AU7=0,0,(AU7*((LOG(AU7))/LOG(2)))) -> 0
A8: 11 | B8: 167 | C8: 12 | D8: 178 | E8: 14 | F8: 186 | K8: 0 | L8: 111 | N8: 112 | O8: =COUNTIF($L$7:$L$500,N8) -> 4 | P8: =O8/$Q$4 -> 0.06153846154 | Q8: =IF(P8=0,0,(P8*((LOG(P8))/LOG(2)))) -> -0.247530327 | T8: =N8 -> 112 | U8: =COUNTIF(L7:L17,T8) -> 1 | V8: =U8/(W4-U10) -> 0.2 | W8: =IF(V8=0,0,(V8*((LOG(V8))/LOG(2)))) -> -0.464385619 | Y8: =N8 -> 112 | Z8: =COUNTIF(L18:L28,Y8) -> 2 | AA8: =Z8/(AB4-Z10) -> 0.4 | AB8: =IF(AA8=0,0,(AA8*((LOG(AA8))/LOG(2)))) -> -0.528771238 | AD8: =N8 -> 112 | AE8: =COUNTIF(L29:L38,AD8) -> 0 | AF8: =AE8/(AG4-AE10) -> 0 | AG8: =IF(AF8=0,0,(AF8*((LOG(AF8))/LOG(2)))) -> 0 | AI8: =N8 -> 112 | AJ8: =COUNTIF(L39:L49,AI8) -> 1 | AK8: =AJ8/(AL4-AJ10) -> 0.3333333333 | AL8: =IF(AK8=0,0,(AK8*((LOG(AK8))/LOG(2)))) -> -0.5283208336 | AN8: =N8 -> 112 | AO8: =COUNTIF(L50:L60,AN8) -> 0 | AP8: =AO8/(AQ4-AO10) -> 0 | AQ8: =IF(AP8=0,0,(AP8*((LOG(AP8))/LOG(2)))) -> 0 | AS8: =N8 -> 112 | AT8: =COUNTIF(L61:L71,AS8) -> 0 | AU8: =AT8/(AV4-AT10) -> 0 | AV8: =IF(AU8=0,0,(AU8*((LOG(AU8))/LOG(2)))) -> 0
A9: 22 | B9: 323 | C9: 14 | D9: 368 | E9: 23 | F9: 391 | K9: 0 | L9: 212 | N9: 121 | O9: =COUNTIF($L$7:$L$500,N9) -> 1 | P9: =O9/$Q$4 -> 0.01538461538 | Q9: =IF(P9=0,0,(P9*((LOG(P9))/LOG(2)))) -> -0.09265181251 | T9: =N9 -> 121 | U9: =COUNTIF(L7:L17,T9) -> 0 | V9: =U9/(W4-U10) -> 0 | W9: =IF(V9=0,0,(V9*((LOG(V9))/LOG(2)))) -> 0 | Y9: =N9 -> 121 | Z9: =COUNTIF(L18:L28,Y9) -> 0 | AA9: =Z9/(AB4-Z10) -> 0 | AB9: =IF(AA9=0,0,(AA9*((LOG(AA9))/LOG(2)))) -> 0 | AD9: =N9 -> 121 | AE9: =COUNTIF(L29:L38,AD9) -> 0 | AF9: =AE9/(AG4-AE10) -> 0 | AG9: =IF(AF9=0,0,(AF9*((LOG(AF9))/LOG(2)))) -> 0 | AI9: =N9 -> 121 | AJ9: =COUNTIF(L39:L49,AI9) -> 1 | AK9: =AJ9/(AL4-AJ10) -> 0.3333333333 | AL9: =IF(AK9=0,0,(AK9*((LOG(AK9))/LOG(2)))) -> -0.5283208336 | AN9: =N9 -> 121 | AO9: =COUNTIF(L50:L60,AN9) -> 0 | AP9: =AO9/(AQ4-AO10) -> 0 | AQ9: =IF(AP9=0,0,(AP9*((LOG(AP9))/LOG(2)))) -> 0 | AS9: =N9 -> 121 | AT9: =COUNTIF(L61:L71,AS9) -> 0 | AU9: =AT9/(AV4-AT10) -> 0 | AV9: =IF(AU9=0,0,(AU9*((LOG(AU9))/LOG(2)))) -> 0
A10: 11 | B10: 487 | C10: 21 | D10: 506 | E10: 21 | F10: 515 | K10: 0 | L10: 122 | N10: 122 | O10: =COUNTIF($L$7:$L$500,N10) -> 40 | P10: =O10/$Q$4 -> 0.6153846154 | Q10: =IF(P10=0,0,(P10*((LOG(P10))/LOG(2)))) -> -0.4310398265 | T10: =N10 -> 122 | U10: =COUNTIF(L7:L17,T10) -> 6 | Y10: =N10 -> 122 | Z10: =COUNTIF(L18:L28,Y10) -> 6 | AD10: =N10 -> 122 | AE10: =COUNTIF(L29:L38,AD10) -> 7 | AI10: =N10 -> 122 | AJ10: =COUNTIF(L39:L49,AI10) -> 8 | AN10: =N10 -> 122 | AO10: =COUNTIF(L50:L60,AN10) -> 5 | AS10: =N10 -> 122 | AT10: =COUNTIF(L61:L71,AS10) -> 8
A11: 11 | B11: 725 | C11: 21 | D11: 753 | E11: 21 | F11: 769 | K11: 0 | L11: 122 | N11: 211 | O11: =COUNTIF($L$7:$L$500,N11) -> 0 | P11: =O11/$Q$4 -> 0 | Q11: =IF(P11=0,0,(P11*((LOG(P11))/LOG(2)))) -> 0 | T11: =N11 -> 211 | U11: =COUNTIF(L7:L17,T11) -> 0 | V11: =U11/(W4-U10) -> 0 | W11: =IF(V11=0,0,(V11*((LOG(V11))/LOG(2)))) -> 0 | Y11: =N11 -> 211 | Z11: =COUNTIF(L18:L28,Y11) -> 0 | AA11: =Z11/(AB4-Z10) -> 0 | AB11: =IF(AA11=0,0,(AA11*((LOG(AA11))/LOG(2)))) -> 0 | AD11: =N11 -> 211 | AE11: =COUNTIF(L29:L38,AD11) -> 0 | AF11: =AE11/(AG4-AE10) -> 0 | AG11: =IF(AF11=0,0,(AF11*((LOG(AF11))/LOG(2)))) -> 0 | AI11: =N11 -> 211 | AJ11: =COUNTIF(L39:L49,AI11) -> 0 | AK11: =AJ11/(AL4-AJ10) -> 0 | AL11: =IF(AK11=0,0,(AK11*((LOG(AK11))/LOG(2)))) -> 0 | AN11: =N11 -> 211 | AO11: =COUNTIF(L50:L60,AN11) -> 0 | AP11: =AO11/(AQ4-AO10) -> 0 | AQ11: =IF(AP11=0,0,(AP11*((LOG(AP11))/LOG(2)))) -> 0 | AS11: =N11 -> 211 | AT11: =COUNTIF(L61:L71,AS11) -> 0 | AU11: =AT11/(AV4-AT10) -> 0 | AV11: =IF(AU11=0,0,(AU11*((LOG(AU11))/LOG(2)))) -> 0
A12: 22 | B12: 898 | C12: 23 | D12: 927 | E12: 23 | F12: 935 | K12: 0 | L12: 222 | N12: 212 | O12: =COUNTIF($L$7:$L$500,N12) -> 1 | P12: =O12/$Q$4 -> 0.01538461538 | Q12: =IF(P12=0,0,(P12*((LOG(P12))/LOG(2)))) -> -0.09265181251 | T12: =N12 -> 212 | U12: =COUNTIF(L7:L17,T12) -> 1 | V12: =U12/(W4-U10) -> 0.2 | W12: =IF(V12=0,0,(V12*((LOG(V12))/LOG(2)))) -> -0.464385619 | Y12: =N12 -> 212 | Z12: =COUNTIF(L18:L28,Y12) -> 0 | AA12: =Z12/(AB4-Z10) -> 0 | AB12: =IF(AA12=0,0,(AA12*((LOG(AA12))/LOG(2)))) -> 0 | AD12: =N12 -> 212 | AE12: =COUNTIF(L29:L38,AD12) -> 0 | AF12: =AE12/(AG4-AE10) -> 0 | AG12: =IF(AF12=0,0,(AF12*((LOG(AF12))/LOG(2)))) -> 0 | AI12: =N12 -> 212 | AJ12: =COUNTIF(L39:L49,AI12) -> 0 | AK12: =AJ12/(AL4-AJ10) -> 0 | AL12: =IF(AK12=0,0,(AK12*((LOG(AK12))/LOG(2)))) -> 0 | AN12: =N12 -> 212 | AO12: =COUNTIF(L50:L60,AN12) -> 0 | AP12: =AO12/(AQ4-AO10) -> 0 | AQ12: =IF(AP12=0,0,(AP12*((LOG(AP12))/LOG(2)))) -> 0 | AS12: =N12 -> 212 | AT12: =COUNTIF(L61:L71,AS12) -> 0 | AU12: =AT12/(AV4-AT10) -> 0 | AV12: =IF(AU12=0,0,(AU12*((LOG(AU12))/LOG(2)))) -> 0
A13: 11 | B13: 1036 | C13: 21 | D13: 1057 | E13: 21 | F13: 1075 | K13: 0 | L13: 122 | N13: 221 | O13: =COUNTIF($L$7:$L$500,N13) -> 0 | P13: =O13/$Q$4 -> 0 | Q13: =IF(P13=0,0,(P13*((LOG(P13))/LOG(2)))) -> 0 | T13: =N13 -> 221 | U13: =COUNTIF(L7:L17,T13) -> 0 | V13: =U13/(W4-U10) -> 0 | W13: =IF(V13=0,0,(V13*((LOG(V13))/LOG(2)))) -> 0 | Y13: =N13 -> 221 | Z13: =COUNTIF(L18:L28,Y13) -> 0 | AA13: =Z13/(AB4-Z10) -> 0 | AB13: =IF(AA13=0,0,(AA13*((LOG(AA13))/LOG(2)))) -> 0 | AD13: =N13 -> 221 | AE13: =COUNTIF(L29:L38,AD13) -> 0 | AF13: =AE13/(AG4-AE10) -> 0 | AG13: =IF(AF13=0,0,(AF13*((LOG(AF13))/LOG(2)))) -> 0 | AI13: =N13 -> 221 | AJ13: =COUNTIF(L39:L49,AI13) -> 0 | AK13: =AJ13/(AL4-AJ10) -> 0 | AL13: =IF(AK13=0,0,(AK13*((LOG(AK13))/LOG(2)))) -> 0 | AN13: =N13 -> 221 | AO13: =COUNTIF(L50:L60,AN13) -> 0 | AP13: =AO13/(AQ4-AO10) -> 0 | AQ13: =IF(AP13=0,0,(AP13*((LOG(AP13))/LOG(2)))) -> 0 | AS13: =N13 -> 221 | AT13: =COUNTIF(L61:L71,AS13) -> 0 | AU13: =AT13/(AV4-AT10) -> 0 | AV13: =IF(AU13=0,0,(AU13*((LOG(AU13))/LOG(2)))) -> 0
A14: 11 | B14: 1175 | C14: 21 | D14: 1197 | E14: 21 | F14: 1204 | K14: 0 | L14: 122 | N14: 222 | O14: =COUNTIF($L$7:$L$500,N14) -> 18 | P14: =O14/$Q$4 -> 0.2769230769 | Q14: =IF(P14=0,0,(P14*((LOG(P14))/LOG(2)))) -> -0.5129841632 | T14: =N14 -> 222 | U14: =COUNTIF(L7:L17,T14) -> 2 | V14: =U14/(W4-U10) -> 0.4 | W14: =IF(V14=0,0,(V14*((LOG(V14))/LOG(2)))) -> -0.528771238 | Y14: =N14 -> 222 | Z14: =COUNTIF(L18:L28,Y14) -> 3 | AA14: =Z14/(AB4-Z10) -> 0.6 | AB14: =IF(AA14=0,0,(AA14*((LOG(AA14))/LOG(2)))) -> -0.4421793565 | AD14: =N14 -> 222 | AE14: =COUNTIF(L29:L38,AD14) -> 3 | AF14: =AE14/(AG4-AE10) -> 1 | AG14: =IF(AF14=0,0,(AF14*((LOG(AF14))/LOG(2)))) -> 0 | AI14: =N14 -> 222 | AJ14: =COUNTIF(L39:L49,AI14) -> 1 | AK14: =AJ14/(AL4-AJ10) -> 0.3333333333 | AL14: =IF(AK14=0,0,(AK14*((LOG(AK14))/LOG(2)))) -> -0.5283208336 | AN14: =N14 -> 222 | AO14: =COUNTIF(L50:L60,AN14) -> 6 | AP14: =AO14/(AQ4-AO10) -> 1 | AQ14: =IF(AP14=0,0,(AP14*((LOG(AP14))/LOG(2)))) -> 0 | AS14: =N14 -> 222 | AT14: =COUNTIF(L61:L71,AS14) -> 3 | AU14: =AT14/(AV4-AT10) -> 1 | AV14: =IF(AU14=0,0,(AU14*((LOG(AU14))/LOG(2)))) -> 0
A15: 22 | B15: 1327 | C15: 23 | D15: 1438 | E15: 23 | F15: 1478 | K15: 0 | L15: 222 | P15: =SUM(P7:P14) -> 1 | Q15: =-SUM(Q7:Q14) -> 1.469509754 | V15: =SUM(V7:V14) -> 1 | W15: =-SUM(W7:W14) -> 1.921928095 | AA15: =SUM(AA7:AA14) -> 1 | AB15: =-SUM(AB7:AB14) -> 0.9709505945 | AF15: =SUM(AF7:AF14) -> 1 | AG15: =-SUM(AG7:AG14) -> 0 | AK15: =SUM(AK7:AK14) -> 1 | AL15: =-SUM(AL7:AL14) -> 1.584962501 | AP15: =SUM(AP7:AP14) -> 1 | AQ15: =-SUM(AQ7:AQ14) -> 0 | AU15: =SUM(AU7:AU14) -> 1 | AV15: =-SUM(AV7:AV14) -> 0
A16: 11 | B16: 1575 | C16: 21 | D16: 1587 | E16: 21 | F16: 1594 | K16: 0 | L16: 122 | P16: U= | Q16: =Q15/(LOG(Q4)/LOG(2)) -> 0.2440086358 | V16: U1= | W16: =W15/(LOG(W4)/LOG(2)) -> 0.5555618109 | AA16: U2= | AB16: =AB15/(LOG(AB4)/LOG(2)) -> 0.2806676649 | AF16: U3= | AG16: =AG15/(LOG(AG4)/LOG(2)) -> 0 | AK16: U4= | AL16: =AL15/(LOG(AL4)/LOG(2)) -> 0.45815691 | AP16: U5= | AQ16: =AQ15/(LOG(AQ4)/LOG(2)) -> 0 | AU16: U6= | AV16: =AV15/(LOG(AV4)/LOG(2)) -> 0
A17: 11 | B17: 1685 | C17: 21 | D17: 1706 | E17: 21 | F17: 1714 | K17: 0 | L17: 122
A18: 22 | B18: 1828 | C18: 23 | D18: 1943 | E18: 23 | F18: 1952 | K18: 0 | L18: 222
A19: 11 | B19: 2087 | C19: 21 | D19: 2116 | E19: 21 | F19: 2129 | K19: 0 | L19: 122 | N19: Total Target Seq
A20: 11 | B20: 2222 | C20: 21 | D20: 2239 | E20: 21 | F20: 2256 | K20: 0 | L20: 122 | N20: =COUNTIF(L7:L71,G3) -> 40 | P20: 11 | Q20: 11 | R20: 10 | S20: 11 | T20: 11 | U20: 11
A21: 11 | B21: 2356 | C21: 21 | D21: 2413 | E21: 21 | F21: 2422 | K21: 0 | L21: 122 | P21: % of reinforcement given in 6 equal intervals based on number of trials
A22: 22 | B22: 2527 | C22: 23 | D22: 2546 | E22: 23 | F22: 2573 | K22: 0 | L22: 222 | P22: %_1 | Q22: %_2 | R22: %_3 | S22: %_4 | T22: %_5 | U22: %_6
A23: 11 | B23: 2671 | C23: 21 | D23: 2716 | E23: 21 | F23: 2728 | K23: 0 | L23: 122 | O23: target sequence | P23: =$G$3 -> 122 | Q23: =$G$3 -> 122 | R23: =$G$3 -> 122 | S23: =$G$3 -> 122 | T23: =$G$3 -> 122 | U23: =$G$3 -> 122
A24: 22 | B24: 2858 | C24: 23 | D24: 2872 | E24: 23 | F24: 2885 | K24: 0 | L24: 222 | O24: total reinforcement | P24: =U10 -> 6 | Q24: =Z10 -> 6 | R24: =AE10 -> 7 | S24: =AJ10 -> 8 | T24: =AO10 -> 5 | U24: =AT10 -> 8
A25: 11 | B25: 2977 | C25: 12 | D25: 2989 | E25: 23 | F25: 3018 | K25: 0 | L25: 112 | O25: % target
A26: 11 | B26: 3120 | C26: 12 | D26: 3136 | E26: 23 | F26: 3178 | K26: 0 | L26: 112 | O26: CCRF
A27: 11 | B27: 3279 | C27: 21 | D27: 3296 | E27: 21 | F27: 3311 | K27: 0 | L27: 122 | O27: % CCRf
A28: 11 | B28: 3402 | C28: 21 | D28: 3437 | E28: 21 | F28: 3453 | K28: 0 | L28: 122 | O28: average response rate | P28: =F17/P20 -> 155.8181818 | Q28: =(F28-F17)/Q20 -> 158.0909091 | R28: =(F38-F28)/R20 -> 141.9 | S28: =(F49-F38)/S20 -> 136.2727273 | T28: =(F60-F49)/T20 -> 141.5454545 | U28: =(F71-F60)/U20 -> 151.8181818
A29: 11 | B29: 3548 | C29: 21 | D29: 3582 | E29: 21 | F29: 3597 | K29: 0 | L29: 122
A30: 11 | B30: 3727 | C30: 21 | D30: 3746 | E30: 21 | F30: 3754 | K30: 0 | L30: 122
A31: 22 | B31: 3866 | C31: 23 | D31: 3872 | E31: 23 | F31: 3880 | K31: 0 | L31: 222
A32: 22 | B32: 3989 | C32: 23 | D32: 3997 | E32: 23 | F32: 4014 | K32: 0 | L32: 222
A33: 11 | B33: 4114 | C33: 21 | D33: 4153 | E33: 21 | F33: 4162 | K33: 0 | L33: 122
A34: 11 | B34: 4252 | C34: 21 | D34: 4270 | E34: 21 | F34: 4274 | K34: 0 | L34: 122
A35: 22 | B35: 4390 | C35: 23 | D35: 4397 | E35: 23 | F35: 4411 | K35: 0 | L35: 222
A36: 11 | B36: 4511 | C36: 21 | D36: 4554 | E36: 21 | F36: 4589 | K36: 0 | L36: 122
A37: 11 | B37: 4697 | C37: 21 | D37: 4730 | E37: 21 | F37: 4739 | K37: 0 | L37: 122
A38: 11 | B38: 4844 | C38: 21 | D38: 4859 | E38: 21 | F38: 4872 | K38: 0 | L38: 122
A39: 11 | B39: 4971 | C39: 21 | D39: 5004 | E39: 21 | F39: 5017 | K39: 0 | L39: 122
A40: 11 | B40: 5102 | C40: 21 | D40: 5117 | E40: 21 | F40: 5157 | K40: 0 | L40: 122
A41: 11 | B41: 5245 | C41: 21 | D41: 5267 | E41: 21 | F41: 5289 | K41: 0 | L41: 122
A42: 11 | B42: 5378 | C42: 21 | D42: 5408 | E42: 21 | F42: 5417 | K42: 0 | L42: 122
A43: 11 | B43: 5530 | C43: 21 | D43: 5546 | E43: 21 | F43: 5554 | K43: 0 | L43: 122
A44: 11 | B44: 5642 | C44: 21 | D44: 5667 | E44: 21 | F44: 5683 | K44: 0 | L44: 122
A45: 11 | B45: 5774 | C45: 21 | D45: 5818 | E45: 21 | F45: 5849 | K45: 0 | L45: 122
A46: 11 | B46: 5941 | C46: 21 | D46: 5977 | E46: 12 | F46: 5996 | K46: 0 | L46: 121
A47: 11 | B47: 6092 | C47: 12 | D47: 6099 | E47: 23 | F47: 6120 | K47: 0 | L47: 112
A48: 11 | B48: 6219 | C48: 21 | D48: 6239 | E48: 21 | F48: 6251 | K48: 0 | L48: 122
A49: 22 | B49: 6356 | C49: 23 | D49: 6363 | E49: 23 | F49: 6371 | K49: 0 | L49: 222
A50: 11 | B50: 6470 | C50: 21 | D50: 6486 | E50: 21 | F50: 6494 | K50: 0 | L50: 122
A51: 22 | B51: 6609 | C51: 23 | D51: 6630 | E51: 23 | F51: 6638 | K51: 0 | L51: 222
A52: 22 | B52: 6767 | C52: 23 | D52: 6802 | E52: 23 | F52: 6810 | K52: 0 | L52: 222
A53: 22 | B53: 6929 | C53: 23 | D53: 6942 | E53: 23 | F53: 6950 | K53: 0 | L53: 222
A54: 11 | B54: 7047 | C54: 21 | D54: 7084 | E54: 21 | F54: 7095 | K54: 0 | L54: 122
A55: 22 | B55: 7212 | C55: 23 | D55: 7227 | E55: 23 | F55: 7239 | K55: 0 | L55: 222
A56: 11 | B56: 7332 | C56: 21 | D56: 7365 | E56: 21 | F56: 7376 | K56: 0 | L56: 122
A57: 22 | B57: 7483 | C57: 23 | D57: 7497 | E57: 23 | F57: 7525 | K57: 0 | L57: 222
A58: 11 | B58: 7627 | C58: 21 | D58: 7645 | E58: 21 | F58: 7650 | K58: 0 | L58: 122
A59: 22 | B59: 7760 | C59: 23 | D59: 7793 | E59: 23 | F59: 7801 | K59: 0 | L59: 222
A60: 11 | B60: 7898 | C60: 21 | D60: 7920 | E60: 21 | F60: 7928 | K60: 0 | L60: 122
A61: 11 | B61: 8019 | C61: 21 | D61: 8072 | E61: 21 | F61: 8080 | K61: 0 | L61: 122
A62: 11 | B62: 8169 | C62: 21 | D62: 8192 | E62: 21 | F62: 8200 | K62: 0 | L62: 122
A63: 22 | B63: 8330 | C63: 23 | D63: 8352 | E63: 23 | F63: 8367 | K63: 0 | L63: 222
A64: 11 | B64: 8469 | C64: 21 | D64: 8482 | E64: 21 | F64: 8506 | K64: 0 | L64: 122
A65: 11 | B65: 8595 | C65: 21 | D65: 8621 | E65: 21 | F65: 8629 | K65: 0 | L65: 122
A66: 11 | B66: 8717 | C66: 21 | D66: 8738 | E66: 21 | F66: 8747 | K66: 0 | L66: 122
A67: 22 | B67: 8873 | C67: 23 | D67: 8909 | E67: 23 | F67: 8992 | K67: 0 | L67: 222
A68: 11 | B68: 9090 | C68: 21 | D68: 9111 | E68: 21 | F68: 9141 | K68: 0 | L68: 122
A69: 11 | B69: 9228 | C69: 21 | D69: 9261 | E69: 21 | F69: 9270 | K69: 0 | L69: 122
A70: 22 | B70: 9382 | C70: 23 | D70: 9412 | E70: 23 | F70: 9420 | K70: 0 | L70: 222
A71: 11 | B71: 9536 | C71: 21 | D71: 9590 | E71: 21 | F71: 9598 | K71: 1 | L71: 122

Sheet !M619B20.102
A1: Report for:!M619B20.102
A2: Date: | B2: <date>
A3: Hen: | B3: <hen> | F3: Correct Sequence | G3: =Start!J2 -> 122 | P3: Total Sequences in Data | Q3: =4994-COUNTBLANK(L7:L5000) -> 71 | V3: Total Sequences in Block Data | W3: =COUNTA(L7:L18) -> 12 | AA3: Total Sequences in Block Data | AB3: =COUNTA(L19:L30) -> 12 | AF3: Total Sequences in Block Data | AG3: =COUNTA(L31:L41) -> 11 | AK3: Total Sequences in Block Data | AL3: =COUNTA(L42:L53) -> 12 | AP3: Total Sequences in Block Data | AQ3: =COUNTA(L54:L65) -> 12 | AU3: Total Sequences in Block Data | AV3: =COUNTA(L66:L77) -> 12
P4: Total Sequences in Summary | Q4: =SUM(O7:O14) -> 71 | V4: Total Sequences in Block Summary | W4: =SUM(U7:U14) -> 12 | AA4: Total Sequences in Block Summary | AB4: =SUM(Z7:Z14) -> 12 | AF4: Total Sequences in Block Summary | AG4: =SUM(AE7:AE14) -> 11 | AK4: Total Sequences in Block Summary | AL4: =SUM(AJ7:AJ14) -> 12 | AP4: Total Sequences in Block Summary | AQ4: =SUM(AO7:AO14) -> 12 | AU4: Total Sequences in Block Summary | AV4: =SUM(AT7:AT14) -> 12
T5: Block 1 | Y5: Block 2 | AD5: Block 3 | AI5: Block 4 | AN5: Block 5 | AS5: Block 6
A6: Sequence Component 1 | B6: Time 1 | C6: Sequence Component 2 | D6: Time 2 | E6: Sequence Component 3 | F6: Time 3 | G6: Sequence Component 4 | H6: Time 4 | I6: Sequence Component 5 | J6: Time 5 | K6: Correct? 0=No 1=Yes | L6: Sequence | N6: Frequency | P6: Relative Frequency | Q6: Variability | T6: Frequency | V6: Relative Frequency | W6: Variability | Y6: Frequency | AA6: Relative Frequency | AB6: Variability | AD6: Frequency | AF6: Relative Frequency | AG6: Variability | AI6: Frequency | AK6: Relative Frequency | AL6: Variability | AN6: Frequency | AP6: Relative Frequency | AQ6: Variability | AS6: Frequency | AU6: Relative Frequency | AV6: Variability
A7: 11 | B7: 22 | C7: 12 | D7: 35 | E7: 14 | F7: 64 | K7: 0 | L7: 111 | N7: 111 | O7: =COUNTIF($L$7:$L$500,N7) -> 5 | P7: =O7/$Q$4 -> 0.07042253521 | Q7: =IF(P7=0,0,(P7*((LOG(P7))/LOG(2)))) -> -0.26956472 | T7: =N7 -> 111 | U7: =COUNTIF(L7:L18,T7) -> 4 | V7: =U7/(W4-U10) -> 0.5 | W7: =IF(V7=0,0,(V7*((LOG(V7))/LOG(2)))) -> -0.5 | Y7: =N7 -> 111 | Z7: =COUNTIF(L19:L30,Y7) -> 1 | AA7: =Z7/(AB4-Z10) -> 0.3333333333 | AB7: =IF(AA7=0,0,(AA7*((LOG(AA7))/LOG(2)))) -> -0.5283208336 | AD7: =N7 -> 111 | AE7: =COUNTIF(L31:L41,AD7) -> 0 | AF7: =AE7/(AG4-AE10) -> 0 | AG7: =IF(AF7=0,0,(AF7*((LOG(AF7))/LOG(2)))) -> 0 | AI7: =N7 -> 111 | AJ7: =COUNTIF(L42:L53,AI7) -> 0 | AK7: =AJ7/(AL4-AJ10) -> 0 | AL7: =IF(AK7=0,0,(AK7*((LOG(AK7))/LOG(2)))) -> 0 | AN7: =N7 -> 111 | AO7: =COUNTIF(L54:L65,AN7) -> 0 | AP7: =AO7/(AQ4-AO10) -> 0 | AQ7: =IF(AP7=0,0,(AP7*((LOG(AP7))/LOG(2)))) -> 0 | AS7: =N7 -> 111 | AT7: =COUNTIF(L66:L77,AS7) -> 0 | AU7: =AT7/(AV4-AT10) -> 0 | AV7: =IF(AU7=0,0,(AU7*((LOG(AU7))/LOG(2)))) -> 0
A8: 11 | B8: 201 | C8: 12 | D8: 210 | E8: 14 | F8: 224 | K8: 0 | L8: 111 | N8: 112 | O8: =COUNTIF($L$7:$L$500,N8) -> 2 | P8: =O8/$Q$4 -> 0.02816901408 | Q8: =IF(P8=0,0,(P8*((LOG(P8))/LOG(2)))) -> -0.1450632991 | T8: =N8 -> 112 | U8: =COUNTIF(L7:L18,T8) -> 2 | V8: =U8/(W4-U10) -> 0.25 | W8: =IF(V8=0,0,(V8*((LOG(V8))/LOG(2)))) -> -0.5 | Y8: =N8 -> 112 | Z8: =COUNTIF(L19:L30,Y8) -> 0 | AA8: =Z8/(AB4-Z10) -> 0 | AB8: =IF(AA8=0,0,(AA8*((LOG(AA8))/LOG(2)))) -> 0 | AD8: =N8 -> 112 | AE8: =COUNTIF(L31:L41,AD8) -> 0 | AF8: =AE8/(AG4-AE10) -> 0 | AG8: =IF(AF8=0,0,(AF8*((LOG(AF8))/LOG(2)))) -> 0 | AI8: =N8 -> 112 | AJ8: =COUNTIF(L42:L53,AI8) -> 0 | AK8: =AJ8/(AL4-AJ10) -> 0 | AL8: =IF(AK8=0,0,(AK8*((LOG(AK8))/LOG(2)))) -> 0 | AN8: =N8 -> 112 | AO8: =COUNTIF(L54:L65,AN8) -> 0 | AP8: =AO8/(AQ4-AO10) -> 0 | AQ8: =IF(AP8=0,0,(AP8*((LOG(AP8))/LOG(2)))) -> 0 | AS8: =N8 -> 112 | AT8: =COUNTIF(L66:L77,AS8) -> 0 | AU8: =AT8/(AV4-AT10) -> 0 | AV8: =IF(AU8=0,0,(AU8*((LOG(AU8))/LOG(2)))) -> 0
A9: 11 | B9: 339 | C9: 12 | D9: 350 | E9: 14 | F9: 365 | K9: 0 | L9: 111 | N9: 121 | O9: =COUNTIF($L$7:$L$500,N9) -> 0 | P9: =O9/$Q$4 -> 0 | Q9: =IF(P9=0,0,(P9*((LOG(P9))/LOG(2)))) -> 0 | T9: =N9 -> 121 | U9: =COUNTIF(L7:L18,T9) -> 0 | V9: =U9/(W4-U10) -> 0 | W9: =IF(V9=0,0,(V9*((LOG(V9))/LOG(2)))) -> 0 | Y9: =N9 -> 121 | Z9: =COUNTIF(L19:L30,Y9) -> 0 | AA9: =Z9/(AB4-Z10) -> 0 | AB9: =IF(AA9=0,0,(AA9*((LOG(AA9))/LOG(2)))) -> 0 | AD9: =N9 -> 121 | AE9: =COUNTIF(L31:L41,AD9) -> 0 | AF9: =AE9/(AG4-AE10) -> 0 | AG9: =IF(AF9=0,0,(AF9*((LOG(AF9))/LOG(2)))) -> 0 | AI9: =N9 -> 121 | AJ9: =COUNTIF(L42:L53,AI9) -> 0 | AK9: =AJ9/(AL4-AJ10) -> 0 | AL9: =IF(AK9=0,0,(AK9*((LOG(AK9))/LOG(2)))) -> 0 | AN9: =N9 -> 121 | AO9: =COUNTIF(L54:L65,AN9) -> 0 | AP9: =AO9/(AQ4-AO10) -> 0 | AQ9: =IF(AP9=0,0,(AP9*((LOG(AP9))/LOG(2)))) -> 0 | AS9: =N9 -> 121 | AT9: =COUNTIF(L66:L77,AS9) -> 0 | AU9: =AT9/(AV4-AT10) -> 0 | AV9: =IF(AU9=0,0,(AU9*((LOG(AU9))/LOG(2)))) -> 0
A10: 22 | B10: 511 | C10: 23 | D10: 546 | E10: 23 | F10: 579 | K10: 0 | L10: 222 | N10: 122 | O10: =COUNTIF($L$7:$L$500,N10) -> 40 | P10: =O10/$Q$4 -> 0.5633802817 | Q10: =IF(P10=0,0,(P10*((LOG(P10))/LOG(2)))) -> -0.4663769153 | T10: =N10 -> 122 | U10: =COUNTIF(L7:L18,T10) -> 4 | Y10: =N10 -> 122 | Z10: =COUNTIF(L19:L30,Y10) -> 9 | AD10: =N10 -> 122 | AE10: =COUNTIF(L31:L41,AD10) -> 7 | AI10: =N10 -> 122 | AJ10: =COUNTIF(L42:L53,AI10) -> 8 | AN10: =N10 -> 122 | AO10: =COUNTIF(L54:L65,AN10) -> 6 | AS10: =N10 -> 122 | AT10: =COUNTIF(L66:L77,AS10) -> 6
A11: 22 | B11: 702 | C11: 23 | D11: 710 | E11: 23 | F11: 723 | K11: 0 | L11: 222 | N11: 211 | O11: =COUNTIF($L$7:$L$500,N11) -> 0 | P11: =O11/$Q$4 -> 0 | Q11: =IF(P11=0,0,(P11*((LOG(P11))/LOG(2)))) -> 0 | T11: =N11 -> 211 | U11: =COUNTIF(L7:L18,T11) -> 0 | V11: =U11/(W4-U10) -> 0 | W11: =IF(V11=0,0,(V11*((LOG(V11))/LOG(2)))) -> 0 | Y11: =N11 -> 211 | Z11: =COUNTIF(L19:L30,Y11) -> 0 | AA11: =Z11/(AB4-Z10) -> 0 | AB11: =IF(AA11=0,0,(AA11*((LOG(AA11))/LOG(2)))) -> 0 | AD11: =N11 -> 211 | AE11: =COUNTIF(L31:L41,AD11) -> 0 | AF11: =AE11/(AG4-AE10) -> 0 | AG11: =IF(AF11=0,0,(AF11*((LOG(AF11))/LOG(2)))) -> 0 | AI11: =N11 -> 211 | AJ11: =COUNTIF(L42:L53,AI11) -> 0 | AK11: =AJ11/(AL4-AJ10) -> 0 | AL11: =IF(AK11=0,0,(AK11*((LOG(AK11))/LOG(2)))) -> 0 | AN11: =N11 -> 211 | AO11: =COUNTIF(L54:L65,AN11) -> 0 | AP11: =AO11/(AQ4-AO10) -> 0 | AQ11: =IF(AP11=0,0,(AP11*((LOG(AP11))/LOG(2)))) -> 0 | AS11: =N11 -> 211 | AT11: =COUNTIF(L66:L77,AS11) -> 0 | AU11: =AT11/(AV4-AT10) -> 0 | AV11: =IF(AU11=0,0,(AU11*((LOG(AU11))/LOG(2)))) -> 0
A12: 11 | B12: 824 | C12: 12 | D12: 845 | E12: 14 | F12: 859 | K12: 0 | L12: 111 | N12: 212 | O12: =COUNTIF($L$7:$L$500,N12) -> 0 | P12: =O12/$Q$4 -> 0 | Q12: =IF(P12=0,0,(P12*((LOG(P12))/LOG(2)))) -> 0 | T12: =N12 -> 212 | U12: =COUNTIF(L7:L18,T12) -> 0 | V12: =U12/(W4-U10) -> 0 | W12: =IF(V12=0,0,(V12*((LOG(V12))/LOG(2)))) -> 0 | Y12: =N12 -> 212 | Z12: =COUNTIF(L19:L30,Y12) -> 0 | AA12: =Z12/(AB4-Z10) -> 0 | AB12: =IF(AA12=0,0,(AA12*((LOG(AA12))/LOG(2)))) -> 0 | AD12: =N12 -> 212 | AE12: =COUNTIF(L31:L41,AD12) -> 0 | AF12: =AE12/(AG4-AE10) -> 0 | AG12: =IF(AF12=0,0,(AF12*((LOG(AF12))/LOG(2)))) -> 0 | AI12: =N12 -> 212 | AJ12: =COUNTIF(L42:L53,AI12) -> 0 | AK12: =AJ12/(AL4-AJ10) -> 0 | AL12: =IF(AK12=0,0,(AK12*((LOG(AK12))/LOG(2)))) -> 0 | AN12: =N12 -> 212 | AO12: =COUNTIF(L54:L65,AN12) -> 0 | AP12: =AO12/(AQ4-AO10) -> 0 | AQ12: =IF(AP12=0,0,(AP12*((LOG(AP12))/LOG(2)))) -> 0 | AS12: =N12 -> 212 | AT12: =COUNTIF(L66:L77,AS12) -> 0 | AU12: =AT12/(AV4-AT10) -> 0 | AV12: =IF(AU12=0,0,(AU12*((LOG(AU12))/LOG(2)))) -> 0
A13: 11 | B13: 970 | C13: 21 | D13: 1004 | E13: 21 | F13: 1022 | K13: 0 | L13: 122 | N13: 221 | O13: =COUNTIF($L$7:$L$500,N13) -> 0 | P13: =O13/$Q$4 -> 0 | Q13: =IF(P13=0,0,(P13*((LOG(P13))/LOG(2)))) -> 0 | T13: =N13 -> 221 | U13: =COUNTIF(L7:L18,T13) -> 0 | V13: =U13/(W4-U10) -> 0 | W13: =IF(V13=0,0,(V13*((LOG(V13))/LOG(2)))) -> 0 | Y13: =N13 -> 221 | Z13: =COUNTIF(L19:L30,Y13) -> 0 | AA13: =Z13/(AB4-Z10) -> 0 | AB13: =IF(AA13=0,0,(AA13*((LOG(AA13))/LOG(2)))) -> 0 | AD13: =N13 -> 221 | AE13: =COUNTIF(L31:L41,AD13) -> 0 | AF13: =AE13/(AG4-AE10) -> 0 | AG13: =IF(AF13=0,0,(AF13*((LOG(AF13))/LOG(2)))) -> 0 | AI13: =N13 -> 221 | AJ13: =COUNTIF(L42:L53,AI13) -> 0 | AK13: =AJ13/(AL4-AJ10) -> 0 | AL13: =IF(AK13=0,0,(AK13*((LOG(AK13))/LOG(2)))) -> 0 | AN13: =N13 -> 221 | AO13: =COUNTIF(L54:L65,AN13) -> 0 | AP13: =AO13/(AQ4-AO10) -> 0 | AQ13: =IF(AP13=0,0,(AP13*((LOG(AP13))/LOG(2)))) -> 0 | AS13: =N13 -> 221 | AT13: =COUNTIF(L66:L77,AS13) -> 0 | AU13: =AT13/(AV4-AT10) -> 0 | AV13: =IF(AU13=0,0,(AU13*((LOG(AU13))/LOG(2)))) -> 0
A14: 11 | B14: 1132 | C14: 21 | D14: 1176 | E14: 21 | F14: 1200 | K14: 0 | L14: 122 | N14: 222 | O14: =COUNTIF($L$7:$L$500,N14) -> 24 | P14: =O14/$Q$4 -> 0.338028169 | Q14: =IF(P14=0,0,(P14*((LOG(P14))/LOG(2)))) -> -0.5289412796 | T14: =N14 -> 222 | U14: =COUNTIF(L7:L18,T14) -> 2 | V14: =U14/(W4-U10) -> 0.25 | W14: =IF(V14=0,0,(V14*((LOG(V14))/LOG(2)))) -> -0.5 | Y14: =N14 -> 222 | Z14: =COUNTIF(L19:L30,Y14) -> 2 | AA14: =Z14/(AB4-Z10) -> 0.6666666667 | AB14: =IF(AA14=0,0,(AA14*((LOG(AA14))/LOG(2)))) -> -0.3899750005 | AD14: =N14 -> 222 | AE14: =COUNTIF(L31:L41,AD14) -> 4 | AF14: =AE14/(AG4-AE10) -> 1 | AG14: =IF(AF14=0,0,(AF14*((LOG(AF14))/LOG(2)))) -> 0 | AI14: =N14 -> 222 | AJ14: =COUNTIF(L42:L53,AI14) -> 4 | AK14: =AJ14/(AL4-AJ10) -> 1 | AL14: =IF(AK14=0,0,(AK14*((LOG(AK14))/LOG(2)))) -> 0 | AN14: =N14 -> 222 | AO14: =COUNTIF(L54:L65,AN14) -> 6 | AP14: =AO14/(AQ4-AO10) -> 1 | AQ14: =IF(AP14=0,0,(AP14*((LOG(AP14))/LOG(2)))) -> 0 | AS14: =N14 -> 222 | AT14: =COUNTIF(L66:L77,AS14) -> 6 | AU14: =AT14/(AV4-AT10) -> 1 | AV14: =IF(AU14=0,0,(AU14*((LOG(AU14))/LOG(2)))) -> 0
A15: 11 | B15: 1288 | C15: 12 | D15: 1318 | E15: 23 | F15: 1336 | K15: 0 | L15: 112 | P15: =SUM(P7:P14) -> 1 | Q15: =-SUM(Q7:Q14) -> 1.409946214 | V15: =SUM(V7:V14) -> 1 | W15: =-SUM(W7:W14) -> 1.5 | AA15: =SUM(AA7:AA14) -> 1 | AB15: =-SUM(AB7:AB14) -> 0.9182958341 | AF15: =SUM(AF7:AF14) -> 1 | AG15: =-SUM(AG7:AG14) -> 0 | AK15: =SUM(AK7:AK14) -> 1 | AL15: =-SUM(AL7:AL14) -> 0 | AP15: =SUM(AP7:AP14) -> 1 | AQ15: =-SUM(AQ7:AQ14) -> 0 | AU15: =SUM(AU7:AU14) -> 1 | AV15: =-SUM(AV7:AV14) -> 0
A16: 11 | B16: 1435 | C16: 12 | D16: 1462 | E16: 23 | F16: 1506 | K16: 0 | L16: 112 | P16: U= | Q16: =Q15/(LOG(Q4)/LOG(2)) -> 0.2292689743 | V16: U1= | W16: =W15/(LOG(W4)/LOG(2)) -> 0.4184144185 | AA16: U2= | AB16: =AB15/(LOG(AB4)/LOG(2)) -> 0.2561521449 | AF16: U3= | AG16: =AG15/(LOG(AG4)/LOG(2)) -> 0 | AK16: U4= | AL16: =AL15/(LOG(AL4)/LOG(2)) -> 0 | AP16: U5= | AQ16: =AQ15/(LOG(AQ4)/LOG(2)) -> 0 | AU16: U6= | AV16: =AV15/(LOG(AV4)/LOG(2)) -> 0
A17: 11 | B17: 1603 | C17: 21 | D17: 1622 | E17: 21 | F17: 1631 | K17: 0 | L17: 122
A18: 11 | B18: 1728 | C18: 21 | D18: 1748 | E18: 21 | F18: 1781 | K18: 0 | L18: 122
A19: 11 | B19: 1881 | C19: 21 | D19: 1897 | E19: 21 | F19: 1910 | K19: 0 | L19: 122 | N19: Total Target Seq
A20: 11 | B20: 2002 | C20: 21 | D20: 2023 | E20: 21 | F20: 2055 | K20: 0 | L20: 122 | N20: =COUNTIF(L7:L77,G3) -> 40 | P20: 12 | Q20: 12 | R20: 11 | S20: 12 | T20: 12 | U20: 12
A21: 11 | B21: 2158 | C21: 21 | D21: 2178 | E21: 21 | F21: 2187 | K21: 0 | L21: 122 | P21: % of reinforcement given in 6 equal intervals based on number of trials
A22: 11 | B22: 2282 | C22: 21 | D22: 2294 | E22: 21 | F22: 2325 | K22: 0 | L22: 122 | P22: %_1 | Q22: %_2 | R22: %_3 | S22: %_4 | T22: %_5 | U22: %_6
A23: 11 | B23: 2417 | C23: 21 | D23: 2440 | E23: 21 | F23: 2448 | K23: 0 | L23: 122 | O23: target sequence | P23: =$G$3 -> 122 | Q23: =$G$3 -> 122 | R23: =$G$3 -> 122 | S23: =$G$3 -> 122 | T23: =$G$3 -> 122 | U23: =$G$3 -> 122
A24: 22 | B24: 2672 | C24: 23 | D24: 2706 | E24: 23 | F24: 2732 | K24: 0 | L24: 222 | O24: total reinforcement | P24: =U10 -> 4 | Q24: =Z10 -> 9 | R24: =AE10 -> 7 | S24: =AJ10 -> 8 | T24: =AO10 -> 6 | U24: =AT10 -> 6
A25: 11 | B25: 2850 | C25: 21 | D25: 2895 | E25: 21 | F25: 2915 | K25: 0 | L25: 122 | O25: % target
A26: 11 | B26: 3022 | C26: 21 | D26: 3072 | E26: 21 | F26: 3128 | K26: 0 | L26: 122 | O26: CCRF
A27: 11 | B27: 3229 | C27: 21 | D27: 3253 | E27: 21 | F27: 3262 | K27: 0 | L27: 122 | O27: % CCRf
A28: 11 | B28: 3437 | C28: 12 | D28: 3459 | E28: 14 | F28: 3470 | K28: 0 | L28: 111 | O28: average response rate | P28: =F18/P20 -> 148.4166667 | Q28: =(F30-F18)/Q20 -> 168.75 | R28: =(F41-F30)/R20 -> 162.8181818 | S28: =(F53-F41)/S20 -> 150.9166667 | T28: =(F65-F53)/T20 -> 141.0833333 | U28: =(F77-F65)/U20 -> 146.8333333
A29: 11 | B29: 3577 | C29: 21 | D29: 3598 | E29: 21 | F29: 3662 | K29: 0 | L29: 122
A30: 22 | B30: 3787 | C30: 23 | D30: 3797 | E30: 23 | F30: 3806 | K30: 0 | L30: 222
A31: 11 | B31: 3903 | C31: 21 | D31: 3938 | E31: 21 | F31: 3951 | K31: 0 | L31: 122
A32: 11 | B32: 4045 | C32: 21 | D32: 4062 | E32: 21 | F32: 4096 | K32: 0 | L32: 122
A33: 11 | B33: 4193 | C33: 21 | D33: 4286 | E33: 21 | F33: 4295 | K33: 0 | L33: 122
A34: 11 | B34: 4387 | C34: 21 | D34: 4398 | E34: 21 | F34: 4416 | K34: 0 | L34: 122
A35: 11 | B35: 4511 | C35: 21 | D35: 4564 | E35: 21 | F35: 4579 | K35: 0 | L35: 122
A36: 22 | B36: 4695 | C36: 23 | D36: 4703 | E36: 23 | F36: 4712 | K36: 0 | L36: 222
A37: 22 | B37: 4839 | C37: 23 | D37: 4848 | E37: 23 | F37: 4856 | K37: 0 | L37: 222
A38: 22 | B38: 4971 | C38: 23 | D38: 4979 | E38: 23 | F38: 5000 | K38: 0 | L38: 222
A39: 22 | B39: 5121 | C39: 23 | D39: 5143 | E39: 23 | F39: 5151 | K39: 0 | L39: 222
A40: 11 | B40: 5250 | C40: 21 | D40: 5388 | E40: 21 | F40: 5407 | K40: 0 | L40: 122
A41: 11 | B41: 5505 | C41: 21 | D41: 5588 | E41: 21 | F41: 5597 | K41: 0 | L41: 122
A42: 22 | B42: 5709 | C42: 23 | D42: 5718 | E42: 23 | F42: 5742 | K42: 0 | L42: 222
A43: 11 | B43: 5841 | C43: 21 | D43: 5856 | E43: 21 | F43: 5864 | K43: 0 | L43: 122
A44: 22 | B44: 5970 | C44: 23 | D44: 5979 | E44: 23 | F44: 5988 | K44: 0 | L44: 222
A45: 11 | B45: 6106 | C45: 21 | D45: 6118 | E45: 21 | F45: 6181 | K45: 0 | L45: 122
A46: 22 | B46: 6306 | C46: 23 | D46: 6414 | E46: 23 | F46: 6443 | K46: 0 | L46: 222
A47: 11 | B47: 6539 | C47: 21 | D47: 6557 | E47: 21 | F47: 6565 | K47: 0 | L47: 122
A48: 11 | B48: 6654 | C48: 21 | D48: 6670 | E48: 21 | F48: 6678 | K48: 0 | L48: 122
A49: 11 | B49: 6766 | C49: 21 | D49: 6798 | E49: 21 | F49: 6807 | K49: 0 | L49: 122
A50: 11 | B50: 6893 | C50: 21 | D50: 6909 | E50: 21 | F50: 6916 | K50: 0 | L50: 122
A51: 11 | B51: 7007 | C51: 21 | D51: 7022 | E51: 21 | F51: 7030 | K51: 0 | L51: 122
A52: 22 | B52: 7160 | C52: 23 | D52: 7265 | E52: 23 | F52: 7291 | K52: 0 | L52: 222
A53: 11 | B53: 7387 | C53: 21 | D53: 7400 | E53: 21 | F53: 7408 | K53: 0 | L53: 122
A54: 22 | B54: 7506 | C54: 23 | D54: 7526 | E54: 23 | F54: 7578 | K54: 0 | L54: 222
A55: 22 | B55: 7711 | C55: 23 | D55: 7719 | E55: 23 | F55: 7728 | K55: 0 | L55: 222
A56: 22 | B56: 7892 | C56: 23 | D56: 7900 | E56: 23 | F56: 7962 | K56: 0 | L56: 222
A57: 22 | B57: 8076 | C57: 23 | D57: 8087 | E57: 23 | F57: 8096 | K57: 0 | L57: 222
A58: 22 | B58: 8217 | C58: 23 | D58: 8225 | E58: 23 | F58: 8239 | K58: 0 | L58: 222
A59: 22 | B59: 8349 | C59: 23 | D59: 8355 | E59: 23 | F59: 8362 | K59: 0 | L59: 222
A60: 11 | B60: 8463 | C60: 21 | D60: 8480 | E60: 21 | F60: 8494 | K60: 0 | L60: 122
A61: 11 | B61: 8586 | C61: 21 | D61: 8600 | E61: 21 | F61: 8616 | K61: 0 | L61: 122
A62: 11 | B62: 8706 | C62: 21 | D62: 8719 | E62: 21 | F62: 8734 | K62: 0 | L62: 122
A63: 11 | B63: 8821 | C63: 21 | D63: 8846 | E63: 21 | F63: 8855 | K63: 0 | L63: 122
A64: 11 | B64: 8944 | C64: 21 | D64: 8974 | E64: 21 | F64: 8983 | K64: 0 | L64: 122
A65: 11 | B65: 9070 | C65: 21 | D65: 9092 | E65: 21 | F65: 9101 | K65: 0 | L65: 122
A66: 22 | B66: 9202 | C66: 23 | D66: 9210 | E66: 23 | F66: 9218 | K66: 0 | L66: 222
A67: 11 | B67: 9314 | C67: 21 | D67: 9400 | E67: 21 | F67: 9424 | K67: 0 | L67: 122
A68: 22 | B68: 9534 | C68: 23 | D68: 9542 | E68: 23 | F68: 9550 | K68: 0 | L68: 222
A69: 11 | B69: 9650 | C69: 21 | D69: 9664 | E69: 21 | F69: 9672 | K69: 0 | L69: 122
A70: 11 | B70: 9762 | C70: 21 | D70: 9847 | E70: 21 | F70: 9856 | K70: 0 | L70: 122
A71: 11 | B71: 9952 | C71: 21 | D71: 9968 | E71: 21 | F71: 10005 | K71: 0 | L71: 122
A72: 22 | B72: 10119 | C72: 23 | D72: 10127 | E72: 23 | F72: 10141 | K72: 0 | L72: 222
A73: 11 | B73: 10240 | C73: 21 | D73: 10255 | E73: 21 | F73: 10262 | K73: 0 | L73: 122
A74: 22 | B74: 10392 | C74: 23 | D74: 10416 | E74: 23 | F74: 10454 | K74: 0 | L74: 222
A75: 22 | B75: 10566 | C75: 23 | D75: 10574 | E75: 23 | F75: 10590 | K75: 0 | L75: 222
A76: 22 | B76: 10717 | C76: 23 | D76: 10726 | E76: 23 | F76: 10741 | K76: 0 | L76: 222
A77: 11 | B77: 10842 | C77: 21 | D77: 10856 | E77: 21 | F77: 10863 | K77: 1 | L77: 122

Sheet !M620B10.102
A1: Report for:!M620B10.102
A2: Date: | B2: <date>
A3: Hen: | B3: <hen> | F3: Correct Sequence | G3: =Start!J2 -> 122 | P3: Total Sequences in Data | Q3: =4994-COUNTBLANK(L7:L5000) -> 53 | V3: Total Sequences in Block Data | W3: =COUNTA(L7:L15) -> 9 | AA3: Total Sequences in Block Data | AB3: =COUNTA(L16:L24) -> 9 | AF3: Total Sequences in Block Data | AG3: =COUNTA(L25:L32) -> 8 | AK3: Total Sequences in Block Data | AL3: =COUNTA(L33:L41) -> 9 | AP3: Total Sequences in Block Data | AQ3: =COUNTA(L42:L50) -> 9 | AU3: Total Sequences in Block Data | AV3: =COUNTA(L51:L59) -> 9
P4: Total Sequences in Summary | Q4: =SUM(O7:O14) -> 53 | V4: Total Sequences in Block Summary | W4: =SUM(U7:U14) -> 9 | AA4: Total Sequences in Block Summary | AB4: =SUM(Z7:Z14) -> 9 | AF4: Total Sequences in Block Summary | AG4: =SUM(AE7:AE14) -> 8 | AK4: Total Sequences in Block Summary | AL4: =SUM(AJ7:AJ14) -> 9 | AP4: Total Sequences in Block Summary | AQ4: =SUM(AO7:AO14) -> 9 | AU4: Total Sequences in Block Summary | AV4: =SUM(AT7:AT14) -> 9
T5: Block 1 | Y5: Block 2 | AD5: Block 3 | AI5: Block 4 | AN5: Block 5 | AS5: Block 6
A6: Sequence Component 1 | B6: Time 1 | C6: Sequence Component 2 | D6: Time 2 | E6: Sequence Component 3 | F6: Time 3 | G6: Sequence Component 4 | H6: Time 4 | I6: Sequence Component 5 | J6: Time 5 | K6: Correct? 0=No 1=Yes | L6: Sequence | N6: Frequency | P6: Relative Frequency | Q6: Variability | T6: Frequency | V6: Relative Frequency | W6: Variability | Y6: Frequency | AA6: Relative Frequency | AB6: Variability | AD6: Frequency | AF6: Relative Frequency | AG6: Variability | AI6: Frequency | AK6: Relative Frequency | AL6: Variability | AN6: Frequency | AP6: Relative Frequency | AQ6: Variability | AS6: Frequency | AU6: Relative Frequency | AV6: Variability
A7: 11 | B7: 62 | C7: 12 | D7: 78 | E7: 14 | F7: 87 | K7: 0 | L7: 111 | N7: 111 | O7: =COUNTIF($L$7:$L$500,N7) -> 1 | P7: =O7/$Q$4 -> 0.01886792453 | Q7: =IF(P7=0,0,(P7*((LOG(P7))/LOG(2)))) -> -0.1080739708 | T7: =N7 -> 111 | U7: =COUNTIF(L7:L15,T7) -> 1 | V7: =U7/(W4-U10) -> 0.2 | W7: =IF(V7=0,0,(V7*((LOG(V7))/LOG(2)))) -> -0.464385619 | Y7: =N7 -> 111 | Z7: =COUNTIF(L16:L24,Y7) -> 0 | AA7: =Z7/(AB4-Z10) -> 0 | AB7: =IF(AA7=0,0,(AA7*((LOG(AA7))/LOG(2)))) -> 0 | AD7: =N7 -> 111 | AE7: =COUNTIF(L25:L32,AD7) -> 0 | AF7: =AE7/(AG4-AE10) -> 0 | AG7: =IF(AF7=0,0,(AF7*((LOG(AF7))/LOG(2)))) -> 0 | AI7: =N7 -> 111 | AJ7: =COUNTIF(L33:L41,AI7) -> 0 | AK7: =AJ7/(AL4-AJ10) -> 0 | AL7: =IF(AK7=0,0,(AK7*((LOG(AK7))/LOG(2)))) -> 0 | AN7: =N7 -> 111 | AO7: =COUNTIF(L42:L50,AN7) -> 0 | AP7: =AO7/(AQ4-AO10) -> 0 | AQ7: =IF(AP7=0,0,(AP7*((LOG(AP7))/LOG(2)))) -> 0 | AS7: =N7 -> 111 | AT7: =COUNTIF(L51:L59,AS7) -> 0 | AU7: =AT7/(AV4-AT10) ->  | AV7: =IF(AU7=0,0,(AU7*((LOG(AU7))/LOG(2)))) -> 
A8: 11 | B8: 193 | C8: 21 | D8: 214 | E8: 21 | F8: 225 | K8: 0 | L8: 122 | N8: 112 | O8: =COUNTIF($L$7:$L$500,N8) -> 5 | P8: =O8/$Q$4 -> 0.09433962264 | Q8: =IF(P8=0,0,(P8*((LOG(P8))/LOG(2)))) -> -0.3213200339 | T8: =N8 -> 112 | U8: =COUNTIF(L7:L15,T8) -> 1 | V8: =U8/(W4-U10) -> 0.2 | W8: =IF(V8=0,0,(V8*((LOG(V8))/LOG(2)))) -> -0.464385619 | Y8: =N8 -> 112 | Z8: =COUNTIF(L16:L24,Y8) -> 1 | AA8: =Z8/(AB4-Z10) -> 1 | AB8: =IF(AA8=0,0,(AA8*((LOG(AA8))/LOG(2)))) -> 0 | AD8: =N8 -> 112 | AE8: =COUNTIF(L25:L32,AD8) -> 2 | AF8: =AE8/(AG4-AE10) -> 0.5 | AG8: =IF(AF8=0,0,(AF8*((LOG(AF8))/LOG(2)))) -> -0.5 | AI8: =N8 -> 112 | AJ8: =COUNTIF(L33:L41,AI8) -> 1 | AK8: =AJ8/(AL4-AJ10) -> 0.5 | AL8: =IF(AK8=0,0,(AK8*((LOG(AK8))/LOG(2)))) -> -0.5 | AN8: =N8 -> 112 | AO8: =COUNTIF(L42:L50,AN8) -> 0 | AP8: =AO8/(AQ4-AO10) -> 0 | AQ8: =IF(AP8=0,0,(AP8*((LOG(AP8))/LOG(2)))) -> 0 | AS8: =N8 -> 112 | AT8: =COUNTIF(L51:L59,AS8) -> 0 | AU8: =AT8/(AV4-AT10) ->  | AV8: =IF(AU8=0,0,(AU8*((LOG(AU8))/LOG(2)))) -> 
A9: 11 | B9: 327 | C9: 12 | D9: 343 | E9: 23 | F9: 356 | K9: 0 | L9: 112 | N9: 121 | O9: =COUNTIF($L$7:$L$500,N9) -> 0 | P9: =O9/$Q$4 -> 0 | Q9: =IF(P9=0,0,(P9*((LOG(P9))/LOG(2)))) -> 0 | T9: =N9 -> 121 | U9: =COUNTIF(L7:L15,T9) -> 0 | V9: =U9/(W4-U10) -> 0 | W9: =IF(V9=0,0,(V9*((LOG(V9))/LOG(2)))) -> 0 | Y9: =N9 -> 121 | Z9: =COUNTIF(L16:L24,Y9) -> 0 | AA9: =Z9/(AB4-Z10) -> 0 | AB9: =IF(AA9=0,0,(AA9*((LOG(AA9))/LOG(2)))) -> 0 | AD9: =N9 -> 121 | AE9: =COUNTIF(L25:L32,AD9) -> 0 | AF9: =AE9/(AG4-AE10) -> 0 | AG9: =IF(AF9=0,0,(AF9*((LOG(AF9))/LOG(2)))) -> 0 | AI9: =N9 -> 121 | AJ9: =COUNTIF(L33:L41,AI9) -> 0 | AK9: =AJ9/(AL4-AJ10) -> 0 | AL9: =IF(AK9=0,0,(AK9*((LOG(AK9))/LOG(2)))) -> 0 | AN9: =N9 -> 121 | AO9: =COUNTIF(L42:L50,AN9) -> 0 | AP9: =AO9/(AQ4-AO10) -> 0 | AQ9: =IF(AP9=0,0,(AP9*((LOG(AP9))/LOG(2)))) -> 0 | AS9: =N9 -> 121 | AT9: =COUNTIF(L51:L59,AS9) -> 0 | AU9: =AT9/(AV4-AT10) ->  | AV9: =IF(AU9=0,0,(AU9*((LOG(AU9))/LOG(2)))) -> 
A10: 11 | B10: 474 | C10: 21 | D10: 491 | E10: 21 | F10: 499 | K10: 0 | L10: 122 | N10: 122 | O10: =COUNTIF($L$7:$L$500,N10) -> 40 | P10: =O10/$Q$4 -> 0.7547169811 | Q10: =IF(P10=0,0,(P10*((LOG(P10))/LOG(2)))) -> -0.3064093281 | T10: =N10 -> 122 | U10: =COUNTIF(L7:L15,T10) -> 4 | Y10: =N10 -> 122 | Z10: =COUNTIF(L16:L24,Y10) -> 8 | AD10: =N10 -> 122 | AE10: =COUNTIF(L25:L32,AD10) -> 4 | AI10: =N10 -> 122 | AJ10: =COUNTIF(L33:L41,AI10) -> 7 | AN10: =N10 -> 122 | AO10: =COUNTIF(L42:L50,AN10) -> 8 | AS10: =N10 -> 122 | AT10: =COUNTIF(L51:L59,AS10) -> 9
A11: 11 | B11: 597 | C11: 21 | D11: 611 | E11: 21 | F11: 664 | K11: 0 | L11: 122 | N11: 211 | O11: =COUNTIF($L$7:$L$500,N11) -> 0 | P11: =O11/$Q$4 -> 0 | Q11: =IF(P11=0,0,(P11*((LOG(P11))/LOG(2)))) -> 0 | T11: =N11 -> 211 | U11: =COUNTIF(L7:L15,T11) -> 0 | V11: =U11/(W4-U10) -> 0 | W11: =IF(V11=0,0,(V11*((LOG(V11))/LOG(2)))) -> 0 | Y11: =N11 -> 211 | Z11: =COUNTIF(L16:L24,Y11) -> 0 | AA11: =Z11/(AB4-Z10) -> 0 | AB11: =IF(AA11=0,0,(AA11*((LOG(AA11))/LOG(2)))) -> 0 | AD11: =N11 -> 211 | AE11: =COUNTIF(L25:L32,AD11) -> 0 | AF11: =AE11/(AG4-AE10) -> 0 | AG11: =IF(AF11=0,0,(AF11*((LOG(AF11))/LOG(2)))) -> 0 | AI11: =N11 -> 211 | AJ11: =COUNTIF(L33:L41,AI11) -> 0 | AK11: =AJ11/(AL4-AJ10) -> 0 | AL11: =IF(AK11=0,0,(AK11*((LOG(AK11))/LOG(2)))) -> 0 | AN11: =N11 -> 211 | AO11: =COUNTIF(L42:L50,AN11) -> 0 | AP11: =AO11/(AQ4-AO10) -> 0 | AQ11: =IF(AP11=0,0,(AP11*((LOG(AP11))/LOG(2)))) -> 0 | AS11: =N11 -> 211 | AT11: =COUNTIF(L51:L59,AS11) -> 0 | AU11: =AT11/(AV4-AT10) ->  | AV11: =IF(AU11=0,0,(AU11*((LOG(AU11))/LOG(2)))) -> 
A12: 22 | B12: 774 | C12: 14 | D12: 830 | E12: 23 | F12: 839 | K12: 0 | L12: 212 | N12: 212 | O12: =COUNTIF($L$7:$L$500,N12) -> 1 | P12: =O12/$Q$4 -> 0.01886792453 | Q12: =IF(P12=0,0,(P12*((LOG(P12))/LOG(2)))) -> -0.1080739708 | T12: =N12 -> 212 | U12: =COUNTIF(L7:L15,T12) -> 1 | V12: =U12/(W4-U10) -> 0.2 | W12: =IF(V12=0,0,(V12*((LOG(V12))/LOG(2)))) -> -0.464385619 | Y12: =N12 -> 212 | Z12: =COUNTIF(L16:L24,Y12) -> 0 | AA12: =Z12/(AB4-Z10) -> 0 | AB12: =IF(AA12=0,0,(AA12*((LOG(AA12))/LOG(2)))) -> 0 | AD12: =N12 -> 212 | AE12: =COUNTIF(L25:L32,AD12) -> 0 | AF12: =AE12/(AG4-AE10) -> 0 | AG12: =IF(AF12=0,0,(AF12*((LOG(AF12))/LOG(2)))) -> 0 | AI12: =N12 -> 212 | AJ12: =COUNTIF(L33:L41,AI12) -> 0 | AK12: =AJ12/(AL4-AJ10) -> 0 | AL12: =IF(AK12=0,0,(AK12*((LOG(AK12))/LOG(2)))) -> 0 | AN12: =N12 -> 212 | AO12: =COUNTIF(L42:L50,AN12) -> 0 | AP12: =AO12/(AQ4-AO10) -> 0 | AQ12: =IF(AP12=0,0,(AP12*((LOG(AP12))/LOG(2)))) -> 0 | AS12: =N12 -> 212 | AT12: =COUNTIF(L51:L59,AS12) -> 0 | AU12: =AT12/(AV4-AT10) ->  | AV12: =IF(AU12=0,0,(AU12*((LOG(AU12))/LOG(2)))) -> 
A13: 22 | B13: 958 | C13: 23 | D13: 966 | E13: 23 | F13: 982 | K13: 0 | L13: 222 | N13: 221 | O13: =COUNTIF($L$7:$L$500,N13) -> 0 | P13: =O13/$Q$4 -> 0 | Q13: =IF(P13=0,0,(P13*((LOG(P13))/LOG(2)))) -> 0 | T13: =N13 -> 221 | U13: =COUNTIF(L7:L15,T13) -> 0 | V13: =U13/(W4-U10) -> 0 | W13: =IF(V13=0,0,(V13*((LOG(V13))/LOG(2)))) -> 0 | Y13: =N13 -> 221 | Z13: =COUNTIF(L16:L24,Y13) -> 0 | AA13: =Z13/(AB4-Z10) -> 0 | AB13: =IF(AA13=0,0,(AA13*((LOG(AA13))/LOG(2)))) -> 0 | AD13: =N13 -> 221 | AE13: =COUNTIF(L25:L32,AD13) -> 0 | AF13: =AE13/(AG4-AE10) -> 0 | AG13: =IF(AF13=0,0,(AF13*((LOG(AF13))/LOG(2)))) -> 0 | AI13: =N13 -> 221 | AJ13: =COUNTIF(L33:L41,AI13) -> 0 | AK13: =AJ13/(AL4-AJ10) -> 0 | AL13: =IF(AK13=0,0,(AK13*((LOG(AK13))/LOG(2)))) -> 0 | AN13: =N13 -> 221 | AO13: =COUNTIF(L42:L50,AN13) -> 0 | AP13: =AO13/(AQ4-AO10) -> 0 | AQ13: =IF(AP13=0,0,(AP13*((LOG(AP13))/LOG(2)))) -> 0 | AS13: =N13 -> 221 | AT13: =COUNTIF(L51:L59,AS13) -> 0 | AU13: =AT13/(AV4-AT10) ->  | AV13: =IF(AU13=0,0,(AU13*((LOG(AU13))/LOG(2)))) -> 
A14: 22 | B14: 1114 | C14: 23 | D14: 1121 | E14: 23 | F14: 1129 | K14: 0 | L14: 222 | N14: 222 | O14: =COUNTIF($L$7:$L$500,N14) -> 6 | P14: =O14/$Q$4 -> 0.1132075472 | Q14: =IF(P14=0,0,(P14*((LOG(P14))/LOG(2)))) -> -0.3558065608 | T14: =N14 -> 222 | U14: =COUNTIF(L7:L15,T14) -> 2 | V14: =U14/(W4-U10) -> 0.4 | W14: =IF(V14=0,0,(V14*((LOG(V14))/LOG(2)))) -> -0.528771238 | Y14: =N14 -> 222 | Z14: =COUNTIF(L16:L24,Y14) -> 0 | AA14: =Z14/(AB4-Z10) -> 0 | AB14: =IF(AA14=0,0,(AA14*((LOG(AA14))/LOG(2)))) -> 0 | AD14: =N14 -> 222 | AE14: =COUNTIF(L25:L32,AD14) -> 2 | AF14: =AE14/(AG4-AE10) -> 0.5 | AG14: =IF(AF14=0,0,(AF14*((LOG(AF14))/LOG(2)))) -> -0.5 | AI14: =N14 -> 222 | AJ14: =COUNTIF(L33:L41,AI14) -> 1 | AK14: =AJ14/(AL4-AJ10) -> 0.5 | AL14: =IF(AK14=0,0,(AK14*((LOG(AK14))/LOG(2)))) -> -0.5 | AN14: =N14 -> 222 | AO14: =COUNTIF(L42:L50,AN14) -> 1 | AP14: =AO14/(AQ4-AO10) -> 1 | AQ14: =IF(AP14=0,0,(AP14*((LOG(AP14))/LOG(2)))) -> 0 | AS14: =N14 -> 222 | AT14: =COUNTIF(L51:L59,AS14) -> 0 | AU14: =AT14/(AV4-AT10) ->  | AV14: =IF(AU14=0,0,(AU14*((LOG(AU14))/LOG(2)))) -> 
A15: 11 | B15: 1241 | C15: 21 | D15: 1257 | E15: 21 | F15: 1266 | K15: 0 | L15: 122 | P15: =SUM(P7:P14) -> 1 | Q15: =-SUM(Q7:Q14) -> 1.199683864 | V15: =SUM(V7:V14) -> 1 | W15: =-SUM(W7:W14) -> 1.921928095 | AA15: =SUM(AA7:AA14) -> 1 | AB15: =-SUM(AB7:AB14) -> 0 | AF15: =SUM(AF7:AF14) -> 1 | AG15: =-SUM(AG7:AG14) -> 1 | AK15: =SUM(AK7:AK14) -> 1 | AL15: =-SUM(AL7:AL14) -> 1 | AP15: =SUM(AP7:AP14) -> 1 | AQ15: =-SUM(AQ7:AQ14) -> 0 | AU15: =SUM(AU7:AU14) ->  | AV15: =-SUM(AV7:AV14) -> 
A16: 11 | B16: 1356 | C16: 21 | D16: 1391 | E16: 21 | F16: 1404 | K16: 0 | L16: 122 | P16: U= | Q16: =Q15/(LOG(Q4)/LOG(2)) -> 0.209444924 | V16: U1= | W16: =W15/(LOG(W4)/LOG(2)) -> 0.6063008096 | AA16: U2= | AB16: =AB15/(LOG(AB4)/LOG(2)) -> 0 | AF16: U3= | AG16: =AG15/(LOG(AG4)/LOG(2)) -> 0.3333333333 | AK16: U4= | AL16: =AL15/(LOG(AL4)/LOG(2)) -> 0.3154648768 | AP16: U5= | AQ16: =AQ15/(LOG(AQ4)/LOG(2)) -> 0 | AU16: U6= | AV16: =AV15/(LOG(AV4)/LOG(2)) -> 
A17: 11 | B17: 1497 | C17: 21 | D17: 1510 | E17: 21 | F17: 1523 | K17: 0 | L17: 122
A18: 11 | B18: 1613 | C18: 21 | D18: 1621 | E18: 21 | F18: 1633 | K18: 0 | L18: 122
A19: 11 | B19: 1720 | C19: 21 | D19: 1735 | E19: 21 | F19: 1742 | K19: 0 | L19: 122 | N19: Total Target Seq
A20: 11 | B20: 1862 | C20: 21 | D20: 1873 | E20: 21 | F20: 1881 | K20: 0 | L20: 122 | N20: =COUNTIF(L7:L59,G3) -> 40 | P20: 9 | Q20: 9 | R20: 8 | S20: 9 | T20: 9 | U20: 9
A21: 11 | B21: 1976 | C21: 21 | D21: 1989 | E21: 21 | F21: 1994 | K21: 0 | L21: 122 | P21: % of reinforcement given in 6 equal intervals based on number of trials
A22: 11 | B22: 2097 | C22: 12 | D22: 2114 | E22: 23 | F22: 2135 | K22: 0 | L22: 112 | P22: %_1 | Q22: %_2 | R22: %_3 | S22: %_4 | T22: %_5 | U22: %_6
A23: 11 | B23: 2233 | C23: 21 | D23: 2266 | E23: 21 | F23: 2281 | K23: 0 | L23: 122 | O23: target sequence | P23: =$G$3 -> 122 | Q23: =$G$3 -> 122 | R23: =$G$3 -> 122 | S23: =$G$3 -> 122 | T23: =$G$3 -> 122 | U23: =$G$3 -> 122
A24: 11 | B24: 2383 | C24: 21 | D24: 2398 | E24: 21 | F24: 2448 | K24: 0 | L24: 122 | O24: total reinforcement | P24: =U10 -> 4 | Q24: =Z10 -> 8 | R24: =AE10 -> 4 | S24: =AJ10 -> 7 | T24: =AO10 -> 8 | U24: =AT10 -> 9
A25: 11 | B25: 2539 | C25: 21 | D25: 2556 | E25: 21 | F25: 2571 | K25: 0 | L25: 122 | O25: % target
A26: 11 | B26: 2660 | C26: 21 | D26: 2671 | E26: 21 | F26: 2685 | K26: 0 | L26: 122 | O26: CCRF
A27: 22 | B27: 2792 | C27: 23 | D27: 2808 | E27: 23 | F27: 2820 | K27: 0 | L27: 222 | O27: % CCRf
A28: 11 | B28: 2911 | C28: 12 | D28: 2919 | E28: 23 | F28: 2936 | K28: 0 | L28: 112 | O28: average response rate | P28: =F15/P20 -> 140.6666667 | Q28: =(F24-F15)/Q20 -> 131.3333333 | R28: =(F32-F24)/R20 -> 126.75 | S28: =(F41-F32)/S20 -> 124.3333333 | T28: =(F50-F41)/T20 -> 131.1111111 | U28: =(F59-F50)/U20 -> 115.4444444
A29: 22 | B29: 3068 | C29: 23 | D29: 3092 | E29: 23 | F29: 3100 | K29: 0 | L29: 222
A30: 11 | B30: 3196 | C30: 12 | D30: 3203 | E30: 23 | F30: 3218 | K30: 0 | L30: 112
A31: 11 | B31: 3318 | C31: 21 | D31: 3333 | E31: 21 | F31: 3349 | K31: 0 | L31: 122
A32: 11 | B32: 3441 | C32: 21 | D32: 3456 | E32: 21 | F32: 3462 | K32: 0 | L32: 122
A33: 11 | B33: 3552 | C33: 21 | D33: 3563 | E33: 21 | F33: 3582 | K33: 0 | L33: 122
A34: 22 | B34: 3705 | C34: 23 | D34: 3713 | E34: 23 | F34: 3721 | K34: 0 | L34: 222
A35: 11 | B35: 3813 | C35: 12 | D35: 3823 | E35: 23 | F35: 3835 | K35: 0 | L35: 112
A36: 11 | B36: 3934 | C36: 21 | D36: 3957 | E36: 21 | F36: 3966 | K36: 0 | L36: 122
A37: 11 | B37: 4059 | C37: 21 | D37: 4075 | E37: 21 | F37: 4088 | K37: 0 | L37: 122
A38: 11 | B38: 4180 | C38: 21 | D38: 4193 | E38: 21 | F38: 4203 | K38: 0 | L38: 122
A39: 11 | B39: 4293 | C39: 21 | D39: 4313 | E39: 21 | F39: 4321 | K39: 0 | L39: 122
A40: 11 | B40: 4406 | C40: 21 | D40: 4439 | E40: 21 | F40: 4460 | K40: 0 | L40: 122
A41: 11 | B41: 4553 | C41: 21 | D41: 4573 | E41: 21 | F41: 4581 | K41: 0 | L41: 122
A42: 11 | B42: 4670 | C42: 21 | D42: 4687 | E42: 21 | F42: 4695 | K42: 0 | L42: 122
A43: 11 | B43: 4787 | C43: 21 | D43: 4804 | E43: 21 | F43: 4819 | K43: 0 | L43: 122
A44: 11 | B44: 4910 | C44: 21 | D44: 4922 | E44: 21 | F44: 4929 | K44: 0 | L44: 122
A45: 11 | B45: 5029 | C45: 21 | D45: 5066 | E45: 21 | F45: 5172 | K45: 0 | L45: 122
A46: 11 | B46: 5262 | C46: 21 | D46: 5285 | E46: 21 | F46: 5294 | K46: 0 | L46: 122
A47: 11 | B47: 5381 | C47: 21 | D47: 5394 | E47: 21 | F47: 5401 | K47: 0 | L47: 122
A48: 22 | B48: 5506 | C48: 23 | D48: 5514 | E48: 23 | F48: 5523 | K48: 0 | L48: 222
A49: 11 | B49: 5619 | C49: 21 | D49: 5638 | E49: 21 | F49: 5646 | K49: 0 | L49: 122
A50: 11 | B50: 5736 | C50: 21 | D50: 5753 | E50: 21 | F50: 5761 | K50: 0 | L50: 122
A51: 11 | B51: 5851 | C51: 21 | D51: 5865 | E51: 21 | F51: 5880 | K51: 0 | L51: 122
A52: 11 | B52: 5973 | C52: 21 | D52: 5987 | E52: 21 | F52: 6000 | K52: 0 | L52: 122
A53: 11 | B53: 6087 | C53: 21 | D53: 6115 | E53: 21 | F53: 6123 | K53: 0 | L53: 122
A54: 11 | B54: 6210 | C54: 21 | D54: 6224 | E54: 21 | F54: 6232 | K54: 0 | L54: 122
A55: 11 | B55: 6319 | C55: 21 | D55: 6334 | E55: 21 | F55: 6348 | K55: 0 | L55: 122
A56: 11 | B56: 6434 | C56: 21 | D56: 6451 | E56: 21 | F56: 6462 | K56: 0 | L56: 122
A57: 11 | B57: 6550 | C57: 21 | D57: 6563 | E57: 21 | F57: 6573 | K57: 0 | L57: 122
A58: 11 | B58: 6662 | C58: 21 | D58: 6683 | E58: 21 | F58: 6691 | K58: 0 | L58: 122
A59: 11 | B59: 6779 | C59: 21 | D59: 6790 | E59: 21 | F59: 6800 | K59: 1 | L59: 122

Sheet !M621A40.102
A1: Report for:!M621A40.102
A2: Date: | B2: <date>
A3: Hen: | B3: <hen> | F3: Correct Sequence | G3: =Start!J2 -> 122 | P3: Total Sequences in Data | Q3: =4994-COUNTBLANK(L7:L5000) -> 61 | V3: Total Sequences in Block Data | W3: =COUNTA(L7:L16) -> 10 | AA3: Total Sequences in Block Data | AB3: =COUNTA(L17:L26) -> 10 | AF3: Total Sequences in Block Data | AG3: =COUNTA(L27:L37) -> 11 | AK3: Total Sequences in Block Data | AL3: =COUNTA(L38:L47) -> 10 | AP3: Total Sequences in Block Data | AQ3: =COUNTA(L48:L57) -> 10 | AU3: Total Sequences in Block Data | AV3: =COUNTA(L58:L67) -> 10
P4: Total Sequences in Summary | Q4: =SUM(O7:O14) -> 61 | V4: Total Sequences in Block Summary | W4: =SUM(U7:U14) -> 10 | AA4: Total Sequences in Block Summary | AB4: =SUM(Z7:Z14) -> 10 | AF4: Total Sequences in Block Summary | AG4: =SUM(AE7:AE14) -> 11 | AK4: Total Sequences in Block Summary | AL4: =SUM(AJ7:AJ14) -> 10 | AP4: Total Sequences in Block Summary | AQ4: =SUM(AO7:AO14) -> 10 | AU4: Total Sequences in Block Summary | AV4: =SUM(AT7:AT14) -> 10
T5: Block 1 | Y5: Block 2 | AD5: Block 3 | AI5: Block 4 | AN5: Block 5 | AS5: Block 6
A6: Sequence Component 1 | B6: Time 1 | C6: Sequence Component 2 | D6: Time 2 | E6: Sequence Component 3 | F6: Time 3 | G6: Sequence Component 4 | H6: Time 4 | I6: Sequence Component 5 | J6: Time 5 | K6: Correct? 0=No 1=Yes | L6: Sequence | N6: Frequency | P6: Relative Frequency | Q6: Variability | T6: Frequency | V6: Relative Frequency | W6: Variability | Y6: Frequency | AA6: Relative Frequency | AB6: Variability | AD6: Frequency | AF6: Relative Frequency | AG6: Variability | AI6: Frequency | AK6: Relative Frequency | AL6: Variability | AN6: Frequency | AP6: Relative Frequency | AQ6: Variability | AS6: Frequency | AU6: Relative Frequency | AV6: Variability
A7: 11 | B7: 22 | C7: 12 | D7: 39 | E7: 14 | F7: 50 | K7: 0 | L7: 111 | N7: 111 | O7: =COUNTIF($L$7:$L$500,N7) -> 3 | P7: =O7/$Q$4 -> 0.04918032787 | Q7: =IF(P7=0,0,(P7*((LOG(P7))/LOG(2)))) -> -0.2137266313 | T7: =N7 -> 111 | U7: =COUNTIF(L7:L16,T7) -> 3 | V7: =U7/(W4-U10) -> 0.6 | W7: =IF(V7=0,0,(V7*((LOG(V7))/LOG(2)))) -> -0.4421793565 | Y7: =N7 -> 111 | Z7: =COUNTIF(L17:L26,Y7) -> 0 | AA7: =Z7/(AB4-Z10) -> 0 | AB7: =IF(AA7=0,0,(AA7*((LOG(AA7))/LOG(2)))) -> 0 | AD7: =N7 -> 111 | AE7: =COUNTIF(L27:L37,AD7) -> 0 | AF7: =AE7/(AG4-AE10) -> 0 | AG7: =IF(AF7=0,0,(AF7*((LOG(AF7))/LOG(2)))) -> 0 | AI7: =N7 -> 111 | AJ7: =COUNTIF(L38:L47,AI7) -> 0 | AK7: =AJ7/(AL4-AJ10) -> 0 | AL7: =IF(AK7=0,0,(AK7*((LOG(AK7))/LOG(2)))) -> 0 | AN7: =N7 -> 111 | AO7: =COUNTIF(L48:L57,AN7) -> 0 | AP7: =AO7/(AQ4-AO10) -> 0 | AQ7: =IF(AP7=0,0,(AP7*((LOG(AP7))/LOG(2)))) -> 0 | AS7: =N7 -> 111 | AT7: =COUNTIF(L58:L67,AS7) -> 0 | AU7: =AT7/(AV4-AT10) -> 0 | AV7: =IF(AU7=0,0,(AU7*((LOG(AU7))/LOG(2)))) -> 0
A8: 11 | B8: 158 | C8: 21 | D8: 184 | E8: 21 | F8: 201 | K8: 0 | L8: 122 | N8: 112 | O8: =COUNTIF($L$7:$L$500,N8) -> 5 | P8: =O8/$Q$4 -> 0.08196721311 | Q8: =IF(P8=0,0,(P8*((LOG(P8))/LOG(2)))) -> -0.2958040363 | T8: =N8 -> 112 | U8: =COUNTIF(L7:L16,T8) -> 0 | V8: =U8/(W4-U10) -> 0 | W8: =IF(V8=0,0,(V8*((LOG(V8))/LOG(2)))) -> 0 | Y8: =N8 -> 112 | Z8: =COUNTIF(L17:L26,Y8) -> 0 | AA8: =Z8/(AB4-Z10) -> 0 | AB8: =IF(AA8=0,0,(AA8*((LOG(AA8))/LOG(2)))) -> 0 | AD8: =N8 -> 112 | AE8: =COUNTIF(L27:L37,AD8) -> 1 | AF8: =AE8/(AG4-AE10) -> 0.3333333333 | AG8: =IF(AF8=0,0,(AF8*((LOG(AF8))/LOG(2)))) -> -0.5283208336 | AI8: =N8 -> 112 | AJ8: =COUNTIF(L38:L47,AI8) -> 3 | AK8: =AJ8/(AL4-AJ10) -> 0.4285714286 | AL8: =IF(AK8=0,0,(AK8*((LOG(AK8))/LOG(2)))) -> -0.5238824663 | AN8: =N8 -> 112 | AO8: =COUNTIF(L48:L57,AN8) -> 1 | AP8: =AO8/(AQ4-AO10) -> 0.5 | AQ8: =IF(AP8=0,0,(AP8*((LOG(AP8))/LOG(2)))) -> -0.5 | AS8: =N8 -> 112 | AT8: =COUNTIF(L58:L67,AS8) -> 0 | AU8: =AT8/(AV4-AT10) -> 0 | AV8: =IF(AU8=0,0,(AU8*((LOG(AU8))/LOG(2)))) -> 0
A9: 11 | B9: 294 | C9: 12 | D9: 302 | E9: 14 | F9: 311 | K9: 0 | L9: 111 | N9: 121 | O9: =COUNTIF($L$7:$L$500,N9) -> 0 | P9: =O9/$Q$4 -> 0 | Q9: =IF(P9=0,0,(P9*((LOG(P9))/LOG(2)))) -> 0 | T9: =N9 -> 121 | U9: =COUNTIF(L7:L16,T9) -> 0 | V9: =U9/(W4-U10) -> 0 | W9: =IF(V9=0,0,(V9*((LOG(V9))/LOG(2)))) -> 0 | Y9: =N9 -> 121 | Z9: =COUNTIF(L17:L26,Y9) -> 0 | AA9: =Z9/(AB4-Z10) -> 0 | AB9: =IF(AA9=0,0,(AA9*((LOG(AA9))/LOG(2)))) -> 0 | AD9: =N9 -> 121 | AE9: =COUNTIF(L27:L37,AD9) -> 0 | AF9: =AE9/(AG4-AE10) -> 0 | AG9: =IF(AF9=0,0,(AF9*((LOG(AF9))/LOG(2)))) -> 0 | AI9: =N9 -> 121 | AJ9: =COUNTIF(L38:L47,AI9) -> 0 | AK9: =AJ9/(AL4-AJ10) -> 0 | AL9: =IF(AK9=0,0,(AK9*((LOG(AK9))/LOG(2)))) -> 0 | AN9: =N9 -> 121 | AO9: =COUNTIF(L48:L57,AN9) -> 0 | AP9: =AO9/(AQ4-AO10) -> 0 | AQ9: =IF(AP9=0,0,(AP9*((LOG(AP9))/LOG(2)))) -> 0 | AS9: =N9 -> 121 | AT9: =COUNTIF(L58:L67,AS9) -> 0 | AU9: =AT9/(AV4-AT10) -> 0 | AV9: =IF(AU9=0,0,(AU9*((LOG(AU9))/LOG(2)))) -> 0
A10: 11 | B10: 409 | C10: 12 | D10: 414 | E10: 14 | F10: 421 | K10: 0 | L10: 111 | N10: 122 | O10: =COUNTIF($L$7:$L$500,N10) -> 40 | P10: =O10/$Q$4 -> 0.6557377049 | Q10: =IF(P10=0,0,(P10*((LOG(P10))/LOG(2)))) -> -0.3992191755 | T10: =N10 -> 122 | U10: =COUNTIF(L7:L16,T10) -> 5 | Y10: =N10 -> 122 | Z10: =COUNTIF(L17:L26,Y10) -> 8 | AD10: =N10 -> 122 | AE10: =COUNTIF(L27:L37,AD10) -> 8 | AI10: =N10 -> 122 | AJ10: =COUNTIF(L38:L47,AI10) -> 3 | AN10: =N10 -> 122 | AO10: =COUNTIF(L48:L57,AN10) -> 8 | AS10: =N10 -> 122 | AT10: =COUNTIF(L58:L67,AS10) -> 8
A11: 11 | B11: 539 | C11: 21 | D11: 593 | E11: 21 | F11: 684 | K11: 0 | L11: 122 | N11: 211 | O11: =COUNTIF($L$7:$L$500,N11) -> 0 | P11: =O11/$Q$4 -> 0 | Q11: =IF(P11=0,0,(P11*((LOG(P11))/LOG(2)))) -> 0 | T11: =N11 -> 211 | U11: =COUNTIF(L7:L16,T11) -> 0 | V11: =U11/(W4-U10) -> 0 | W11: =IF(V11=0,0,(V11*((LOG(V11))/LOG(2)))) -> 0 | Y11: =N11 -> 211 | Z11: =COUNTIF(L17:L26,Y11) -> 0 | AA11: =Z11/(AB4-Z10) -> 0 | AB11: =IF(AA11=0,0,(AA11*((LOG(AA11))/LOG(2)))) -> 0 | AD11: =N11 -> 211 | AE11: =COUNTIF(L27:L37,AD11) -> 0 | AF11: =AE11/(AG4-AE10) -> 0 | AG11: =IF(AF11=0,0,(AF11*((LOG(AF11))/LOG(2)))) -> 0 | AI11: =N11 -> 211 | AJ11: =COUNTIF(L38:L47,AI11) -> 0 | AK11: =AJ11/(AL4-AJ10) -> 0 | AL11: =IF(AK11=0,0,(AK11*((LOG(AK11))/LOG(2)))) -> 0 | AN11: =N11 -> 211 | AO11: =COUNTIF(L48:L57,AN11) -> 0 | AP11: =AO11/(AQ4-AO10) -> 0 | AQ11: =IF(AP11=0,0,(AP11*((LOG(AP11))/LOG(2)))) -> 0 | AS11: =N11 -> 211 | AT11: =COUNTIF(L58:L67,AS11) -> 0 | AU11: =AT11/(AV4-AT10) -> 0 | AV11: =IF(AU11=0,0,(AU11*((LOG(AU11))/LOG(2)))) -> 0
A12: 22 | B12: 783 | C12: 23 | D12: 795 | E12: 23 | F12: 809 | K12: 0 | L12: 222 | N12: 212 | O12: =COUNTIF($L$7:$L$500,N12) -> 0 | P12: =O12/$Q$4 -> 0 | Q12: =IF(P12=0,0,(P12*((LOG(P12))/LOG(2)))) -> 0 | T12: =N12 -> 212 | U12: =COUNTIF(L7:L16,T12) -> 0 | V12: =U12/(W4-U10) -> 0 | W12: =IF(V12=0,0,(V12*((LOG(V12))/LOG(2)))) -> 0 | Y12: =N12 -> 212 | Z12: =COUNTIF(L17:L26,Y12) -> 0 | AA12: =Z12/(AB4-Z10) -> 0 | AB12: =IF(AA12=0,0,(AA12*((LOG(AA12))/LOG(2)))) -> 0 | AD12: =N12 -> 212 | AE12: =COUNTIF(L27:L37,AD12) -> 0 | AF12: =AE12/(AG4-AE10) -> 0 | AG12: =IF(AF12=0,0,(AF12*((LOG(AF12))/LOG(2)))) -> 0 | AI12: =N12 -> 212 | AJ12: =COUNTIF(L38:L47,AI12) -> 0 | AK12: =AJ12/(AL4-AJ10) -> 0 | AL12: =IF(AK12=0,0,(AK12*((LOG(AK12))/LOG(2)))) -> 0 | AN12: =N12 -> 212 | AO12: =COUNTIF(L48:L57,AN12) -> 0 | AP12: =AO12/(AQ4-AO10) -> 0 | AQ12: =IF(AP12=0,0,(AP12*((LOG(AP12))/LOG(2)))) -> 0 | AS12: =N12 -> 212 | AT12: =COUNTIF(L58:L67,AS12) -> 0 | AU12: =AT12/(AV4-AT10) -> 0 | AV12: =IF(AU12=0,0,(AU12*((LOG(AU12))/LOG(2)))) -> 0
A13: 22 | B13: 927 | C13: 23 | D13: 967 | E13: 23 | F13: 989 | K13: 0 | L13: 222 | N13: 221 | O13: =COUNTIF($L$7:$L$500,N13) -> 0 | P13: =O13/$Q$4 -> 0 | Q13: =IF(P13=0,0,(P13*((LOG(P13))/LOG(2)))) -> 0 | T13: =N13 -> 221 | U13: =COUNTIF(L7:L16,T13) -> 0 | V13: =U13/(W4-U10) -> 0 | W13: =IF(V13=0,0,(V13*((LOG(V13))/LOG(2)))) -> 0 | Y13: =N13 -> 221 | Z13: =COUNTIF(L17:L26,Y13) -> 0 | AA13: =Z13/(AB4-Z10) -> 0 | AB13: =IF(AA13=0,0,(AA13*((LOG(AA13))/LOG(2)))) -> 0 | AD13: =N13 -> 221 | AE13: =COUNTIF(L27:L37,AD13) -> 0 | AF13: =AE13/(AG4-AE10) -> 0 | AG13: =IF(AF13=0,0,(AF13*((LOG(AF13))/LOG(2)))) -> 0 | AI13: =N13 -> 221 | AJ13: =COUNTIF(L38:L47,AI13) -> 0 | AK13: =AJ13/(AL4-AJ10) -> 0 | AL13: =IF(AK13=0,0,(AK13*((LOG(AK13))/LOG(2)))) -> 0 | AN13: =N13 -> 221 | AO13: =COUNTIF(L48:L57,AN13) -> 0 | AP13: =AO13/(AQ4-AO10) -> 0 | AQ13: =IF(AP13=0,0,(AP13*((LOG(AP13))/LOG(2)))) -> 0 | AS13: =N13 -> 221 | AT13: =COUNTIF(L58:L67,AS13) -> 0 | AU13: =AT13/(AV4-AT10) -> 0 | AV13: =IF(AU13=0,0,(AU13*((LOG(AU13))/LOG(2)))) -> 0
A14: 11 | B14: 1086 | C14: 21 | D14: 1114 | E14: 21 | F14: 1125 | K14: 0 | L14: 122 | N14: 222 | O14: =COUNTIF($L$7:$L$500,N14) -> 13 | P14: =O14/$Q$4 -> 0.2131147541 | Q14: =IF(P14=0,0,(P14*((LOG(P14))/LOG(2)))) -> -0.4753093287 | T14: =N14 -> 222 | U14: =COUNTIF(L7:L16,T14) -> 2 | V14: =U14/(W4-U10) -> 0.4 | W14: =IF(V14=0,0,(V14*((LOG(V14))/LOG(2)))) -> -0.528771238 | Y14: =N14 -> 222 | Z14: =COUNTIF(L17:L26,Y14) -> 2 | AA14: =Z14/(AB4-Z10) -> 1 | AB14: =IF(AA14=0,0,(AA14*((LOG(AA14))/LOG(2)))) -> 0 | AD14: =N14 -> 222 | AE14: =COUNTIF(L27:L37,AD14) -> 2 | AF14: =AE14/(AG4-AE10) -> 0.6666666667 | AG14: =IF(AF14=0,0,(AF14*((LOG(AF14))/LOG(2)))) -> -0.3899750005 | AI14: =N14 -> 222 | AJ14: =COUNTIF(L38:L47,AI14) -> 4 | AK14: =AJ14/(AL4-AJ10) -> 0.5714285714 | AL14: =IF(AK14=0,0,(AK14*((LOG(AK14))/LOG(2)))) -> -0.4613456697 | AN14: =N14 -> 222 | AO14: =COUNTIF(L48:L57,AN14) -> 1 | AP14: =AO14/(AQ4-AO10) -> 0.5 | AQ14: =IF(AP14=0,0,(AP14*((LOG(AP14))/LOG(2)))) -> -0.5 | AS14: =N14 -> 222 | AT14: =COUNTIF(L58:L67,AS14) -> 2 | AU14: =AT14/(AV4-AT10) -> 1 | AV14: =IF(AU14=0,0,(AU14*((LOG(AU14))/LOG(2)))) -> 0
A15: 11 | B15: 1224 | C15: 21 | D15: 1258 | E15: 21 | F15: 1277 | K15: 0 | L15: 122 | P15: =SUM(P7:P14) -> 1 | Q15: =-SUM(Q7:Q14) -> 1.384059172 | V15: =SUM(V7:V14) -> 1 | W15: =-SUM(W7:W14) -> 0.9709505945 | AA15: =SUM(AA7:AA14) -> 1 | AB15: =-SUM(AB7:AB14) -> 0 | AF15: =SUM(AF7:AF14) -> 1 | AG15: =-SUM(AG7:AG14) -> 0.9182958341 | AK15: =SUM(AK7:AK14) -> 1 | AL15: =-SUM(AL7:AL14) -> 0.985228136 | AP15: =SUM(AP7:AP14) -> 1 | AQ15: =-SUM(AQ7:AQ14) -> 1 | AU15: =SUM(AU7:AU14) -> 1 | AV15: =-SUM(AV7:AV14) -> 0
A16: 11 | B16: 1367 | C16: 21 | D16: 1405 | E16: 21 | F16: 1426 | K16: 0 | L16: 122 | P16: U= | Q16: =Q15/(LOG(Q4)/LOG(2)) -> 0.2333705057 | V16: U1= | W16: =W15/(LOG(W4)/LOG(2)) -> 0.2922852532 | AA16: U2= | AB16: =AB15/(LOG(AB4)/LOG(2)) -> 0 | AF16: U3= | AG16: =AG15/(LOG(AG4)/LOG(2)) -> 0.2654470258 | AK16: U4= | AL16: =AL15/(LOG(AL4)/LOG(2)) -> 0.2965832215 | AP16: U5= | AQ16: =AQ15/(LOG(AQ4)/LOG(2)) -> 0.3010299957 | AU16: U6= | AV16: =AV15/(LOG(AV4)/LOG(2)) -> 0
A17: 22 | B17: 1603 | C17: 23 | D17: 1625 | E17: 23 | F17: 1634 | K17: 0 | L17: 222
A18: 11 | B18: 1731 | C18: 21 | D18: 1749 | E18: 21 | F18: 1765 | K18: 0 | L18: 122
A19: 11 | B19: 1862 | C19: 21 | D19: 1882 | E19: 21 | F19: 1904 | K19: 0 | L19: 122 | N19: Total Target Seq
A20: 11 | B20: 1997 | C20: 21 | D20: 2012 | E20: 21 | F20: 2113 | K20: 0 | L20: 122 | N20: =COUNTIF(L7:L67,G3) -> 40 | P20: 10 | Q20: 10 | R20: 11 | S20: 10 | T20: 10 | U20: 10
A21: 11 | B21: 2204 | C21: 21 | D21: 2222 | E21: 21 | F21: 2230 | K21: 0 | L21: 122 | P21: % of reinforcement given in 6 equal intervals based on number of trials
A22: 11 | B22: 2318 | C22: 21 | D22: 2331 | E22: 21 | F22: 2337 | K22: 0 | L22: 122 | P22: %_1 | Q22: %_2 | R22: %_3 | S22: %_4 | T22: %_5 | U22: %_6
A23: 22 | B23: 2439 | C23: 23 | D23: 2452 | E23: 23 | F23: 2469 | K23: 0 | L23: 222 | O23: target sequence | P23: =$G$3 -> 122 | Q23: =$G$3 -> 122 | R23: =$G$3 -> 122 | S23: =$G$3 -> 122 | T23: =$G$3 -> 122 | U23: =$G$3 -> 122
A24: 11 | B24: 2571 | C24: 21 | D24: 2600 | E24: 21 | F24: 2612 | K24: 0 | L24: 122 | O24: total reinforcement | P24: =U10 -> 5 | Q24: =Z10 -> 8 | R24: =AE10 -> 8 | S24: =AJ10 -> 3 | T24: =AO10 -> 8 | U24: =AT10 -> 8
A25: 11 | B25: 2702 | C25: 21 | D25: 2762 | E25: 21 | F25: 2808 | K25: 0 | L25: 122 | O25: % target
A26: 11 | B26: 2900 | C26: 21 | D26: 2916 | E26: 21 | F26: 2947 | K26: 0 | L26: 122 | O26: CCRF
A27: 22 | B27: 3047 | C27: 23 | D27: 3056 | E27: 23 | F27: 3064 | K27: 0 | L27: 222 | O27: % CCRf
A28: 11 | B28: 3168 | C28: 21 | D28: 3184 | E28: 21 | F28: 3203 | K28: 0 | L28: 122 | O28: average response rate | P28: =F16/P20 -> 142.6 | Q28: =(F26-F16)/Q20 -> 152.1 | R28: =(F37-F26)/R20 -> 127.7272727 | S28: =(F47-F37)/S20 -> 152.2 | T28: =(F57-F47)/T20 -> 129.2 | U28: =(F67-F57)/U20 -> 141.5
A29: 11 | B29: 3292 | C29: 21 | D29: 3307 | E29: 21 | F29: 3315 | K29: 0 | L29: 122
A30: 11 | B30: 3409 | C30: 12 | D30: 3419 | E30: 23 | F30: 3435 | K30: 0 | L30: 112
A31: 11 | B31: 3536 | C31: 21 | D31: 3551 | E31: 21 | F31: 3583 | K31: 0 | L31: 122
A32: 11 | B32: 3672 | C32: 21 | D32: 3690 | E32: 21 | F32: 3698 | K32: 0 | L32: 122
A33: 11 | B33: 3787 | C33: 21 | D33: 3805 | E33: 21 | F33: 3814 | K33: 0 | L33: 122
A34: 11 | B34: 3900 | C34: 21 | D34: 3913 | E34: 21 | F34: 3919 | K34: 0 | L34: 122
A35: 11 | B35: 4011 | C35: 21 | D35: 4033 | E35: 21 | F35: 4097 | K35: 0 | L35: 122
A36: 11 | B36: 4184 | C36: 21 | D36: 4200 | E36: 21 | F36: 4209 | K36: 0 | L36: 122
A37: 22 | B37: 4316 | C37: 23 | D37: 4324 | E37: 23 | F37: 4352 | K37: 0 | L37: 222
A38: 22 | B38: 4478 | C38: 23 | D38: 4486 | E38: 23 | F38: 4500 | K38: 0 | L38: 222
A39: 22 | B39: 4622 | C39: 23 | D39: 4638 | E39: 23 | F39: 4653 | K39: 0 | L39: 222
A40: 11 | B40: 4749 | C40: 21 | D40: 4762 | E40: 21 | F40: 4770 | K40: 0 | L40: 122
A41: 11 | B41: 4860 | C41: 21 | D41: 4875 | E41: 21 | F41: 4882 | K41: 0 | L41: 122
A42: 22 | B42: 4989 | C42: 23 | D42: 4998 | E42: 23 | F42: 5006 | K42: 0 | L42: 222
A43: 11 | B43: 5106 | C43: 12 | D43: 5117 | E43: 23 | F43: 5206 | K43: 0 | L43: 112
A44: 11 | B44: 5298 | C44: 12 | D44: 5305 | E44: 23 | F44: 5328 | K44: 0 | L44: 112
A45: 11 | B45: 5420 | C45: 12 | D45: 5429 | E45: 23 | F45: 5458 | K45: 0 | L45: 112
A46: 22 | B46: 5572 | C46: 23 | D46: 5589 | E46: 23 | F46: 5606 | K46: 0 | L46: 222
A47: 11 | B47: 5717 | C47: 21 | D47: 5850 | E47: 21 | F47: 5874 | K47: 0 | L47: 122
A48: 11 | B48: 5961 | C48: 21 | D48: 5978 | E48: 21 | F48: 5985 | K48: 0 | L48: 122
A49: 11 | B49: 6073 | C49: 21 | D49: 6095 | E49: 21 | F49: 6179 | K49: 0 | L49: 122
A50: 11 | B50: 6267 | C50: 21 | D50: 6289 | E50: 21 | F50: 6322 | K50: 0 | L50: 122
A51: 11 | B51: 6410 | C51: 21 | D51: 6441 | E51: 21 | F51: 6457 | K51: 0 | L51: 122
A52: 11 | B52: 6544 | C52: 21 | D52: 6563 | E52: 21 | F52: 6574 | K52: 0 | L52: 122
A53: 11 | B53: 6663 | C53: 21 | D53: 6686 | E53: 21 | F53: 6698 | K53: 0 | L53: 122
A54: 11 | B54: 6785 | C54: 21 | D54: 6797 | E54: 21 | F54: 6805 | K54: 0 | L54: 122
A55: 11 | B55: 6888 | C55: 12 | D55: 6895 | E55: 23 | F55: 6906 | K55: 0 | L55: 112
A56: 11 | B56: 7004 | C56: 21 | D56: 7023 | E56: 21 | F56: 7030 | K56: 0 | L56: 122
A57: 22 | B57: 7136 | C57: 23 | D57: 7151 | E57: 23 | F57: 7166 | K57: 0 | L57: 222
A58: 11 | B58: 7286 | C58: 21 | D58: 7323 | E58: 21 | F58: 7332 | K58: 0 | L58: 122
A59: 11 | B59: 7424 | C59: 21 | D59: 7486 | E59: 21 | F59: 7510 | K59: 0 | L59: 122
A60: 11 | B60: 7601 | C60: 21 | D60: 7620 | E60: 21 | F60: 7628 | K60: 0 | L60: 122
A61: 11 | B61: 7718 | C61: 21 | D61: 7741 | E61: 21 | F61: 7764 | K61: 0 | L61: 122
A62: 11 | B62: 7853 | C62: 21 | D62: 7868 | E62: 21 | F62: 7883 | K62: 0 | L62: 122
A63: 22 | B63: 7999 | C63: 23 | D63: 8024 | E63: 23 | F63: 8039 | K63: 0 | L63: 222
A64: 11 | B64: 8137 | C64: 21 | D64: 8153 | E64: 21 | F64: 8161 | K64: 0 | L64: 122
A65: 11 | B65: 8247 | C65: 21 | D65: 8263 | E65: 21 | F65: 8271 | K65: 0 | L65: 122
A66: 22 | B66: 8381 | C66: 23 | D66: 8394 | E66: 23 | F66: 8458 | K66: 0 | L66: 222
A67: 11 | B67: 8558 | C67: 21 | D67: 8572 | E67: 21 | F67: 8581 | K67: 1 | L67: 122

Sheet !M622B40.102
A1: Report for:!M622B40.102
A2: Date: | B2: <date>
A3: Hen: | B3: <hen> | F3: Correct Sequence | G3: =Start!J2 -> 122 | P3: Total Sequences in Data | Q3: =4994-COUNTBLANK(L7:L5000) -> 89 | V3: Total Sequences in Block Data | W3: =COUNTA(L7:L21) -> 15 | AA3: Total Sequences in Block Data | AB3: =COUNTA(L22:L36) -> 15 | AF3: Total Sequences in Block Data | AG3: =COUNTA(L37:L50) -> 14 | AK3: Total Sequences in Block Data | AL3: =COUNTA(L51:L65) -> 15 | AP3: Total Sequences in Block Data | AQ3: =COUNTA(L66:L80) -> 15 | AU3: Total Sequences in Block Data | AV3: =COUNTA(L81:L95) -> 15
P4: Total Sequences in Summary | Q4: =SUM(O7:O14) -> 89 | V4: Total Sequences in Block Summary | W4: =SUM(U7:U14) -> 15 | AA4: Total Sequences in Block Summary | AB4: =SUM(Z7:Z14) -> 15 | AF4: Total Sequences in Block Summary | AG4: =SUM(AE7:AE14) -> 14 | AK4: Total Sequences in Block Summary | AL4: =SUM(AJ7:AJ14) -> 15 | AP4: Total Sequences in Block Summary | AQ4: =SUM(AO7:AO14) -> 15 | AU4: Total Sequences in Block Summary | AV4: =SUM(AT7:AT14) -> 15
T5: Block 1 | Y5: Block 2 | AD5: Block 3 | AI5: Block 4 | AN5: Block 5 | AS5: Block 6
A6: Sequence Component 1 | B6: Time 1 | C6: Sequence Component 2 | D6: Time 2 | E6: Sequence Component 3 | F6: Time 3 | G6: Sequence Component 4 | H6: Time 4 | I6: Sequence Component 5 | J6: Time 5 | K6: Correct? 0=No 1=Yes | L6: Sequence | N6: Frequency | P6: Relative Frequency | Q6: Variability | T6: Frequency | V6: Relative Frequency | W6: Variability | Y6: Frequency | AA6: Relative Frequency | AB6: Variability | AD6: Frequency | AF6: Relative Frequency | AG6: Variability | AI6: Frequency | AK6: Relative Frequency | AL6: Variability | AN6: Frequency | AP6: Relative Frequency | AQ6: Variability | AS6: Frequency | AU6: Relative Frequency | AV6: Variability
A7: 11 | B7: 21 | C7: 12 | D7: 23 | E7: 14 | F7: 47 | K7: 0 | L7: 111 | N7: 111 | O7: =COUNTIF($L$7:$L$500,N7) -> 3 | P7: =O7/$Q$4 -> 0.03370786517 | Q7: =IF(P7=0,0,(P7*((LOG(P7))/LOG(2)))) -> -0.1648574471 | T7: =N7 -> 111 | U7: =COUNTIF(L7:L21,T7) -> 3 | V7: =U7/(W4-U10) -> 0.3 | W7: =IF(V7=0,0,(V7*((LOG(V7))/LOG(2)))) -> -0.5210896782 | Y7: =N7 -> 111 | Z7: =COUNTIF(L22:L36,Y7) -> 0 | AA7: =Z7/(AB4-Z10) -> 0 | AB7: =IF(AA7=0,0,(AA7*((LOG(AA7))/LOG(2)))) -> 0 | AD7: =N7 -> 111 | AE7: =COUNTIF(L37:L50,AD7) -> 0 | AF7: =AE7/(AG4-AE10) -> 0 | AG7: =IF(AF7=0,0,(AF7*((LOG(AF7))/LOG(2)))) -> 0 | AI7: =N7 -> 111 | AJ7: =COUNTIF(L51:L65,AI7) -> 0 | AK7: =AJ7/(AL4-AJ10) -> 0 | AL7: =IF(AK7=0,0,(AK7*((LOG(AK7))/LOG(2)))) -> 0 | AN7: =N7 -> 111 | AO7: =COUNTIF(L66:L80,AN7) -> 0 | AP7: =AO7/(AQ4-AO10) -> 0 | AQ7: =IF(AP7=0,0,(AP7*((LOG(AP7))/LOG(2)))) -> 0 | AS7: =N7 -> 111 | AT7: =COUNTIF(L81:L95,AS7) -> 0 | AU7: =AT7/(AV4-AT10) -> 0 | AV7: =IF(AU7=0,0,(AU7*((LOG(AU7))/LOG(2)))) -> 0
A8: 22 | B8: 325 | C8: 23 | D8: 341 | E8: 23 | F8: 349 | K8: 0 | L8: 222 | N8: 112 | O8: =COUNTIF($L$7:$L$500,N8) -> 3 | P8: =O8/$Q$4 -> 0.03370786517 | Q8: =IF(P8=0,0,(P8*((LOG(P8))/LOG(2)))) -> -0.1648574471 | T8: =N8 -> 112 | U8: =COUNTIF(L7:L21,T8) -> 2 | V8: =U8/(W4-U10) -> 0.2 | W8: =IF(V8=0,0,(V8*((LOG(V8))/LOG(2)))) -> -0.464385619 | Y8: =N8 -> 112 | Z8: =COUNTIF(L22:L36,Y8) -> 0 | AA8: =Z8/(AB4-Z10) -> 0 | AB8: =IF(AA8=0,0,(AA8*((LOG(AA8))/LOG(2)))) -> 0 | AD8: =N8 -> 112 | AE8: =COUNTIF(L37:L50,AD8) -> 0 | AF8: =AE8/(AG4-AE10) -> 0 | AG8: =IF(AF8=0,0,(AF8*((LOG(AF8))/LOG(2)))) -> 0 | AI8: =N8 -> 112 | AJ8: =COUNTIF(L51:L65,AI8) -> 1 | AK8: =AJ8/(AL4-AJ10) -> 0.1111111111 | AL8: =IF(AK8=0,0,(AK8*((LOG(AK8))/LOG(2)))) -> -0.352213889 | AN8: =N8 -> 112 | AO8: =COUNTIF(L66:L80,AN8) -> 0 | AP8: =AO8/(AQ4-AO10) -> 0 | AQ8: =IF(AP8=0,0,(AP8*((LOG(AP8))/LOG(2)))) -> 0 | AS8: =N8 -> 112 | AT8: =COUNTIF(L81:L95,AS8) -> 0 | AU8: =AT8/(AV4-AT10) -> 0 | AV8: =IF(AU8=0,0,(AU8*((LOG(AU8))/LOG(2)))) -> 0
A9: 11 | B9: 456 | C9: 12 | D9: 463 | E9: 14 | F9: 472 | K9: 0 | L9: 111 | N9: 121 | O9: =COUNTIF($L$7:$L$500,N9) -> 1 | P9: =O9/$Q$4 -> 0.01123595506 | Q9: =IF(P9=0,0,(P9*((LOG(P9))/LOG(2)))) -> -0.07276104979 | T9: =N9 -> 121 | U9: =COUNTIF(L7:L21,T9) -> 0 | V9: =U9/(W4-U10) -> 0 | W9: =IF(V9=0,0,(V9*((LOG(V9))/LOG(2)))) -> 0 | Y9: =N9 -> 121 | Z9: =COUNTIF(L22:L36,Y9) -> 0 | AA9: =Z9/(AB4-Z10) -> 0 | AB9: =IF(AA9=0,0,(AA9*((LOG(AA9))/LOG(2)))) -> 0 | AD9: =N9 -> 121 | AE9: =COUNTIF(L37:L50,AD9) -> 0 | AF9: =AE9/(AG4-AE10) -> 0 | AG9: =IF(AF9=0,0,(AF9*((LOG(AF9))/LOG(2)))) -> 0 | AI9: =N9 -> 121 | AJ9: =COUNTIF(L51:L65,AI9) -> 1 | AK9: =AJ9/(AL4-AJ10) -> 0.1111111111 | AL9: =IF(AK9=0,0,(AK9*((LOG(AK9))/LOG(2)))) -> -0.352213889 | AN9: =N9 -> 121 | AO9: =COUNTIF(L66:L80,AN9) -> 0 | AP9: =AO9/(AQ4-AO10) -> 0 | AQ9: =IF(AP9=0,0,(AP9*((LOG(AP9))/LOG(2)))) -> 0 | AS9: =N9 -> 121 | AT9: =COUNTIF(L81:L95,AS9) -> 0 | AU9: =AT9/(AV4-AT10) -> 0 | AV9: =IF(AU9=0,0,(AU9*((LOG(AU9))/LOG(2)))) -> 0
A10: 11 | B10: 569 | C10: 21 | D10: 603 | E10: 21 | F10: 643 | K10: 0 | L10: 122 | N10: 122 | O10: =COUNTIF($L$7:$L$500,N10) -> 40 | P10: =O10/$Q$4 -> 0.4494382022 | Q10: =IF(P10=0,0,(P10*((LOG(P10))/LOG(2)))) -> -0.518564196 | T10: =N10 -> 122 | U10: =COUNTIF(L7:L21,T10) -> 5 | Y10: =N10 -> 122 | Z10: =COUNTIF(L22:L36,Y10) -> 7 | AD10: =N10 -> 122 | AE10: =COUNTIF(L37:L50,AD10) -> 7 | AI10: =N10 -> 122 | AJ10: =COUNTIF(L51:L65,AI10) -> 6 | AN10: =N10 -> 122 | AO10: =COUNTIF(L66:L80,AN10) -> 9 | AS10: =N10 -> 122 | AT10: =COUNTIF(L81:L95,AS10) -> 6
A11: 22 | B11: 752 | C11: 23 | D11: 838 | E11: 23 | F11: 955 | K11: 0 | L11: 222 | N11: 211 | O11: =COUNTIF($L$7:$L$500,N11) -> 0 | P11: =O11/$Q$4 -> 0 | Q11: =IF(P11=0,0,(P11*((LOG(P11))/LOG(2)))) -> 0 | T11: =N11 -> 211 | U11: =COUNTIF(L7:L21,T11) -> 0 | V11: =U11/(W4-U10) -> 0 | W11: =IF(V11=0,0,(V11*((LOG(V11))/LOG(2)))) -> 0 | Y11: =N11 -> 211 | Z11: =COUNTIF(L22:L36,Y11) -> 0 | AA11: =Z11/(AB4-Z10) -> 0 | AB11: =IF(AA11=0,0,(AA11*((LOG(AA11))/LOG(2)))) -> 0 | AD11: =N11 -> 211 | AE11: =COUNTIF(L37:L50,AD11) -> 0 | AF11: =AE11/(AG4-AE10) -> 0 | AG11: =IF(AF11=0,0,(AF11*((LOG(AF11))/LOG(2)))) -> 0 | AI11: =N11 -> 211 | AJ11: =COUNTIF(L51:L65,AI11) -> 0 | AK11: =AJ11/(AL4-AJ10) -> 0 | AL11: =IF(AK11=0,0,(AK11*((LOG(AK11))/LOG(2)))) -> 0 | AN11: =N11 -> 211 | AO11: =COUNTIF(L66:L80,AN11) -> 0 | AP11: =AO11/(AQ4-AO10) -> 0 | AQ11: =IF(AP11=0,0,(AP11*((LOG(AP11))/LOG(2)))) -> 0 | AS11: =N11 -> 211 | AT11: =COUNTIF(L81:L95,AS11) -> 0 | AU11: =AT11/(AV4-AT10) -> 0 | AV11: =IF(AU11=0,0,(AU11*((LOG(AU11))/LOG(2)))) -> 0
A12: 11 | B12: 1052 | C12: 21 | D12: 1226 | E12: 21 | F12: 1234 | K12: 0 | L12: 122 | N12: 212 | O12: =COUNTIF($L$7:$L$500,N12) -> 0 | P12: =O12/$Q$4 -> 0 | Q12: =IF(P12=0,0,(P12*((LOG(P12))/LOG(2)))) -> 0 | T12: =N12 -> 212 | U12: =COUNTIF(L7:L21,T12) -> 0 | V12: =U12/(W4-U10) -> 0 | W12: =IF(V12=0,0,(V12*((LOG(V12))/LOG(2)))) -> 0 | Y12: =N12 -> 212 | Z12: =COUNTIF(L22:L36,Y12) -> 0 | AA12: =Z12/(AB4-Z10) -> 0 | AB12: =IF(AA12=0,0,(AA12*((LOG(AA12))/LOG(2)))) -> 0 | AD12: =N12 -> 212 | AE12: =COUNTIF(L37:L50,AD12) -> 0 | AF12: =AE12/(AG4-AE10) -> 0 | AG12: =IF(AF12=0,0,(AF12*((LOG(AF12))/LOG(2)))) -> 0 | AI12: =N12 -> 212 | AJ12: =COUNTIF(L51:L65,AI12) -> 0 | AK12: =AJ12/(AL4-AJ10) -> 0 | AL12: =IF(AK12=0,0,(AK12*((LOG(AK12))/LOG(2)))) -> 0 | AN12: =N12 -> 212 | AO12: =COUNTIF(L66:L80,AN12) -> 0 | AP12: =AO12/(AQ4-AO10) -> 0 | AQ12: =IF(AP12=0,0,(AP12*((LOG(AP12))/LOG(2)))) -> 0 | AS12: =N12 -> 212 | AT12: =COUNTIF(L81:L95,AS12) -> 0 | AU12: =AT12/(AV4-AT10) -> 0 | AV12: =IF(AU12=0,0,(AU12*((LOG(AU12))/LOG(2)))) -> 0
A13: 22 | B13: 1375 | C13: 23 | D13: 1384 | E13: 23 | F13: 1431 | K13: 0 | L13: 222 | N13: 221 | O13: =COUNTIF($L$7:$L$500,N13) -> 0 | P13: =O13/$Q$4 -> 0 | Q13: =IF(P13=0,0,(P13*((LOG(P13))/LOG(2)))) -> 0 | T13: =N13 -> 221 | U13: =COUNTIF(L7:L21,T13) -> 0 | V13: =U13/(W4-U10) -> 0 | W13: =IF(V13=0,0,(V13*((LOG(V13))/LOG(2)))) -> 0 | Y13: =N13 -> 221 | Z13: =COUNTIF(L22:L36,Y13) -> 0 | AA13: =Z13/(AB4-Z10) -> 0 | AB13: =IF(AA13=0,0,(AA13*((LOG(AA13))/LOG(2)))) -> 0 | AD13: =N13 -> 221 | AE13: =COUNTIF(L37:L50,AD13) -> 0 | AF13: =AE13/(AG4-AE10) -> 0 | AG13: =IF(AF13=0,0,(AF13*((LOG(AF13))/LOG(2)))) -> 0 | AI13: =N13 -> 221 | AJ13: =COUNTIF(L51:L65,AI13) -> 0 | AK13: =AJ13/(AL4-AJ10) -> 0 | AL13: =IF(AK13=0,0,(AK13*((LOG(AK13))/LOG(2)))) -> 0 | AN13: =N13 -> 221 | AO13: =COUNTIF(L66:L80,AN13) -> 0 | AP13: =AO13/(AQ4-AO10) -> 0 | AQ13: =IF(AP13=0,0,(AP13*((LOG(AP13))/LOG(2)))) -> 0 | AS13: =N13 -> 221 | AT13: =COUNTIF(L81:L95,AS13) -> 0 | AU13: =AT13/(AV4-AT10) -> 0 | AV13: =IF(AU13=0,0,(AU13*((LOG(AU13))/LOG(2)))) -> 0
A14: 11 | B14: 1523 | C14: 12 | D14: 1530 | E14: 23 | F14: 1592 | K14: 0 | L14: 112 | N14: 222 | O14: =COUNTIF($L$7:$L$500,N14) -> 42 | P14: =O14/$Q$4 -> 0.4719101124 | Q14: =IF(P14=0,0,(P14*((LOG(P14))/LOG(2)))) -> -0.5112749702 | T14: =N14 -> 222 | U14: =COUNTIF(L7:L21,T14) -> 5 | V14: =U14/(W4-U10) -> 0.5 | W14: =IF(V14=0,0,(V14*((LOG(V14))/LOG(2)))) -> -0.5 | Y14: =N14 -> 222 | Z14: =COUNTIF(L22:L36,Y14) -> 8 | AA14: =Z14/(AB4-Z10) -> 1 | AB14: =IF(AA14=0,0,(AA14*((LOG(AA14))/LOG(2)))) -> 0 | AD14: =N14 -> 222 | AE14: =COUNTIF(L37:L50,AD14) -> 7 | AF14: =AE14/(AG4-AE10) -> 1 | AG14: =IF(AF14=0,0,(AF14*((LOG(AF14))/LOG(2)))) -> 0 | AI14: =N14 -> 222 | AJ14: =COUNTIF(L51:L65,AI14) -> 7 | AK14: =AJ14/(AL4-AJ10) -> 0.7777777778 | AL14: =IF(AK14=0,0,(AK14*((LOG(AK14))/LOG(2)))) -> -0.2819989506 | AN14: =N14 -> 222 | AO14: =COUNTIF(L66:L80,AN14) -> 6 | AP14: =AO14/(AQ4-AO10) -> 1 | AQ14: =IF(AP14=0,0,(AP14*((LOG(AP14))/LOG(2)))) -> 0 | AS14: =N14 -> 222 | AT14: =COUNTIF(L81:L95,AS14) -> 9 | AU14: =AT14/(AV4-AT10) -> 1 | AV14: =IF(AU14=0,0,(AU14*((LOG(AU14))/LOG(2)))) -> 0
A15: 11 | B15: 1688 | C15: 12 | D15: 1696 | E15: 14 | F15: 1705 | K15: 0 | L15: 111 | P15: =SUM(P7:P14) -> 1 | Q15: =-SUM(Q7:Q14) -> 1.43231511 | V15: =SUM(V7:V14) -> 1 | W15: =-SUM(W7:W14) -> 1.485475297 | AA15: =SUM(AA7:AA14) -> 1 | AB15: =-SUM(AB7:AB14) -> 0 | AF15: =SUM(AF7:AF14) -> 1 | AG15: =-SUM(AG7:AG14) -> 0 | AK15: =SUM(AK7:AK14) -> 1 | AL15: =-SUM(AL7:AL14) -> 0.9864267287 | AP15: =SUM(AP7:AP14) -> 1 | AQ15: =-SUM(AQ7:AQ14) -> 0 | AU15: =SUM(AU7:AU14) -> 1 | AV15: =-SUM(AV7:AV14) -> 0
A16: 22 | B16: 1846 | C16: 23 | D16: 1959 | E16: 23 | F16: 1982 | K16: 0 | L16: 222 | P16: U= | Q16: =Q15/(LOG(Q4)/LOG(2)) -> 0.2211819133 | V16: U1= | W16: =W15/(LOG(W4)/LOG(2)) -> 0.380219323 | AA16: U2= | AB16: =AB15/(LOG(AB4)/LOG(2)) -> 0 | AF16: U3= | AG16: =AG15/(LOG(AG4)/LOG(2)) -> 0 | AK16: U4= | AL16: =AL15/(LOG(AL4)/LOG(2)) -> 0.2524838371 | AP16: U5= | AQ16: =AQ15/(LOG(AQ4)/LOG(2)) -> 0 | AU16: U6= | AV16: =AV15/(LOG(AV4)/LOG(2)) -> 0
A17: 11 | B17: 2078 | C17: 21 | D17: 2097 | E17: 21 | F17: 2105 | K17: 0 | L17: 122
A18: 11 | B18: 2194 | C18: 12 | D18: 2203 | E18: 23 | F18: 2224 | K18: 0 | L18: 112
A19: 22 | B19: 2398 | C19: 23 | D19: 2412 | E19: 23 | F19: 2426 | K19: 0 | L19: 222 | N19: Total Target Seq
A20: 11 | B20: 2520 | C20: 21 | D20: 2535 | E20: 21 | F20: 2543 | K20: 0 | L20: 122 | N20: =COUNTIF(L7:L95,G3) -> 40 | P20: 15 | Q20: 15 | R20: 14 | S20: 15 | T20: 15 | U20: 15
A21: 11 | B21: 2632 | C21: 21 | D21: 2647 | E21: 21 | F21: 2655 | K21: 0 | L21: 122 | P21: % of reinforcement given in 6 equal intervals based on number of trials
A22: 22 | B22: 2755 | C22: 23 | D22: 2778 | E22: 23 | F22: 2795 | K22: 0 | L22: 222 | P22: %_1 | Q22: %_2 | R22: %_3 | S22: %_4 | T22: %_5 | U22: %_6
A23: 22 | B23: 2912 | C23: 23 | D23: 2920 | E23: 23 | F23: 2936 | K23: 0 | L23: 222 | O23: target sequence | P23: =$G$3 -> 122 | Q23: =$G$3 -> 122 | R23: =$G$3 -> 122 | S23: =$G$3 -> 122 | T23: =$G$3 -> 122 | U23: =$G$3 -> 122
A24: 22 | B24: 3046 | C24: 23 | D24: 3054 | E24: 23 | F24: 3076 | K24: 0 | L24: 222 | O24: total reinforcement | P24: =U10 -> 5 | Q24: =Z10 -> 7 | R24: =AE10 -> 7 | S24: =AJ10 -> 6 | T24: =AO10 -> 9 | U24: =AT10 -> 6
A25: 11 | B25: 3171 | C25: 21 | D25: 3191 | E25: 21 | F25: 3206 | K25: 0 | L25: 122 | O25: % target
A26: 22 | B26: 3322 | C26: 23 | D26: 3331 | E26: 23 | F26: 3409 | K26: 0 | L26: 222 | O26: CCRF
A27: 11 | B27: 3507 | C27: 21 | D27: 3525 | E27: 21 | F27: 3559 | K27: 0 | L27: 122 | O27: % CCRf
A28: 11 | B28: 3649 | C28: 21 | D28: 3692 | E28: 21 | F28: 3702 | K28: 0 | L28: 122 | O28: average response rate | P28: =F21/P20 -> 177 | Q28: =(F36-F21)/Q20 -> 156.9333333 | R28: =(F50-F36)/R20 -> 150.5714286 | S28: =(F65-F50)/S20 -> 160.8 | T28: =(F80-F65)/T20 -> 156.9333333 | U28: =(F95-F80)/U20 -> 168.7333333
A29: 11 | B29: 3785 | C29: 21 | D29: 3809 | E29: 21 | F29: 3817 | K29: 0 | L29: 122
A30: 11 | B30: 3906 | C30: 21 | D30: 3920 | E30: 21 | F30: 3927 | K30: 0 | L30: 122
A31: 22 | B31: 4033 | C31: 23 | D31: 4040 | E31: 23 | F31: 4056 | K31: 0 | L31: 222
A32: 22 | B32: 4219 | C32: 23 | D32: 4392 | E32: 23 | F32: 4406 | K32: 0 | L32: 222
A33: 22 | B33: 4523 | C33: 23 | D33: 4586 | E33: 23 | F33: 4619 | K33: 0 | L33: 222
A34: 22 | B34: 4733 | C34: 23 | D34: 4740 | E34: 23 | F34: 4756 | K34: 0 | L34: 222
A35: 11 | B35: 4862 | C35: 21 | D35: 4879 | E35: 21 | F35: 4887 | K35: 0 | L35: 122
A36: 11 | B36: 4972 | C36: 21 | D36: 4996 | E36: 21 | F36: 5009 | K36: 0 | L36: 122
A37: 11 | B37: 5099 | C37: 21 | D37: 5125 | E37: 21 | F37: 5147 | K37: 0 | L37: 122
A38: 11 | B38: 5238 | C38: 21 | D38: 5260 | E38: 21 | F38: 5268 | K38: 0 | L38: 122
A39: 11 | B39: 5357 | C39: 21 | D39: 5391 | E39: 21 | F39: 5399 | K39: 0 | L39: 122
A40: 22 | B40: 5508 | C40: 23 | D40: 5515 | E40: 23 | F40: 5530 | K40: 0 | L40: 222
A41: 22 | B41: 5662 | C41: 23 | D41: 5678 | E41: 23 | F41: 5707 | K41: 0 | L41: 222
A42: 22 | B42: 5824 | C42: 23 | D42: 5832 | E42: 23 | F42: 5840 | K42: 0 | L42: 222
A43: 11 | B43: 5937 | C43: 21 | D43: 5950 | E43: 21 | F43: 5958 | K43: 0 | L43: 122
A44: 11 | B44: 6049 | C44: 21 | D44: 6066 | E44: 21 | F44: 6086 | K44: 0 | L44: 122
A45: 22 | B45: 6198 | C45: 23 | D45: 6206 | E45: 23 | F45: 6226 | K45: 0 | L45: 222
A46: 11 | B46: 6325 | C46: 21 | D46: 6353 | E46: 21 | F46: 6362 | K46: 0 | L46: 122
A47: 11 | B47: 6452 | C47: 21 | D47: 6468 | E47: 21 | F47: 6476 | K47: 0 | L47: 122
A48: 22 | B48: 6586 | C48: 23 | D48: 6594 | E48: 23 | F48: 6726 | K48: 0 | L48: 222
A49: 22 | B49: 6850 | C49: 23 | D49: 6926 | E49: 23 | F49: 6983 | K49: 0 | L49: 222
A50: 22 | B50: 7102 | C50: 23 | D50: 7109 | E50: 23 | F50: 7117 | K50: 0 | L50: 222
A51: 11 | B51: 7216 | C51: 21 | D51: 7233 | E51: 21 | F51: 7241 | K51: 0 | L51: 122
A52: 22 | B52: 7347 | C52: 23 | D52: 7355 | E52: 23 | F52: 7363 | K52: 0 | L52: 222
A53: 22 | B53: 7495 | C53: 23 | D53: 7506 | E53: 23 | F53: 7537 | K53: 0 | L53: 222
A54: 11 | B54: 7636 | C54: 21 | D54: 7652 | E54: 21 | F54: 7660 | K54: 0 | L54: 122
A55: 22 | B55: 7774 | C55: 23 | D55: 7789 | E55: 23 | F55: 7796 | K55: 0 | L55: 222
A56: 11 | B56: 7896 | C56: 21 | D56: 7913 | E56: 21 | F56: 7921 | K56: 0 | L56: 122
A57: 11 | B57: 8011 | C57: 21 | D57: 8029 | E57: 12 | F57: 8142 | K57: 0 | L57: 121
A58: 22 | B58: 8409 | C58: 23 | D58: 8554 | E58: 23 | F58: 8571 | K58: 0 | L58: 222
A59: 11 | B59: 8671 | C59: 21 | D59: 8708 | E59: 21 | F59: 8717 | K59: 0 | L59: 122
A60: 22 | B60: 8839 | C60: 23 | D60: 8847 | E60: 23 | F60: 8869 | K60: 0 | L60: 222
A61: 11 | B61: 8961 | C61: 12 | D61: 8969 | E61: 23 | F61: 8987 | K61: 0 | L61: 112
A62: 11 | B62: 9084 | C62: 21 | D62: 9108 | E62: 21 | F62: 9120 | K62: 0 | L62: 122
A63: 22 | B63: 9229 | C63: 23 | D63: 9238 | E63: 23 | F63: 9247 | K63: 0 | L63: 222
A64: 11 | B64: 9344 | C64: 21 | D64: 9356 | E64: 21 | F64: 9363 | K64: 0 | L64: 122
A65: 22 | B65: 9492 | C65: 23 | D65: 9517 | E65: 23 | F65: 9529 | K65: 0 | L65: 222
A66: 11 | B66: 9627 | C66: 21 | D66: 9655 | E66: 21 | F66: 9691 | K66: 0 | L66: 122
A67: 11 | B67: 9781 | C67: 21 | D67: 9798 | E67: 21 | F67: 9805 | K67: 0 | L67: 122
A68: 22 | B68: 9911 | C68: 23 | D68: 9975 | E68: 23 | F68: 10008 | K68: 0 | L68: 222
A69: 11 | B69: 10107 | C69: 21 | D69: 10141 | E69: 21 | F69: 10149 | K69: 0 | L69: 122
A70: 11 | B70: 10238 | C70: 21 | D70: 10262 | E70: 21 | F70: 10270 | K70: 0 | L70: 122
A71: 22 | B71: 10388 | C71: 23 | D71: 10415 | E71: 23 | F71: 10431 | K71: 0 | L71: 222
A72: 11 | B72: 10532 | C72: 21 | D72: 10549 | E72: 21 | F72: 10558 | K72: 0 | L72: 122
A73: 22 | B73: 10664 | C73: 23 | D73: 10761 | E73: 23 | F73: 10789 | K73: 0 | L73: 222
A74: 11 | B74: 10887 | C74: 21 | D74: 10908 | E74: 21 | F74: 10915 | K74: 0 | L74: 122
A75: 22 | B75: 11022 | C75: 23 | D75: 11031 | E75: 23 | F75: 11052 | K75: 0 | L75: 222
A76: 11 | B76: 11150 | C76: 21 | D76: 11178 | E76: 21 | F76: 11209 | K76: 0 | L76: 122
A77: 11 | B77: 11298 | C77: 21 | D77: 11316 | E77: 21 | F77: 11324 | K77: 0 | L77: 122
A78: 22 | B78: 11429 | C78: 23 | D78: 11437 | E78: 23 | F78: 11469 | K78: 0 | L78: 222
A79: 22 | B79: 11589 | C79: 23 | D79: 11597 | E79: 23 | F79: 11630 | K79: 0 | L79: 222
A80: 11 | B80: 11727 | C80: 21 | D80: 11762 | E80: 21 | F80: 11883 | K80: 0 | L80: 122
A81: 22 | B81: 11988 | C81: 23 | D81: 12078 | E81: 23 | F81: 12193 | K81: 0 | L81: 222
A82: 22 | B82: 12341 | C82: 23 | D82: 12350 | E82: 23 | F82: 12360 | K82: 0 | L82: 222
A83: 11 | B83: 12464 | C83: 21 | D83: 12481 | E83: 21 | F83: 12489 | K83: 0 | L83: 122
A84: 22 | B84: 12599 | C84: 23 | D84: 12607 | E84: 23 | F84: 12616 | K84: 0 | L84: 222
A85: 11 | B85: 12713 | C85: 21 | D85: 12747 | E85: 21 | F85: 12757 | K85: 0 | L85: 122
A86: 22 | B86: 12861 | C86: 23 | D86: 12869 | E86: 23 | F86: 12882 | K86: 0 | L86: 222
A87: 11 | B87: 12980 | C87: 21 | D87: 13008 | E87: 21 | F87: 13018 | K87: 0 | L87: 122
A88: 11 | B88: 13112 | C88: 21 | D88: 13131 | E88: 21 | F88: 13140 | K88: 0 | L88: 122
A89: 22 | B89: 13261 | C89: 23 | D89: 13269 | E89: 23 | F89: 13310 | K89: 0 | L89: 222
A90: 22 | B90: 13426 | C90: 23 | D90: 13448 | E90: 23 | F90: 13464 | K90: 0 | L90: 222
A91: 22 | B91: 13577 | C91: 23 | D91: 13608 | E91: 23 | F91: 13631 | K91: 0 | L91: 222
A92: 11 | B92: 13727 | C92: 21 | D92: 13743 | E92: 21 | F92: 13759 | K92: 0 | L92: 122
A93: 22 | B93: 13912 | C93: 23 | D93: 13925 | E93: 23 | F93: 13934 | K93: 0 | L93: 222
A94: 22 | B94: 14127 | C94: 23 | D94: 14144 | E94: 23 | F94: 14178 | K94: 0 | L94: 222
A95: 11 | B95: 14274 | C95: 21 | D95: 14383 | E95: 21 | F95: 14414 | K95: 1 | L95: 122

Sheet !M623C20.102
A1: Report for:!M623C20.102
A2: Date: | B2: <date>
A3: Hen: | B3: <hen> | F3: Correct Sequence | G3: =Start!J2 -> 122 | P3: Total Sequences in Data | Q3: =4994-COUNTBLANK(L7:L5000) -> 70 | V3: Total Sequences in Block Data | W3: =COUNTA(L7:L18) -> 12 | AA3: Total Sequences in Block Data | AB3: =COUNTA(L19:L29) -> 11 | AF3: Total Sequences in Block Data | AG3: =COUNTA(L30:L41) -> 12 | AK3: Total Sequences in Block Data | AL3: =COUNTA(L42:L53) -> 12 | AP3: Total Sequences in Block Data | AQ3: =COUNTA(L54:L64) -> 11 | AU3: Total Sequences in Block Data | AV3: =COUNTA(L65:L76) -> 12
P4: Total Sequences in Summary | Q4: =SUM(O7:O14) -> 70 | V4: Total Sequences in Block Summary | W4: =SUM(U7:U14) -> 12 | AA4: Total Sequences in Block Summary | AB4: =SUM(Z7:Z14) -> 11 | AF4: Total Sequences in Block Summary | AG4: =SUM(AE7:AE14) -> 12 | AK4: Total Sequences in Block Summary | AL4: =SUM(AJ7:AJ14) -> 12 | AP4: Total Sequences in Block Summary | AQ4: =SUM(AO7:AO14) -> 11 | AU4: Total Sequences in Block Summary | AV4: =SUM(AT7:AT14) -> 12
T5: Block 1 | Y5: Block 2 | AD5: Block 3 | AI5: Block 4 | AN5: Block 5 | AS5: Block 6
A6: Sequence Component 1 | B6: Time 1 | C6: Sequence Component 2 | D6: Time 2 | E6: Sequence Component 3 | F6: Time 3 | G6: Sequence Component 4 | H6: Time 4 | I6: Sequence Component 5 | J6: Time 5 | K6: Correct? 0=No 1=Yes | L6: Sequence | N6: Frequency | P6: Relative Frequency | Q6: Variability | T6: Frequency | V6: Relative Frequency | W6: Variability | Y6: Frequency | AA6: Relative Frequency | AB6: Variability | AD6: Frequency | AF6: Relative Frequency | AG6: Variability | AI6: Frequency | AK6: Relative Frequency | AL6: Variability | AN6: Frequency | AP6: Relative Frequency | AQ6: Variability | AS6: Frequency | AU6: Relative Frequency | AV6: Variability
A7: 11 | B7: 34 | C7: 12 | D7: 110 | E7: 14 | F7: 118 | K7: 0 | L7: 111 | N7: 111 | O7: =COUNTIF($L$7:$L$500,N7) -> 4 | P7: =O7/$Q$4 -> 0.05714285714 | Q7: =IF(P7=0,0,(P7*((LOG(P7))/LOG(2)))) -> -0.2359590295 | T7: =N7 -> 111 | U7: =COUNTIF(L7:L18,T7) -> 4 | V7: =U7/(W4-U10) -> 0.5 | W7: =IF(V7=0,0,(V7*((LOG(V7))/LOG(2)))) -> -0.5 | Y7: =N7 -> 111 | Z7: =COUNTIF(L19:L29,Y7) -> 0 | AA7: =Z7/(AB4-Z10) -> 0 | AB7: =IF(AA7=0,0,(AA7*((LOG(AA7))/LOG(2)))) -> 0 | AD7: =N7 -> 111 | AE7: =COUNTIF(L30:L41,AD7) -> 0 | AF7: =AE7/(AG4-AE10) -> 0 | AG7: =IF(AF7=0,0,(AF7*((LOG(AF7))/LOG(2)))) -> 0 | AI7: =N7 -> 111 | AJ7: =COUNTIF(L42:L53,AI7) -> 0 | AK7: =AJ7/(AL4-AJ10) -> 0 | AL7: =IF(AK7=0,0,(AK7*((LOG(AK7))/LOG(2)))) -> 0 | AN7: =N7 -> 111 | AO7: =COUNTIF(L54:L64,AN7) -> 0 | AP7: =AO7/(AQ4-AO10) -> 0 | AQ7: =IF(AP7=0,0,(AP7*((LOG(AP7))/LOG(2)))) -> 0 | AS7: =N7 -> 111 | AT7: =COUNTIF(L65:L76,AS7) -> 0 | AU7: =AT7/(AV4-AT10) -> 0 | AV7: =IF(AU7=0,0,(AU7*((LOG(AU7))/LOG(2)))) -> 0
A8: 11 | B8: 213 | C8: 12 | D8: 238 | E8: 14 | F8: 295 | K8: 0 | L8: 111 | N8: 112 | O8: =COUNTIF($L$7:$L$500,N8) -> 11 | P8: =O8/$Q$4 -> 0.1571428571 | Q8: =IF(P8=0,0,(P8*((LOG(P8))/LOG(2)))) -> -0.4195480769 | T8: =N8 -> 112 | U8: =COUNTIF(L7:L18,T8) -> 2 | V8: =U8/(W4-U10) -> 0.25 | W8: =IF(V8=0,0,(V8*((LOG(V8))/LOG(2)))) -> -0.5 | Y8: =N8 -> 112 | Z8: =COUNTIF(L19:L29,Y8) -> 2 | AA8: =Z8/(AB4-Z10) -> 0.4 | AB8: =IF(AA8=0,0,(AA8*((LOG(AA8))/LOG(2)))) -> -0.528771238 | AD8: =N8 -> 112 | AE8: =COUNTIF(L30:L41,AD8) -> 1 | AF8: =AE8/(AG4-AE10) -> 0.25 | AG8: =IF(AF8=0,0,(AF8*((LOG(AF8))/LOG(2)))) -> -0.5 | AI8: =N8 -> 112 | AJ8: =COUNTIF(L42:L53,AI8) -> 2 | AK8: =AJ8/(AL4-AJ10) -> 0.2857142857 | AL8: =IF(AK8=0,0,(AK8*((LOG(AK8))/LOG(2)))) -> -0.5163871206 | AN8: =N8 -> 112 | AO8: =COUNTIF(L54:L64,AN8) -> 3 | AP8: =AO8/(AQ4-AO10) -> 1 | AQ8: =IF(AP8=0,0,(AP8*((LOG(AP8))/LOG(2)))) -> 0 | AS8: =N8 -> 112 | AT8: =COUNTIF(L65:L76,AS8) -> 1 | AU8: =AT8/(AV4-AT10) -> 0.3333333333 | AV8: =IF(AU8=0,0,(AU8*((LOG(AU8))/LOG(2)))) -> -0.5283208336
A9: 11 | B9: 387 | C9: 12 | D9: 402 | E9: 14 | F9: 410 | K9: 0 | L9: 111 | N9: 121 | O9: =COUNTIF($L$7:$L$500,N9) -> 1 | P9: =O9/$Q$4 -> 0.01428571429 | Q9: =IF(P9=0,0,(P9*((LOG(P9))/LOG(2)))) -> -0.08756118596 | T9: =N9 -> 121 | U9: =COUNTIF(L7:L18,T9) -> 1 | V9: =U9/(W4-U10) -> 0.125 | W9: =IF(V9=0,0,(V9*((LOG(V9))/LOG(2)))) -> -0.375 | Y9: =N9 -> 121 | Z9: =COUNTIF(L19:L29,Y9) -> 0 | AA9: =Z9/(AB4-Z10) -> 0 | AB9: =IF(AA9=0,0,(AA9*((LOG(AA9))/LOG(2)))) -> 0 | AD9: =N9 -> 121 | AE9: =COUNTIF(L30:L41,AD9) -> 0 | AF9: =AE9/(AG4-AE10) -> 0 | AG9: =IF(AF9=0,0,(AF9*((LOG(AF9))/LOG(2)))) -> 0 | AI9: =N9 -> 121 | AJ9: =COUNTIF(L42:L53,AI9) -> 0 | AK9: =AJ9/(AL4-AJ10) -> 0 | AL9: =IF(AK9=0,0,(AK9*((LOG(AK9))/LOG(2)))) -> 0 | AN9: =N9 -> 121 | AO9: =COUNTIF(L54:L64,AN9) -> 0 | AP9: =AO9/(AQ4-AO10) -> 0 | AQ9: =IF(AP9=0,0,(AP9*((LOG(AP9))/LOG(2)))) -> 0 | AS9: =N9 -> 121 | AT9: =COUNTIF(L65:L76,AS9) -> 0 | AU9: =AT9/(AV4-AT10) -> 0 | AV9: =IF(AU9=0,0,(AU9*((LOG(AU9))/LOG(2)))) -> 0
A10: 11 | B10: 506 | C10: 12 | D10: 510 | E10: 14 | F10: 519 | K10: 0 | L10: 111 | N10: 122 | O10: =COUNTIF($L$7:$L$500,N10) -> 40 | P10: =O10/$Q$4 -> 0.5714285714 | Q10: =IF(P10=0,0,(P10*((LOG(P10))/LOG(2)))) -> -0.4613456697 | T10: =N10 -> 122 | U10: =COUNTIF(L7:L18,T10) -> 4 | Y10: =N10 -> 122 | Z10: =COUNTIF(L19:L29,Y10) -> 6 | AD10: =N10 -> 122 | AE10: =COUNTIF(L30:L41,AD10) -> 8 | AI10: =N10 -> 122 | AJ10: =COUNTIF(L42:L53,AI10) -> 5 | AN10: =N10 -> 122 | AO10: =COUNTIF(L54:L64,AN10) -> 8 | AS10: =N10 -> 122 | AT10: =COUNTIF(L65:L76,AS10) -> 9
A11: 11 | B11: 617 | C11: 12 | D11: 625 | E11: 23 | F11: 635 | K11: 0 | L11: 112 | N11: 211 | O11: =COUNTIF($L$7:$L$500,N11) -> 0 | P11: =O11/$Q$4 -> 0 | Q11: =IF(P11=0,0,(P11*((LOG(P11))/LOG(2)))) -> 0 | T11: =N11 -> 211 | U11: =COUNTIF(L7:L18,T11) -> 0 | V11: =U11/(W4-U10) -> 0 | W11: =IF(V11=0,0,(V11*((LOG(V11))/LOG(2)))) -> 0 | Y11: =N11 -> 211 | Z11: =COUNTIF(L19:L29,Y11) -> 0 | AA11: =Z11/(AB4-Z10) -> 0 | AB11: =IF(AA11=0,0,(AA11*((LOG(AA11))/LOG(2)))) -> 0 | AD11: =N11 -> 211 | AE11: =COUNTIF(L30:L41,AD11) -> 0 | AF11: =AE11/(AG4-AE10) -> 0 | AG11: =IF(AF11=0,0,(AF11*((LOG(AF11))/LOG(2)))) -> 0 | AI11: =N11 -> 211 | AJ11: =COUNTIF(L42:L53,AI11) -> 0 | AK11: =AJ11/(AL4-AJ10) -> 0 | AL11: =IF(AK11=0,0,(AK11*((LOG(AK11))/LOG(2)))) -> 0 | AN11: =N11 -> 211 | AO11: =COUNTIF(L54:L64,AN11) -> 0 | AP11: =AO11/(AQ4-AO10) -> 0 | AQ11: =IF(AP11=0,0,(AP11*((LOG(AP11))/LOG(2)))) -> 0 | AS11: =N11 -> 211 | AT11: =COUNTIF(L65:L76,AS11) -> 0 | AU11: =AT11/(AV4-AT10) -> 0 | AV11: =IF(AU11=0,0,(AU11*((LOG(AU11))/LOG(2)))) -> 0
A12: 22 | B12: 748 | C12: 23 | D12: 762 | E12: 23 | F12: 777 | K12: 0 | L12: 222 | N12: 212 | O12: =COUNTIF($L$7:$L$500,N12) -> 0 | P12: =O12/$Q$4 -> 0 | Q12: =IF(P12=0,0,(P12*((LOG(P12))/LOG(2)))) -> 0 | T12: =N12 -> 212 | U12: =COUNTIF(L7:L18,T12) -> 0 | V12: =U12/(W4-U10) -> 0 | W12: =IF(V12=0,0,(V12*((LOG(V12))/LOG(2)))) -> 0 | Y12: =N12 -> 212 | Z12: =COUNTIF(L19:L29,Y12) -> 0 | AA12: =Z12/(AB4-Z10) -> 0 | AB12: =IF(AA12=0,0,(AA12*((LOG(AA12))/LOG(2)))) -> 0 | AD12: =N12 -> 212 | AE12: =COUNTIF(L30:L41,AD12) -> 0 | AF12: =AE12/(AG4-AE10) -> 0 | AG12: =IF(AF12=0,0,(AF12*((LOG(AF12))/LOG(2)))) -> 0 | AI12: =N12 -> 212 | AJ12: =COUNTIF(L42:L53,AI12) -> 0 | AK12: =AJ12/(AL4-AJ10) -> 0 | AL12: =IF(AK12=0,0,(AK12*((LOG(AK12))/LOG(2)))) -> 0 | AN12: =N12 -> 212 | AO12: =COUNTIF(L54:L64,AN12) -> 0 | AP12: =AO12/(AQ4-AO10) -> 0 | AQ12: =IF(AP12=0,0,(AP12*((LOG(AP12))/LOG(2)))) -> 0 | AS12: =N12 -> 212 | AT12: =COUNTIF(L65:L76,AS12) -> 0 | AU12: =AT12/(AV4-AT10) -> 0 | AV12: =IF(AU12=0,0,(AU12*((LOG(AU12))/LOG(2)))) -> 0
A13: 11 | B13: 909 | C13: 21 | D13: 922 | E13: 12 | F13: 965 | K13: 0 | L13: 121 | N13: 221 | O13: =COUNTIF($L$7:$L$500,N13) -> 0 | P13: =O13/$Q$4 -> 0 | Q13: =IF(P13=0,0,(P13*((LOG(P13))/LOG(2)))) -> 0 | T13: =N13 -> 221 | U13: =COUNTIF(L7:L18,T13) -> 0 | V13: =U13/(W4-U10) -> 0 | W13: =IF(V13=0,0,(V13*((LOG(V13))/LOG(2)))) -> 0 | Y13: =N13 -> 221 | Z13: =COUNTIF(L19:L29,Y13) -> 0 | AA13: =Z13/(AB4-Z10) -> 0 | AB13: =IF(AA13=0,0,(AA13*((LOG(AA13))/LOG(2)))) -> 0 | AD13: =N13 -> 221 | AE13: =COUNTIF(L30:L41,AD13) -> 0 | AF13: =AE13/(AG4-AE10) -> 0 | AG13: =IF(AF13=0,0,(AF13*((LOG(AF13))/LOG(2)))) -> 0 | AI13: =N13 -> 221 | AJ13: =COUNTIF(L42:L53,AI13) -> 0 | AK13: =AJ13/(AL4-AJ10) -> 0 | AL13: =IF(AK13=0,0,(AK13*((LOG(AK13))/LOG(2)))) -> 0 | AN13: =N13 -> 221 | AO13: =COUNTIF(L54:L64,AN13) -> 0 | AP13: =AO13/(AQ4-AO10) -> 0 | AQ13: =IF(AP13=0,0,(AP13*((LOG(AP13))/LOG(2)))) -> 0 | AS13: =N13 -> 221 | AT13: =COUNTIF(L65:L76,AS13) -> 0 | AU13: =AT13/(AV4-AT10) -> 0 | AV13: =IF(AU13=0,0,(AU13*((LOG(AU13))/LOG(2)))) -> 0
A14: 11 | B14: 1079 | C14: 21 | D14: 1096 | E14: 21 | F14: 1110 | K14: 0 | L14: 122 | N14: 222 | O14: =COUNTIF($L$7:$L$500,N14) -> 14 | P14: =O14/$Q$4 -> 0.2 | Q14: =IF(P14=0,0,(P14*((LOG(P14))/LOG(2)))) -> -0.464385619 | T14: =N14 -> 222 | U14: =COUNTIF(L7:L18,T14) -> 1 | V14: =U14/(W4-U10) -> 0.125 | W14: =IF(V14=0,0,(V14*((LOG(V14))/LOG(2)))) -> -0.375 | Y14: =N14 -> 222 | Z14: =COUNTIF(L19:L29,Y14) -> 3 | AA14: =Z14/(AB4-Z10) -> 0.6 | AB14: =IF(AA14=0,0,(AA14*((LOG(AA14))/LOG(2)))) -> -0.4421793565 | AD14: =N14 -> 222 | AE14: =COUNTIF(L30:L41,AD14) -> 3 | AF14: =AE14/(AG4-AE10) -> 0.75 | AG14: =IF(AF14=0,0,(AF14*((LOG(AF14))/LOG(2)))) -> -0.3112781245 | AI14: =N14 -> 222 | AJ14: =COUNTIF(L42:L53,AI14) -> 5 | AK14: =AJ14/(AL4-AJ10) -> 0.7142857143 | AL14: =IF(AK14=0,0,(AK14*((LOG(AK14))/LOG(2)))) -> -0.346733448 | AN14: =N14 -> 222 | AO14: =COUNTIF(L54:L64,AN14) -> 0 | AP14: =AO14/(AQ4-AO10) -> 0 | AQ14: =IF(AP14=0,0,(AP14*((LOG(AP14))/LOG(2)))) -> 0 | AS14: =N14 -> 222 | AT14: =COUNTIF(L65:L76,AS14) -> 2 | AU14: =AT14/(AV4-AT10) -> 0.6666666667 | AV14: =IF(AU14=0,0,(AU14*((LOG(AU14))/LOG(2)))) -> -0.3899750005
A15: 11 | B15: 1205 | C15: 21 | D15: 1220 | E15: 21 | F15: 1232 | K15: 0 | L15: 122 | P15: =SUM(P7:P14) -> 1 | Q15: =-SUM(Q7:Q14) -> 1.668799581 | V15: =SUM(V7:V14) -> 1 | W15: =-SUM(W7:W14) -> 1.75 | AA15: =SUM(AA7:AA14) -> 1 | AB15: =-SUM(AB7:AB14) -> 0.9709505945 | AF15: =SUM(AF7:AF14) -> 1 | AG15: =-SUM(AG7:AG14) -> 0.8112781245 | AK15: =SUM(AK7:AK14) -> 1 | AL15: =-SUM(AL7:AL14) -> 0.8631205686 | AP15: =SUM(AP7:AP14) -> 1 | AQ15: =-SUM(AQ7:AQ14) -> 0 | AU15: =SUM(AU7:AU14) -> 1 | AV15: =-SUM(AV7:AV14) -> 0.9182958341
A16: 11 | B16: 1323 | C16: 21 | D16: 1338 | E16: 21 | F16: 1345 | K16: 0 | L16: 122 | P16: U= | Q16: =Q15/(LOG(Q4)/LOG(2)) -> 0.2722666871 | V16: U1= | W16: =W15/(LOG(W4)/LOG(2)) -> 0.4881501549 | AA16: U2= | AB16: =AB15/(LOG(AB4)/LOG(2)) -> 0.2806676649 | AF16: U3= | AG16: =AG15/(LOG(AG4)/LOG(2)) -> 0.2263003098 | AK16: U4= | AL16: =AL15/(LOG(AL4)/LOG(2)) -> 0.2407613938 | AP16: U5= | AQ16: =AQ15/(LOG(AQ4)/LOG(2)) -> 0 | AU16: U6= | AV16: =AV15/(LOG(AV4)/LOG(2)) -> 0.2561521449
A17: 11 | B17: 1436 | C17: 21 | D17: 1456 | E17: 21 | F17: 1471 | K17: 0 | L17: 122
A18: 11 | B18: 1557 | C18: 12 | D18: 1576 | E18: 23 | F18: 1662 | K18: 0 | L18: 112
A19: 11 | B19: 1760 | C19: 21 | D19: 1812 | E19: 21 | F19: 2020 | K19: 0 | L19: 122 | N19: Total Target Seq
A20: 22 | B20: 2181 | C20: 23 | D20: 2201 | E20: 23 | F20: 2231 | K20: 0 | L20: 222 | N20: =COUNTIF(L7:L76,G3) -> 40 | P20: 12 | Q20: 11 | R20: 12 | S20: 12 | T20: 11 | U20: 12
A21: 11 | B21: 2323 | C21: 12 | D21: 2337 | E21: 23 | F21: 2411 | K21: 0 | L21: 112 | P21: % of reinforcement given in 6 equal intervals based on number of trials
A22: 11 | B22: 2505 | C22: 21 | D22: 2656 | E22: 21 | F22: 2669 | K22: 0 | L22: 122 | P22: %_1 | Q22: %_2 | R22: %_3 | S22: %_4 | T22: %_5 | U22: %_6
A23: 22 | B23: 2782 | C23: 23 | D23: 2799 | E23: 23 | F23: 2807 | K23: 0 | L23: 222 | O23: target sequence | P23: =$G$3 -> 122 | Q23: =$G$3 -> 122 | R23: =$G$3 -> 122 | S23: =$G$3 -> 122 | T23: =$G$3 -> 122 | U23: =$G$3 -> 122
A24: 11 | B24: 2902 | C24: 21 | D24: 2919 | E24: 21 | F24: 2926 | K24: 0 | L24: 122 | O24: total reinforcement | P24: =U10 -> 4 | Q24: =Z10 -> 6 | R24: =AE10 -> 8 | S24: =AJ10 -> 5 | T24: =AO10 -> 8 | U24: =AT10 -> 9
A25: 11 | B25: 3018 | C25: 21 | D25: 3057 | E25: 21 | F25: 3065 | K25: 0 | L25: 122 | O25: % target
A26: 11 | B26: 3150 | C26: 12 | D26: 3158 | E26: 23 | F26: 3179 | K26: 0 | L26: 112 | O26: CCRF
A27: 11 | B27: 3274 | C27: 21 | D27: 3306 | E27: 21 | F27: 3322 | K27: 0 | L27: 122 | O27: % CCRf
A28: 22 | B28: 3440 | C28: 23 | D28: 3448 | E28: 23 | F28: 3474 | K28: 0 | L28: 222 | O28: average response rate | P28: =F18/P20 -> 138.5 | Q28: =(F29-F18)/Q20 -> 176.3636364 | R28: =(F41-F29)/R20 -> 161.3333333 | S28: =(F53-F41)/S20 -> 171.5833333 | T28: =(F64-F53)/T20 -> 138.9090909 | U28: =(F76-F64)/U20 -> 128.25
A29: 11 | B29: 3570 | C29: 21 | D29: 3586 | E29: 21 | F29: 3602 | K29: 0 | L29: 122
A30: 11 | B30: 3693 | C30: 21 | D30: 3851 | E30: 21 | F30: 3903 | K30: 0 | L30: 122
A31: 11 | B31: 3995 | C31: 21 | D31: 4011 | E31: 21 | F31: 4019 | K31: 0 | L31: 122
A32: 22 | B32: 4136 | C32: 23 | D32: 4144 | E32: 23 | F32: 4164 | K32: 0 | L32: 222
A33: 11 | B33: 4263 | C33: 21 | D33: 4347 | E33: 21 | F33: 4439 | K33: 0 | L33: 122
A34: 11 | B34: 4529 | C34: 21 | D34: 4554 | E34: 21 | F34: 4569 | K34: 0 | L34: 122
A35: 11 | B35: 4655 | C35: 21 | D35: 4677 | E35: 21 | F35: 4714 | K35: 0 | L35: 122
A36: 22 | B36: 4819 | C36: 23 | D36: 4827 | E36: 23 | F36: 4842 | K36: 0 | L36: 222
A37: 11 | B37: 4935 | C37: 21 | D37: 4958 | E37: 21 | F37: 4989 | K37: 0 | L37: 122
A38: 11 | B38: 5077 | C38: 21 | D38: 5093 | E38: 21 | F38: 5100 | K38: 0 | L38: 122
A39: 11 | B39: 5184 | C39: 12 | D39: 5189 | E39: 23 | F39: 5205 | K39: 0 | L39: 112
A40: 22 | B40: 5359 | C40: 23 | D40: 5372 | E40: 23 | F40: 5396 | K40: 0 | L40: 222
A41: 11 | B41: 5493 | C41: 21 | D41: 5510 | E41: 21 | F41: 5538 | K41: 0 | L41: 122
A42: 11 | B42: 5628 | C42: 21 | D42: 5645 | E42: 21 | F42: 5653 | K42: 0 | L42: 122
A43: 11 | B43: 5743 | C43: 21 | D43: 5757 | E43: 21 | F43: 5764 | K43: 0 | L43: 122
A44: 11 | B44: 5854 | C44: 21 | D44: 5920 | E44: 21 | F44: 5932 | K44: 0 | L44: 122
A45: 11 | B45: 6015 | C45: 12 | D45: 6020 | E45: 23 | F45: 6049 | K45: 0 | L45: 112
A46: 22 | B46: 6220 | C46: 23 | D46: 6280 | E46: 23 | F46: 6408 | K46: 0 | L46: 222
A47: 11 | B47: 6500 | C47: 12 | D47: 6508 | E47: 23 | F47: 6526 | K47: 0 | L47: 112
A48: 11 | B48: 6623 | C48: 21 | D48: 6650 | E48: 21 | F48: 6732 | K48: 0 | L48: 122
A49: 22 | B49: 6838 | C49: 23 | D49: 6847 | E49: 23 | F49: 6855 | K49: 0 | L49: 222
A50: 22 | B50: 6964 | C50: 23 | D50: 6985 | E50: 23 | F50: 6993 | K50: 0 | L50: 222
A51: 11 | B51: 7091 | C51: 21 | D51: 7292 | E51: 21 | F51: 7310 | K51: 0 | L51: 122
A52: 22 | B52: 7429 | C52: 23 | D52: 7438 | E52: 23 | F52: 7446 | K52: 0 | L52: 222
A53: 22 | B53: 7559 | C53: 23 | D53: 7589 | E53: 23 | F53: 7597 | K53: 0 | L53: 222
A54: 11 | B54: 7693 | C54: 21 | D54: 7707 | E54: 21 | F54: 7715 | K54: 0 | L54: 122
A55: 11 | B55: 7804 | C55: 21 | D55: 7836 | E55: 21 | F55: 7872 | K55: 0 | L55: 122
A56: 11 | B56: 7962 | C56: 21 | D56: 8023 | E56: 21 | F56: 8050 | K56: 0 | L56: 122
A57: 11 | B57: 8134 | C57: 12 | D57: 8143 | E57: 23 | F57: 8191 | K57: 0 | L57: 112
A58: 11 | B58: 8289 | C58: 21 | D58: 8326 | E58: 21 | F58: 8339 | K58: 0 | L58: 122
A59: 11 | B59: 8421 | C59: 12 | D59: 8429 | E59: 23 | F59: 8445 | K59: 0 | L59: 112
A60: 11 | B60: 8543 | C60: 21 | D60: 8566 | E60: 21 | F60: 8593 | K60: 0 | L60: 122
A61: 11 | B61: 8682 | C61: 21 | D61: 8703 | E61: 21 | F61: 8722 | K61: 0 | L61: 122
A62: 11 | B62: 8811 | C62: 21 | D62: 8837 | E62: 21 | F62: 8856 | K62: 0 | L62: 122
A63: 11 | B63: 8945 | C63: 21 | D63: 8968 | E63: 21 | F63: 9007 | K63: 0 | L63: 122
A64: 11 | B64: 9094 | C64: 12 | D64: 9101 | E64: 23 | F64: 9125 | K64: 0 | L64: 112
A65: 22 | B65: 9237 | C65: 23 | D65: 9249 | E65: 23 | F65: 9266 | K65: 0 | L65: 222
A66: 11 | B66: 9358 | C66: 12 | D66: 9366 | E66: 23 | F66: 9382 | K66: 0 | L66: 112
A67: 22 | B67: 9494 | C67: 23 | D67: 9507 | E67: 23 | F67: 9517 | K67: 0 | L67: 222
A68: 11 | B68: 9614 | C68: 21 | D68: 9635 | E68: 21 | F68: 9649 | K68: 0 | L68: 122
A69: 11 | B69: 9735 | C69: 21 | D69: 9786 | E69: 21 | F69: 9794 | K69: 0 | L69: 122
A70: 11 | B70: 9880 | C70: 21 | D70: 9900 | E70: 21 | F70: 9907 | K70: 0 | L70: 122
A71: 11 | B71: 10004 | C71: 21 | D71: 10020 | E71: 21 | F71: 10041 | K71: 0 | L71: 122
A72: 11 | B72: 10129 | C72: 21 | D72: 10147 | E72: 21 | F72: 10161 | K72: 0 | L72: 122
A73: 11 | B73: 10248 | C73: 21 | D73: 10268 | E73: 21 | F73: 10275 | K73: 0 | L73: 122
A74: 11 | B74: 10362 | C74: 21 | D74: 10391 | E74: 21 | F74: 10417 | K74: 0 | L74: 122
A75: 11 | B75: 10504 | C75: 21 | D75: 10537 | E75: 21 | F75: 10549 | K75: 0 | L75: 122
A76: 11 | B76: 10638 | C76: 21 | D76: 10656 | E76: 21 | F76: 10664 | K76: 1 | L76: 122

Sheet !M624B50.102
A1: Report for:!M624B50.102
A2: Date: | B2: <date>
A3: Hen: | B3: <hen> | F3: Correct Sequence | G3: =Start!J2 -> 122 | P3: Total Sequences in Data | Q3: =4994-COUNTBLANK(L7:L5000) -> 68 | V3: Total Sequences in Block Data | W3: =COUNTA(L7:L17) -> 11 | AA3: Total Sequences in Block Data | AB3: =COUNTA(L18:L29) -> 12 | AF3: Total Sequences in Block Data | AG3: =COUNTA(L30:L40) -> 11 | AK3: Total Sequences in Block Data | AL3: =COUNTA(L41:L51) -> 11 | AP3: Total Sequences in Block Data | AQ3: =COUNTA(L52:L63) -> 12 | AU3: Total Sequences in Block Data | AV3: =COUNTA(L64:L74) -> 11
P4: Total Sequences in Summary | Q4: =SUM(O7:O14) -> 68 | V4: Total Sequences in Block Summary | W4: =SUM(U7:U14) -> 11 | AA4: Total Sequences in Block Summary | AB4: =SUM(Z7:Z14) -> 12 | AF4: Total Sequences in Block Summary | AG4: =SUM(AE7:AE14) -> 11 | AK4: Total Sequences in Block Summary | AL4: =SUM(AJ7:AJ14) -> 11 | AP4: Total Sequences in Block Summary | AQ4: =SUM(AO7:AO14) -> 12 | AU4: Total Sequences in Block Summary | AV4: =SUM(AT7:AT14) -> 11
T5: Block 1 | Y5: Block 2 | AD5: Block 3 | AI5: Block 4 | AN5: Block 5 | AS5: Block 6
A6: Sequence Component 1 | B6: Time 1 | C6: Sequence Component 2 | D6: Time 2 | E6: Sequence Component 3 | F6: Time 3 | G6: Sequence Component 4 | H6: Time 4 | I6: Sequence Component 5 | J6: Time 5 | K6: Correct? 0=No 1=Yes | L6: Sequence | N6: Frequency | P6: Relative Frequency | Q6: Variability | T6: Frequency | V6: Relative Frequency | W6: Variability | Y6: Frequency | AA6: Relative Frequency | AB6: Variability | AD6: Frequency | AF6: Relative Frequency | AG6: Variability | AI6: Frequency | AK6: Relative Frequency | AL6: Variability | AN6: Frequency | AP6: Relative Frequency | AQ6: Variability | AS6: Frequency | AU6: Relative Frequency | AV6: Variability
A7: 11 | B7: 57 | C7: 12 | D7: 80 | E7: 14 | F7: 86 | K7: 0 | L7: 111 | N7: 111 | O7: =COUNTIF($L$7:$L$500,N7) -> 2 | P7: =O7/$Q$4 -> 0.02941176471 | Q7: =IF(P7=0,0,(P7*((LOG(P7))/LOG(2)))) -> -0.14963126 | T7: =N7 -> 111 | U7: =COUNTIF(L7:L17,T7) -> 2 | V7: =U7/(W4-U10) -> 0.2857142857 | W7: =IF(V7=0,0,(V7*((LOG(V7))/LOG(2)))) -> -0.5163871206 | Y7: =N7 -> 111 | Z7: =COUNTIF(L18:L29,Y7) -> 0 | AA7: =Z7/(AB4-Z10) -> 0 | AB7: =IF(AA7=0,0,(AA7*((LOG(AA7))/LOG(2)))) -> 0 | AD7: =N7 -> 111 | AE7: =COUNTIF(L30:L40,AD7) -> 0 | AF7: =AE7/(AG4-AE10) -> 0 | AG7: =IF(AF7=0,0,(AF7*((LOG(AF7))/LOG(2)))) -> 0 | AI7: =N7 -> 111 | AJ7: =COUNTIF(L41:L51,AI7) -> 0 | AK7: =AJ7/(AL4-AJ10) -> 0 | AL7: =IF(AK7=0,0,(AK7*((LOG(AK7))/LOG(2)))) -> 0 | AN7: =N7 -> 111 | AO7: =COUNTIF(L52:L63,AN7) -> 0 | AP7: =AO7/(AQ4-AO10) -> 0 | AQ7: =IF(AP7=0,0,(AP7*((LOG(AP7))/LOG(2)))) -> 0 | AS7: =N7 -> 111 | AT7: =COUNTIF(L64:L74,AS7) -> 0 | AU7: =AT7/(AV4-AT10) -> 0 | AV7: =IF(AU7=0,0,(AU7*((LOG(AU7))/LOG(2)))) -> 0
A8: 11 | B8: 227 | C8: 21 | D8: 499 | E8: 21 | F8: 552 | K8: 0 | L8: 122 | N8: 112 | O8: =COUNTIF($L$7:$L$500,N8) -> 7 | P8: =O8/$Q$4 -> 0.1029411765 | Q8: =IF(P8=0,0,(P8*((LOG(P8))/LOG(2)))) -> -0.3376581682 | T8: =N8 -> 112 | U8: =COUNTIF(L7:L17,T8) -> 3 | V8: =U8/(W4-U10) -> 0.4285714286 | W8: =IF(V8=0,0,(V8*((LOG(V8))/LOG(2)))) -> -0.5238824663 | Y8: =N8 -> 112 | Z8: =COUNTIF(L18:L29,Y8) -> 0 | AA8: =Z8/(AB4-Z10) -> 0 | AB8: =IF(AA8=0,0,(AA8*((LOG(AA8))/LOG(2)))) -> 0 | AD8: =N8 -> 112 | AE8: =COUNTIF(L30:L40,AD8) -> 0 | AF8: =AE8/(AG4-AE10) -> 0 | AG8: =IF(AF8=0,0,(AF8*((LOG(AF8))/LOG(2)))) -> 0 | AI8: =N8 -> 112 | AJ8: =COUNTIF(L41:L51,AI8) -> 1 | AK8: =AJ8/(AL4-AJ10) -> 0.1666666667 | AL8: =IF(AK8=0,0,(AK8*((LOG(AK8))/LOG(2)))) -> -0.4308270835 | AN8: =N8 -> 112 | AO8: =COUNTIF(L52:L63,AN8) -> 2 | AP8: =AO8/(AQ4-AO10) -> 0.3333333333 | AQ8: =IF(AP8=0,0,(AP8*((LOG(AP8))/LOG(2)))) -> -0.5283208336 | AS8: =N8 -> 112 | AT8: =COUNTIF(L64:L74,AS8) -> 1 | AU8: =AT8/(AV4-AT10) -> 0.25 | AV8: =IF(AU8=0,0,(AU8*((LOG(AU8))/LOG(2)))) -> -0.5
A9: 11 | B9: 649 | C9: 21 | D9: 680 | E9: 21 | F9: 751 | K9: 0 | L9: 122 | N9: 121 | O9: =COUNTIF($L$7:$L$500,N9) -> 0 | P9: =O9/$Q$4 -> 0 | Q9: =IF(P9=0,0,(P9*((LOG(P9))/LOG(2)))) -> 0 | T9: =N9 -> 121 | U9: =COUNTIF(L7:L17,T9) -> 0 | V9: =U9/(W4-U10) -> 0 | W9: =IF(V9=0,0,(V9*((LOG(V9))/LOG(2)))) -> 0 | Y9: =N9 -> 121 | Z9: =COUNTIF(L18:L29,Y9) -> 0 | AA9: =Z9/(AB4-Z10) -> 0 | AB9: =IF(AA9=0,0,(AA9*((LOG(AA9))/LOG(2)))) -> 0 | AD9: =N9 -> 121 | AE9: =COUNTIF(L30:L40,AD9) -> 0 | AF9: =AE9/(AG4-AE10) -> 0 | AG9: =IF(AF9=0,0,(AF9*((LOG(AF9))/LOG(2)))) -> 0 | AI9: =N9 -> 121 | AJ9: =COUNTIF(L41:L51,AI9) -> 0 | AK9: =AJ9/(AL4-AJ10) -> 0 | AL9: =IF(AK9=0,0,(AK9*((LOG(AK9))/LOG(2)))) -> 0 | AN9: =N9 -> 121 | AO9: =COUNTIF(L52:L63,AN9) -> 0 | AP9: =AO9/(AQ4-AO10) -> 0 | AQ9: =IF(AP9=0,0,(AP9*((LOG(AP9))/LOG(2)))) -> 0 | AS9: =N9 -> 121 | AT9: =COUNTIF(L64:L74,AS9) -> 0 | AU9: =AT9/(AV4-AT10) -> 0 | AV9: =IF(AU9=0,0,(AU9*((LOG(AU9))/LOG(2)))) -> 0
A10: 22 | B10: 872 | C10: 23 | D10: 887 | E10: 23 | F10: 895 | K10: 0 | L10: 222 | N10: 122 | O10: =COUNTIF($L$7:$L$500,N10) -> 40 | P10: =O10/$Q$4 -> 0.5882352941 | Q10: =IF(P10=0,0,(P10*((LOG(P10))/LOG(2)))) -> -0.4503145567 | T10: =N10 -> 122 | U10: =COUNTIF(L7:L17,T10) -> 4 | Y10: =N10 -> 122 | Z10: =COUNTIF(L18:L29,Y10) -> 9 | AD10: =N10 -> 122 | AE10: =COUNTIF(L30:L40,AD10) -> 9 | AI10: =N10 -> 122 | AJ10: =COUNTIF(L41:L51,AI10) -> 5 | AN10: =N10 -> 122 | AO10: =COUNTIF(L52:L63,AN10) -> 6 | AS10: =N10 -> 122 | AT10: =COUNTIF(L64:L74,AS10) -> 7
A11: 11 | B11: 991 | C11: 12 | D11: 1001 | E11: 14 | F11: 1022 | K11: 0 | L11: 111 | N11: 211 | O11: =COUNTIF($L$7:$L$500,N11) -> 0 | P11: =O11/$Q$4 -> 0 | Q11: =IF(P11=0,0,(P11*((LOG(P11))/LOG(2)))) -> 0 | T11: =N11 -> 211 | U11: =COUNTIF(L7:L17,T11) -> 0 | V11: =U11/(W4-U10) -> 0 | W11: =IF(V11=0,0,(V11*((LOG(V11))/LOG(2)))) -> 0 | Y11: =N11 -> 211 | Z11: =COUNTIF(L18:L29,Y11) -> 0 | AA11: =Z11/(AB4-Z10) -> 0 | AB11: =IF(AA11=0,0,(AA11*((LOG(AA11))/LOG(2)))) -> 0 | AD11: =N11 -> 211 | AE11: =COUNTIF(L30:L40,AD11) -> 0 | AF11: =AE11/(AG4-AE10) -> 0 | AG11: =IF(AF11=0,0,(AF11*((LOG(AF11))/LOG(2)))) -> 0 | AI11: =N11 -> 211 | AJ11: =COUNTIF(L41:L51,AI11) -> 0 | AK11: =AJ11/(AL4-AJ10) -> 0 | AL11: =IF(AK11=0,0,(AK11*((LOG(AK11))/LOG(2)))) -> 0 | AN11: =N11 -> 211 | AO11: =COUNTIF(L52:L63,AN11) -> 0 | AP11: =AO11/(AQ4-AO10) -> 0 | AQ11: =IF(AP11=0,0,(AP11*((LOG(AP11))/LOG(2)))) -> 0 | AS11: =N11 -> 211 | AT11: =COUNTIF(L64:L74,AS11) -> 0 | AU11: =AT11/(AV4-AT10) -> 0 | AV11: =IF(AU11=0,0,(AU11*((LOG(AU11))/LOG(2)))) -> 0
A12: 11 | B12: 1116 | C12: 21 | D12: 1142 | E12: 21 | F12: 1165 | K12: 0 | L12: 122 | N12: 212 | O12: =COUNTIF($L$7:$L$500,N12) -> 0 | P12: =O12/$Q$4 -> 0 | Q12: =IF(P12=0,0,(P12*((LOG(P12))/LOG(2)))) -> 0 | T12: =N12 -> 212 | U12: =COUNTIF(L7:L17,T12) -> 0 | V12: =U12/(W4-U10) -> 0 | W12: =IF(V12=0,0,(V12*((LOG(V12))/LOG(2)))) -> 0 | Y12: =N12 -> 212 | Z12: =COUNTIF(L18:L29,Y12) -> 0 | AA12: =Z12/(AB4-Z10) -> 0 | AB12: =IF(AA12=0,0,(AA12*((LOG(AA12))/LOG(2)))) -> 0 | AD12: =N12 -> 212 | AE12: =COUNTIF(L30:L40,AD12) -> 0 | AF12: =AE12/(AG4-AE10) -> 0 | AG12: =IF(AF12=0,0,(AF12*((LOG(AF12))/LOG(2)))) -> 0 | AI12: =N12 -> 212 | AJ12: =COUNTIF(L41:L51,AI12) -> 0 | AK12: =AJ12/(AL4-AJ10) -> 0 | AL12: =IF(AK12=0,0,(AK12*((LOG(AK12))/LOG(2)))) -> 0 | AN12: =N12 -> 212 | AO12: =COUNTIF(L52:L63,AN12) -> 0 | AP12: =AO12/(AQ4-AO10) -> 0 | AQ12: =IF(AP12=0,0,(AP12*((LOG(AP12))/LOG(2)))) -> 0 | AS12: =N12 -> 212 | AT12: =COUNTIF(L64:L74,AS12) -> 0 | AU12: =AT12/(AV4-AT10) -> 0 | AV12: =IF(AU12=0,0,(AU12*((LOG(AU12))/LOG(2)))) -> 0
A13: 11 | B13: 1266 | C13: 12 | D13: 1280 | E13: 23 | F13: 1314 | K13: 0 | L13: 112 | N13: 221 | O13: =COUNTIF($L$7:$L$500,N13) -> 0 | P13: =O13/$Q$4 -> 0 | Q13: =IF(P13=0,0,(P13*((LOG(P13))/LOG(2)))) -> 0 | T13: =N13 -> 221 | U13: =COUNTIF(L7:L17,T13) -> 0 | V13: =U13/(W4-U10) -> 0 | W13: =IF(V13=0,0,(V13*((LOG(V13))/LOG(2)))) -> 0 | Y13: =N13 -> 221 | Z13: =COUNTIF(L18:L29,Y13) -> 0 | AA13: =Z13/(AB4-Z10) -> 0 | AB13: =IF(AA13=0,0,(AA13*((LOG(AA13))/LOG(2)))) -> 0 | AD13: =N13 -> 221 | AE13: =COUNTIF(L30:L40,AD13) -> 0 | AF13: =AE13/(AG4-AE10) -> 0 | AG13: =IF(AF13=0,0,(AF13*((LOG(AF13))/LOG(2)))) -> 0 | AI13: =N13 -> 221 | AJ13: =COUNTIF(L41:L51,AI13) -> 0 | AK13: =AJ13/(AL4-AJ10) -> 0 | AL13: =IF(AK13=0,0,(AK13*((LOG(AK13))/LOG(2)))) -> 0 | AN13: =N13 -> 221 | AO13: =COUNTIF(L52:L63,AN13) -> 0 | AP13: =AO13/(AQ4-AO10) -> 0 | AQ13: =IF(AP13=0,0,(AP13*((LOG(AP13))/LOG(2)))) -> 0 | AS13: =N13 -> 221 | AT13: =COUNTIF(L64:L74,AS13) -> 0 | AU13: =AT13/(AV4-AT10) -> 0 | AV13: =IF(AU13=0,0,(AU13*((LOG(AU13))/LOG(2)))) -> 0
A14: 22 | B14: 1503 | C14: 23 | D14: 1537 | E14: 23 | F14: 1561 | K14: 0 | L14: 222 | N14: 222 | O14: =COUNTIF($L$7:$L$500,N14) -> 19 | P14: =O14/$Q$4 -> 0.2794117647 | Q14: =IF(P14=0,0,(P14*((LOG(P14))/LOG(2)))) -> -0.5139878122 | T14: =N14 -> 222 | U14: =COUNTIF(L7:L17,T14) -> 2 | V14: =U14/(W4-U10) -> 0.2857142857 | W14: =IF(V14=0,0,(V14*((LOG(V14))/LOG(2)))) -> -0.5163871206 | Y14: =N14 -> 222 | Z14: =COUNTIF(L18:L29,Y14) -> 3 | AA14: =Z14/(AB4-Z10) -> 1 | AB14: =IF(AA14=0,0,(AA14*((LOG(AA14))/LOG(2)))) -> 0 | AD14: =N14 -> 222 | AE14: =COUNTIF(L30:L40,AD14) -> 2 | AF14: =AE14/(AG4-AE10) -> 1 | AG14: =IF(AF14=0,0,(AF14*((LOG(AF14))/LOG(2)))) -> 0 | AI14: =N14 -> 222 | AJ14: =COUNTIF(L41:L51,AI14) -> 5 | AK14: =AJ14/(AL4-AJ10) -> 0.8333333333 | AL14: =IF(AK14=0,0,(AK14*((LOG(AK14))/LOG(2)))) -> -0.2191953382 | AN14: =N14 -> 222 | AO14: =COUNTIF(L52:L63,AN14) -> 4 | AP14: =AO14/(AQ4-AO10) -> 0.6666666667 | AQ14: =IF(AP14=0,0,(AP14*((LOG(AP14))/LOG(2)))) -> -0.3899750005 | AS14: =N14 -> 222 | AT14: =COUNTIF(L64:L74,AS14) -> 3 | AU14: =AT14/(AV4-AT10) -> 0.75 | AV14: =IF(AU14=0,0,(AU14*((LOG(AU14))/LOG(2)))) -> -0.3112781245
A15: 11 | B15: 1659 | C15: 12 | D15: 1680 | E15: 23 | F15: 1700 | K15: 0 | L15: 112 | P15: =SUM(P7:P14) -> 1 | Q15: =-SUM(Q7:Q14) -> 1.451591797 | V15: =SUM(V7:V14) -> 1 | W15: =-SUM(W7:W14) -> 1.556656707 | AA15: =SUM(AA7:AA14) -> 1 | AB15: =-SUM(AB7:AB14) -> 0 | AF15: =SUM(AF7:AF14) -> 1 | AG15: =-SUM(AG7:AG14) -> 0 | AK15: =SUM(AK7:AK14) -> 1 | AL15: =-SUM(AL7:AL14) -> 0.6500224216 | AP15: =SUM(AP7:AP14) -> 1 | AQ15: =-SUM(AQ7:AQ14) -> 0.9182958341 | AU15: =SUM(AU7:AU14) -> 1 | AV15: =-SUM(AV7:AV14) -> 0.8112781245
A16: 11 | B16: 1797 | C16: 12 | D16: 1812 | E16: 23 | F16: 1824 | K16: 0 | L16: 112 | P16: U= | Q16: =Q15/(LOG(Q4)/LOG(2)) -> 0.2384559602 | V16: U1= | W16: =W15/(LOG(W4)/LOG(2)) -> 0.4499747008 | AA16: U2= | AB16: =AB15/(LOG(AB4)/LOG(2)) -> 0 | AF16: U3= | AG16: =AG15/(LOG(AG4)/LOG(2)) -> 0 | AK16: U4= | AL16: =AL15/(LOG(AL4)/LOG(2)) -> 0.1878986184 | AP16: U5= | AQ16: =AQ15/(LOG(AQ4)/LOG(2)) -> 0.2561521449 | AU16: U6= | AV16: =AV15/(LOG(AV4)/LOG(2)) -> 0.2345119701
A17: 11 | B17: 1922 | C17: 21 | D17: 1950 | E17: 21 | F17: 1959 | K17: 0 | L17: 122
A18: 11 | B18: 2049 | C18: 21 | D18: 2067 | E18: 21 | F18: 2093 | K18: 0 | L18: 122
A19: 11 | B19: 2185 | C19: 21 | D19: 2202 | E19: 21 | F19: 2210 | K19: 0 | L19: 122 | N19: Total Target Seq
A20: 11 | B20: 2301 | C20: 21 | D20: 2321 | E20: 21 | F20: 2335 | K20: 0 | L20: 122 | N20: =COUNTIF(L7:L74,G3) -> 40 | P20: 11 | Q20: 12 | R20: 11 | S20: 11 | T20: 12 | U20: 11
A21: 22 | B21: 2443 | C21: 23 | D21: 2474 | E21: 23 | F21: 2483 | K21: 0 | L21: 222 | P21: % of reinforcement given in 6 equal intervals based on number of trials
A22: 11 | B22: 2578 | C22: 21 | D22: 2600 | E22: 21 | F22: 2620 | K22: 0 | L22: 122 | P22: %_1 | Q22: %_2 | R22: %_3 | S22: %_4 | T22: %_5 | U22: %_6
A23: 22 | B23: 2840 | C23: 23 | D23: 2848 | E23: 23 | F23: 2890 | K23: 0 | L23: 222 | O23: target sequence | P23: =$G$3 -> 122 | Q23: =$G$3 -> 122 | R23: =$G$3 -> 122 | S23: =$G$3 -> 122 | T23: =$G$3 -> 122 | U23: =$G$3 -> 122
A24: 22 | B24: 3039 | C24: 23 | D24: 3047 | E24: 23 | F24: 3063 | K24: 0 | L24: 222 | O24: total reinforcement | P24: =U10 -> 4 | Q24: =Z10 -> 9 | R24: =AE10 -> 9 | S24: =AJ10 -> 5 | T24: =AO10 -> 6 | U24: =AT10 -> 7
A25: 11 | B25: 3157 | C25: 21 | D25: 3188 | E25: 21 | F25: 3197 | K25: 0 | L25: 122 | O25: % target
A26: 11 | B26: 3302 | C26: 21 | D26: 3342 | E26: 21 | F26: 3362 | K26: 0 | L26: 122 | O26: CCRF
A27: 11 | B27: 3451 | C27: 21 | D27: 3465 | E27: 21 | F27: 3494 | K27: 0 | L27: 122 | O27: % CCRf
A28: 11 | B28: 3583 | C28: 21 | D28: 3630 | E28: 21 | F28: 3638 | K28: 0 | L28: 122 | O28: average response rate | P28: =F17/P20 -> 178.0909091 | Q28: =(F29-F17)/Q20 -> 150.8333333 | R28: =(F40-F29)/R20 -> 153.0909091 | S28: =(F51-F40)/S20 -> 143.4545455 | T28: =(F63-F51)/T20 -> 133.9166667 | U28: =(F74-F63)/U20 -> 145.7272727
A29: 11 | B29: 3729 | C29: 21 | D29: 3747 | E29: 21 | F29: 3769 | K29: 0 | L29: 122
A30: 11 | B30: 3859 | C30: 21 | D30: 3928 | E30: 21 | F30: 3935 | K30: 0 | L30: 122
A31: 11 | B31: 4025 | C31: 21 | D31: 4040 | E31: 21 | F31: 4074 | K31: 0 | L31: 122
A32: 22 | B32: 4178 | C32: 23 | D32: 4186 | E32: 23 | F32: 4246 | K32: 0 | L32: 222
A33: 11 | B33: 4344 | C33: 21 | D33: 4404 | E33: 21 | F33: 4415 | K33: 0 | L33: 122
A34: 22 | B34: 4539 | C34: 23 | D34: 4548 | E34: 23 | F34: 4562 | K34: 0 | L34: 222
A35: 11 | B35: 4659 | C35: 21 | D35: 4673 | E35: 21 | F35: 4685 | K35: 0 | L35: 122
A36: 11 | B36: 4778 | C36: 21 | D36: 4803 | E36: 21 | F36: 4853 | K36: 0 | L36: 122
A37: 11 | B37: 4939 | C37: 21 | D37: 4995 | E37: 21 | F37: 5089 | K37: 0 | L37: 122
A38: 11 | B38: 5180 | C38: 21 | D38: 5196 | E38: 21 | F38: 5203 | K38: 0 | L38: 122
A39: 11 | B39: 5294 | C39: 21 | D39: 5322 | E39: 21 | F39: 5328 | K39: 0 | L39: 122
A40: 11 | B40: 5428 | C40: 21 | D40: 5445 | E40: 21 | F40: 5453 | K40: 0 | L40: 122
A41: 11 | B41: 5537 | C41: 12 | D41: 5543 | E41: 23 | F41: 5558 | K41: 0 | L41: 112
A42: 11 | B42: 5658 | C42: 21 | D42: 5675 | E42: 21 | F42: 5723 | K42: 0 | L42: 122
A43: 22 | B43: 5827 | C43: 23 | D43: 5835 | E43: 23 | F43: 5844 | K43: 0 | L43: 222
A44: 22 | B44: 5963 | C44: 23 | D44: 5979 | E44: 23 | F44: 5988 | K44: 0 | L44: 222
A45: 11 | B45: 6082 | C45: 21 | D45: 6107 | E45: 21 | F45: 6157 | K45: 0 | L45: 122
A46: 11 | B46: 6245 | C46: 21 | D46: 6268 | E46: 21 | F46: 6280 | K46: 0 | L46: 122
A47: 11 | B47: 6367 | C47: 21 | D47: 6379 | E47: 21 | F47: 6385 | K47: 0 | L47: 122
A48: 22 | B48: 6528 | C48: 23 | D48: 6544 | E48: 23 | F48: 6571 | K48: 0 | L48: 222
A49: 22 | B49: 6685 | C49: 23 | D49: 6697 | E49: 23 | F49: 6705 | K49: 0 | L49: 222
A50: 11 | B50: 6801 | C50: 21 | D50: 6847 | E50: 21 | F50: 6871 | K50: 0 | L50: 122
A51: 22 | B51: 7001 | C51: 23 | D51: 7009 | E51: 23 | F51: 7031 | K51: 0 | L51: 222
A52: 22 | B52: 7145 | C52: 23 | D52: 7153 | E52: 23 | F52: 7162 | K52: 0 | L52: 222
A53: 11 | B53: 7260 | C53: 21 | D53: 7279 | E53: 21 | F53: 7287 | K53: 0 | L53: 122
A54: 11 | B54: 7374 | C54: 21 | D54: 7390 | E54: 21 | F54: 7409 | K54: 0 | L54: 122
A55: 22 | B55: 7557 | C55: 23 | D55: 7566 | E55: 23 | F55: 7588 | K55: 0 | L55: 222
A56: 22 | B56: 7716 | C56: 23 | D56: 7748 | E56: 23 | F56: 7756 | K56: 0 | L56: 222
A57: 11 | B57: 7852 | C57: 21 | D57: 7873 | E57: 21 | F57: 7897 | K57: 0 | L57: 122
A58: 11 | B58: 7981 | C58: 12 | D58: 7988 | E58: 23 | F58: 8004 | K58: 0 | L58: 112
A59: 11 | B59: 8102 | C59: 21 | D59: 8117 | E59: 21 | F59: 8133 | K59: 0 | L59: 122
A60: 11 | B60: 8218 | C60: 21 | D60: 8235 | E60: 21 | F60: 8243 | K60: 0 | L60: 122
A61: 11 | B61: 8333 | C61: 21 | D61: 8352 | E61: 21 | F61: 8360 | K61: 0 | L61: 122
A62: 11 | B62: 8458 | C62: 12 | D62: 8466 | E62: 23 | F62: 8505 | K62: 0 | L62: 112
A63: 22 | B63: 8619 | C63: 23 | D63: 8626 | E63: 23 | F63: 8638 | K63: 0 | L63: 222
A64: 11 | B64: 8734 | C64: 21 | D64: 8751 | E64: 21 | F64: 8843 | K64: 0 | L64: 122
A65: 11 | B65: 8931 | C65: 21 | D65: 8978 | E65: 21 | F65: 8987 | K65: 0 | L65: 122
A66: 22 | B66: 9092 | C66: 23 | D66: 9147 | E66: 23 | F66: 9180 | K66: 0 | L66: 222
A67: 22 | B67: 9313 | C67: 23 | D67: 9352 | E67: 23 | F67: 9360 | K67: 0 | L67: 222
A68: 11 | B68: 9459 | C68: 21 | D68: 9479 | E68: 21 | F68: 9491 | K68: 0 | L68: 122
A69: 22 | B69: 9593 | C69: 23 | D69: 9633 | E69: 23 | F69: 9641 | K69: 0 | L69: 222
A70: 11 | B70: 9737 | C70: 12 | D70: 9744 | E70: 23 | F70: 9759 | K70: 0 | L70: 112
A71: 11 | B71: 9856 | C71: 21 | D71: 9871 | E71: 21 | F71: 9880 | K71: 0 | L71: 122
A72: 11 | B72: 9968 | C72: 21 | D72: 9989 | E72: 21 | F72: 9998 | K72: 0 | L72: 122
A73: 11 | B73: 10093 | C73: 21 | D73: 10109 | E73: 21 | F73: 10130 | K73: 0 | L73: 122
A74: 11 | B74: 10215 | C74: 21 | D74: 10231 | E74: 21 | F74: 10241 | K74: 1 | L74: 122

Sheet !M625A20.102
A1: Report for:!M625A20.102
A2: Date: | B2: <date>
A3: Hen: | B3: <hen> | F3: Correct Sequence | G3: =Start!J2 -> 122 | P3: Total Sequences in Data | Q3: =4994-COUNTBLANK(L7:L5000) -> 60 | V3: Total Sequences in Block Data | W3: =COUNTA(L7:L16) -> 10 | AA3: Total Sequences in Block Data | AB3: =COUNTA(L17:L26) -> 10 | AF3: Total Sequences in Block Data | AG3: =COUNTA(L27:L36) -> 10 | AK3: Total Sequences in Block Data | AL3: =COUNTA(L37:L46) -> 10 | AP3: Total Sequences in Block Data | AQ3: =COUNTA(L47:L56) -> 10 | AU3: Total Sequences in Block Data | AV3: =COUNTA(L57:L66) -> 10
P4: Total Sequences in Summary | Q4: =SUM(O7:O14) -> 60 | V4: Total Sequences in Block Summary | W4: =SUM(U7:U14) -> 10 | AA4: Total Sequences in Block Summary | AB4: =SUM(Z7:Z14) -> 10 | AF4: Total Sequences in Block Summary | AG4: =SUM(AE7:AE14) -> 10 | AK4: Total Sequences in Block Summary | AL4: =SUM(AJ7:AJ14) -> 10 | AP4: Total Sequences in Block Summary | AQ4: =SUM(AO7:AO14) -> 10 | AU4: Total Sequences in Block Summary | AV4: =SUM(AT7:AT14) -> 10
T5: Block 1 | Y5: Block 2 | AD5: Block 3 | AI5: Block 4 | AN5: Block 5 | AS5: Block 6
A6: Sequence Component 1 | B6: Time 1 | C6: Sequence Component 2 | D6: Time 2 | E6: Sequence Component 3 | F6: Time 3 | G6: Sequence Component 4 | H6: Time 4 | I6: Sequence Component 5 | J6: Time 5 | K6: Correct? 0=No 1=Yes | L6: Sequence | N6: Frequency | P6: Relative Frequency | Q6: Variability | T6: Frequency | V6: Relative Frequency | W6: Variability | Y6: Frequency | AA6: Relative Frequency | AB6: Variability | AD6: Frequency | AF6: Relative Frequency | AG6: Variability | AI6: Frequency | AK6: Relative Frequency | AL6: Variability | AN6: Frequency | AP6: Relative Frequency | AQ6: Variability | AS6: Frequency | AU6: Relative Frequency | AV6: Variability
A7: 11 | B7: 33 | C7: 12 | D7: 42 | E7: 23 | F7: 56 | K7: 0 | L7: 112 | N7: 111 | O7: =COUNTIF($L$7:$L$500,N7) -> 1 | P7: =O7/$Q$4 -> 0.01666666667 | Q7: =IF(P7=0,0,(P7*((LOG(P7))/LOG(2)))) -> -0.09844817659 | T7: =N7 -> 111 | U7: =COUNTIF(L7:L16,T7) -> 0 | V7: =U7/(W4-U10) -> 0 | W7: =IF(V7=0,0,(V7*((LOG(V7))/LOG(2)))) -> 0 | Y7: =N7 -> 111 | Z7: =COUNTIF(L17:L26,Y7) -> 1 | AA7: =Z7/(AB4-Z10) -> 0.3333333333 | AB7: =IF(AA7=0,0,(AA7*((LOG(AA7))/LOG(2)))) -> -0.5283208336 | AD7: =N7 -> 111 | AE7: =COUNTIF(L27:L36,AD7) -> 0 | AF7: =AE7/(AG4-AE10) -> 0 | AG7: =IF(AF7=0,0,(AF7*((LOG(AF7))/LOG(2)))) -> 0 | AI7: =N7 -> 111 | AJ7: =COUNTIF(L37:L46,AI7) -> 0 | AK7: =AJ7/(AL4-AJ10) -> 0 | AL7: =IF(AK7=0,0,(AK7*((LOG(AK7))/LOG(2)))) -> 0 | AN7: =N7 -> 111 | AO7: =COUNTIF(L47:L56,AN7) -> 0 | AP7: =AO7/(AQ4-AO10) -> 0 | AQ7: =IF(AP7=0,0,(AP7*((LOG(AP7))/LOG(2)))) -> 0 | AS7: =N7 -> 111 | AT7: =COUNTIF(L57:L66,AS7) -> 0 | AU7: =AT7/(AV4-AT10) -> 0 | AV7: =IF(AU7=0,0,(AU7*((LOG(AU7))/LOG(2)))) -> 0
A8: 11 | B8: 167 | C8: 21 | D8: 197 | E8: 21 | F8: 216 | K8: 0 | L8: 122 | N8: 112 | O8: =COUNTIF($L$7:$L$500,N8) -> 5 | P8: =O8/$Q$4 -> 0.08333333333 | Q8: =IF(P8=0,0,(P8*((LOG(P8))/LOG(2)))) -> -0.2987468751 | T8: =N8 -> 112 | U8: =COUNTIF(L7:L16,T8) -> 1 | V8: =U8/(W4-U10) -> 0.25 | W8: =IF(V8=0,0,(V8*((LOG(V8))/LOG(2)))) -> -0.5 | Y8: =N8 -> 112 | Z8: =COUNTIF(L17:L26,Y8) -> 0 | AA8: =Z8/(AB4-Z10) -> 0 | AB8: =IF(AA8=0,0,(AA8*((LOG(AA8))/LOG(2)))) -> 0 | AD8: =N8 -> 112 | AE8: =COUNTIF(L27:L36,AD8) -> 0 | AF8: =AE8/(AG4-AE10) -> 0 | AG8: =IF(AF8=0,0,(AF8*((LOG(AF8))/LOG(2)))) -> 0 | AI8: =N8 -> 112 | AJ8: =COUNTIF(L37:L46,AI8) -> 1 | AK8: =AJ8/(AL4-AJ10) -> 0.3333333333 | AL8: =IF(AK8=0,0,(AK8*((LOG(AK8))/LOG(2)))) -> -0.5283208336 | AN8: =N8 -> 112 | AO8: =COUNTIF(L47:L56,AN8) -> 2 | AP8: =AO8/(AQ4-AO10) -> 0.5 | AQ8: =IF(AP8=0,0,(AP8*((LOG(AP8))/LOG(2)))) -> -0.5 | AS8: =N8 -> 112 | AT8: =COUNTIF(L57:L66,AS8) -> 1 | AU8: =AT8/(AV4-AT10) -> 0.3333333333 | AV8: =IF(AU8=0,0,(AU8*((LOG(AU8))/LOG(2)))) -> -0.5283208336
A9: 22 | B9: 325 | C9: 23 | D9: 338 | E9: 23 | F9: 351 | K9: 0 | L9: 222 | N9: 121 | O9: =COUNTIF($L$7:$L$500,N9) -> 0 | P9: =O9/$Q$4 -> 0 | Q9: =IF(P9=0,0,(P9*((LOG(P9))/LOG(2)))) -> 0 | T9: =N9 -> 121 | U9: =COUNTIF(L7:L16,T9) -> 0 | V9: =U9/(W4-U10) -> 0 | W9: =IF(V9=0,0,(V9*((LOG(V9))/LOG(2)))) -> 0 | Y9: =N9 -> 121 | Z9: =COUNTIF(L17:L26,Y9) -> 0 | AA9: =Z9/(AB4-Z10) -> 0 | AB9: =IF(AA9=0,0,(AA9*((LOG(AA9))/LOG(2)))) -> 0 | AD9: =N9 -> 121 | AE9: =COUNTIF(L27:L36,AD9) -> 0 | AF9: =AE9/(AG4-AE10) -> 0 | AG9: =IF(AF9=0,0,(AF9*((LOG(AF9))/LOG(2)))) -> 0 | AI9: =N9 -> 121 | AJ9: =COUNTIF(L37:L46,AI9) -> 0 | AK9: =AJ9/(AL4-AJ10) -> 0 | AL9: =IF(AK9=0,0,(AK9*((LOG(AK9))/LOG(2)))) -> 0 | AN9: =N9 -> 121 | AO9: =COUNTIF(L47:L56,AN9) -> 0 | AP9: =AO9/(AQ4-AO10) -> 0 | AQ9: =IF(AP9=0,0,(AP9*((LOG(AP9))/LOG(2)))) -> 0 | AS9: =N9 -> 121 | AT9: =COUNTIF(L57:L66,AS9) -> 0 | AU9: =AT9/(AV4-AT10) -> 0 | AV9: =IF(AU9=0,0,(AU9*((LOG(AU9))/LOG(2)))) -> 0
A10: 11 | B10: 449 | C10: 21 | D10: 471 | E10: 21 | F10: 514 | K10: 0 | L10: 122 | N10: 122 | O10: =COUNTIF($L$7:$L$500,N10) -> 40 | P10: =O10/$Q$4 -> 0.6666666667 | Q10: =IF(P10=0,0,(P10*((LOG(P10))/LOG(2)))) -> -0.3899750005 | T10: =N10 -> 122 | U10: =COUNTIF(L7:L16,T10) -> 6 | Y10: =N10 -> 122 | Z10: =COUNTIF(L17:L26,Y10) -> 7 | AD10: =N10 -> 122 | AE10: =COUNTIF(L27:L36,AD10) -> 7 | AI10: =N10 -> 122 | AJ10: =COUNTIF(L37:L46,AI10) -> 7 | AN10: =N10 -> 122 | AO10: =COUNTIF(L47:L56,AN10) -> 6 | AS10: =N10 -> 122 | AT10: =COUNTIF(L57:L66,AS10) -> 7
A11: 11 | B11: 604 | C11: 21 | D11: 629 | E11: 21 | F11: 636 | K11: 0 | L11: 122 | N11: 211 | O11: =COUNTIF($L$7:$L$500,N11) -> 0 | P11: =O11/$Q$4 -> 0 | Q11: =IF(P11=0,0,(P11*((LOG(P11))/LOG(2)))) -> 0 | T11: =N11 -> 211 | U11: =COUNTIF(L7:L16,T11) -> 0 | V11: =U11/(W4-U10) -> 0 | W11: =IF(V11=0,0,(V11*((LOG(V11))/LOG(2)))) -> 0 | Y11: =N11 -> 211 | Z11: =COUNTIF(L17:L26,Y11) -> 0 | AA11: =Z11/(AB4-Z10) -> 0 | AB11: =IF(AA11=0,0,(AA11*((LOG(AA11))/LOG(2)))) -> 0 | AD11: =N11 -> 211 | AE11: =COUNTIF(L27:L36,AD11) -> 0 | AF11: =AE11/(AG4-AE10) -> 0 | AG11: =IF(AF11=0,0,(AF11*((LOG(AF11))/LOG(2)))) -> 0 | AI11: =N11 -> 211 | AJ11: =COUNTIF(L37:L46,AI11) -> 0 | AK11: =AJ11/(AL4-AJ10) -> 0 | AL11: =IF(AK11=0,0,(AK11*((LOG(AK11))/LOG(2)))) -> 0 | AN11: =N11 -> 211 | AO11: =COUNTIF(L47:L56,AN11) -> 0 | AP11: =AO11/(AQ4-AO10) -> 0 | AQ11: =IF(AP11=0,0,(AP11*((LOG(AP11))/LOG(2)))) -> 0 | AS11: =N11 -> 211 | AT11: =COUNTIF(L57:L66,AS11) -> 0 | AU11: =AT11/(AV4-AT10) -> 0 | AV11: =IF(AU11=0,0,(AU11*((LOG(AU11))/LOG(2)))) -> 0
A12: 11 | B12: 731 | C12: 21 | D12: 744 | E12: 21 | F12: 777 | K12: 0 | L12: 122 | N12: 212 | O12: =COUNTIF($L$7:$L$500,N12) -> 0 | P12: =O12/$Q$4 -> 0 | Q12: =IF(P12=0,0,(P12*((LOG(P12))/LOG(2)))) -> 0 | T12: =N12 -> 212 | U12: =COUNTIF(L7:L16,T12) -> 0 | V12: =U12/(W4-U10) -> 0 | W12: =IF(V12=0,0,(V12*((LOG(V12))/LOG(2)))) -> 0 | Y12: =N12 -> 212 | Z12: =COUNTIF(L17:L26,Y12) -> 0 | AA12: =Z12/(AB4-Z10) -> 0 | AB12: =IF(AA12=0,0,(AA12*((LOG(AA12))/LOG(2)))) -> 0 | AD12: =N12 -> 212 | AE12: =COUNTIF(L27:L36,AD12) -> 0 | AF12: =AE12/(AG4-AE10) -> 0 | AG12: =IF(AF12=0,0,(AF12*((LOG(AF12))/LOG(2)))) -> 0 | AI12: =N12 -> 212 | AJ12: =COUNTIF(L37:L46,AI12) -> 0 | AK12: =AJ12/(AL4-AJ10) -> 0 | AL12: =IF(AK12=0,0,(AK12*((LOG(AK12))/LOG(2)))) -> 0 | AN12: =N12 -> 212 | AO12: =COUNTIF(L47:L56,AN12) -> 0 | AP12: =AO12/(AQ4-AO10) -> 0 | AQ12: =IF(AP12=0,0,(AP12*((LOG(AP12))/LOG(2)))) -> 0 | AS12: =N12 -> 212 | AT12: =COUNTIF(L57:L66,AS12) -> 0 | AU12: =AT12/(AV4-AT10) -> 0 | AV12: =IF(AU12=0,0,(AU12*((LOG(AU12))/LOG(2)))) -> 0
A13: 22 | B13: 885 | C13: 23 | D13: 892 | E13: 23 | F13: 900 | K13: 0 | L13: 222 | N13: 221 | O13: =COUNTIF($L$7:$L$500,N13) -> 0 | P13: =O13/$Q$4 -> 0 | Q13: =IF(P13=0,0,(P13*((LOG(P13))/LOG(2)))) -> 0 | T13: =N13 -> 221 | U13: =COUNTIF(L7:L16,T13) -> 0 | V13: =U13/(W4-U10) -> 0 | W13: =IF(V13=0,0,(V13*((LOG(V13))/LOG(2)))) -> 0 | Y13: =N13 -> 221 | Z13: =COUNTIF(L17:L26,Y13) -> 0 | AA13: =Z13/(AB4-Z10) -> 0 | AB13: =IF(AA13=0,0,(AA13*((LOG(AA13))/LOG(2)))) -> 0 | AD13: =N13 -> 221 | AE13: =COUNTIF(L27:L36,AD13) -> 0 | AF13: =AE13/(AG4-AE10) -> 0 | AG13: =IF(AF13=0,0,(AF13*((LOG(AF13))/LOG(2)))) -> 0 | AI13: =N13 -> 221 | AJ13: =COUNTIF(L37:L46,AI13) -> 0 | AK13: =AJ13/(AL4-AJ10) -> 0 | AL13: =IF(AK13=0,0,(AK13*((LOG(AK13))/LOG(2)))) -> 0 | AN13: =N13 -> 221 | AO13: =COUNTIF(L47:L56,AN13) -> 0 | AP13: =AO13/(AQ4-AO10) -> 0 | AQ13: =IF(AP13=0,0,(AP13*((LOG(AP13))/LOG(2)))) -> 0 | AS13: =N13 -> 221 | AT13: =COUNTIF(L57:L66,AS13) -> 0 | AU13: =AT13/(AV4-AT10) -> 0 | AV13: =IF(AU13=0,0,(AU13*((LOG(AU13))/LOG(2)))) -> 0
A14: 11 | B14: 996 | C14: 21 | D14: 1011 | E14: 21 | F14: 1018 | K14: 0 | L14: 122 | N14: 222 | O14: =COUNTIF($L$7:$L$500,N14) -> 14 | P14: =O14/$Q$4 -> 0.2333333333 | Q14: =IF(P14=0,0,(P14*((LOG(P14))/LOG(2)))) -> -0.4898916572 | T14: =N14 -> 222 | U14: =COUNTIF(L7:L16,T14) -> 3 | V14: =U14/(W4-U10) -> 0.75 | W14: =IF(V14=0,0,(V14*((LOG(V14))/LOG(2)))) -> -0.3112781245 | Y14: =N14 -> 222 | Z14: =COUNTIF(L17:L26,Y14) -> 2 | AA14: =Z14/(AB4-Z10) -> 0.6666666667 | AB14: =IF(AA14=0,0,(AA14*((LOG(AA14))/LOG(2)))) -> -0.3899750005 | AD14: =N14 -> 222 | AE14: =COUNTIF(L27:L36,AD14) -> 3 | AF14: =AE14/(AG4-AE10) -> 1 | AG14: =IF(AF14=0,0,(AF14*((LOG(AF14))/LOG(2)))) -> 0 | AI14: =N14 -> 222 | AJ14: =COUNTIF(L37:L46,AI14) -> 2 | AK14: =AJ14/(AL4-AJ10) -> 0.6666666667 | AL14: =IF(AK14=0,0,(AK14*((LOG(AK14))/LOG(2)))) -> -0.3899750005 | AN14: =N14 -> 222 | AO14: =COUNTIF(L47:L56,AN14) -> 2 | AP14: =AO14/(AQ4-AO10) -> 0.5 | AQ14: =IF(AP14=0,0,(AP14*((LOG(AP14))/LOG(2)))) -> -0.5 | AS14: =N14 -> 222 | AT14: =COUNTIF(L57:L66,AS14) -> 2 | AU14: =AT14/(AV4-AT10) -> 0.6666666667 | AV14: =IF(AU14=0,0,(AU14*((LOG(AU14))/LOG(2)))) -> -0.3899750005
A15: 11 | B15: 1110 | C15: 21 | D15: 1118 | E15: 21 | F15: 1144 | K15: 0 | L15: 122 | P15: =SUM(P7:P14) -> 1 | Q15: =-SUM(Q7:Q14) -> 1.277061709 | V15: =SUM(V7:V14) -> 1 | W15: =-SUM(W7:W14) -> 0.8112781245 | AA15: =SUM(AA7:AA14) -> 1 | AB15: =-SUM(AB7:AB14) -> 0.9182958341 | AF15: =SUM(AF7:AF14) -> 1 | AG15: =-SUM(AG7:AG14) -> 0 | AK15: =SUM(AK7:AK14) -> 1 | AL15: =-SUM(AL7:AL14) -> 0.9182958341 | AP15: =SUM(AP7:AP14) -> 1 | AQ15: =-SUM(AQ7:AQ14) -> 1 | AU15: =SUM(AU7:AU14) -> 1 | AV15: =-SUM(AV7:AV14) -> 0.9182958341
A16: 22 | B16: 1254 | C16: 23 | D16: 1294 | E16: 23 | F16: 1307 | K16: 0 | L16: 222 | P16: U= | Q16: =Q15/(LOG(Q4)/LOG(2)) -> 0.2161986393 | V16: U1= | W16: =W15/(LOG(W4)/LOG(2)) -> 0.2442190503 | AA16: U2= | AB16: =AB15/(LOG(AB4)/LOG(2)) -> 0.2764345909 | AF16: U3= | AG16: =AG15/(LOG(AG4)/LOG(2)) -> 0 | AK16: U4= | AL16: =AL15/(LOG(AL4)/LOG(2)) -> 0.2764345909 | AP16: U5= | AQ16: =AQ15/(LOG(AQ4)/LOG(2)) -> 0.3010299957 | AU16: U6= | AV16: =AV15/(LOG(AV4)/LOG(2)) -> 0.2764345909
A17: 11 | B17: 1403 | C17: 21 | D17: 1467 | E17: 21 | F17: 1486 | K17: 0 | L17: 122
A18: 22 | B18: 1585 | C18: 23 | D18: 1610 | E18: 23 | F18: 1627 | K18: 0 | L18: 222
A19: 22 | B19: 1739 | C19: 23 | D19: 1787 | E19: 23 | F19: 1800 | K19: 0 | L19: 222 | N19: Total Target Seq
A20: 11 | B20: 1907 | C20: 21 | D20: 1921 | E20: 21 | F20: 1929 | K20: 0 | L20: 122 | N20: =COUNTIF(L7:L66,G3) -> 40 | P20: 10 | Q20: 10 | R20: 10 | S20: 10 | T20: 10 | U20: 10
A21: 11 | B21: 2022 | C21: 21 | D21: 2046 | E21: 21 | F21: 2054 | K21: 0 | L21: 122 | P21: % of reinforcement given in 6 equal intervals based on number of trials
A22: 11 | B22: 2140 | C22: 12 | D22: 2147 | E22: 14 | F22: 2177 | K22: 0 | L22: 111 | P22: %_1 | Q22: %_2 | R22: %_3 | S22: %_4 | T22: %_5 | U22: %_6
A23: 11 | B23: 2274 | C23: 21 | D23: 2289 | E23: 21 | F23: 2316 | K23: 0 | L23: 122 | O23: target sequence | P23: =$G$3 -> 122 | Q23: =$G$3 -> 122 | R23: =$G$3 -> 122 | S23: =$G$3 -> 122 | T23: =$G$3 -> 122 | U23: =$G$3 -> 122
A24: 11 | B24: 2412 | C24: 21 | D24: 2429 | E24: 21 | F24: 2456 | K24: 0 | L24: 122 | O24: total reinforcement | P24: =U10 -> 6 | Q24: =Z10 -> 7 | R24: =AE10 -> 7 | S24: =AJ10 -> 7 | T24: =AO10 -> 6 | U24: =AT10 -> 7
A25: 11 | B25: 2546 | C25: 21 | D25: 2570 | E25: 21 | F25: 2584 | K25: 0 | L25: 122 | O25: % target
A26: 11 | B26: 2674 | C26: 21 | D26: 2726 | E26: 21 | F26: 2771 | K26: 0 | L26: 122 | O26: CCRF
A27: 11 | B27: 2862 | C27: 21 | D27: 2875 | E27: 21 | F27: 2880 | K27: 0 | L27: 122 | O27: % CCRf
A28: 11 | B28: 3065 | C28: 21 | D28: 3095 | E28: 21 | F28: 3338 | K28: 0 | L28: 122 | O28: average response rate | P28: =F16/P20 -> 130.7 | Q28: =(F26-F16)/Q20 -> 146.4 | R28: =(F36-F26)/R20 -> 168.4 | S28: =(F46-F36)/S20 -> 129.4 | T28: =(F56-F46)/T20 -> 161 | U28: =(F66-F56)/U20 -> 122.2
A29: 11 | B29: 3433 | C29: 21 | D29: 3449 | E29: 21 | F29: 3456 | K29: 0 | L29: 122
A30: 22 | B30: 3562 | C30: 23 | D30: 3576 | E30: 23 | F30: 3590 | K30: 0 | L30: 222
A31: 11 | B31: 3697 | C31: 21 | D31: 3713 | E31: 21 | F31: 3721 | K31: 0 | L31: 122
A32: 11 | B32: 3811 | C32: 21 | D32: 3827 | E32: 21 | F32: 3850 | K32: 0 | L32: 122
A33: 22 | B33: 3959 | C33: 23 | D33: 4014 | E33: 23 | F33: 4022 | K33: 0 | L33: 222
A34: 11 | B34: 4124 | C34: 21 | D34: 4141 | E34: 21 | F34: 4157 | K34: 0 | L34: 122
A35: 22 | B35: 4260 | C35: 23 | D35: 4294 | E35: 23 | F35: 4315 | K35: 0 | L35: 222
A36: 11 | B36: 4407 | C36: 21 | D36: 4440 | E36: 21 | F36: 4455 | K36: 0 | L36: 122
A37: 11 | B37: 4546 | C37: 21 | D37: 4558 | E37: 21 | F37: 4564 | K37: 0 | L37: 122
A38: 11 | B38: 4662 | C38: 21 | D38: 4681 | E38: 21 | F38: 4688 | K38: 0 | L38: 122
A39: 11 | B39: 4778 | C39: 21 | D39: 4793 | E39: 21 | F39: 4831 | K39: 0 | L39: 122
A40: 11 | B40: 4917 | C40: 12 | D40: 4925 | E40: 23 | F40: 4936 | K40: 0 | L40: 112
A41: 11 | B41: 5031 | C41: 21 | D41: 5051 | E41: 21 | F41: 5074 | K41: 0 | L41: 122
A42: 11 | B42: 5177 | C42: 21 | D42: 5212 | E42: 21 | F42: 5218 | K42: 0 | L42: 122
A43: 22 | B43: 5322 | C43: 23 | D43: 5336 | E43: 23 | F43: 5361 | K43: 0 | L43: 222
A44: 11 | B44: 5460 | C44: 21 | D44: 5477 | E44: 21 | F44: 5482 | K44: 0 | L44: 122
A45: 22 | B45: 5587 | C45: 23 | D45: 5594 | E45: 23 | F45: 5602 | K45: 0 | L45: 222
A46: 11 | B46: 5700 | C46: 21 | D46: 5730 | E46: 21 | F46: 5749 | K46: 0 | L46: 122
A47: 22 | B47: 5869 | C47: 23 | D47: 5892 | E47: 23 | F47: 5954 | K47: 0 | L47: 222
A48: 11 | B48: 6055 | C48: 21 | D48: 6146 | E48: 21 | F48: 6270 | K48: 0 | L48: 122
A49: 22 | B49: 6373 | C49: 23 | D49: 6430 | E49: 23 | F49: 6447 | K49: 0 | L49: 222
A50: 11 | B50: 6545 | C50: 21 | D50: 6577 | E50: 21 | F50: 6590 | K50: 0 | L50: 122
A51: 11 | B51: 6681 | C51: 21 | D51: 6699 | E51: 21 | F51: 6711 | K51: 0 | L51: 122
A52: 11 | B52: 6798 | C52: 12 | D52: 6803 | E52: 23 | F52: 6857 | K52: 0 | L52: 112
A53: 11 | B53: 6953 | C53: 21 | D53: 6973 | E53: 21 | F53: 6981 | K53: 0 | L53: 122
A54: 11 | B54: 7071 | C54: 21 | D54: 7101 | E54: 21 | F54: 7117 | K54: 0 | L54: 122
A55: 11 | B55: 7202 | C55: 12 | D55: 7214 | E55: 23 | F55: 7226 | K55: 0 | L55: 112
A56: 11 | B56: 7323 | C56: 21 | D56: 7343 | E56: 21 | F56: 7359 | K56: 0 | L56: 122
A57: 11 | B57: 7443 | C57: 12 | D57: 7450 | E57: 23 | F57: 7467 | K57: 0 | L57: 112
A58: 11 | B58: 7564 | C58: 21 | D58: 7582 | E58: 21 | F58: 7588 | K58: 0 | L58: 122
A59: 22 | B59: 7706 | C59: 23 | D59: 7718 | E59: 23 | F59: 7726 | K59: 0 | L59: 222
A60: 11 | B60: 7824 | C60: 21 | D60: 7837 | E60: 21 | F60: 7849 | K60: 0 | L60: 122
A61: 11 | B61: 7940 | C61: 21 | D61: 7957 | E61: 21 | F61: 7965 | K61: 0 | L61: 122
A62: 11 | B62: 8055 | C62: 21 | D62: 8072 | E62: 21 | F62: 8085 | K62: 0 | L62: 122
A63: 11 | B63: 8172 | C63: 21 | D63: 8190 | E63: 21 | F63: 8215 | K63: 0 | L63: 122
A64: 22 | B64: 8320 | C64: 23 | D64: 8340 | E64: 23 | F64: 8352 | K64: 0 | L64: 222
A65: 11 | B65: 8449 | C65: 21 | D65: 8462 | E65: 21 | F65: 8473 | K65: 0 | L65: 122
A66: 11 | B66: 8562 | C66: 21 | D66: 8575 | E66: 21 | F66: 8581 | K66: 1 | L66: 122

Sheet !M626C00.102
A1: Report for:!M626C00.102
A2: Date: | B2: <date>
A3: Hen: | B3: <hen> | F3: Correct Sequence | G3: =Start!J2 -> 122 | P3: Total Sequences in Data | Q3: =4994-COUNTBLANK(L7:L5000) -> 64 | V3: Total Sequences in Block Data | W3: =COUNTA(L7:L17) -> 11 | AA3: Total Sequences in Block Data | AB3: =COUNTA(L18:L27) -> 10 | AF3: Total Sequences in Block Data | AG3: =COUNTA(L28:L38) -> 11 | AK3: Total Sequences in Block Data | AL3: =COUNTA(L39:L49) -> 11 | AP3: Total Sequences in Block Data | AQ3: =COUNTA(L50:L59) -> 10 | AU3: Total Sequences in Block Data | AV3: =COUNTA(L60:L70) -> 11
P4: Total Sequences in Summary | Q4: =SUM(O7:O14) -> 64 | V4: Total Sequences in Block Summary | W4: =SUM(U7:U14) -> 11 | AA4: Total Sequences in Block Summary | AB4: =SUM(Z7:Z14) -> 10 | AF4: Total Sequences in Block Summary | AG4: =SUM(AE7:AE14) -> 11 | AK4: Total Sequences in Block Summary | AL4: =SUM(AJ7:AJ14) -> 11 | AP4: Total Sequences in Block Summary | AQ4: =SUM(AO7:AO14) -> 10 | AU4: Total Sequences in Block Summary | AV4: =SUM(AT7:AT14) -> 11
T5: Block 1 | Y5: Block 2 | AD5: Block 3 | AI5: Block 4 | AN5: Block 5 | AS5: Block 6
A6: Sequence Component 1 | B6: Time 1 | C6: Sequence Component 2 | D6: Time 2 | E6: Sequence Component 3 | F6: Time 3 | G6: Sequence Component 4 | H6: Time 4 | I6: Sequence Component 5 | J6: Time 5 | K6: Correct? 0=No 1=Yes | L6: Sequence | N6: Frequency | P6: Relative Frequency | Q6: Variability | T6: Frequency | V6: Relative Frequency | W6: Variability | Y6: Frequency | AA6: Relative Frequency | AB6: Variability | AD6: Frequency | AF6: Relative Frequency | AG6: Variability | AI6: Frequency | AK6: Relative Frequency | AL6: Variability | AN6: Frequency | AP6: Relative Frequency | AQ6: Variability | AS6: Frequency | AU6: Relative Frequency | AV6: Variability
A7: 11 | B7: 33 | C7: 12 | D7: 42 | E7: 14 | F7: 53 | K7: 0 | L7: 111 | N7: 111 | O7: =COUNTIF($L$7:$L$500,N7) -> 2 | P7: =O7/$Q$4 -> 0.03125 | Q7: =IF(P7=0,0,(P7*((LOG(P7))/LOG(2)))) -> -0.15625 | T7: =N7 -> 111 | U7: =COUNTIF(L7:L17,T7) -> 1 | V7: =U7/(W4-U10) -> 0.1666666667 | W7: =IF(V7=0,0,(V7*((LOG(V7))/LOG(2)))) -> -0.4308270835 | Y7: =N7 -> 111 | Z7: =COUNTIF(L18:L27,Y7) -> 1 | AA7: =Z7/(AB4-Z10) -> 0.2 | AB7: =IF(AA7=0,0,(AA7*((LOG(AA7))/LOG(2)))) -> -0.464385619 | AD7: =N7 -> 111 | AE7: =COUNTIF(L28:L38,AD7) -> 0 | AF7: =AE7/(AG4-AE10) -> 0 | AG7: =IF(AF7=0,0,(AF7*((LOG(AF7))/LOG(2)))) -> 0 | AI7: =N7 -> 111 | AJ7: =COUNTIF(L39:L49,AI7) -> 0 | AK7: =AJ7/(AL4-AJ10) -> 0 | AL7: =IF(AK7=0,0,(AK7*((LOG(AK7))/LOG(2)))) -> 0 | AN7: =N7 -> 111 | AO7: =COUNTIF(L50:L59,AN7) -> 0 | AP7: =AO7/(AQ4-AO10) -> 0 | AQ7: =IF(AP7=0,0,(AP7*((LOG(AP7))/LOG(2)))) -> 0 | AS7: =N7 -> 111 | AT7: =COUNTIF(L60:L70,AS7) -> 0 | AU7: =AT7/(AV4-AT10) -> 0 | AV7: =IF(AU7=0,0,(AU7*((LOG(AU7))/LOG(2)))) -> 0
A8: 22 | B8: 182 | C8: 23 | D8: 212 | E8: 23 | F8: 223 | K8: 0 | L8: 222 | N8: 112 | O8: =COUNTIF($L$7:$L$500,N8) -> 2 | P8: =O8/$Q$4 -> 0.03125 | Q8: =IF(P8=0,0,(P8*((LOG(P8))/LOG(2)))) -> -0.15625 | T8: =N8 -> 112 | U8: =COUNTIF(L7:L17,T8) -> 0 | V8: =U8/(W4-U10) -> 0 | W8: =IF(V8=0,0,(V8*((LOG(V8))/LOG(2)))) -> 0 | Y8: =N8 -> 112 | Z8: =COUNTIF(L18:L27,Y8) -> 1 | AA8: =Z8/(AB4-Z10) -> 0.2 | AB8: =IF(AA8=0,0,(AA8*((LOG(AA8))/LOG(2)))) -> -0.464385619 | AD8: =N8 -> 112 | AE8: =COUNTIF(L28:L38,AD8) -> 0 | AF8: =AE8/(AG4-AE10) -> 0 | AG8: =IF(AF8=0,0,(AF8*((LOG(AF8))/LOG(2)))) -> 0 | AI8: =N8 -> 112 | AJ8: =COUNTIF(L39:L49,AI8) -> 0 | AK8: =AJ8/(AL4-AJ10) -> 0 | AL8: =IF(AK8=0,0,(AK8*((LOG(AK8))/LOG(2)))) -> 0 | AN8: =N8 -> 112 | AO8: =COUNTIF(L50:L59,AN8) -> 1 | AP8: =AO8/(AQ4-AO10) -> 0.3333333333 | AQ8: =IF(AP8=0,0,(AP8*((LOG(AP8))/LOG(2)))) -> -0.5283208336 | AS8: =N8 -> 112 | AT8: =COUNTIF(L60:L70,AS8) -> 0 | AU8: =AT8/(AV4-AT10) -> 0 | AV8: =IF(AU8=0,0,(AU8*((LOG(AU8))/LOG(2)))) -> 0
A9: 22 | B9: 369 | C9: 23 | D9: 384 | E9: 23 | F9: 392 | K9: 0 | L9: 222 | N9: 121 | O9: =COUNTIF($L$7:$L$500,N9) -> 0 | P9: =O9/$Q$4 -> 0 | Q9: =IF(P9=0,0,(P9*((LOG(P9))/LOG(2)))) -> 0 | T9: =N9 -> 121 | U9: =COUNTIF(L7:L17,T9) -> 0 | V9: =U9/(W4-U10) -> 0 | W9: =IF(V9=0,0,(V9*((LOG(V9))/LOG(2)))) -> 0 | Y9: =N9 -> 121 | Z9: =COUNTIF(L18:L27,Y9) -> 0 | AA9: =Z9/(AB4-Z10) -> 0 | AB9: =IF(AA9=0,0,(AA9*((LOG(AA9))/LOG(2)))) -> 0 | AD9: =N9 -> 121 | AE9: =COUNTIF(L28:L38,AD9) -> 0 | AF9: =AE9/(AG4-AE10) -> 0 | AG9: =IF(AF9=0,0,(AF9*((LOG(AF9))/LOG(2)))) -> 0 | AI9: =N9 -> 121 | AJ9: =COUNTIF(L39:L49,AI9) -> 0 | AK9: =AJ9/(AL4-AJ10) -> 0 | AL9: =IF(AK9=0,0,(AK9*((LOG(AK9))/LOG(2)))) -> 0 | AN9: =N9 -> 121 | AO9: =COUNTIF(L50:L59,AN9) -> 0 | AP9: =AO9/(AQ4-AO10) -> 0 | AQ9: =IF(AP9=0,0,(AP9*((LOG(AP9))/LOG(2)))) -> 0 | AS9: =N9 -> 121 | AT9: =COUNTIF(L60:L70,AS9) -> 0 | AU9: =AT9/(AV4-AT10) -> 0 | AV9: =IF(AU9=0,0,(AU9*((LOG(AU9))/LOG(2)))) -> 0
A10: 11 | B10: 513 | C10: 21 | D10: 531 | E10: 21 | F10: 559 | K10: 0 | L10: 122 | N10: 122 | O10: =COUNTIF($L$7:$L$500,N10) -> 40 | P10: =O10/$Q$4 -> 0.625 | Q10: =IF(P10=0,0,(P10*((LOG(P10))/LOG(2)))) -> -0.4237949407 | T10: =N10 -> 122 | U10: =COUNTIF(L7:L17,T10) -> 5 | Y10: =N10 -> 122 | Z10: =COUNTIF(L18:L27,Y10) -> 5 | AD10: =N10 -> 122 | AE10: =COUNTIF(L28:L38,AD10) -> 6 | AI10: =N10 -> 122 | AJ10: =COUNTIF(L39:L49,AI10) -> 8 | AN10: =N10 -> 122 | AO10: =COUNTIF(L50:L59,AN10) -> 7 | AS10: =N10 -> 122 | AT10: =COUNTIF(L60:L70,AS10) -> 9
A11: 22 | B11: 681 | C11: 23 | D11: 693 | E11: 23 | F11: 702 | K11: 0 | L11: 222 | N11: 211 | O11: =COUNTIF($L$7:$L$500,N11) -> 0 | P11: =O11/$Q$4 -> 0 | Q11: =IF(P11=0,0,(P11*((LOG(P11))/LOG(2)))) -> 0 | T11: =N11 -> 211 | U11: =COUNTIF(L7:L17,T11) -> 0 | V11: =U11/(W4-U10) -> 0 | W11: =IF(V11=0,0,(V11*((LOG(V11))/LOG(2)))) -> 0 | Y11: =N11 -> 211 | Z11: =COUNTIF(L18:L27,Y11) -> 0 | AA11: =Z11/(AB4-Z10) -> 0 | AB11: =IF(AA11=0,0,(AA11*((LOG(AA11))/LOG(2)))) -> 0 | AD11: =N11 -> 211 | AE11: =COUNTIF(L28:L38,AD11) -> 0 | AF11: =AE11/(AG4-AE10) -> 0 | AG11: =IF(AF11=0,0,(AF11*((LOG(AF11))/LOG(2)))) -> 0 | AI11: =N11 -> 211 | AJ11: =COUNTIF(L39:L49,AI11) -> 0 | AK11: =AJ11/(AL4-AJ10) -> 0 | AL11: =IF(AK11=0,0,(AK11*((LOG(AK11))/LOG(2)))) -> 0 | AN11: =N11 -> 211 | AO11: =COUNTIF(L50:L59,AN11) -> 0 | AP11: =AO11/(AQ4-AO10) -> 0 | AQ11: =IF(AP11=0,0,(AP11*((LOG(AP11))/LOG(2)))) -> 0 | AS11: =N11 -> 211 | AT11: =COUNTIF(L60:L70,AS11) -> 0 | AU11: =AT11/(AV4-AT10) -> 0 | AV11: =IF(AU11=0,0,(AU11*((LOG(AU11))/LOG(2)))) -> 0
A12: 11 | B12: 803 | C12: 21 | D12: 833 | E12: 21 | F12: 842 | K12: 0 | L12: 122 | N12: 212 | O12: =COUNTIF($L$7:$L$500,N12) -> 0 | P12: =O12/$Q$4 -> 0 | Q12: =IF(P12=0,0,(P12*((LOG(P12))/LOG(2)))) -> 0 | T12: =N12 -> 212 | U12: =COUNTIF(L7:L17,T12) -> 0 | V12: =U12/(W4-U10) -> 0 | W12: =IF(V12=0,0,(V12*((LOG(V12))/LOG(2)))) -> 0 | Y12: =N12 -> 212 | Z12: =COUNTIF(L18:L27,Y12) -> 0 | AA12: =Z12/(AB4-Z10) -> 0 | AB12: =IF(AA12=0,0,(AA12*((LOG(AA12))/LOG(2)))) -> 0 | AD12: =N12 -> 212 | AE12: =COUNTIF(L28:L38,AD12) -> 0 | AF12: =AE12/(AG4-AE10) -> 0 | AG12: =IF(AF12=0,0,(AF12*((LOG(AF12))/LOG(2)))) -> 0 | AI12: =N12 -> 212 | AJ12: =COUNTIF(L39:L49,AI12) -> 0 | AK12: =AJ12/(AL4-AJ10) -> 0 | AL12: =IF(AK12=0,0,(AK12*((LOG(AK12))/LOG(2)))) -> 0 | AN12: =N12 -> 212 | AO12: =COUNTIF(L50:L59,AN12) -> 0 | AP12: =AO12/(AQ4-AO10) -> 0 | AQ12: =IF(AP12=0,0,(AP12*((LOG(AP12))/LOG(2)))) -> 0 | AS12: =N12 -> 212 | AT12: =COUNTIF(L60:L70,AS12) -> 0 | AU12: =AT12/(AV4-AT10) -> 0 | AV12: =IF(AU12=0,0,(AU12*((LOG(AU12))/LOG(2)))) -> 0
A13: 22 | B13: 962 | C13: 23 | D13: 983 | E13: 23 | F13: 997 | K13: 0 | L13: 222 | N13: 221 | O13: =COUNTIF($L$7:$L$500,N13) -> 0 | P13: =O13/$Q$4 -> 0 | Q13: =IF(P13=0,0,(P13*((LOG(P13))/LOG(2)))) -> 0 | T13: =N13 -> 221 | U13: =COUNTIF(L7:L17,T13) -> 0 | V13: =U13/(W4-U10) -> 0 | W13: =IF(V13=0,0,(V13*((LOG(V13))/LOG(2)))) -> 0 | Y13: =N13 -> 221 | Z13: =COUNTIF(L18:L27,Y13) -> 0 | AA13: =Z13/(AB4-Z10) -> 0 | AB13: =IF(AA13=0,0,(AA13*((LOG(AA13))/LOG(2)))) -> 0 | AD13: =N13 -> 221 | AE13: =COUNTIF(L28:L38,AD13) -> 0 | AF13: =AE13/(AG4-AE10) -> 0 | AG13: =IF(AF13=0,0,(AF13*((LOG(AF13))/LOG(2)))) -> 0 | AI13: =N13 -> 221 | AJ13: =COUNTIF(L39:L49,AI13) -> 0 | AK13: =AJ13/(AL4-AJ10) -> 0 | AL13: =IF(AK13=0,0,(AK13*((LOG(AK13))/LOG(2)))) -> 0 | AN13: =N13 -> 221 | AO13: =COUNTIF(L50:L59,AN13) -> 0 | AP13: =AO13/(AQ4-AO10) -> 0 | AQ13: =IF(AP13=0,0,(AP13*((LOG(AP13))/LOG(2)))) -> 0 | AS13: =N13 -> 221 | AT13: =COUNTIF(L60:L70,AS13) -> 0 | AU13: =AT13/(AV4-AT10) -> 0 | AV13: =IF(AU13=0,0,(AU13*((LOG(AU13))/LOG(2)))) -> 0
A14: 11 | B14: 1104 | C14: 21 | D14: 1151 | E14: 21 | F14: 1178 | K14: 0 | L14: 122 | N14: 222 | O14: =COUNTIF($L$7:$L$500,N14) -> 20 | P14: =O14/$Q$4 -> 0.3125 | Q14: =IF(P14=0,0,(P14*((LOG(P14))/LOG(2)))) -> -0.5243974703 | T14: =N14 -> 222 | U14: =COUNTIF(L7:L17,T14) -> 5 | V14: =U14/(W4-U10) -> 0.8333333333 | W14: =IF(V14=0,0,(V14*((LOG(V14))/LOG(2)))) -> -0.2191953382 | Y14: =N14 -> 222 | Z14: =COUNTIF(L18:L27,Y14) -> 3 | AA14: =Z14/(AB4-Z10) -> 0.6 | AB14: =IF(AA14=0,0,(AA14*((LOG(AA14))/LOG(2)))) -> -0.4421793565 | AD14: =N14 -> 222 | AE14: =COUNTIF(L28:L38,AD14) -> 5 | AF14: =AE14/(AG4-AE10) -> 1 | AG14: =IF(AF14=0,0,(AF14*((LOG(AF14))/LOG(2)))) -> 0 | AI14: =N14 -> 222 | AJ14: =COUNTIF(L39:L49,AI14) -> 3 | AK14: =AJ14/(AL4-AJ10) -> 1 | AL14: =IF(AK14=0,0,(AK14*((LOG(AK14))/LOG(2)))) -> 0 | AN14: =N14 -> 222 | AO14: =COUNTIF(L50:L59,AN14) -> 2 | AP14: =AO14/(AQ4-AO10) -> 0.6666666667 | AQ14: =IF(AP14=0,0,(AP14*((LOG(AP14))/LOG(2)))) -> -0.3899750005 | AS14: =N14 -> 222 | AT14: =COUNTIF(L60:L70,AS14) -> 2 | AU14: =AT14/(AV4-AT10) -> 1 | AV14: =IF(AU14=0,0,(AU14*((LOG(AU14))/LOG(2)))) -> 0
A15: 11 | B15: 1266 | C15: 21 | D15: 1306 | E15: 21 | F15: 1315 | K15: 0 | L15: 122 | P15: =SUM(P7:P14) -> 1 | Q15: =-SUM(Q7:Q14) -> 1.260692411 | V15: =SUM(V7:V14) -> 1 | W15: =-SUM(W7:W14) -> 0.6500224216 | AA15: =SUM(AA7:AA14) -> 1 | AB15: =-SUM(AB7:AB14) -> 1.370950594 | AF15: =SUM(AF7:AF14) -> 1 | AG15: =-SUM(AG7:AG14) -> 0 | AK15: =SUM(AK7:AK14) -> 1 | AL15: =-SUM(AL7:AL14) -> 0 | AP15: =SUM(AP7:AP14) -> 1 | AQ15: =-SUM(AQ7:AQ14) -> 0.9182958341 | AU15: =SUM(AU7:AU14) -> 1 | AV15: =-SUM(AV7:AV14) -> 0
A16: 22 | B16: 1414 | C16: 23 | D16: 1418 | E16: 23 | F16: 1424 | K16: 0 | L16: 222 | P16: U= | Q16: =Q15/(LOG(Q4)/LOG(2)) -> 0.2101154018 | V16: U1= | W16: =W15/(LOG(W4)/LOG(2)) -> 0.1878986184 | AA16: U2= | AB16: =AB15/(LOG(AB4)/LOG(2)) -> 0.4126972515 | AF16: U3= | AG16: =AG15/(LOG(AG4)/LOG(2)) -> 0 | AK16: U4= | AL16: =AL15/(LOG(AL4)/LOG(2)) -> 0 | AP16: U5= | AQ16: =AQ15/(LOG(AQ4)/LOG(2)) -> 0.2764345909 | AU16: U6= | AV16: =AV15/(LOG(AV4)/LOG(2)) -> 0
A17: 11 | B17: 1526 | C17: 21 | D17: 1547 | E17: 21 | F17: 1555 | K17: 0 | L17: 122
A18: 11 | B18: 1681 | C18: 12 | D18: 1690 | E18: 14 | F18: 1700 | K18: 0 | L18: 111
A19: 11 | B19: 1799 | C19: 12 | D19: 1826 | E19: 23 | F19: 1876 | K19: 0 | L19: 112 | N19: Total Target Seq
A20: 22 | B20: 1987 | C20: 23 | D20: 1997 | E20: 23 | F20: 2017 | K20: 0 | L20: 222 | N20: =COUNTIF(L7:L70,G3) -> 40 | P20: 11 | Q20: 10 | R20: 11 | S20: 11 | T20: 10 | U20: 11
A21: 22 | B21: 2133 | C21: 23 | D21: 2140 | E21: 23 | F21: 2153 | K21: 0 | L21: 222 | P21: % of reinforcement given in 6 equal intervals based on number of trials
A22: 11 | B22: 2250 | C22: 21 | D22: 2270 | E22: 21 | F22: 2278 | K22: 0 | L22: 122 | P22: %_1 | Q22: %_2 | R22: %_3 | S22: %_4 | T22: %_5 | U22: %_6
A23: 11 | B23: 2368 | C23: 21 | D23: 2380 | E23: 21 | F23: 2394 | K23: 0 | L23: 122 | O23: target sequence | P23: =$G$3 -> 122 | Q23: =$G$3 -> 122 | R23: =$G$3 -> 122 | S23: =$G$3 -> 122 | T23: =$G$3 -> 122 | U23: =$G$3 -> 122
A24: 22 | B24: 2517 | C24: 23 | D24: 2549 | E24: 23 | F24: 2556 | K24: 0 | L24: 222 | O24: total reinforcement | P24: =U10 -> 5 | Q24: =Z10 -> 5 | R24: =AE10 -> 6 | S24: =AJ10 -> 8 | T24: =AO10 -> 7 | U24: =AT10 -> 9
A25: 11 | B25: 2654 | C25: 21 | D25: 2669 | E25: 21 | F25: 2681 | K25: 0 | L25: 122 | O25: % target
A26: 11 | B26: 2769 | C26: 21 | D26: 2795 | E26: 21 | F26: 2823 | K26: 0 | L26: 122 | O26: CCRF
A27: 11 | B27: 2909 | C27: 21 | D27: 2951 | E27: 21 | F27: 2967 | K27: 0 | L27: 122 | O27: % CCRf
A28: 11 | B28: 3056 | C28: 21 | D28: 3096 | E28: 21 | F28: 3123 | K28: 0 | L28: 122 | O28: average response rate | P28: =F17/P20 -> 141.3636364 | Q28: =(F27-F17)/Q20 -> 141.2 | R28: =(F38-F27)/R20 -> 150.9090909 | S28: =(F49-F38)/S20 -> 148.1818182 | T28: =(F59-F49)/T20 -> 133.3 | U28: =(F70-F59)/U20 -> 149.2727273
A29: 22 | B29: 3222 | C29: 23 | D29: 3228 | E29: 23 | F29: 3248 | K29: 0 | L29: 222
A30: 22 | B30: 3354 | C30: 23 | D30: 3359 | E30: 23 | F30: 3387 | K30: 0 | L30: 222
A31: 11 | B31: 3481 | C31: 21 | D31: 3493 | E31: 21 | F31: 3521 | K31: 0 | L31: 122
A32: 11 | B32: 3661 | C32: 21 | D32: 3692 | E32: 21 | F32: 3705 | K32: 0 | L32: 122
A33: 11 | B33: 3859 | C33: 21 | D33: 3873 | E33: 21 | F33: 3905 | K33: 0 | L33: 122
A34: 22 | B34: 4019 | C34: 23 | D34: 4058 | E34: 23 | F34: 4085 | K34: 0 | L34: 222
A35: 22 | B35: 4213 | C35: 23 | D35: 4237 | E35: 23 | F35: 4244 | K35: 0 | L35: 222
A36: 11 | B36: 4342 | C36: 21 | D36: 4358 | E36: 21 | F36: 4363 | K36: 0 | L36: 122
A37: 22 | B37: 4465 | C37: 23 | D37: 4474 | E37: 23 | F37: 4486 | K37: 0 | L37: 222
A38: 11 | B38: 4581 | C38: 21 | D38: 4606 | E38: 21 | F38: 4627 | K38: 0 | L38: 122
A39: 22 | B39: 4760 | C39: 23 | D39: 4781 | E39: 23 | F39: 4793 | K39: 0 | L39: 222
A40: 11 | B40: 4889 | C40: 21 | D40: 4925 | E40: 21 | F40: 4962 | K40: 0 | L40: 122
A41: 22 | B41: 5070 | C41: 23 | D41: 5084 | E41: 23 | F41: 5093 | K41: 0 | L41: 222
A42: 11 | B42: 5191 | C42: 21 | D42: 5201 | E42: 21 | F42: 5207 | K42: 0 | L42: 122
A43: 11 | B43: 5335 | C43: 21 | D43: 5353 | E43: 21 | F43: 5361 | K43: 0 | L43: 122
A44: 11 | B44: 5448 | C44: 21 | D44: 5465 | E44: 21 | F44: 5479 | K44: 0 | L44: 122
A45: 11 | B45: 5564 | C45: 21 | D45: 5646 | E45: 21 | F45: 5652 | K45: 0 | L45: 122
A46: 11 | B46: 5739 | C46: 21 | D46: 5767 | E46: 21 | F46: 5776 | K46: 0 | L46: 122
A47: 22 | B47: 5875 | C47: 23 | D47: 5881 | E47: 23 | F47: 5892 | K47: 0 | L47: 222
A48: 11 | B48: 5994 | C48: 21 | D48: 6021 | E48: 21 | F48: 6028 | K48: 0 | L48: 122
A49: 11 | B49: 6119 | C49: 21 | D49: 6195 | E49: 21 | F49: 6257 | K49: 0 | L49: 122
A50: 22 | B50: 6358 | C50: 23 | D50: 6370 | E50: 23 | F50: 6378 | K50: 0 | L50: 222
A51: 11 | B51: 6470 | C51: 12 | D51: 6474 | E51: 23 | F51: 6485 | K51: 0 | L51: 112
A52: 11 | B52: 6586 | C52: 21 | D52: 6598 | E52: 21 | F52: 6604 | K52: 0 | L52: 122
A53: 22 | B53: 6706 | C53: 23 | D53: 6721 | E53: 23 | F53: 6741 | K53: 0 | L53: 222
A54: 11 | B54: 6837 | C54: 21 | D54: 6849 | E54: 21 | F54: 6898 | K54: 0 | L54: 122
A55: 11 | B55: 6998 | C55: 21 | D55: 7022 | E55: 21 | F55: 7034 | K55: 0 | L55: 122
A56: 11 | B56: 7122 | C56: 21 | D56: 7154 | E56: 21 | F56: 7184 | K56: 0 | L56: 122
A57: 11 | B57: 7280 | C57: 21 | D57: 7296 | E57: 21 | F57: 7362 | K57: 0 | L57: 122
A58: 11 | B58: 7446 | C58: 21 | D58: 7464 | E58: 21 | F58: 7472 | K58: 0 | L58: 122
A59: 11 | B59: 7560 | C59: 21 | D59: 7574 | E59: 21 | F59: 7590 | K59: 0 | L59: 122
A60: 22 | B60: 7715 | C60: 23 | D60: 7732 | E60: 23 | F60: 7770 | K60: 0 | L60: 222
A61: 11 | B61: 7868 | C61: 21 | D61: 7887 | E61: 21 | F61: 7894 | K61: 0 | L61: 122
A62: 11 | B62: 7979 | C62: 21 | D62: 8002 | E62: 21 | F62: 8010 | K62: 0 | L62: 122
A63: 11 | B63: 8095 | C63: 21 | D63: 8112 | E63: 21 | F63: 8120 | K63: 0 | L63: 122
A64: 11 | B64: 8213 | C64: 21 | D64: 8233 | E64: 21 | F64: 8381 | K64: 0 | L64: 122
A65: 11 | B65: 8465 | C65: 21 | D65: 8543 | E65: 21 | F65: 8568 | K65: 0 | L65: 122
A66: 11 | B66: 8657 | C66: 21 | D66: 8673 | E66: 21 | F66: 8687 | K66: 0 | L66: 122
A67: 11 | B67: 8771 | C67: 21 | D67: 8789 | E67: 21 | F67: 8801 | K67: 0 | L67: 122
A68: 22 | B68: 8908 | C68: 23 | D68: 8924 | E68: 23 | F68: 8983 | K68: 0 | L68: 222
A69: 11 | B69: 9082 | C69: 21 | D69: 9102 | E69: 21 | F69: 9110 | K69: 0 | L69: 122
A70: 11 | B70: 9196 | C70: 21 | D70: 9218 | E70: 21 | F70: 9232 | K70: 1 | L70: 122

Sheet !M627B20.102
A1: Report for:!M627B20.102
A2: Date: | B2: <date>
A3: Hen: | B3: <hen> | F3: Correct Sequence | G3: =Start!J2 -> 122 | P3: Total Sequences in Data | Q3: =4994-COUNTBLANK(L7:L5000) -> 62 | V3: Total Sequences in Block Data | W3: =COUNTA(L7:L16) -> 10 | AA3: Total Sequences in Block Data | AB3: =COUNTA(L17:L27) -> 11 | AF3: Total Sequences in Block Data | AG3: =COUNTA(L28:L37) -> 10 | AK3: Total Sequences in Block Data | AL3: =COUNTA(L38:L47) -> 10 | AP3: Total Sequences in Block Data | AQ3: =COUNTA(L48:L58) -> 11 | AU3: Total Sequences in Block Data | AV3: =COUNTA(L59:L68) -> 10
P4: Total Sequences in Summary | Q4: =SUM(O7:O14) -> 62 | V4: Total Sequences in Block Summary | W4: =SUM(U7:U14) -> 10 | AA4: Total Sequences in Block Summary | AB4: =SUM(Z7:Z14) -> 11 | AF4: Total Sequences in Block Summary | AG4: =SUM(AE7:AE14) -> 10 | AK4: Total Sequences in Block Summary | AL4: =SUM(AJ7:AJ14) -> 10 | AP4: Total Sequences in Block Summary | AQ4: =SUM(AO7:AO14) -> 11 | AU4: Total Sequences in Block Summary | AV4: =SUM(AT7:AT14) -> 10
T5: Block 1 | Y5: Block 2 | AD5: Block 3 | AI5: Block 4 | AN5: Block 5 | AS5: Block 6
A6: Sequence Component 1 | B6: Time 1 | C6: Sequence Component 2 | D6: Time 2 | E6: Sequence Component 3 | F6: Time 3 | G6: Sequence Component 4 | H6: Time 4 | I6: Sequence Component 5 | J6: Time 5 | K6: Correct? 0=No 1=Yes | L6: Sequence | N6: Frequency | P6: Relative Frequency | Q6: Variability | T6: Frequency | V6: Relative Frequency | W6: Variability | Y6: Frequency | AA6: Relative Frequency | AB6: Variability | AD6: Frequency | AF6: Relative Frequency | AG6: Variability | AI6: Frequency | AK6: Relative Frequency | AL6: Variability | AN6: Frequency | AP6: Relative Frequency | AQ6: Variability | AS6: Frequency | AU6: Relative Frequency | AV6: Variability
A7: 11 | B7: 27 | C7: 12 | D7: 37 | E7: 14 | F7: 53 | K7: 0 | L7: 111 | N7: 111 | O7: =COUNTIF($L$7:$L$500,N7) -> 3 | P7: =O7/$Q$4 -> 0.04838709677 | Q7: =IF(P7=0,0,(P7*((LOG(P7))/LOG(2)))) -> -0.2114145392 | T7: =N7 -> 111 | U7: =COUNTIF(L7:L16,T7) -> 2 | V7: =U7/(W4-U10) -> 0.4 | W7: =IF(V7=0,0,(V7*((LOG(V7))/LOG(2)))) -> -0.528771238 | Y7: =N7 -> 111 | Z7: =COUNTIF(L17:L27,Y7) -> 0 | AA7: =Z7/(AB4-Z10) -> 0 | AB7: =IF(AA7=0,0,(AA7*((LOG(AA7))/LOG(2)))) -> 0 | AD7: =N7 -> 111 | AE7: =COUNTIF(L28:L37,AD7) -> 0 | AF7: =AE7/(AG4-AE10) -> 0 | AG7: =IF(AF7=0,0,(AF7*((LOG(AF7))/LOG(2)))) -> 0 | AI7: =N7 -> 111 | AJ7: =COUNTIF(L38:L47,AI7) -> 1 | AK7: =AJ7/(AL4-AJ10) -> 0.5 | AL7: =IF(AK7=0,0,(AK7*((LOG(AK7))/LOG(2)))) -> -0.5 | AN7: =N7 -> 111 | AO7: =COUNTIF(L48:L58,AN7) -> 0 | AP7: =AO7/(AQ4-AO10) -> 0 | AQ7: =IF(AP7=0,0,(AP7*((LOG(AP7))/LOG(2)))) -> 0 | AS7: =N7 -> 111 | AT7: =COUNTIF(L59:L68,AS7) -> 0 | AU7: =AT7/(AV4-AT10) -> 0 | AV7: =IF(AU7=0,0,(AU7*((LOG(AU7))/LOG(2)))) -> 0
A8: 11 | B8: 151 | C8: 21 | D8: 201 | E8: 21 | F8: 228 | K8: 0 | L8: 122 | N8: 112 | O8: =COUNTIF($L$7:$L$500,N8) -> 3 | P8: =O8/$Q$4 -> 0.04838709677 | Q8: =IF(P8=0,0,(P8*((LOG(P8))/LOG(2)))) -> -0.2114145392 | T8: =N8 -> 112 | U8: =COUNTIF(L7:L16,T8) -> 1 | V8: =U8/(W4-U10) -> 0.2 | W8: =IF(V8=0,0,(V8*((LOG(V8))/LOG(2)))) -> -0.464385619 | Y8: =N8 -> 112 | Z8: =COUNTIF(L17:L27,Y8) -> 2 | AA8: =Z8/(AB4-Z10) -> 0.3333333333 | AB8: =IF(AA8=0,0,(AA8*((LOG(AA8))/LOG(2)))) -> -0.5283208336 | AD8: =N8 -> 112 | AE8: =COUNTIF(L28:L37,AD8) -> 0 | AF8: =AE8/(AG4-AE10) -> 0 | AG8: =IF(AF8=0,0,(AF8*((LOG(AF8))/LOG(2)))) -> 0 | AI8: =N8 -> 112 | AJ8: =COUNTIF(L38:L47,AI8) -> 0 | AK8: =AJ8/(AL4-AJ10) -> 0 | AL8: =IF(AK8=0,0,(AK8*((LOG(AK8))/LOG(2)))) -> 0 | AN8: =N8 -> 112 | AO8: =COUNTIF(L48:L58,AN8) -> 0 | AP8: =AO8/(AQ4-AO10) -> 0 | AQ8: =IF(AP8=0,0,(AP8*((LOG(AP8))/LOG(2)))) -> 0 | AS8: =N8 -> 112 | AT8: =COUNTIF(L59:L68,AS8) -> 0 | AU8: =AT8/(AV4-AT10) -> 0 | AV8: =IF(AU8=0,0,(AU8*((LOG(AU8))/LOG(2)))) -> 0
A9: 22 | B9: 354 | C9: 23 | D9: 371 | E9: 23 | F9: 440 | K9: 0 | L9: 222 | N9: 121 | O9: =COUNTIF($L$7:$L$500,N9) -> 0 | P9: =O9/$Q$4 -> 0 | Q9: =IF(P9=0,0,(P9*((LOG(P9))/LOG(2)))) -> 0 | T9: =N9 -> 121 | U9: =COUNTIF(L7:L16,T9) -> 0 | V9: =U9/(W4-U10) -> 0 | W9: =IF(V9=0,0,(V9*((LOG(V9))/LOG(2)))) -> 0 | Y9: =N9 -> 121 | Z9: =COUNTIF(L17:L27,Y9) -> 0 | AA9: =Z9/(AB4-Z10) -> 0 | AB9: =IF(AA9=0,0,(AA9*((LOG(AA9))/LOG(2)))) -> 0 | AD9: =N9 -> 121 | AE9: =COUNTIF(L28:L37,AD9) -> 0 | AF9: =AE9/(AG4-AE10) -> 0 | AG9: =IF(AF9=0,0,(AF9*((LOG(AF9))/LOG(2)))) -> 0 | AI9: =N9 -> 121 | AJ9: =COUNTIF(L38:L47,AI9) -> 0 | AK9: =AJ9/(AL4-AJ10) -> 0 | AL9: =IF(AK9=0,0,(AK9*((LOG(AK9))/LOG(2)))) -> 0 | AN9: =N9 -> 121 | AO9: =COUNTIF(L48:L58,AN9) -> 0 | AP9: =AO9/(AQ4-AO10) -> 0 | AQ9: =IF(AP9=0,0,(AP9*((LOG(AP9))/LOG(2)))) -> 0 | AS9: =N9 -> 121 | AT9: =COUNTIF(L59:L68,AS9) -> 0 | AU9: =AT9/(AV4-AT10) -> 0 | AV9: =IF(AU9=0,0,(AU9*((LOG(AU9))/LOG(2)))) -> 0
A10: 11 | B10: 543 | C10: 21 | D10: 565 | E10: 21 | F10: 570 | K10: 0 | L10: 122 | N10: 122 | O10: =COUNTIF($L$7:$L$500,N10) -> 40 | P10: =O10/$Q$4 -> 0.6451612903 | Q10: =IF(P10=0,0,(P10*((LOG(P10))/LOG(2)))) -> -0.4079149777 | T10: =N10 -> 122 | U10: =COUNTIF(L7:L16,T10) -> 5 | Y10: =N10 -> 122 | Z10: =COUNTIF(L17:L27,Y10) -> 5 | AD10: =N10 -> 122 | AE10: =COUNTIF(L28:L37,AD10) -> 6 | AI10: =N10 -> 122 | AJ10: =COUNTIF(L38:L47,AI10) -> 8 | AN10: =N10 -> 122 | AO10: =COUNTIF(L48:L58,AN10) -> 8 | AS10: =N10 -> 122 | AT10: =COUNTIF(L59:L68,AS10) -> 8
A11: 11 | B11: 681 | C11: 12 | D11: 689 | E11: 14 | F11: 698 | K11: 0 | L11: 111 | N11: 211 | O11: =COUNTIF($L$7:$L$500,N11) -> 0 | P11: =O11/$Q$4 -> 0 | Q11: =IF(P11=0,0,(P11*((LOG(P11))/LOG(2)))) -> 0 | T11: =N11 -> 211 | U11: =COUNTIF(L7:L16,T11) -> 0 | V11: =U11/(W4-U10) -> 0 | W11: =IF(V11=0,0,(V11*((LOG(V11))/LOG(2)))) -> 0 | Y11: =N11 -> 211 | Z11: =COUNTIF(L17:L27,Y11) -> 0 | AA11: =Z11/(AB4-Z10) -> 0 | AB11: =IF(AA11=0,0,(AA11*((LOG(AA11))/LOG(2)))) -> 0 | AD11: =N11 -> 211 | AE11: =COUNTIF(L28:L37,AD11) -> 0 | AF11: =AE11/(AG4-AE10) -> 0 | AG11: =IF(AF11=0,0,(AF11*((LOG(AF11))/LOG(2)))) -> 0 | AI11: =N11 -> 211 | AJ11: =COUNTIF(L38:L47,AI11) -> 0 | AK11: =AJ11/(AL4-AJ10) -> 0 | AL11: =IF(AK11=0,0,(AK11*((LOG(AK11))/LOG(2)))) -> 0 | AN11: =N11 -> 211 | AO11: =COUNTIF(L48:L58,AN11) -> 0 | AP11: =AO11/(AQ4-AO10) -> 0 | AQ11: =IF(AP11=0,0,(AP11*((LOG(AP11))/LOG(2)))) -> 0 | AS11: =N11 -> 211 | AT11: =COUNTIF(L59:L68,AS11) -> 0 | AU11: =AT11/(AV4-AT10) -> 0 | AV11: =IF(AU11=0,0,(AU11*((LOG(AU11))/LOG(2)))) -> 0
A12: 11 | B12: 799 | C12: 21 | D12: 806 | E12: 21 | F12: 824 | K12: 0 | L12: 122 | N12: 212 | O12: =COUNTIF($L$7:$L$500,N12) -> 0 | P12: =O12/$Q$4 -> 0 | Q12: =IF(P12=0,0,(P12*((LOG(P12))/LOG(2)))) -> 0 | T12: =N12 -> 212 | U12: =COUNTIF(L7:L16,T12) -> 0 | V12: =U12/(W4-U10) -> 0 | W12: =IF(V12=0,0,(V12*((LOG(V12))/LOG(2)))) -> 0 | Y12: =N12 -> 212 | Z12: =COUNTIF(L17:L27,Y12) -> 0 | AA12: =Z12/(AB4-Z10) -> 0 | AB12: =IF(AA12=0,0,(AA12*((LOG(AA12))/LOG(2)))) -> 0 | AD12: =N12 -> 212 | AE12: =COUNTIF(L28:L37,AD12) -> 0 | AF12: =AE12/(AG4-AE10) -> 0 | AG12: =IF(AF12=0,0,(AF12*((LOG(AF12))/LOG(2)))) -> 0 | AI12: =N12 -> 212 | AJ12: =COUNTIF(L38:L47,AI12) -> 0 | AK12: =AJ12/(AL4-AJ10) -> 0 | AL12: =IF(AK12=0,0,(AK12*((LOG(AK12))/LOG(2)))) -> 0 | AN12: =N12 -> 212 | AO12: =COUNTIF(L48:L58,AN12) -> 0 | AP12: =AO12/(AQ4-AO10) -> 0 | AQ12: =IF(AP12=0,0,(AP12*((LOG(AP12))/LOG(2)))) -> 0 | AS12: =N12 -> 212 | AT12: =COUNTIF(L59:L68,AS12) -> 0 | AU12: =AT12/(AV4-AT10) -> 0 | AV12: =IF(AU12=0,0,(AU12*((LOG(AU12))/LOG(2)))) -> 0
A13: 11 | B13: 911 | C13: 12 | D13: 925 | E13: 23 | F13: 943 | K13: 0 | L13: 112 | N13: 221 | O13: =COUNTIF($L$7:$L$500,N13) -> 1 | P13: =O13/$Q$4 -> 0.01612903226 | Q13: =IF(P13=0,0,(P13*((LOG(P13))/LOG(2)))) -> -0.09603542436 | T13: =N13 -> 221 | U13: =COUNTIF(L7:L16,T13) -> 0 | V13: =U13/(W4-U10) -> 0 | W13: =IF(V13=0,0,(V13*((LOG(V13))/LOG(2)))) -> 0 | Y13: =N13 -> 221 | Z13: =COUNTIF(L17:L27,Y13) -> 1 | AA13: =Z13/(AB4-Z10) -> 0.1666666667 | AB13: =IF(AA13=0,0,(AA13*((LOG(AA13))/LOG(2)))) -> -0.4308270835 | AD13: =N13 -> 221 | AE13: =COUNTIF(L28:L37,AD13) -> 0 | AF13: =AE13/(AG4-AE10) -> 0 | AG13: =IF(AF13=0,0,(AF13*((LOG(AF13))/LOG(2)))) -> 0 | AI13: =N13 -> 221 | AJ13: =COUNTIF(L38:L47,AI13) -> 0 | AK13: =AJ13/(AL4-AJ10) -> 0 | AL13: =IF(AK13=0,0,(AK13*((LOG(AK13))/LOG(2)))) -> 0 | AN13: =N13 -> 221 | AO13: =COUNTIF(L48:L58,AN13) -> 0 | AP13: =AO13/(AQ4-AO10) -> 0 | AQ13: =IF(AP13=0,0,(AP13*((LOG(AP13))/LOG(2)))) -> 0 | AS13: =N13 -> 221 | AT13: =COUNTIF(L59:L68,AS13) -> 0 | AU13: =AT13/(AV4-AT10) -> 0 | AV13: =IF(AU13=0,0,(AU13*((LOG(AU13))/LOG(2)))) -> 0
A14: 11 | B14: 1041 | C14: 21 | D14: 1111 | E14: 21 | F14: 1128 | K14: 0 | L14: 122 | N14: 222 | O14: =COUNTIF($L$7:$L$500,N14) -> 15 | P14: =O14/$Q$4 -> 0.2419354839 | Q14: =IF(P14=0,0,(P14*((LOG(P14))/LOG(2)))) -> -0.4953158987 | T14: =N14 -> 222 | U14: =COUNTIF(L7:L16,T14) -> 2 | V14: =U14/(W4-U10) -> 0.4 | W14: =IF(V14=0,0,(V14*((LOG(V14))/LOG(2)))) -> -0.528771238 | Y14: =N14 -> 222 | Z14: =COUNTIF(L17:L27,Y14) -> 3 | AA14: =Z14/(AB4-Z10) -> 0.5 | AB14: =IF(AA14=0,0,(AA14*((LOG(AA14))/LOG(2)))) -> -0.5 | AD14: =N14 -> 222 | AE14: =COUNTIF(L28:L37,AD14) -> 4 | AF14: =AE14/(AG4-AE10) -> 1 | AG14: =IF(AF14=0,0,(AF14*((LOG(AF14))/LOG(2)))) -> 0 | AI14: =N14 -> 222 | AJ14: =COUNTIF(L38:L47,AI14) -> 1 | AK14: =AJ14/(AL4-AJ10) -> 0.5 | AL14: =IF(AK14=0,0,(AK14*((LOG(AK14))/LOG(2)))) -> -0.5 | AN14: =N14 -> 222 | AO14: =COUNTIF(L48:L58,AN14) -> 3 | AP14: =AO14/(AQ4-AO10) -> 1 | AQ14: =IF(AP14=0,0,(AP14*((LOG(AP14))/LOG(2)))) -> 0 | AS14: =N14 -> 222 | AT14: =COUNTIF(L59:L68,AS14) -> 2 | AU14: =AT14/(AV4-AT10) -> 1 | AV14: =IF(AU14=0,0,(AU14*((LOG(AU14))/LOG(2)))) -> 0
A15: 22 | B15: 1238 | C15: 23 | D15: 1248 | E15: 23 | F15: 1262 | K15: 0 | L15: 222 | P15: =SUM(P7:P14) -> 1 | Q15: =-SUM(Q7:Q14) -> 1.422095379 | V15: =SUM(V7:V14) -> 1 | W15: =-SUM(W7:W14) -> 1.521928095 | AA15: =SUM(AA7:AA14) -> 1 | AB15: =-SUM(AB7:AB14) -> 1.459147917 | AF15: =SUM(AF7:AF14) -> 1 | AG15: =-SUM(AG7:AG14) -> 0 | AK15: =SUM(AK7:AK14) -> 1 | AL15: =-SUM(AL7:AL14) -> 1 | AP15: =SUM(AP7:AP14) -> 1 | AQ15: =-SUM(AQ7:AQ14) -> 0 | AU15: =SUM(AU7:AU14) -> 1 | AV15: =-SUM(AV7:AV14) -> 0
A16: 11 | B16: 1365 | C16: 21 | D16: 1378 | E16: 21 | F16: 1383 | K16: 0 | L16: 122 | P16: U= | Q16: =Q15/(LOG(Q4)/LOG(2)) -> 0.2388391825 | V16: U1= | W16: =W15/(LOG(W4)/LOG(2)) -> 0.4581460078 | AA16: U2= | AB16: =AB15/(LOG(AB4)/LOG(2)) -> 0.4217883392 | AF16: U3= | AG16: =AG15/(LOG(AG4)/LOG(2)) -> 0 | AK16: U4= | AL16: =AL15/(LOG(AL4)/LOG(2)) -> 0.3010299957 | AP16: U5= | AQ16: =AQ15/(LOG(AQ4)/LOG(2)) -> 0 | AU16: U6= | AV16: =AV15/(LOG(AV4)/LOG(2)) -> 0
A17: 11 | B17: 1478 | C17: 21 | D17: 1501 | E17: 21 | F17: 1528 | K17: 0 | L17: 122
A18: 22 | B18: 1640 | C18: 23 | D18: 1654 | E18: 23 | F18: 1662 | K18: 0 | L18: 222
A19: 22 | B19: 1774 | C19: 23 | D19: 1779 | E19: 23 | F19: 1808 | K19: 0 | L19: 222 | N19: Total Target Seq
A20: 11 | B20: 1913 | C20: 12 | D20: 1928 | E20: 23 | F20: 1936 | K20: 0 | L20: 112 | N20: =COUNTIF(L7:L68,G3) -> 40 | P20: 10 | Q20: 11 | R20: 10 | S20: 10 | T20: 11 | U20: 10
A21: 11 | B21: 2033 | C21: 21 | D21: 2045 | E21: 21 | F21: 2059 | K21: 0 | L21: 122 | P21: % of reinforcement given in 6 equal intervals based on number of trials
A22: 22 | B22: 2190 | C22: 23 | D22: 2204 | E22: 14 | F22: 2266 | K22: 0 | L22: 221 | P22: %_1 | Q22: %_2 | R22: %_3 | S22: %_4 | T22: %_5 | U22: %_6
A23: 11 | B23: 2361 | C23: 21 | D23: 2443 | E23: 21 | F23: 2482 | K23: 0 | L23: 122 | O23: target sequence | P23: =$G$3 -> 122 | Q23: =$G$3 -> 122 | R23: =$G$3 -> 122 | S23: =$G$3 -> 122 | T23: =$G$3 -> 122 | U23: =$G$3 -> 122
A24: 11 | B24: 2574 | C24: 21 | D24: 2597 | E24: 21 | F24: 2652 | K24: 0 | L24: 122 | O24: total reinforcement | P24: =U10 -> 5 | Q24: =Z10 -> 5 | R24: =AE10 -> 6 | S24: =AJ10 -> 8 | T24: =AO10 -> 8 | U24: =AT10 -> 8
A25: 11 | B25: 2746 | C25: 21 | D25: 2761 | E25: 21 | F25: 2771 | K25: 0 | L25: 122 | O25: % target
A26: 22 | B26: 2897 | C26: 23 | D26: 2958 | E26: 23 | F26: 2996 | K26: 0 | L26: 222 | O26: CCRF
A27: 11 | B27: 3092 | C27: 12 | D27: 3113 | E27: 23 | F27: 3125 | K27: 0 | L27: 112 | O27: % CCRf
A28: 11 | B28: 3222 | C28: 21 | D28: 3261 | E28: 21 | F28: 3291 | K28: 0 | L28: 122 | O28: average response rate | P28: =F16/P20 -> 138.3 | Q28: =(F27-F16)/Q20 -> 158.3636364 | R28: =(F37-F27)/R20 -> 139.2 | S28: =(F47-F37)/S20 -> 155.5 | T28: =(F58-F47)/T20 -> 147.5454545 | U28: =(F68-F58)/U20 -> 164.8
A29: 11 | B29: 3380 | C29: 21 | D29: 3394 | E29: 21 | F29: 3413 | K29: 0 | L29: 122
A30: 22 | B30: 3511 | C30: 23 | D30: 3518 | E30: 23 | F30: 3550 | K30: 0 | L30: 222
A31: 11 | B31: 3649 | C31: 21 | D31: 3663 | E31: 21 | F31: 3697 | K31: 0 | L31: 122
A32: 11 | B32: 3785 | C32: 21 | D32: 3818 | E32: 21 | F32: 3827 | K32: 0 | L32: 122
A33: 22 | B33: 3928 | C33: 23 | D33: 3936 | E33: 23 | F33: 3966 | K33: 0 | L33: 222
A34: 11 | B34: 4062 | C34: 21 | D34: 4073 | E34: 21 | F34: 4089 | K34: 0 | L34: 122
A35: 22 | B35: 4206 | C35: 23 | D35: 4227 | E35: 23 | F35: 4236 | K35: 0 | L35: 222
A36: 11 | B36: 4330 | C36: 21 | D36: 4369 | E36: 21 | F36: 4377 | K36: 0 | L36: 122
A37: 22 | B37: 4484 | C37: 23 | D37: 4505 | E37: 23 | F37: 4517 | K37: 0 | L37: 222
A38: 11 | B38: 4611 | C38: 12 | D38: 4618 | E38: 14 | F38: 4629 | K38: 0 | L38: 111
A39: 11 | B39: 4725 | C39: 21 | D39: 4741 | E39: 21 | F39: 4778 | K39: 0 | L39: 122
A40: 11 | B40: 4866 | C40: 21 | D40: 4878 | E40: 21 | F40: 4886 | K40: 0 | L40: 122
A41: 11 | B41: 4973 | C41: 21 | D41: 5007 | E41: 21 | F41: 5016 | K41: 0 | L41: 122
A42: 11 | B42: 5103 | C42: 21 | D42: 5116 | E42: 21 | F42: 5177 | K42: 0 | L42: 122
A43: 11 | B43: 5265 | C43: 21 | D43: 5277 | E43: 21 | F43: 5310 | K43: 0 | L43: 122
A44: 22 | B44: 5417 | C44: 23 | D44: 5426 | E44: 23 | F44: 5500 | K44: 0 | L44: 222
A45: 11 | B45: 5597 | C45: 21 | D45: 5693 | E45: 21 | F45: 5733 | K45: 0 | L45: 122
A46: 11 | B46: 5823 | C46: 21 | D46: 5835 | E46: 21 | F46: 5851 | K46: 0 | L46: 122
A47: 11 | B47: 5942 | C47: 21 | D47: 5953 | E47: 21 | F47: 6072 | K47: 0 | L47: 122
A48: 11 | B48: 6157 | C48: 21 | D48: 6186 | E48: 21 | F48: 6202 | K48: 0 | L48: 122
A49: 11 | B49: 6287 | C49: 21 | D49: 6312 | E49: 21 | F49: 6329 | K49: 0 | L49: 122
A50: 11 | B50: 6414 | C50: 21 | D50: 6429 | E50: 21 | F50: 6448 | K50: 0 | L50: 122
A51: 11 | B51: 6537 | C51: 21 | D51: 6563 | E51: 21 | F51: 6605 | K51: 0 | L51: 122
A52: 11 | B52: 6696 | C52: 21 | D52: 6709 | E52: 21 | F52: 6716 | K52: 0 | L52: 122
A53: 11 | B53: 6805 | C53: 21 | D53: 6818 | E53: 21 | F53: 6874 | K53: 0 | L53: 122
A54: 22 | B54: 6973 | C54: 23 | D54: 6982 | E54: 23 | F54: 7002 | K54: 0 | L54: 222
A55: 11 | B55: 7094 | C55: 21 | D55: 7107 | E55: 21 | F55: 7214 | K55: 0 | L55: 122
A56: 22 | B56: 7322 | C56: 23 | D56: 7342 | E56: 23 | F56: 7350 | K56: 0 | L56: 222
A57: 11 | B57: 7445 | C57: 21 | D57: 7470 | E57: 21 | F57: 7520 | K57: 0 | L57: 122
A58: 22 | B58: 7614 | C58: 23 | D58: 7680 | E58: 23 | F58: 7695 | K58: 0 | L58: 222
A59: 11 | B59: 7793 | C59: 21 | D59: 7811 | E59: 21 | F59: 7870 | K59: 0 | L59: 122
A60: 11 | B60: 7957 | C60: 21 | D60: 7973 | E60: 21 | F60: 7985 | K60: 0 | L60: 122
A61: 11 | B61: 8191 | C61: 21 | D61: 8208 | E61: 21 | F61: 8240 | K61: 0 | L61: 122
A62: 11 | B62: 8331 | C62: 21 | D62: 8422 | E62: 21 | F62: 8478 | K62: 0 | L62: 122
A63: 11 | B63: 8566 | C63: 21 | D63: 8578 | E63: 21 | F63: 8587 | K63: 0 | L63: 122
A64: 11 | B64: 8681 | C64: 21 | D64: 8692 | E64: 21 | F64: 8700 | K64: 0 | L64: 122
A65: 11 | B65: 8790 | C65: 21 | D65: 8812 | E65: 21 | F65: 8820 | K65: 0 | L65: 122
A66: 22 | B66: 8929 | C66: 23 | D66: 8983 | E66: 23 | F66: 9002 | K66: 0 | L66: 222
A67: 22 | B67: 9117 | C67: 23 | D67: 9125 | E67: 23 | F67: 9133 | K67: 0 | L67: 222
A68: 11 | B68: 9232 | C68: 21 | D68: 9279 | E68: 21 | F68: 9343 | K68: 1 | L68: 122

Sheet !M628930.102
A1: Report for:!M628930.102
A2: Date: | B2: <date>
A3: Hen: | B3: <hen> | F3: Correct Sequence | G3: =Start!J2 -> 122 | P3: Total Sequences in Data | Q3: =4994-COUNTBLANK(L7:L5000) -> 64 | V3: Total Sequences in Block Data | W3: =COUNTA(L7:L17) -> 11 | AA3: Total Sequences in Block Data | AB3: =COUNTA(L18:L27) -> 10 | AF3: Total Sequences in Block Data | AG3: =COUNTA(L28:L38) -> 11 | AK3: Total Sequences in Block Data | AL3: =COUNTA(L39:L49) -> 11 | AP3: Total Sequences in Block Data | AQ3: =COUNTA(L50:L59) -> 10 | AU3: Total Sequences in Block Data | AV3: =COUNTA(L60:L70) -> 11
P4: Total Sequences in Summary | Q4: =SUM(O7:O14) -> 64 | V4: Total Sequences in Block Summary | W4: =SUM(U7:U14) -> 11 | AA4: Total Sequences in Block Summary | AB4: =SUM(Z7:Z14) -> 10 | AF4: Total Sequences in Block Summary | AG4: =SUM(AE7:AE14) -> 11 | AK4: Total Sequences in Block Summary | AL4: =SUM(AJ7:AJ14) -> 11 | AP4: Total Sequences in Block Summary | AQ4: =SUM(AO7:AO14) -> 10 | AU4: Total Sequences in Block Summary | AV4: =SUM(AT7:AT14) -> 11
T5: Block 1 | Y5: Block 2 | AD5: Block 3 | AI5: Block 4 | AN5: Block 5 | AS5: Block 6
A6: Sequence Component 1 | B6: Time 1 | C6: Sequence Component 2 | D6: Time 2 | E6: Sequence Component 3 | F6: Time 3 | G6: Sequence Component 4 | H6: Time 4 | I6: Sequence Component 5 | J6: Time 5 | K6: Correct? 0=No 1=Yes | L6: Sequence | N6: Frequency | P6: Relative Frequency | Q6: Variability | T6: Frequency | V6: Relative Frequency | W6: Variability | Y6: Frequency | AA6: Relative Frequency | AB6: Variability | AD6: Frequency | AF6: Relative Frequency | AG6: Variability | AI6: Frequency | AK6: Relative Frequency | AL6: Variability | AN6: Frequency | AP6: Relative Frequency | AQ6: Variability | AS6: Frequency | AU6: Relative Frequency | AV6: Variability
A7: 11 | B7: 13 | C7: 12 | D7: 23 | E7: 14 | F7: 34 | K7: 0 | L7: 111 | N7: 111 | O7: =COUNTIF($L$7:$L$500,N7) -> 5 | P7: =O7/$Q$4 -> 0.078125 | Q7: =IF(P7=0,0,(P7*((LOG(P7))/LOG(2)))) -> -0.2873493676 | T7: =N7 -> 111 | U7: =COUNTIF(L7:L17,T7) -> 4 | V7: =U7/(W4-U10) -> 0.4444444444 | W7: =IF(V7=0,0,(V7*((LOG(V7))/LOG(2)))) -> -0.5199666673 | Y7: =N7 -> 111 | Z7: =COUNTIF(L18:L27,Y7) -> 1 | AA7: =Z7/(AB4-Z10) -> 0.25 | AB7: =IF(AA7=0,0,(AA7*((LOG(AA7))/LOG(2)))) -> -0.5 | AD7: =N7 -> 111 | AE7: =COUNTIF(L28:L38,AD7) -> 0 | AF7: =AE7/(AG4-AE10) -> 0 | AG7: =IF(AF7=0,0,(AF7*((LOG(AF7))/LOG(2)))) -> 0 | AI7: =N7 -> 111 | AJ7: =COUNTIF(L39:L49,AI7) -> 0 | AK7: =AJ7/(AL4-AJ10) -> 0 | AL7: =IF(AK7=0,0,(AK7*((LOG(AK7))/LOG(2)))) -> 0 | AN7: =N7 -> 111 | AO7: =COUNTIF(L50:L59,AN7) -> 0 | AP7: =AO7/(AQ4-AO10) -> 0 | AQ7: =IF(AP7=0,0,(AP7*((LOG(AP7))/LOG(2)))) -> 0 | AS7: =N7 -> 111 | AT7: =COUNTIF(L60:L70,AS7) -> 0 | AU7: =AT7/(AV4-AT10) -> 0 | AV7: =IF(AU7=0,0,(AU7*((LOG(AU7))/LOG(2)))) -> 0
A8: 11 | B8: 143 | C8: 12 | D8: 153 | E8: 14 | F8: 161 | K8: 0 | L8: 111 | N8: 112 | O8: =COUNTIF($L$7:$L$500,N8) -> 6 | P8: =O8/$Q$4 -> 0.09375 | Q8: =IF(P8=0,0,(P8*((LOG(P8))/LOG(2)))) -> -0.3201597656 | T8: =N8 -> 112 | U8: =COUNTIF(L7:L17,T8) -> 4 | V8: =U8/(W4-U10) -> 0.4444444444 | W8: =IF(V8=0,0,(V8*((LOG(V8))/LOG(2)))) -> -0.5199666673 | Y8: =N8 -> 112 | Z8: =COUNTIF(L18:L27,Y8) -> 2 | AA8: =Z8/(AB4-Z10) -> 0.5 | AB8: =IF(AA8=0,0,(AA8*((LOG(AA8))/LOG(2)))) -> -0.5 | AD8: =N8 -> 112 | AE8: =COUNTIF(L28:L38,AD8) -> 0 | AF8: =AE8/(AG4-AE10) -> 0 | AG8: =IF(AF8=0,0,(AF8*((LOG(AF8))/LOG(2)))) -> 0 | AI8: =N8 -> 112 | AJ8: =COUNTIF(L39:L49,AI8) -> 0 | AK8: =AJ8/(AL4-AJ10) -> 0 | AL8: =IF(AK8=0,0,(AK8*((LOG(AK8))/LOG(2)))) -> 0 | AN8: =N8 -> 112 | AO8: =COUNTIF(L50:L59,AN8) -> 0 | AP8: =AO8/(AQ4-AO10) -> 0 | AQ8: =IF(AP8=0,0,(AP8*((LOG(AP8))/LOG(2)))) -> 0 | AS8: =N8 -> 112 | AT8: =COUNTIF(L60:L70,AS8) -> 0 | AU8: =AT8/(AV4-AT10) -> 0 | AV8: =IF(AU8=0,0,(AU8*((LOG(AU8))/LOG(2)))) -> 0
A9: 11 | B9: 258 | C9: 12 | D9: 268 | E9: 14 | F9: 279 | K9: 0 | L9: 111 | N9: 121 | O9: =COUNTIF($L$7:$L$500,N9) -> 1 | P9: =O9/$Q$4 -> 0.015625 | Q9: =IF(P9=0,0,(P9*((LOG(P9))/LOG(2)))) -> -0.09375 | T9: =N9 -> 121 | U9: =COUNTIF(L7:L17,T9) -> 0 | V9: =U9/(W4-U10) -> 0 | W9: =IF(V9=0,0,(V9*((LOG(V9))/LOG(2)))) -> 0 | Y9: =N9 -> 121 | Z9: =COUNTIF(L18:L27,Y9) -> 1 | AA9: =Z9/(AB4-Z10) -> 0.25 | AB9: =IF(AA9=0,0,(AA9*((LOG(AA9))/LOG(2)))) -> -0.5 | AD9: =N9 -> 121 | AE9: =COUNTIF(L28:L38,AD9) -> 0 | AF9: =AE9/(AG4-AE10) -> 0 | AG9: =IF(AF9=0,0,(AF9*((LOG(AF9))/LOG(2)))) -> 0 | AI9: =N9 -> 121 | AJ9: =COUNTIF(L39:L49,AI9) -> 0 | AK9: =AJ9/(AL4-AJ10) -> 0 | AL9: =IF(AK9=0,0,(AK9*((LOG(AK9))/LOG(2)))) -> 0 | AN9: =N9 -> 121 | AO9: =COUNTIF(L50:L59,AN9) -> 0 | AP9: =AO9/(AQ4-AO10) -> 0 | AQ9: =IF(AP9=0,0,(AP9*((LOG(AP9))/LOG(2)))) -> 0 | AS9: =N9 -> 121 | AT9: =COUNTIF(L60:L70,AS9) -> 0 | AU9: =AT9/(AV4-AT10) -> 0 | AV9: =IF(AU9=0,0,(AU9*((LOG(AU9))/LOG(2)))) -> 0
A10: 11 | B10: 375 | C10: 12 | D10: 405 | E10: 23 | F10: 493 | K10: 0 | L10: 112 | N10: 122 | O10: =COUNTIF($L$7:$L$500,N10) -> 40 | P10: =O10/$Q$4 -> 0.625 | Q10: =IF(P10=0,0,(P10*((LOG(P10))/LOG(2)))) -> -0.4237949407 | T10: =N10 -> 122 | U10: =COUNTIF(L7:L17,T10) -> 2 | Y10: =N10 -> 122 | Z10: =COUNTIF(L18:L27,Y10) -> 6 | AD10: =N10 -> 122 | AE10: =COUNTIF(L28:L38,AD10) -> 8 | AI10: =N10 -> 122 | AJ10: =COUNTIF(L39:L49,AI10) -> 7 | AN10: =N10 -> 122 | AO10: =COUNTIF(L50:L59,AN10) -> 8 | AS10: =N10 -> 122 | AT10: =COUNTIF(L60:L70,AS10) -> 9
A11: 11 | B11: 591 | C11: 12 | D11: 600 | E11: 14 | F11: 633 | K11: 0 | L11: 111 | N11: 211 | O11: =COUNTIF($L$7:$L$500,N11) -> 0 | P11: =O11/$Q$4 -> 0 | Q11: =IF(P11=0,0,(P11*((LOG(P11))/LOG(2)))) -> 0 | T11: =N11 -> 211 | U11: =COUNTIF(L7:L17,T11) -> 0 | V11: =U11/(W4-U10) -> 0 | W11: =IF(V11=0,0,(V11*((LOG(V11))/LOG(2)))) -> 0 | Y11: =N11 -> 211 | Z11: =COUNTIF(L18:L27,Y11) -> 0 | AA11: =Z11/(AB4-Z10) -> 0 | AB11: =IF(AA11=0,0,(AA11*((LOG(AA11))/LOG(2)))) -> 0 | AD11: =N11 -> 211 | AE11: =COUNTIF(L28:L38,AD11) -> 0 | AF11: =AE11/(AG4-AE10) -> 0 | AG11: =IF(AF11=0,0,(AF11*((LOG(AF11))/LOG(2)))) -> 0 | AI11: =N11 -> 211 | AJ11: =COUNTIF(L39:L49,AI11) -> 0 | AK11: =AJ11/(AL4-AJ10) -> 0 | AL11: =IF(AK11=0,0,(AK11*((LOG(AK11))/LOG(2)))) -> 0 | AN11: =N11 -> 211 | AO11: =COUNTIF(L50:L59,AN11) -> 0 | AP11: =AO11/(AQ4-AO10) -> 0 | AQ11: =IF(AP11=0,0,(AP11*((LOG(AP11))/LOG(2)))) -> 0 | AS11: =N11 -> 211 | AT11: =COUNTIF(L60:L70,AS11) -> 0 | AU11: =AT11/(AV4-AT10) -> 0 | AV11: =IF(AU11=0,0,(AU11*((LOG(AU11))/LOG(2)))) -> 0
A12: 11 | B12: 728 | C12: 21 | D12: 741 | E12: 21 | F12: 760 | K12: 0 | L12: 122 | N12: 212 | O12: =COUNTIF($L$7:$L$500,N12) -> 0 | P12: =O12/$Q$4 -> 0 | Q12: =IF(P12=0,0,(P12*((LOG(P12))/LOG(2)))) -> 0 | T12: =N12 -> 212 | U12: =COUNTIF(L7:L17,T12) -> 0 | V12: =U12/(W4-U10) -> 0 | W12: =IF(V12=0,0,(V12*((LOG(V12))/LOG(2)))) -> 0 | Y12: =N12 -> 212 | Z12: =COUNTIF(L18:L27,Y12) -> 0 | AA12: =Z12/(AB4-Z10) -> 0 | AB12: =IF(AA12=0,0,(AA12*((LOG(AA12))/LOG(2)))) -> 0 | AD12: =N12 -> 212 | AE12: =COUNTIF(L28:L38,AD12) -> 0 | AF12: =AE12/(AG4-AE10) -> 0 | AG12: =IF(AF12=0,0,(AF12*((LOG(AF12))/LOG(2)))) -> 0 | AI12: =N12 -> 212 | AJ12: =COUNTIF(L39:L49,AI12) -> 0 | AK12: =AJ12/(AL4-AJ10) -> 0 | AL12: =IF(AK12=0,0,(AK12*((LOG(AK12))/LOG(2)))) -> 0 | AN12: =N12 -> 212 | AO12: =COUNTIF(L50:L59,AN12) -> 0 | AP12: =AO12/(AQ4-AO10) -> 0 | AQ12: =IF(AP12=0,0,(AP12*((LOG(AP12))/LOG(2)))) -> 0 | AS12: =N12 -> 212 | AT12: =COUNTIF(L60:L70,AS12) -> 0 | AU12: =AT12/(AV4-AT10) -> 0 | AV12: =IF(AU12=0,0,(AU12*((LOG(AU12))/LOG(2)))) -> 0
A13: 11 | B13: 848 | C13: 12 | D13: 855 | E13: 23 | F13: 878 | K13: 0 | L13: 112 | N13: 221 | O13: =COUNTIF($L$7:$L$500,N13) -> 0 | P13: =O13/$Q$4 -> 0 | Q13: =IF(P13=0,0,(P13*((LOG(P13))/LOG(2)))) -> 0 | T13: =N13 -> 221 | U13: =COUNTIF(L7:L17,T13) -> 0 | V13: =U13/(W4-U10) -> 0 | W13: =IF(V13=0,0,(V13*((LOG(V13))/LOG(2)))) -> 0 | Y13: =N13 -> 221 | Z13: =COUNTIF(L18:L27,Y13) -> 0 | AA13: =Z13/(AB4-Z10) -> 0 | AB13: =IF(AA13=0,0,(AA13*((LOG(AA13))/LOG(2)))) -> 0 | AD13: =N13 -> 221 | AE13: =COUNTIF(L28:L38,AD13) -> 0 | AF13: =AE13/(AG4-AE10) -> 0 | AG13: =IF(AF13=0,0,(AF13*((LOG(AF13))/LOG(2)))) -> 0 | AI13: =N13 -> 221 | AJ13: =COUNTIF(L39:L49,AI13) -> 0 | AK13: =AJ13/(AL4-AJ10) -> 0 | AL13: =IF(AK13=0,0,(AK13*((LOG(AK13))/LOG(2)))) -> 0 | AN13: =N13 -> 221 | AO13: =COUNTIF(L50:L59,AN13) -> 0 | AP13: =AO13/(AQ4-AO10) -> 0 | AQ13: =IF(AP13=0,0,(AP13*((LOG(AP13))/LOG(2)))) -> 0 | AS13: =N13 -> 221 | AT13: =COUNTIF(L60:L70,AS13) -> 0 | AU13: =AT13/(AV4-AT10) -> 0 | AV13: =IF(AU13=0,0,(AU13*((LOG(AU13))/LOG(2)))) -> 0
A14: 22 | B14: 990 | C14: 23 | D14: 995 | E14: 23 | F14: 1012 | K14: 0 | L14: 222 | N14: 222 | O14: =COUNTIF($L$7:$L$500,N14) -> 12 | P14: =O14/$Q$4 -> 0.1875 | Q14: =IF(P14=0,0,(P14*((LOG(P14))/LOG(2)))) -> -0.4528195311 | T14: =N14 -> 222 | U14: =COUNTIF(L7:L17,T14) -> 1 | V14: =U14/(W4-U10) -> 0.1111111111 | W14: =IF(V14=0,0,(V14*((LOG(V14))/LOG(2)))) -> -0.352213889 | Y14: =N14 -> 222 | Z14: =COUNTIF(L18:L27,Y14) -> 0 | AA14: =Z14/(AB4-Z10) -> 0 | AB14: =IF(AA14=0,0,(AA14*((LOG(AA14))/LOG(2)))) -> 0 | AD14: =N14 -> 222 | AE14: =COUNTIF(L28:L38,AD14) -> 3 | AF14: =AE14/(AG4-AE10) -> 1 | AG14: =IF(AF14=0,0,(AF14*((LOG(AF14))/LOG(2)))) -> 0 | AI14: =N14 -> 222 | AJ14: =COUNTIF(L39:L49,AI14) -> 4 | AK14: =AJ14/(AL4-AJ10) -> 1 | AL14: =IF(AK14=0,0,(AK14*((LOG(AK14))/LOG(2)))) -> 0 | AN14: =N14 -> 222 | AO14: =COUNTIF(L50:L59,AN14) -> 2 | AP14: =AO14/(AQ4-AO10) -> 1 | AQ14: =IF(AP14=0,0,(AP14*((LOG(AP14))/LOG(2)))) -> 0 | AS14: =N14 -> 222 | AT14: =COUNTIF(L60:L70,AS14) -> 2 | AU14: =AT14/(AV4-AT10) -> 1 | AV14: =IF(AU14=0,0,(AU14*((LOG(AU14))/LOG(2)))) -> 0
A15: 11 | B15: 1110 | C15: 21 | D15: 1121 | E15: 21 | F15: 1131 | K15: 0 | L15: 122 | P15: =SUM(P7:P14) -> 1 | Q15: =-SUM(Q7:Q14) -> 1.577873605 | V15: =SUM(V7:V14) -> 1 | W15: =-SUM(W7:W14) -> 1.392147224 | AA15: =SUM(AA7:AA14) -> 1 | AB15: =-SUM(AB7:AB14) -> 1.5 | AF15: =SUM(AF7:AF14) -> 1 | AG15: =-SUM(AG7:AG14) -> 0 | AK15: =SUM(AK7:AK14) -> 1 | AL15: =-SUM(AL7:AL14) -> 0 | AP15: =SUM(AP7:AP14) -> 1 | AQ15: =-SUM(AQ7:AQ14) -> 0 | AU15: =SUM(AU7:AU14) -> 1 | AV15: =-SUM(AV7:AV14) -> 0
A16: 11 | B16: 1220 | C16: 12 | D16: 1226 | E16: 23 | F16: 1237 | K16: 0 | L16: 112 | P16: U= | Q16: =Q15/(LOG(Q4)/LOG(2)) -> 0.2629789342 | V16: U1= | W16: =W15/(LOG(W4)/LOG(2)) -> 0.4024207954 | AA16: U2= | AB16: =AB15/(LOG(AB4)/LOG(2)) -> 0.4515449935 | AF16: U3= | AG16: =AG15/(LOG(AG4)/LOG(2)) -> 0 | AK16: U4= | AL16: =AL15/(LOG(AL4)/LOG(2)) -> 0 | AP16: U5= | AQ16: =AQ15/(LOG(AQ4)/LOG(2)) -> 0 | AU16: U6= | AV16: =AV15/(LOG(AV4)/LOG(2)) -> 0
A17: 11 | B17: 1332 | C17: 12 | D17: 1346 | E17: 23 | F17: 1354 | K17: 0 | L17: 112
A18: 11 | B18: 1461 | C18: 21 | D18: 1492 | E18: 12 | F18: 1530 | K18: 0 | L18: 121
A19: 11 | B19: 1622 | C19: 12 | D19: 1627 | E19: 14 | F19: 1639 | K19: 0 | L19: 111 | N19: Total Target Seq
A20: 11 | B20: 1736 | C20: 12 | D20: 1740 | E20: 23 | F20: 1761 | K20: 0 | L20: 112 | N20: =COUNTIF(L7:L70,G3) -> 40 | P20: 11 | Q20: 10 | R20: 11 | S20: 11 | T20: 10 | U20: 11
A21: 11 | B21: 1873 | C21: 21 | D21: 1891 | E21: 21 | F21: 1900 | K21: 0 | L21: 122 | P21: % of reinforcement given in 6 equal intervals based on number of trials
A22: 11 | B22: 1995 | C22: 21 | D22: 2008 | E22: 21 | F22: 2030 | K22: 0 | L22: 122 | P22: %_1 | Q22: %_2 | R22: %_3 | S22: %_4 | T22: %_5 | U22: %_6
A23: 11 | B23: 2120 | C23: 21 | D23: 2159 | E23: 21 | F23: 2234 | K23: 0 | L23: 122 | O23: target sequence | P23: =$G$3 -> 122 | Q23: =$G$3 -> 122 | R23: =$G$3 -> 122 | S23: =$G$3 -> 122 | T23: =$G$3 -> 122 | U23: =$G$3 -> 122
A24: 11 | B24: 2324 | C24: 12 | D24: 2345 | E24: 23 | F24: 2358 | K24: 0 | L24: 112 | O24: total reinforcement | P24: =U10 -> 2 | Q24: =Z10 -> 6 | R24: =AE10 -> 8 | S24: =AJ10 -> 7 | T24: =AO10 -> 8 | U24: =AT10 -> 9
A25: 11 | B25: 2489 | C25: 21 | D25: 2526 | E25: 21 | F25: 2552 | K25: 0 | L25: 122 | O25: % target
A26: 11 | B26: 2641 | C26: 21 | D26: 2657 | E26: 21 | F26: 2662 | K26: 0 | L26: 122 | O26: CCRF
A27: 11 | B27: 2751 | C27: 21 | D27: 2793 | E27: 21 | F27: 2813 | K27: 0 | L27: 122 | O27: % CCRf
A28: 11 | B28: 2903 | C28: 21 | D28: 2974 | E28: 21 | F28: 2996 | K28: 0 | L28: 122 | O28: average response rate | P28: =F17/P20 -> 123.0909091 | Q28: =(F27-F17)/Q20 -> 145.9 | R28: =(F38-F27)/R20 -> 171.3636364 | S28: =(F49-F38)/S20 -> 145.4545455 | T28: =(F59-F49)/T20 -> 160.6 | U28: =(F70-F59)/U20 -> 139.8181818
A29: 22 | B29: 3146 | C29: 23 | D29: 3259 | E29: 23 | F29: 3271 | K29: 0 | L29: 222
A30: 11 | B30: 3367 | C30: 21 | D30: 3384 | E30: 21 | F30: 3398 | K30: 0 | L30: 122
A31: 11 | B31: 3490 | C31: 21 | D31: 3510 | E31: 21 | F31: 3533 | K31: 0 | L31: 122
A32: 11 | B32: 3622 | C32: 21 | D32: 3632 | E32: 21 | F32: 3637 | K32: 0 | L32: 122
A33: 11 | B33: 3726 | C33: 21 | D33: 3832 | E33: 21 | F33: 3850 | K33: 0 | L33: 122
A34: 11 | B34: 3939 | C34: 21 | D34: 3965 | E34: 21 | F34: 3971 | K34: 0 | L34: 122
A35: 11 | B35: 4146 | C35: 21 | D35: 4172 | E35: 21 | F35: 4196 | K35: 0 | L35: 122
A36: 22 | B36: 4337 | C36: 23 | D36: 4361 | E36: 23 | F36: 4385 | K36: 0 | L36: 222
A37: 22 | B37: 4497 | C37: 23 | D37: 4529 | E37: 23 | F37: 4548 | K37: 0 | L37: 222
A38: 11 | B38: 4648 | C38: 21 | D38: 4667 | E38: 21 | F38: 4698 | K38: 0 | L38: 122
A39: 11 | B39: 4789 | C39: 21 | D39: 4811 | E39: 21 | F39: 4822 | K39: 0 | L39: 122
A40: 11 | B40: 4912 | C40: 21 | D40: 4929 | E40: 21 | F40: 4941 | K40: 0 | L40: 122
A41: 11 | B41: 5030 | C41: 21 | D41: 5066 | E41: 21 | F41: 5158 | K41: 0 | L41: 122
A42: 22 | B42: 5261 | C42: 23 | D42: 5267 | E42: 23 | F42: 5276 | K42: 0 | L42: 222
A43: 11 | B43: 5368 | C43: 21 | D43: 5394 | E43: 21 | F43: 5415 | K43: 0 | L43: 122
A44: 11 | B44: 5505 | C44: 21 | D44: 5523 | E44: 21 | F44: 5566 | K44: 0 | L44: 122
A45: 22 | B45: 5667 | C45: 23 | D45: 5676 | E45: 23 | F45: 5707 | K45: 0 | L45: 222
A46: 22 | B46: 5820 | C46: 23 | D46: 5827 | E46: 23 | F46: 5840 | K46: 0 | L46: 222
A47: 11 | B47: 5937 | C47: 21 | D47: 5950 | E47: 21 | F47: 5967 | K47: 0 | L47: 122
A48: 11 | B48: 6056 | C48: 21 | D48: 6169 | E48: 21 | F48: 6176 | K48: 0 | L48: 122
A49: 22 | B49: 6275 | C49: 23 | D49: 6282 | E49: 23 | F49: 6298 | K49: 0 | L49: 222
A50: 11 | B50: 6394 | C50: 21 | D50: 6405 | E50: 21 | F50: 6472 | K50: 0 | L50: 122
A51: 11 | B51: 6682 | C51: 21 | D51: 6694 | E51: 21 | F51: 6742 | K51: 0 | L51: 122
A52: 11 | B52: 6832 | C52: 21 | D52: 6843 | E52: 21 | F52: 6848 | K52: 0 | L52: 122
A53: 11 | B53: 6936 | C53: 21 | D53: 6953 | E53: 21 | F53: 6986 | K53: 0 | L53: 122
A54: 11 | B54: 7073 | C54: 21 | D54: 7085 | E54: 21 | F54: 7105 | K54: 0 | L54: 122
A55: 22 | B55: 7218 | C55: 23 | D55: 7260 | E55: 23 | F55: 7293 | K55: 0 | L55: 222
A56: 22 | B56: 7402 | C56: 23 | D56: 7418 | E56: 23 | F56: 7429 | K56: 0 | L56: 222
A57: 11 | B57: 7532 | C57: 21 | D57: 7564 | E57: 21 | F57: 7614 | K57: 0 | L57: 122
A58: 11 | B58: 7703 | C58: 21 | D58: 7721 | E58: 21 | F58: 7743 | K58: 0 | L58: 122
A59: 11 | B59: 7831 | C59: 21 | D59: 7896 | E59: 21 | F59: 7904 | K59: 0 | L59: 122
A60: 11 | B60: 7992 | C60: 21 | D60: 8003 | E60: 21 | F60: 8009 | K60: 0 | L60: 122
A61: 22 | B61: 8108 | C61: 23 | D61: 8168 | E61: 23 | F61: 8181 | K61: 0 | L61: 222
A62: 11 | B62: 8275 | C62: 21 | D62: 8292 | E62: 21 | F62: 8328 | K62: 0 | L62: 122
A63: 22 | B63: 8432 | C63: 23 | D63: 8439 | E63: 23 | F63: 8472 | K63: 0 | L63: 222
A64: 11 | B64: 8568 | C64: 21 | D64: 8589 | E64: 21 | F64: 8635 | K64: 0 | L64: 122
A65: 11 | B65: 8730 | C65: 21 | D65: 8742 | E65: 21 | F65: 8767 | K65: 0 | L65: 122
A66: 11 | B66: 8854 | C66: 21 | D66: 8869 | E66: 21 | F66: 8919 | K66: 0 | L66: 122
A67: 11 | B67: 9013 | C67: 21 | D67: 9026 | E67: 21 | F67: 9052 | K67: 0 | L67: 122
A68: 11 | B68: 9137 | C68: 21 | D68: 9180 | E68: 21 | F68: 9192 | K68: 0 | L68: 122
A69: 11 | B69: 9278 | C69: 21 | D69: 9301 | E69: 21 | F69: 9308 | K69: 0 | L69: 122
A70: 11 | B70: 9395 | C70: 21 | D70: 9411 | E70: 21 | F70: 9442 | K70: 1 | L70: 122

Sheet !M629920.102
A1: Report for:!M629920.102
A2: Date: | B2: <date>
A3: Hen: | B3: <hen> | F3: Correct Sequence | G3: =Start!J2 -> 122 | P3: Total Sequences in Data | Q3: =4994-COUNTBLANK(L7:L5000) -> 64 | V3: Total Sequences in Block Data | W3: =COUNTA(L7:L17) -> 11 | AA3: Total Sequences in Block Data | AB3: =COUNTA(L18:L27) -> 10 | AF3: Total Sequences in Block Data | AG3: =COUNTA(L28:L38) -> 11 | AK3: Total Sequences in Block Data | AL3: =COUNTA(L39:L49) -> 11 | AP3: Total Sequences in Block Data | AQ3: =COUNTA(L50:L59) -> 10 | AU3: Total Sequences in Block Data | AV3: =COUNTA(L60:L70) -> 11
P4: Total Sequences in Summary | Q4: =SUM(O7:O14) -> 64 | V4: Total Sequences in Block Summary | W4: =SUM(U7:U14) -> 11 | AA4: Total Sequences in Block Summary | AB4: =SUM(Z7:Z14) -> 10 | AF4: Total Sequences in Block Summary | AG4: =SUM(AE7:AE14) -> 11 | AK4: Total Sequences in Block Summary | AL4: =SUM(AJ7:AJ14) -> 11 | AP4: Total Sequences in Block Summary | AQ4: =SUM(AO7:AO14) -> 10 | AU4: Total Sequences in Block Summary | AV4: =SUM(AT7:AT14) -> 11
T5: Block 1 | Y5: Block 2 | AD5: Block 3 | AI5: Block 4 | AN5: Block 5 | AS5: Block 6
A6: Sequence Component 1 | B6: Time 1 | C6: Sequence Component 2 | D6: Time 2 | E6: Sequence Component 3 | F6: Time 3 | G6: Sequence Component 4 | H6: Time 4 | I6: Sequence Component 5 | J6: Time 5 | K6: Correct? 0=No 1=Yes | L6: Sequence | N6: Frequency | P6: Relative Frequency | Q6: Variability | T6: Frequency | V6: Relative Frequency | W6: Variability | Y6: Frequency | AA6: Relative Frequency | AB6: Variability | AD6: Frequency | AF6: Relative Frequency | AG6: Variability | AI6: Frequency | AK6: Relative Frequency | AL6: Variability | AN6: Frequency | AP6: Relative Frequency | AQ6: Variability | AS6: Frequency | AU6: Relative Frequency | AV6: Variability
A7: 11 | B7: 22 | C7: 12 | D7: 31 | E7: 14 | F7: 38 | K7: 0 | L7: 111 | N7: 111 | O7: =COUNTIF($L$7:$L$500,N7) -> 3 | P7: =O7/$Q$4 -> 0.046875 | Q7: =IF(P7=0,0,(P7*((LOG(P7))/LOG(2)))) -> -0.2069548828 | T7: =N7 -> 111 | U7: =COUNTIF(L7:L17,T7) -> 3 | V7: =U7/(W4-U10) -> 0.5 | W7: =IF(V7=0,0,(V7*((LOG(V7))/LOG(2)))) -> -0.5 | Y7: =N7 -> 111 | Z7: =COUNTIF(L18:L27,Y7) -> 0 | AA7: =Z7/(AB4-Z10) -> 0 | AB7: =IF(AA7=0,0,(AA7*((LOG(AA7))/LOG(2)))) -> 0 | AD7: =N7 -> 111 | AE7: =COUNTIF(L28:L38,AD7) -> 0 | AF7: =AE7/(AG4-AE10) -> 0 | AG7: =IF(AF7=0,0,(AF7*((LOG(AF7))/LOG(2)))) -> 0 | AI7: =N7 -> 111 | AJ7: =COUNTIF(L39:L49,AI7) -> 0 | AK7: =AJ7/(AL4-AJ10) -> 0 | AL7: =IF(AK7=0,0,(AK7*((LOG(AK7))/LOG(2)))) -> 0 | AN7: =N7 -> 111 | AO7: =COUNTIF(L50:L59,AN7) -> 0 | AP7: =AO7/(AQ4-AO10) -> 0 | AQ7: =IF(AP7=0,0,(AP7*((LOG(AP7))/LOG(2)))) -> 0 | AS7: =N7 -> 111 | AT7: =COUNTIF(L60:L70,AS7) -> 0 | AU7: =AT7/(AV4-AT10) -> 0 | AV7: =IF(AU7=0,0,(AU7*((LOG(AU7))/LOG(2)))) -> 0
A8: 11 | B8: 167 | C8: 12 | D8: 175 | E8: 14 | F8: 185 | K8: 0 | L8: 111 | N8: 112 | O8: =COUNTIF($L$7:$L$500,N8) -> 3 | P8: =O8/$Q$4 -> 0.046875 | Q8: =IF(P8=0,0,(P8*((LOG(P8))/LOG(2)))) -> -0.2069548828 | T8: =N8 -> 112 | U8: =COUNTIF(L7:L17,T8) -> 0 | V8: =U8/(W4-U10) -> 0 | W8: =IF(V8=0,0,(V8*((LOG(V8))/LOG(2)))) -> 0 | Y8: =N8 -> 112 | Z8: =COUNTIF(L18:L27,Y8) -> 0 | AA8: =Z8/(AB4-Z10) -> 0 | AB8: =IF(AA8=0,0,(AA8*((LOG(AA8))/LOG(2)))) -> 0 | AD8: =N8 -> 112 | AE8: =COUNTIF(L28:L38,AD8) -> 2 | AF8: =AE8/(AG4-AE10) -> 0.5 | AG8: =IF(AF8=0,0,(AF8*((LOG(AF8))/LOG(2)))) -> -0.5 | AI8: =N8 -> 112 | AJ8: =COUNTIF(L39:L49,AI8) -> 0 | AK8: =AJ8/(AL4-AJ10) -> 0 | AL8: =IF(AK8=0,0,(AK8*((LOG(AK8))/LOG(2)))) -> 0 | AN8: =N8 -> 112 | AO8: =COUNTIF(L50:L59,AN8) -> 0 | AP8: =AO8/(AQ4-AO10) -> 0 | AQ8: =IF(AP8=0,0,(AP8*((LOG(AP8))/LOG(2)))) -> 0 | AS8: =N8 -> 112 | AT8: =COUNTIF(L60:L70,AS8) -> 1 | AU8: =AT8/(AV4-AT10) -> 0.3333333333 | AV8: =IF(AU8=0,0,(AU8*((LOG(AU8))/LOG(2)))) -> -0.5283208336
A9: 22 | B9: 510 | C9: 23 | D9: 720 | E9: 23 | F9: 774 | K9: 0 | L9: 222 | N9: 121 | O9: =COUNTIF($L$7:$L$500,N9) -> 0 | P9: =O9/$Q$4 -> 0 | Q9: =IF(P9=0,0,(P9*((LOG(P9))/LOG(2)))) -> 0 | T9: =N9 -> 121 | U9: =COUNTIF(L7:L17,T9) -> 0 | V9: =U9/(W4-U10) -> 0 | W9: =IF(V9=0,0,(V9*((LOG(V9))/LOG(2)))) -> 0 | Y9: =N9 -> 121 | Z9: =COUNTIF(L18:L27,Y9) -> 0 | AA9: =Z9/(AB4-Z10) -> 0 | AB9: =IF(AA9=0,0,(AA9*((LOG(AA9))/LOG(2)))) -> 0 | AD9: =N9 -> 121 | AE9: =COUNTIF(L28:L38,AD9) -> 0 | AF9: =AE9/(AG4-AE10) -> 0 | AG9: =IF(AF9=0,0,(AF9*((LOG(AF9))/LOG(2)))) -> 0 | AI9: =N9 -> 121 | AJ9: =COUNTIF(L39:L49,AI9) -> 0 | AK9: =AJ9/(AL4-AJ10) -> 0 | AL9: =IF(AK9=0,0,(AK9*((LOG(AK9))/LOG(2)))) -> 0 | AN9: =N9 -> 121 | AO9: =COUNTIF(L50:L59,AN9) -> 0 | AP9: =AO9/(AQ4-AO10) -> 0 | AQ9: =IF(AP9=0,0,(AP9*((LOG(AP9))/LOG(2)))) -> 0 | AS9: =N9 -> 121 | AT9: =COUNTIF(L60:L70,AS9) -> 0 | AU9: =AT9/(AV4-AT10) -> 0 | AV9: =IF(AU9=0,0,(AU9*((LOG(AU9))/LOG(2)))) -> 0
A10: 11 | B10: 873 | C10: 21 | D10: 909 | E10: 21 | F10: 935 | K10: 0 | L10: 122 | N10: 122 | O10: =COUNTIF($L$7:$L$500,N10) -> 40 | P10: =O10/$Q$4 -> 0.625 | Q10: =IF(P10=0,0,(P10*((LOG(P10))/LOG(2)))) -> -0.4237949407 | T10: =N10 -> 122 | U10: =COUNTIF(L7:L17,T10) -> 5 | Y10: =N10 -> 122 | Z10: =COUNTIF(L18:L27,Y10) -> 7 | AD10: =N10 -> 122 | AE10: =COUNTIF(L28:L38,AD10) -> 7 | AI10: =N10 -> 122 | AJ10: =COUNTIF(L39:L49,AI10) -> 8 | AN10: =N10 -> 122 | AO10: =COUNTIF(L50:L59,AN10) -> 5 | AS10: =N10 -> 122 | AT10: =COUNTIF(L60:L70,AS10) -> 8
A11: 11 | B11: 1030 | C11: 21 | D11: 1062 | E11: 21 | F11: 1079 | K11: 0 | L11: 122 | N11: 211 | O11: =COUNTIF($L$7:$L$500,N11) -> 0 | P11: =O11/$Q$4 -> 0 | Q11: =IF(P11=0,0,(P11*((LOG(P11))/LOG(2)))) -> 0 | T11: =N11 -> 211 | U11: =COUNTIF(L7:L17,T11) -> 0 | V11: =U11/(W4-U10) -> 0 | W11: =IF(V11=0,0,(V11*((LOG(V11))/LOG(2)))) -> 0 | Y11: =N11 -> 211 | Z11: =COUNTIF(L18:L27,Y11) -> 0 | AA11: =Z11/(AB4-Z10) -> 0 | AB11: =IF(AA11=0,0,(AA11*((LOG(AA11))/LOG(2)))) -> 0 | AD11: =N11 -> 211 | AE11: =COUNTIF(L28:L38,AD11) -> 0 | AF11: =AE11/(AG4-AE10) -> 0 | AG11: =IF(AF11=0,0,(AF11*((LOG(AF11))/LOG(2)))) -> 0 | AI11: =N11 -> 211 | AJ11: =COUNTIF(L39:L49,AI11) -> 0 | AK11: =AJ11/(AL4-AJ10) -> 0 | AL11: =IF(AK11=0,0,(AK11*((LOG(AK11))/LOG(2)))) -> 0 | AN11: =N11 -> 211 | AO11: =COUNTIF(L50:L59,AN11) -> 0 | AP11: =AO11/(AQ4-AO10) -> 0 | AQ11: =IF(AP11=0,0,(AP11*((LOG(AP11))/LOG(2)))) -> 0 | AS11: =N11 -> 211 | AT11: =COUNTIF(L60:L70,AS11) -> 0 | AU11: =AT11/(AV4-AT10) -> 0 | AV11: =IF(AU11=0,0,(AU11*((LOG(AU11))/LOG(2)))) -> 0
A12: 11 | B12: 1171 | C12: 21 | D12: 1215 | E12: 21 | F12: 1288 | K12: 0 | L12: 122 | N12: 212 | O12: =COUNTIF($L$7:$L$500,N12) -> 0 | P12: =O12/$Q$4 -> 0 | Q12: =IF(P12=0,0,(P12*((LOG(P12))/LOG(2)))) -> 0 | T12: =N12 -> 212 | U12: =COUNTIF(L7:L17,T12) -> 0 | V12: =U12/(W4-U10) -> 0 | W12: =IF(V12=0,0,(V12*((LOG(V12))/LOG(2)))) -> 0 | Y12: =N12 -> 212 | Z12: =COUNTIF(L18:L27,Y12) -> 0 | AA12: =Z12/(AB4-Z10) -> 0 | AB12: =IF(AA12=0,0,(AA12*((LOG(AA12))/LOG(2)))) -> 0 | AD12: =N12 -> 212 | AE12: =COUNTIF(L28:L38,AD12) -> 0 | AF12: =AE12/(AG4-AE10) -> 0 | AG12: =IF(AF12=0,0,(AF12*((LOG(AF12))/LOG(2)))) -> 0 | AI12: =N12 -> 212 | AJ12: =COUNTIF(L39:L49,AI12) -> 0 | AK12: =AJ12/(AL4-AJ10) -> 0 | AL12: =IF(AK12=0,0,(AK12*((LOG(AK12))/LOG(2)))) -> 0 | AN12: =N12 -> 212 | AO12: =COUNTIF(L50:L59,AN12) -> 0 | AP12: =AO12/(AQ4-AO10) -> 0 | AQ12: =IF(AP12=0,0,(AP12*((LOG(AP12))/LOG(2)))) -> 0 | AS12: =N12 -> 212 | AT12: =COUNTIF(L60:L70,AS12) -> 0 | AU12: =AT12/(AV4-AT10) -> 0 | AV12: =IF(AU12=0,0,(AU12*((LOG(AU12))/LOG(2)))) -> 0
A13: 11 | B13: 1375 | C13: 21 | D13: 1541 | E13: 21 | F13: 1595 | K13: 0 | L13: 122 | N13: 221 | O13: =COUNTIF($L$7:$L$500,N13) -> 0 | P13: =O13/$Q$4 -> 0 | Q13: =IF(P13=0,0,(P13*((LOG(P13))/LOG(2)))) -> 0 | T13: =N13 -> 221 | U13: =COUNTIF(L7:L17,T13) -> 0 | V13: =U13/(W4-U10) -> 0 | W13: =IF(V13=0,0,(V13*((LOG(V13))/LOG(2)))) -> 0 | Y13: =N13 -> 221 | Z13: =COUNTIF(L18:L27,Y13) -> 0 | AA13: =Z13/(AB4-Z10) -> 0 | AB13: =IF(AA13=0,0,(AA13*((LOG(AA13))/LOG(2)))) -> 0 | AD13: =N13 -> 221 | AE13: =COUNTIF(L28:L38,AD13) -> 0 | AF13: =AE13/(AG4-AE10) -> 0 | AG13: =IF(AF13=0,0,(AF13*((LOG(AF13))/LOG(2)))) -> 0 | AI13: =N13 -> 221 | AJ13: =COUNTIF(L39:L49,AI13) -> 0 | AK13: =AJ13/(AL4-AJ10) -> 0 | AL13: =IF(AK13=0,0,(AK13*((LOG(AK13))/LOG(2)))) -> 0 | AN13: =N13 -> 221 | AO13: =COUNTIF(L50:L59,AN13) -> 0 | AP13: =AO13/(AQ4-AO10) -> 0 | AQ13: =IF(AP13=0,0,(AP13*((LOG(AP13))/LOG(2)))) -> 0 | AS13: =N13 -> 221 | AT13: =COUNTIF(L60:L70,AS13) -> 0 | AU13: =AT13/(AV4-AT10) -> 0 | AV13: =IF(AU13=0,0,(AU13*((LOG(AU13))/LOG(2)))) -> 0
A14: 22 | B14: 1771 | C14: 23 | D14: 1785 | E14: 23 | F14: 1796 | K14: 0 | L14: 222 | N14: 222 | O14: =COUNTIF($L$7:$L$500,N14) -> 18 | P14: =O14/$Q$4 -> 0.28125 | Q14: =IF(P14=0,0,(P14*((LOG(P14))/LOG(2)))) -> -0.5147085933 | T14: =N14 -> 222 | U14: =COUNTIF(L7:L17,T14) -> 3 | V14: =U14/(W4-U10) -> 0.5 | W14: =IF(V14=0,0,(V14*((LOG(V14))/LOG(2)))) -> -0.5 | Y14: =N14 -> 222 | Z14: =COUNTIF(L18:L27,Y14) -> 3 | AA14: =Z14/(AB4-Z10) -> 1 | AB14: =IF(AA14=0,0,(AA14*((LOG(AA14))/LOG(2)))) -> 0 | AD14: =N14 -> 222 | AE14: =COUNTIF(L28:L38,AD14) -> 2 | AF14: =AE14/(AG4-AE10) -> 0.5 | AG14: =IF(AF14=0,0,(AF14*((LOG(AF14))/LOG(2)))) -> -0.5 | AI14: =N14 -> 222 | AJ14: =COUNTIF(L39:L49,AI14) -> 3 | AK14: =AJ14/(AL4-AJ10) -> 1 | AL14: =IF(AK14=0,0,(AK14*((LOG(AK14))/LOG(2)))) -> 0 | AN14: =N14 -> 222 | AO14: =COUNTIF(L50:L59,AN14) -> 5 | AP14: =AO14/(AQ4-AO10) -> 1 | AQ14: =IF(AP14=0,0,(AP14*((LOG(AP14))/LOG(2)))) -> 0 | AS14: =N14 -> 222 | AT14: =COUNTIF(L60:L70,AS14) -> 2 | AU14: =AT14/(AV4-AT10) -> 0.6666666667 | AV14: =IF(AU14=0,0,(AU14*((LOG(AU14))/LOG(2)))) -> -0.3899750005
A15: 11 | B15: 1897 | C15: 12 | D15: 1904 | E15: 14 | F15: 1912 | K15: 0 | L15: 111 | P15: =SUM(P7:P14) -> 1 | Q15: =-SUM(Q7:Q14) -> 1.3524133 | V15: =SUM(V7:V14) -> 1 | W15: =-SUM(W7:W14) -> 1 | AA15: =SUM(AA7:AA14) -> 1 | AB15: =-SUM(AB7:AB14) -> 0 | AF15: =SUM(AF7:AF14) -> 1 | AG15: =-SUM(AG7:AG14) -> 1 | AK15: =SUM(AK7:AK14) -> 1 | AL15: =-SUM(AL7:AL14) -> 0 | AP15: =SUM(AP7:AP14) -> 1 | AQ15: =-SUM(AQ7:AQ14) -> 0 | AU15: =SUM(AU7:AU14) -> 1 | AV15: =-SUM(AV7:AV14) -> 0.9182958341
A16: 22 | B16: 2032 | C16: 23 | D16: 2040 | E16: 23 | F16: 2056 | K16: 0 | L16: 222 | P16: U= | Q16: =Q15/(LOG(Q4)/LOG(2)) -> 0.2254022166 | V16: U1= | W16: =W15/(LOG(W4)/LOG(2)) -> 0.2890648263 | AA16: U2= | AB16: =AB15/(LOG(AB4)/LOG(2)) -> 0 | AF16: U3= | AG16: =AG15/(LOG(AG4)/LOG(2)) -> 0.2890648263 | AK16: U4= | AL16: =AL15/(LOG(AL4)/LOG(2)) -> 0 | AP16: U5= | AQ16: =AQ15/(LOG(AQ4)/LOG(2)) -> 0 | AU16: U6= | AV16: =AV15/(LOG(AV4)/LOG(2)) -> 0.2654470258
A17: 11 | B17: 2157 | C17: 21 | D17: 2176 | E17: 21 | F17: 2186 | K17: 0 | L17: 122
A18: 11 | B18: 2279 | C18: 21 | D18: 2332 | E18: 21 | F18: 2357 | K18: 0 | L18: 122
A19: 11 | B19: 2449 | C19: 21 | D19: 2464 | E19: 21 | F19: 2490 | K19: 0 | L19: 122 | N19: Total Target Seq
A20: 22 | B20: 2591 | C20: 23 | D20: 2606 | E20: 23 | F20: 2683 | K20: 0 | L20: 222 | N20: =COUNTIF(L7:L70,G3) -> 40 | P20: 11 | Q20: 10 | R20: 11 | S20: 11 | T20: 10 | U20: 11
A21: 11 | B21: 2775 | C21: 21 | D21: 2813 | E21: 21 | F21: 2856 | K21: 0 | L21: 122 | P21: % of reinforcement given in 6 equal intervals based on number of trials
A22: 22 | B22: 2987 | C22: 23 | D22: 2995 | E22: 23 | F22: 3003 | K22: 0 | L22: 222 | P22: %_1 | Q22: %_2 | R22: %_3 | S22: %_4 | T22: %_5 | U22: %_6
A23: 22 | B23: 3114 | C23: 23 | D23: 3135 | E23: 23 | F23: 3143 | K23: 0 | L23: 222 | O23: target sequence | P23: =$G$3 -> 122 | Q23: =$G$3 -> 122 | R23: =$G$3 -> 122 | S23: =$G$3 -> 122 | T23: =$G$3 -> 122 | U23: =$G$3 -> 122
A24: 11 | B24: 3236 | C24: 21 | D24: 3275 | E24: 21 | F24: 3289 | K24: 0 | L24: 122 | O24: total reinforcement | P24: =U10 -> 5 | Q24: =Z10 -> 7 | R24: =AE10 -> 7 | S24: =AJ10 -> 8 | T24: =AO10 -> 5 | U24: =AT10 -> 8
A25: 11 | B25: 3377 | C25: 21 | D25: 3437 | E25: 21 | F25: 3459 | K25: 0 | L25: 122 | O25: % target
A26: 11 | B26: 3548 | C26: 21 | D26: 3565 | E26: 21 | F26: 3581 | K26: 0 | L26: 122 | O26: CCRF
A27: 11 | B27: 3674 | C27: 21 | D27: 3709 | E27: 21 | F27: 3752 | K27: 0 | L27: 122 | O27: % CCRf
A28: 11 | B28: 3886 | C28: 21 | D28: 3916 | E28: 21 | F28: 3957 | K28: 0 | L28: 122 | O28: average response rate | P28: =F17/P20 -> 198.7272727 | Q28: =(F27-F17)/Q20 -> 156.6 | R28: =(F38-F27)/R20 -> 134.3636364 | S28: =(F49-F38)/S20 -> 158.0909091 | T28: =(F59-F49)/T20 -> 161.5 | U28: =(F70-F59)/U20 -> 144.8181818
A29: 11 | B29: 4041 | C29: 12 | D29: 4048 | E29: 23 | F29: 4061 | K29: 0 | L29: 112
A30: 22 | B30: 4174 | C30: 23 | D30: 4180 | E30: 23 | F30: 4202 | K30: 0 | L30: 222
A31: 11 | B31: 4300 | C31: 21 | D31: 4324 | E31: 21 | F31: 4335 | K31: 0 | L31: 122
A32: 11 | B32: 4425 | C32: 21 | D32: 4437 | E32: 21 | F32: 4448 | K32: 0 | L32: 122
A33: 22 | B33: 4547 | C33: 23 | D33: 4639 | E33: 23 | F33: 4647 | K33: 0 | L33: 222
A34: 11 | B34: 4744 | C34: 21 | D34: 4756 | E34: 21 | F34: 4763 | K34: 0 | L34: 122
A35: 11 | B35: 4856 | C35: 21 | D35: 4869 | E35: 21 | F35: 4890 | K35: 0 | L35: 122
A36: 11 | B36: 4980 | C36: 21 | D36: 4997 | E36: 21 | F36: 5002 | K36: 0 | L36: 122
A37: 11 | B37: 5091 | C37: 21 | D37: 5103 | E37: 21 | F37: 5115 | K37: 0 | L37: 122
A38: 11 | B38: 5203 | C38: 12 | D38: 5205 | E38: 23 | F38: 5230 | K38: 0 | L38: 112
A39: 11 | B39: 5328 | C39: 21 | D39: 5348 | E39: 21 | F39: 5361 | K39: 0 | L39: 122
A40: 11 | B40: 5452 | C40: 21 | D40: 5523 | E40: 21 | F40: 5564 | K40: 0 | L40: 122
A41: 11 | B41: 5653 | C41: 21 | D41: 5787 | E41: 21 | F41: 5810 | K41: 0 | L41: 122
A42: 11 | B42: 5903 | C42: 21 | D42: 5919 | E42: 21 | F42: 5948 | K42: 0 | L42: 122
A43: 22 | B43: 6051 | C43: 23 | D43: 6068 | E43: 23 | F43: 6095 | K43: 0 | L43: 222
A44: 22 | B44: 6203 | C44: 23 | D44: 6208 | E44: 23 | F44: 6214 | K44: 0 | L44: 222
A45: 11 | B45: 6312 | C45: 21 | D45: 6338 | E45: 21 | F45: 6356 | K45: 0 | L45: 122
A46: 11 | B46: 6442 | C46: 21 | D46: 6455 | E46: 21 | F46: 6474 | K46: 0 | L46: 122
A47: 11 | B47: 6566 | C47: 21 | D47: 6593 | E47: 21 | F47: 6653 | K47: 0 | L47: 122
A48: 22 | B48: 6803 | C48: 23 | D48: 6817 | E48: 23 | F48: 6837 | K48: 0 | L48: 222
A49: 11 | B49: 6931 | C49: 21 | D49: 6957 | E49: 21 | F49: 6969 | K49: 0 | L49: 122
A50: 11 | B50: 7056 | C50: 21 | D50: 7072 | E50: 21 | F50: 7102 | K50: 0 | L50: 122
A51: 11 | B51: 7189 | C51: 21 | D51: 7205 | E51: 21 | F51: 7220 | K51: 0 | L51: 122
A52: 11 | B52: 7305 | C52: 21 | D52: 7352 | E52: 21 | F52: 7404 | K52: 0 | L52: 122
A53: 11 | B53: 7486 | C53: 21 | D53: 7507 | E53: 21 | F53: 7526 | K53: 0 | L53: 122
A54: 22 | B54: 7622 | C54: 23 | D54: 7637 | E54: 23 | F54: 7660 | K54: 0 | L54: 222
A55: 22 | B55: 7807 | C55: 23 | D55: 7839 | E55: 23 | F55: 7847 | K55: 0 | L55: 222
A56: 22 | B56: 7973 | C56: 23 | D56: 7979 | E56: 23 | F56: 7993 | K56: 0 | L56: 222
A57: 22 | B57: 8143 | C57: 23 | D57: 8225 | E57: 23 | F57: 8299 | K57: 0 | L57: 222
A58: 11 | B58: 8394 | C58: 21 | D58: 8404 | E58: 21 | F58: 8423 | K58: 0 | L58: 122
A59: 22 | B59: 8522 | C59: 23 | D59: 8564 | E59: 23 | F59: 8584 | K59: 0 | L59: 222
A60: 11 | B60: 8676 | C60: 21 | D60: 8732 | E60: 21 | F60: 8752 | K60: 0 | L60: 122
A61: 22 | B61: 8897 | C61: 23 | D61: 8946 | E61: 23 | F61: 8953 | K61: 0 | L61: 222
A62: 11 | B62: 9049 | C62: 21 | D62: 9062 | E62: 21 | F62: 9074 | K62: 0 | L62: 122
A63: 11 | B63: 9158 | C63: 21 | D63: 9188 | E63: 21 | F63: 9227 | K63: 0 | L63: 122
A64: 11 | B64: 9313 | C64: 21 | D64: 9341 | E64: 21 | F64: 9364 | K64: 0 | L64: 122
A65: 11 | B65: 9466 | C65: 21 | D65: 9483 | E65: 21 | F65: 9489 | K65: 0 | L65: 122
A66: 22 | B66: 9600 | C66: 23 | D66: 9628 | E66: 23 | F66: 9636 | K66: 0 | L66: 222
A67: 11 | B67: 9728 | C67: 12 | D67: 9734 | E67: 23 | F67: 9750 | K67: 0 | L67: 112
A68: 11 | B68: 9847 | C68: 21 | D68: 9857 | E68: 21 | F68: 9888 | K68: 0 | L68: 122
A69: 11 | B69: 9977 | C69: 21 | D69: 10047 | E69: 21 | F69: 10061 | K69: 0 | L69: 122
A70: 11 | B70: 10147 | C70: 21 | D70: 10163 | E70: 21 | F70: 10177 | K70: 1 | L70: 122

Sheet !M630840.102
A1: Report for:!M630840.102
A2: Date: | B2: <date>
A3: Hen: | B3: <hen> | F3: Correct Sequence | G3: =Start!J2 -> 122 | P3: Total Sequences in Data | Q3: =4994-COUNTBLANK(L7:L5000) -> 61 | V3: Total Sequences in Block Data | W3: =COUNTA(L7:L16) -> 10 | AA3: Total Sequences in Block Data | AB3: =COUNTA(L17:L26) -> 10 | AF3: Total Sequences in Block Data | AG3: =COUNTA(L27:L37) -> 11 | AK3: Total Sequences in Block Data | AL3: =COUNTA(L38:L47) -> 10 | AP3: Total Sequences in Block Data | AQ3: =COUNTA(L48:L57) -> 10 | AU3: Total Sequences in Block Data | AV3: =COUNTA(L58:L67) -> 10
P4: Total Sequences in Summary | Q4: =SUM(O7:O14) -> 61 | V4: Total Sequences in Block Summary | W4: =SUM(U7:U14) -> 10 | AA4: Total Sequences in Block Summary | AB4: =SUM(Z7:Z14) -> 10 | AF4: Total Sequences in Block Summary | AG4: =SUM(AE7:AE14) -> 11 | AK4: Total Sequences in Block Summary | AL4: =SUM(AJ7:AJ14) -> 10 | AP4: Total Sequences in Block Summary | AQ4: =SUM(AO7:AO14) -> 10 | AU4: Total Sequences in Block Summary | AV4: =SUM(AT7:AT14) -> 10
T5: Block 1 | Y5: Block 2 | AD5: Block 3 | AI5: Block 4 | AN5: Block 5 | AS5: Block 6
A6: Sequence Component 1 | B6: Time 1 | C6: Sequence Component 2 | D6: Time 2 | E6: Sequence Component 3 | F6: Time 3 | G6: Sequence Component 4 | H6: Time 4 | I6: Sequence Component 5 | J6: Time 5 | K6: Correct? 0=No 1=Yes | L6: Sequence | N6: Frequency | P6: Relative Frequency | Q6: Variability | T6: Frequency | V6: Relative Frequency | W6: Variability | Y6: Frequency | AA6: Relative Frequency | AB6: Variability | AD6: Frequency | AF6: Relative Frequency | AG6: Variability | AI6: Frequency | AK6: Relative Frequency | AL6: Variability | AN6: Frequency | AP6: Relative Frequency | AQ6: Variability | AS6: Frequency | AU6: Relative Frequency | AV6: Variability
A7: 11 | B7: 22 | C7: 21 | D7: 52 | E7: 21 | F7: 70 | K7: 0 | L7: 122 | N7: 111 | O7: =COUNTIF($L$7:$L$500,N7) -> 0 | P7: =O7/$Q$4 -> 0 | Q7: =IF(P7=0,0,(P7*((LOG(P7))/LOG(2)))) -> 0 | T7: =N7 -> 111 | U7: =COUNTIF(L7:L16,T7) -> 0 | V7: =U7/(W4-U10) -> 0 | W7: =IF(V7=0,0,(V7*((LOG(V7))/LOG(2)))) -> 0 | Y7: =N7 -> 111 | Z7: =COUNTIF(L17:L26,Y7) -> 0 | AA7: =Z7/(AB4-Z10) -> 0 | AB7: =IF(AA7=0,0,(AA7*((LOG(AA7))/LOG(2)))) -> 0 | AD7: =N7 -> 111 | AE7: =COUNTIF(L27:L37,AD7) -> 0 | AF7: =AE7/(AG4-AE10) -> 0 | AG7: =IF(AF7=0,0,(AF7*((LOG(AF7))/LOG(2)))) -> 0 | AI7: =N7 -> 111 | AJ7: =COUNTIF(L38:L47,AI7) -> 0 | AK7: =AJ7/(AL4-AJ10) -> 0 | AL7: =IF(AK7=0,0,(AK7*((LOG(AK7))/LOG(2)))) -> 0 | AN7: =N7 -> 111 | AO7: =COUNTIF(L48:L57,AN7) -> 0 | AP7: =AO7/(AQ4-AO10) -> 0 | AQ7: =IF(AP7=0,0,(AP7*((LOG(AP7))/LOG(2)))) -> 0 | AS7: =N7 -> 111 | AT7: =COUNTIF(L58:L67,AS7) -> 0 | AU7: =AT7/(AV4-AT10) -> 0 | AV7: =IF(AU7=0,0,(AU7*((LOG(AU7))/LOG(2)))) -> 0
A8: 11 | B8: 181 | C8: 12 | D8: 192 | E8: 23 | F8: 232 | K8: 0 | L8: 112 | N8: 112 | O8: =COUNTIF($L$7:$L$500,N8) -> 3 | P8: =O8/$Q$4 -> 0.04918032787 | Q8: =IF(P8=0,0,(P8*((LOG(P8))/LOG(2)))) -> -0.2137266313 | T8: =N8 -> 112 | U8: =COUNTIF(L7:L16,T8) -> 1 | V8: =U8/(W4-U10) -> 0.2 | W8: =IF(V8=0,0,(V8*((LOG(V8))/LOG(2)))) -> -0.464385619 | Y8: =N8 -> 112 | Z8: =COUNTIF(L17:L26,Y8) -> 0 | AA8: =Z8/(AB4-Z10) -> 0 | AB8: =IF(AA8=0,0,(AA8*((LOG(AA8))/LOG(2)))) -> 0 | AD8: =N8 -> 112 | AE8: =COUNTIF(L27:L37,AD8) -> 0 | AF8: =AE8/(AG4-AE10) -> 0 | AG8: =IF(AF8=0,0,(AF8*((LOG(AF8))/LOG(2)))) -> 0 | AI8: =N8 -> 112 | AJ8: =COUNTIF(L38:L47,AI8) -> 1 | AK8: =AJ8/(AL4-AJ10) -> 1 | AL8: =IF(AK8=0,0,(AK8*((LOG(AK8))/LOG(2)))) -> 0 | AN8: =N8 -> 112 | AO8: =COUNTIF(L48:L57,AN8) -> 0 | AP8: =AO8/(AQ4-AO10) -> 0 | AQ8: =IF(AP8=0,0,(AP8*((LOG(AP8))/LOG(2)))) -> 0 | AS8: =N8 -> 112 | AT8: =COUNTIF(L58:L67,AS8) -> 1 | AU8: =AT8/(AV4-AT10) -> 0.2 | AV8: =IF(AU8=0,0,(AU8*((LOG(AU8))/LOG(2)))) -> -0.464385619
A9: 11 | B9: 334 | C9: 21 | D9: 359 | E9: 21 | F9: 385 | K9: 0 | L9: 122 | N9: 121 | O9: =COUNTIF($L$7:$L$500,N9) -> 0 | P9: =O9/$Q$4 -> 0 | Q9: =IF(P9=0,0,(P9*((LOG(P9))/LOG(2)))) -> 0 | T9: =N9 -> 121 | U9: =COUNTIF(L7:L16,T9) -> 0 | V9: =U9/(W4-U10) -> 0 | W9: =IF(V9=0,0,(V9*((LOG(V9))/LOG(2)))) -> 0 | Y9: =N9 -> 121 | Z9: =COUNTIF(L17:L26,Y9) -> 0 | AA9: =Z9/(AB4-Z10) -> 0 | AB9: =IF(AA9=0,0,(AA9*((LOG(AA9))/LOG(2)))) -> 0 | AD9: =N9 -> 121 | AE9: =COUNTIF(L27:L37,AD9) -> 0 | AF9: =AE9/(AG4-AE10) -> 0 | AG9: =IF(AF9=0,0,(AF9*((LOG(AF9))/LOG(2)))) -> 0 | AI9: =N9 -> 121 | AJ9: =COUNTIF(L38:L47,AI9) -> 0 | AK9: =AJ9/(AL4-AJ10) -> 0 | AL9: =IF(AK9=0,0,(AK9*((LOG(AK9))/LOG(2)))) -> 0 | AN9: =N9 -> 121 | AO9: =COUNTIF(L48:L57,AN9) -> 0 | AP9: =AO9/(AQ4-AO10) -> 0 | AQ9: =IF(AP9=0,0,(AP9*((LOG(AP9))/LOG(2)))) -> 0 | AS9: =N9 -> 121 | AT9: =COUNTIF(L58:L67,AS9) -> 0 | AU9: =AT9/(AV4-AT10) -> 0 | AV9: =IF(AU9=0,0,(AU9*((LOG(AU9))/LOG(2)))) -> 0
A10: 22 | B10: 486 | C10: 23 | D10: 508 | E10: 23 | F10: 527 | K10: 0 | L10: 222 | N10: 122 | O10: =COUNTIF($L$7:$L$500,N10) -> 40 | P10: =O10/$Q$4 -> 0.6557377049 | Q10: =IF(P10=0,0,(P10*((LOG(P10))/LOG(2)))) -> -0.3992191755 | T10: =N10 -> 122 | U10: =COUNTIF(L7:L16,T10) -> 5 | Y10: =N10 -> 122 | Z10: =COUNTIF(L17:L26,Y10) -> 5 | AD10: =N10 -> 122 | AE10: =COUNTIF(L27:L37,AD10) -> 8 | AI10: =N10 -> 122 | AJ10: =COUNTIF(L38:L47,AI10) -> 9 | AN10: =N10 -> 122 | AO10: =COUNTIF(L48:L57,AN10) -> 8 | AS10: =N10 -> 122 | AT10: =COUNTIF(L58:L67,AS10) -> 5
A11: 11 | B11: 623 | C11: 21 | D11: 640 | E11: 21 | F11: 644 | K11: 0 | L11: 122 | N11: 211 | O11: =COUNTIF($L$7:$L$500,N11) -> 0 | P11: =O11/$Q$4 -> 0 | Q11: =IF(P11=0,0,(P11*((LOG(P11))/LOG(2)))) -> 0 | T11: =N11 -> 211 | U11: =COUNTIF(L7:L16,T11) -> 0 | V11: =U11/(W4-U10) -> 0 | W11: =IF(V11=0,0,(V11*((LOG(V11))/LOG(2)))) -> 0 | Y11: =N11 -> 211 | Z11: =COUNTIF(L17:L26,Y11) -> 0 | AA11: =Z11/(AB4-Z10) -> 0 | AB11: =IF(AA11=0,0,(AA11*((LOG(AA11))/LOG(2)))) -> 0 | AD11: =N11 -> 211 | AE11: =COUNTIF(L27:L37,AD11) -> 0 | AF11: =AE11/(AG4-AE10) -> 0 | AG11: =IF(AF11=0,0,(AF11*((LOG(AF11))/LOG(2)))) -> 0 | AI11: =N11 -> 211 | AJ11: =COUNTIF(L38:L47,AI11) -> 0 | AK11: =AJ11/(AL4-AJ10) -> 0 | AL11: =IF(AK11=0,0,(AK11*((LOG(AK11))/LOG(2)))) -> 0 | AN11: =N11 -> 211 | AO11: =COUNTIF(L48:L57,AN11) -> 0 | AP11: =AO11/(AQ4-AO10) -> 0 | AQ11: =IF(AP11=0,0,(AP11*((LOG(AP11))/LOG(2)))) -> 0 | AS11: =N11 -> 211 | AT11: =COUNTIF(L58:L67,AS11) -> 0 | AU11: =AT11/(AV4-AT10) -> 0 | AV11: =IF(AU11=0,0,(AU11*((LOG(AU11))/LOG(2)))) -> 0
A12: 11 | B12: 740 | C12: 21 | D12: 757 | E12: 21 | F12: 770 | K12: 0 | L12: 122 | N12: 212 | O12: =COUNTIF($L$7:$L$500,N12) -> 0 | P12: =O12/$Q$4 -> 0 | Q12: =IF(P12=0,0,(P12*((LOG(P12))/LOG(2)))) -> 0 | T12: =N12 -> 212 | U12: =COUNTIF(L7:L16,T12) -> 0 | V12: =U12/(W4-U10) -> 0 | W12: =IF(V12=0,0,(V12*((LOG(V12))/LOG(2)))) -> 0 | Y12: =N12 -> 212 | Z12: =COUNTIF(L17:L26,Y12) -> 0 | AA12: =Z12/(AB4-Z10) -> 0 | AB12: =IF(AA12=0,0,(AA12*((LOG(AA12))/LOG(2)))) -> 0 | AD12: =N12 -> 212 | AE12: =COUNTIF(L27:L37,AD12) -> 0 | AF12: =AE12/(AG4-AE10) -> 0 | AG12: =IF(AF12=0,0,(AF12*((LOG(AF12))/LOG(2)))) -> 0 | AI12: =N12 -> 212 | AJ12: =COUNTIF(L38:L47,AI12) -> 0 | AK12: =AJ12/(AL4-AJ10) -> 0 | AL12: =IF(AK12=0,0,(AK12*((LOG(AK12))/LOG(2)))) -> 0 | AN12: =N12 -> 212 | AO12: =COUNTIF(L48:L57,AN12) -> 0 | AP12: =AO12/(AQ4-AO10) -> 0 | AQ12: =IF(AP12=0,0,(AP12*((LOG(AP12))/LOG(2)))) -> 0 | AS12: =N12 -> 212 | AT12: =COUNTIF(L58:L67,AS12) -> 0 | AU12: =AT12/(AV4-AT10) -> 0 | AV12: =IF(AU12=0,0,(AU12*((LOG(AU12))/LOG(2)))) -> 0
A13: 22 | B13: 885 | C13: 23 | D13: 894 | E13: 23 | F13: 905 | K13: 0 | L13: 222 | N13: 221 | O13: =COUNTIF($L$7:$L$500,N13) -> 0 | P13: =O13/$Q$4 -> 0 | Q13: =IF(P13=0,0,(P13*((LOG(P13))/LOG(2)))) -> 0 | T13: =N13 -> 221 | U13: =COUNTIF(L7:L16,T13) -> 0 | V13: =U13/(W4-U10) -> 0 | W13: =IF(V13=0,0,(V13*((LOG(V13))/LOG(2)))) -> 0 | Y13: =N13 -> 221 | Z13: =COUNTIF(L17:L26,Y13) -> 0 | AA13: =Z13/(AB4-Z10) -> 0 | AB13: =IF(AA13=0,0,(AA13*((LOG(AA13))/LOG(2)))) -> 0 | AD13: =N13 -> 221 | AE13: =COUNTIF(L27:L37,AD13) -> 0 | AF13: =AE13/(AG4-AE10) -> 0 | AG13: =IF(AF13=0,0,(AF13*((LOG(AF13))/LOG(2)))) -> 0 | AI13: =N13 -> 221 | AJ13: =COUNTIF(L38:L47,AI13) -> 0 | AK13: =AJ13/(AL4-AJ10) -> 0 | AL13: =IF(AK13=0,0,(AK13*((LOG(AK13))/LOG(2)))) -> 0 | AN13: =N13 -> 221 | AO13: =COUNTIF(L48:L57,AN13) -> 0 | AP13: =AO13/(AQ4-AO10) -> 0 | AQ13: =IF(AP13=0,0,(AP13*((LOG(AP13))/LOG(2)))) -> 0 | AS13: =N13 -> 221 | AT13: =COUNTIF(L58:L67,AS13) -> 0 | AU13: =AT13/(AV4-AT10) -> 0 | AV13: =IF(AU13=0,0,(AU13*((LOG(AU13))/LOG(2)))) -> 0
A14: 22 | B14: 1017 | C14: 23 | D14: 1022 | E14: 23 | F14: 1031 | K14: 0 | L14: 222 | N14: 222 | O14: =COUNTIF($L$7:$L$500,N14) -> 18 | P14: =O14/$Q$4 -> 0.2950819672 | Q14: =IF(P14=0,0,(P14*((LOG(P14))/LOG(2)))) -> -0.519583968 | T14: =N14 -> 222 | U14: =COUNTIF(L7:L16,T14) -> 4 | V14: =U14/(W4-U10) -> 0.8 | W14: =IF(V14=0,0,(V14*((LOG(V14))/LOG(2)))) -> -0.2575424759 | Y14: =N14 -> 222 | Z14: =COUNTIF(L17:L26,Y14) -> 5 | AA14: =Z14/(AB4-Z10) -> 1 | AB14: =IF(AA14=0,0,(AA14*((LOG(AA14))/LOG(2)))) -> 0 | AD14: =N14 -> 222 | AE14: =COUNTIF(L27:L37,AD14) -> 3 | AF14: =AE14/(AG4-AE10) -> 1 | AG14: =IF(AF14=0,0,(AF14*((LOG(AF14))/LOG(2)))) -> 0 | AI14: =N14 -> 222 | AJ14: =COUNTIF(L38:L47,AI14) -> 0 | AK14: =AJ14/(AL4-AJ10) -> 0 | AL14: =IF(AK14=0,0,(AK14*((LOG(AK14))/LOG(2)))) -> 0 | AN14: =N14 -> 222 | AO14: =COUNTIF(L48:L57,AN14) -> 2 | AP14: =AO14/(AQ4-AO10) -> 1 | AQ14: =IF(AP14=0,0,(AP14*((LOG(AP14))/LOG(2)))) -> 0 | AS14: =N14 -> 222 | AT14: =COUNTIF(L58:L67,AS14) -> 4 | AU14: =AT14/(AV4-AT10) -> 0.8 | AV14: =IF(AU14=0,0,(AU14*((LOG(AU14))/LOG(2)))) -> -0.2575424759
A15: 22 | B15: 1140 | C15: 23 | D15: 1148 | E15: 23 | F15: 1170 | K15: 0 | L15: 222 | P15: =SUM(P7:P14) -> 1 | Q15: =-SUM(Q7:Q14) -> 1.132529775 | V15: =SUM(V7:V14) -> 1 | W15: =-SUM(W7:W14) -> 0.7219280949 | AA15: =SUM(AA7:AA14) -> 1 | AB15: =-SUM(AB7:AB14) -> 0 | AF15: =SUM(AF7:AF14) -> 1 | AG15: =-SUM(AG7:AG14) -> 0 | AK15: =SUM(AK7:AK14) -> 1 | AL15: =-SUM(AL7:AL14) -> 0 | AP15: =SUM(AP7:AP14) -> 1 | AQ15: =-SUM(AQ7:AQ14) -> 0 | AU15: =SUM(AU7:AU14) -> 1 | AV15: =-SUM(AV7:AV14) -> 0.7219280949
A16: 11 | B16: 1266 | C16: 21 | D16: 1281 | E16: 21 | F16: 1289 | K16: 0 | L16: 122 | P16: U= | Q16: =Q15/(LOG(Q4)/LOG(2)) -> 0.1909593547 | V16: U1= | W16: =W15/(LOG(W4)/LOG(2)) -> 0.2173220113 | AA16: U2= | AB16: =AB15/(LOG(AB4)/LOG(2)) -> 0 | AF16: U3= | AG16: =AG15/(LOG(AG4)/LOG(2)) -> 0 | AK16: U4= | AL16: =AL15/(LOG(AL4)/LOG(2)) -> 0 | AP16: U5= | AQ16: =AQ15/(LOG(AQ4)/LOG(2)) -> 0 | AU16: U6= | AV16: =AV15/(LOG(AV4)/LOG(2)) -> 0.2173220113
A17: 22 | B17: 1396 | C17: 23 | D17: 1408 | E17: 23 | F17: 1426 | K17: 0 | L17: 222
A18: 22 | B18: 1534 | C18: 23 | D18: 1539 | E18: 23 | F18: 1554 | K18: 0 | L18: 222
A19: 22 | B19: 1663 | C19: 23 | D19: 1672 | E19: 23 | F19: 1684 | K19: 0 | L19: 222 | N19: Total Target Seq
A20: 11 | B20: 1797 | C20: 21 | D20: 1842 | E20: 21 | F20: 1850 | K20: 0 | L20: 122 | N20: =COUNTIF(L7:L67,G3) -> 40 | P20: 10 | Q20: 10 | R20: 11 | S20: 10 | T20: 10 | U20: 10
A21: 11 | B21: 1939 | C21: 21 | D21: 1951 | E21: 21 | F21: 1956 | K21: 0 | L21: 122 | P21: % of reinforcement given in 6 equal intervals based on number of trials
A22: 22 | B22: 2071 | C22: 23 | D22: 2144 | E22: 23 | F22: 2152 | K22: 0 | L22: 222 | P22: %_1 | Q22: %_2 | R22: %_3 | S22: %_4 | T22: %_5 | U22: %_6
A23: 11 | B23: 2265 | C23: 21 | D23: 2277 | E23: 21 | F23: 2290 | K23: 0 | L23: 122 | O23: target sequence | P23: =$G$3 -> 122 | Q23: =$G$3 -> 122 | R23: =$G$3 -> 122 | S23: =$G$3 -> 122 | T23: =$G$3 -> 122 | U23: =$G$3 -> 122
A24: 11 | B24: 2395 | C24: 21 | D24: 2405 | E24: 21 | F24: 2415 | K24: 0 | L24: 122 | O24: total reinforcement | P24: =U10 -> 5 | Q24: =Z10 -> 5 | R24: =AE10 -> 8 | S24: =AJ10 -> 9 | T24: =AO10 -> 8 | U24: =AT10 -> 5
A25: 22 | B25: 2517 | C25: 23 | D25: 2525 | E25: 23 | F25: 2532 | K25: 0 | L25: 222 | O25: % target
A26: 11 | B26: 2626 | C26: 21 | D26: 2638 | E26: 21 | F26: 2679 | K26: 0 | L26: 122 | O26: CCRF
A27: 11 | B27: 2782 | C27: 21 | D27: 2808 | E27: 21 | F27: 3077 | K27: 0 | L27: 122 | O27: % CCRf
A28: 11 | B28: 3170 | C28: 21 | D28: 3182 | E28: 21 | F28: 3199 | K28: 0 | L28: 122 | O28: average response rate | P28: =F16/P20 -> 128.9 | Q28: =(F26-F16)/Q20 -> 139 | R28: =(F37-F26)/R20 -> 175.4545455 | S28: =(F47-F37)/S20 -> 126.8 | T28: =(F57-F47)/T20 -> 137.7 | U28: =(F67-F57)/U20 -> 142.7
A29: 11 | B29: 3315 | C29: 21 | D29: 3358 | E29: 21 | F29: 3373 | K29: 0 | L29: 122
A30: 22 | B30: 3490 | C30: 23 | D30: 3510 | E30: 23 | F30: 3538 | K30: 0 | L30: 222
A31: 11 | B31: 3632 | C31: 21 | D31: 3642 | E31: 21 | F31: 3649 | K31: 0 | L31: 122
A32: 11 | B32: 3740 | C32: 21 | D32: 3764 | E32: 21 | F32: 3883 | K32: 0 | L32: 122
A33: 11 | B33: 3968 | C33: 21 | D33: 3990 | E33: 21 | F33: 4018 | K33: 0 | L33: 122
A34: 11 | B34: 4106 | C34: 21 | D34: 4125 | E34: 21 | F34: 4155 | K34: 0 | L34: 122
A35: 22 | B35: 4277 | C35: 23 | D35: 4289 | E35: 23 | F35: 4366 | K35: 0 | L35: 222
A36: 22 | B36: 4473 | C36: 23 | D36: 4478 | E36: 23 | F36: 4484 | K36: 0 | L36: 222
A37: 11 | B37: 4582 | C37: 21 | D37: 4596 | E37: 21 | F37: 4609 | K37: 0 | L37: 122
A38: 11 | B38: 4698 | C38: 21 | D38: 4712 | E38: 21 | F38: 4729 | K38: 0 | L38: 122
A39: 11 | B39: 4816 | C39: 21 | D39: 4827 | E39: 21 | F39: 4832 | K39: 0 | L39: 122
A40: 11 | B40: 4936 | C40: 21 | D40: 4955 | E40: 21 | F40: 4964 | K40: 0 | L40: 122
A41: 11 | B41: 5046 | C41: 12 | D41: 5054 | E41: 23 | F41: 5065 | K41: 0 | L41: 112
A42: 11 | B42: 5186 | C42: 21 | D42: 5203 | E42: 21 | F42: 5233 | K42: 0 | L42: 122
A43: 11 | B43: 5320 | C43: 21 | D43: 5336 | E43: 21 | F43: 5361 | K43: 0 | L43: 122
A44: 11 | B44: 5447 | C44: 21 | D44: 5459 | E44: 21 | F44: 5480 | K44: 0 | L44: 122
A45: 11 | B45: 5569 | C45: 21 | D45: 5580 | E45: 21 | F45: 5594 | K45: 0 | L45: 122
A46: 11 | B46: 5684 | C46: 21 | D46: 5744 | E46: 21 | F46: 5752 | K46: 0 | L46: 122
A47: 11 | B47: 5840 | C47: 21 | D47: 5851 | E47: 21 | F47: 5877 | K47: 0 | L47: 122
A48: 11 | B48: 5966 | C48: 21 | D48: 5995 | E48: 21 | F48: 6018 | K48: 0 | L48: 122
A49: 22 | B49: 6120 | C49: 23 | D49: 6162 | E49: 23 | F49: 6178 | K49: 0 | L49: 222
A50: 11 | B50: 6273 | C50: 21 | D50: 6285 | E50: 21 | F50: 6291 | K50: 0 | L50: 122
A51: 11 | B51: 6380 | C51: 21 | D51: 6403 | E51: 21 | F51: 6415 | K51: 0 | L51: 122
A52: 11 | B52: 6502 | C52: 21 | D52: 6523 | E52: 21 | F52: 6531 | K52: 0 | L52: 122
A53: 11 | B53: 6614 | C53: 21 | D53: 6652 | E53: 21 | F53: 6683 | K53: 0 | L53: 122
A54: 11 | B54: 6768 | C54: 21 | D54: 6780 | E54: 21 | F54: 6786 | K54: 0 | L54: 122
A55: 11 | B55: 6876 | C55: 21 | D55: 6884 | E55: 21 | F55: 6930 | K55: 0 | L55: 122
A56: 22 | B56: 7025 | C56: 23 | D56: 7081 | E56: 23 | F56: 7093 | K56: 0 | L56: 222
A57: 11 | B57: 7187 | C57: 21 | D57: 7246 | E57: 21 | F57: 7254 | K57: 0 | L57: 122
A58: 11 | B58: 7340 | C58: 21 | D58: 7352 | E58: 21 | F58: 7358 | K58: 0 | L58: 122
A59: 22 | B59: 7461 | C59: 23 | D59: 7492 | E59: 23 | F59: 7506 | K59: 0 | L59: 222
A60: 11 | B60: 7600 | C60: 21 | D60: 7616 | E60: 21 | F60: 7629 | K60: 0 | L60: 122
A61: 22 | B61: 7761 | C61: 23 | D61: 7782 | E61: 23 | F61: 7806 | K61: 0 | L61: 222
A62: 11 | B62: 7901 | C62: 12 | D62: 7913 | E62: 23 | F62: 7926 | K62: 0 | L62: 112
A63: 22 | B63: 8034 | C63: 23 | D63: 8041 | E63: 23 | F63: 8090 | K63: 0 | L63: 222
A64: 22 | B64: 8214 | C64: 23 | D64: 8237 | E64: 23 | F64: 8246 | K64: 0 | L64: 222
A65: 11 | B65: 8341 | C65: 21 | D65: 8352 | E65: 21 | F65: 8358 | K65: 0 | L65: 122
A66: 11 | B66: 8449 | C66: 21 | D66: 8462 | E66: 21 | F66: 8492 | K66: 0 | L66: 122
A67: 11 | B67: 8582 | C67: 21 | D67: 8673 | E67: 21 | F67: 8681 | K67: 1 | L67: 122

Sheet !M701950.102
A1: Report for:!M701950.102
A2: Date: | B2: <date>
A3: Hen: | B3: <hen> | F3: Correct Sequence | G3: =Start!J2 -> 122 | P3: Total Sequences in Data | Q3: =4994-COUNTBLANK(L7:L5000) -> 88 | V3: Total Sequences in Block Data | W3: =COUNTA(L7:L21) -> 15 | AA3: Total Sequences in Block Data | AB3: =COUNTA(L22:L35) -> 14 | AF3: Total Sequences in Block Data | AG3: =COUNTA(L36:L50) -> 15 | AK3: Total Sequences in Block Data | AL3: =COUNTA(L51:L65) -> 15 | AP3: Total Sequences in Block Data | AQ3: =COUNTA(L66:L79) -> 14 | AU3: Total Sequences in Block Data | AV3: =COUNTA(L80:L94) -> 15
P4: Total Sequences in Summary | Q4: =SUM(O7:O14) -> 88 | V4: Total Sequences in Block Summary | W4: =SUM(U7:U14) -> 15 | AA4: Total Sequences in Block Summary | AB4: =SUM(Z7:Z14) -> 14 | AF4: Total Sequences in Block Summary | AG4: =SUM(AE7:AE14) -> 15 | AK4: Total Sequences in Block Summary | AL4: =SUM(AJ7:AJ14) -> 15 | AP4: Total Sequences in Block Summary | AQ4: =SUM(AO7:AO14) -> 14 | AU4: Total Sequences in Block Summary | AV4: =SUM(AT7:AT14) -> 15
T5: Block 1 | Y5: Block 2 | AD5: Block 3 | AI5: Block 4 | AN5: Block 5 | AS5: Block 6
A6: Sequence Component 1 | B6: Time 1 | C6: Sequence Component 2 | D6: Time 2 | E6: Sequence Component 3 | F6: Time 3 | G6: Sequence Component 4 | H6: Time 4 | I6: Sequence Component 5 | J6: Time 5 | K6: Correct? 0=No 1=Yes | L6: Sequence | N6: Frequency | P6: Relative Frequency | Q6: Variability | T6: Frequency | V6: Relative Frequency | W6: Variability | Y6: Frequency | AA6: Relative Frequency | AB6: Variability | AD6: Frequency | AF6: Relative Frequency | AG6: Variability | AI6: Frequency | AK6: Relative Frequency | AL6: Variability | AN6: Frequency | AP6: Relative Frequency | AQ6: Variability | AS6: Frequency | AU6: Relative Frequency | AV6: Variability
